Workbook

Sheet STARTSEITE
A2: =Translation!A14 -> Toolbox-Translation - MODULARE MONTAGEAUTOMATION
A3: =Translation!A13 -> Version 04/15
D9: =Translation!A6 -> Modul-Berechnungsprogramm
D12: =Translation!A7 -> Mit diesem Software-Tool werden für Linearmodule die zulässigen Belastungen und Taktzeiten berechnet
A14: =Translation!A15 -> Zoom (%)
D20: =Translation!A17 -> Achtung:
D22: =Translation!A16 -> Bitte überprüfen Sie regelmäßig die Aktualität dieses Berechnungsprogramms im "Download-Bereich" unserer Homepage !
A41: http://www.schunk.com
D42: =Translation!A8 -> Software: MS Excel 2007
D43: =Translation!A11 -> ActiveX Steuerelemente müssen aktiviert sein !
D44: =Translation!A12 -> MAKROS müssen aktiviert sein !
A45: mailto: automation@ de.schunk.com
A50: 1 | B50: 100
B51: 100
B52: 95
B53: 90
B54: 85
B55: 80
B56: 75
B57: 70
B59: 100
B60: =IF(B59>100,100,B59) -> 100
B61: =B60*0.85 -> 85
B62: =B60*0.95 -> 95

Sheet INFO
A2: =Translation!A14 -> Toolbox-Translation - MODULARE MONTAGEAUTOMATION
A3: ='Info-Translation'!A15 -> Informationen
D12: ='Info-Translation'!A6 -> Infos zur Toolbox-Translation
D15: ='Info-Translation'!A19 -> SCHUNK bietet Ihnen Produkte und Dienstleistungen mit zukunftsgerichtetem technischen Niveau. Um Ihnen die geforderte Planungssicherheit zu garantieren wurde diese Software entwickelt mit der Linear- und Portalmodule berechnet werden können. Nachfolgend ist die Funktion und Bedienung kurz beschrieben.
D21: ='Info-Translation'!A7 -> Klicken Sie hier...
H25: ='Info-Translation'!A12 -> Berechnung der Taktzeiten und Belastungen
D44: ='Info-Translation'!A8 -> Linearmodule
D48: ='Info-Translation'!A20 -> Unter folgenden Belastungen können Linear- und Portalmodule berechnet werden:
F63: ='Info-Translation'!A22 -> Belastungsart 2 | J63: ='Info-Translation'!A23 -> Belastungsart 3 | N63: ='Info-Translation'!A24 -> Belastungsart 4 | Q63: ='Info-Translation'!A25 -> Belastungsart 5 | T63: ='Info-Translation'!A26 -> Belastungsart 6
D65: ='Info-Translation'!A27 -> Einbaulage horizontal | R65: ='Info-Translation'!A28 -> Einbaulage vertikal
D67: ='Info-Translation'!A29 -> Berechnungen für die Belastungsfälle 1 bis 6 gelten auch bei um 180 Grad gedrehter Einbaulage
D71: ='Info-Translation'!A30 -> Berechnungsgrundlagen für Linear- und Portalmodule
D73: ='Info-Translation'!A31 -> Anwendungsdaten: | G73: ='Info-Translation'!A33 -> Hub | L73: ='Info-Translation'!A40 -> Moduldaten: | N73: ='Info-Translation'!A41 -> Betriebsdruck 6 bar und Anschluß beider Luftanschlüsse pro Zylinderseite bei LM100, LM200 und LM300
D75: ='Info-Translation'!A32 -> Kundenanforderungen | G75: ='Info-Translation'!A34 -> Gewicht der Zusatzmasse | N75: ='Info-Translation'!A42 -> Stoßdämpferauslastung pro Hub und Stunde max. 95%
G77: ='Info-Translation'!A35 -> Koordinaten des Zusatzmassenschwerpunktes | N77: ='Info-Translation'!A43 -> Führungsbelastung durch Beschleunigung und Verzögerung unter Berücksichtigung aller auftretenden Kräfte und Momente
G79: ='Info-Translation'!A36 -> Extern einwirkende Kräfte im Ruhezustand
N80: ='Info-Translation'!A44 -> Modultyp | P80: ='Info-Translation'!A45 -> Geschwindigkeit beim Beginn der Verzögerung (m/sek.) | T80: ='Info-Translation'!A46 -> Verzögerungsweg (mm)
G81: ='Info-Translation'!A37 -> Koordinaten der externen Kraftangriffspunkte
N83: CLM 08 | P83: ='Info-Translation'!A47 -> V-mittel x 1.75 | T83: 0.1
N84: CLM 10 | P84: ='Info-Translation'!A47 -> V-mittel x 1.75 | T84: 4.5 | U84: ='Info-Translation'!A49 -> Stoßdämpferhub
N85: LM/KLM/CLM25 | P85: ='Info-Translation'!A47 -> V-mittel x 1.75 | T85: 5.5 | U85: ='Info-Translation'!A49 -> Stoßdämpferhub
D86: ='Info-Translation'!A38 -> Eine Belastung kann durch eine Zusatzmasse und/oder durch extern einwirkende Kräfte entstehen. Die Zusatzmasse ist angebaut und wird somit mit bewegt. Externe Kräfte dürfen nur im Ruhezustand einwirken. | N86: LM/KLM/CLM50 | P86: ='Info-Translation'!A47 -> V-mittel x 1.75 | T86: 6 | U86: ='Info-Translation'!A49 -> Stoßdämpferhub
N87: LM/KLM/CLM100 | P87: ='Info-Translation'!A47 -> V-mittel x 1.75 | T87: 8.3 | U87: ='Info-Translation'!A49 -> Stoßdämpferhub
N88: LM/CLM200 | P88: ='Info-Translation'!A47 -> V-mittel x 1.75 | T88: 13.5 | U88: ='Info-Translation'!A49 -> Stoßdämpferhub
N89: LM/KLM300 | P89: ='Info-Translation'!A47 -> V-mittel x 1.75 | T89: 13.5 | U89: ='Info-Translation'!A49 -> Stoßdämpferhub
D90: ='Info-Translation'!A39 -> Eine extern einwirkende Kraft kann auch eine Belastung durch Beschleunigung oder Verzögerung darstellen. Dies ist der Fall wenn das mit dieser Software zu berechnende Linear- oder Portalmodul auf einer weiteren Bewegungsachse aufgebaut ist und somit einer dynamischen Belastung ausgsetzt wird. | N90: PMP16 | P90: ='Info-Translation'!A48 -> wird berechnet (max. 1.1m/sek.) | T90: 8.3 | U90: ='Info-Translation'!A49 -> Stoßdämpferhub
N91: PMP25 | P91: ='Info-Translation'!A48 -> wird berechnet (max. 1.1m/sek.) | T91: 13.5 | U91: ='Info-Translation'!A49 -> Stoßdämpferhub
N93: ='Info-Translation'!A50 -> Die mittlere Verfahrgeschwindigkeit V-mittel errechnet sich aus dem Hub und der Verfahrzeit. Die Beschleunigung ist geringer als die Verzögerung und muß deshalb nicht berücksichtigt werden.
D98: ='Info-Translation'!A51 -> Nach Auswahl der gewünschten Belastungsart (im Beispiel Belastungsart 1) gelangen Sie in die Eingabemaske in der Sie bitte Ihre Daten eingeben. Dabei sind bei allen Koordinaten und extern einwirkenden Kräften die VORZEICHEN anzugeben.
D101: ='Info-Translation'!A67 -> Sind alle Anwendungsdaten eingegeben, gelangen Sie auf die Modulberechnungsseite.
D103: ='Info-Translation'!A52 -> Hier können von den ursprünglich aufgezeigten Modulen aus folgenden Gründen einige Typen entfallen sein:
D106: ='Info-Translation'!A53 -> Der eingebene Hub übersteigt den Maximalhub dieses Typs
D109: ='Info-Translation'!A54 -> Die eingebene Zusatzmasse übersteigt den Maximalwert dieses Typs
D112: ='Info-Translation'!A55 -> Die eingebene Kraft übersteigt den Maximalwert dieses Typs
D116: ='Info-Translation'!A56 -> Mit allen verbliebenen Typen ist Ihr Anwendungsfall grundsätzlich realisierbar. Verändern Sie nun die Verfahrzeit bis ein Typ die von Ihnen gewünschte Verfahrzeit erreicht hat. Dabei werden alle Werte laufend neu berechnet, bei Überlastung werden die entsprechenden Werte rot markiert.
D120: ='Info-Translation'!A57 -> Berechnungsergebnisse
D123: ='Info-Translation'!A68 -> Verzögerungskraft, resultierend aus Zusatzmasse + Masse von Schlitten/Grundkörper beim Abbremsen in der Endlage
D125: ='Info-Translation'!A58 -> Auslastung des Führungssystems
D127: ='Info-Translation'!A59 -> Stoßdämpferauslastung pro Hub
D129: ='Info-Translation'!A60 -> Verfahrzeit pro Hubbewegung (gültig für Vor- und Rückhub)
D131: ='Info-Translation'!A61 -> Maximal mögliche Zykluszahl pro Minute | T131: ='Info-Translation'!A62 -> Beispiel
D136: ='Info-Translation'!A63 -> ACHTUNG: | F136: ='Info-Translation'!A64 -> Die berechneten Werte dürfen nicht über- bzw. unterschritten werden !
F138: ='Info-Translation'!A65 -> Wegen der vielfältigen Gestaltungsmöglichkeiten sind in den Verfahrzeiten und Zykluszahlen keine Ansteuerungs- und Ventilschaltzeiten berücksichtigt. Je nach Aufbau und Art der verwendeten Steuerungen und Ventile sind Ansteuerungs- und Schaltzeiten von 0,05 sek. pro Bewegung realisierbar. Diese sind zu den berechneten Zeiten zu addieren.
F143: ='Info-Translation'!A66 -> Bei einer Stoßdämpferauslastung > 95% kann bei einigen Typen die Stoßdämpferstückzahl auf 2 pro Endlage erhöht werden. Dadurch erhöht sich das Einsatzspektrum.
D151: ='Info-Translation'!A11 -> Allgemeine Infos
D156: ='Info-Translation'!A98 -> Haftung
D158: ='Info-Translation'!A99 -> Alle Angaben und technische Werte wurden nach bestem Wissen und Gewissen zusammengestellt. Eine Rechtsverbindlichkeit besteht nur dann, wenn Ihnen diese Daten, bezogen auf Ihren Anwendungsfall, schriftlich durch uns direkt zugesichert wurden. Änderungen und Abweichungen in der Ausführung eines in Auftrag gegebenen Produkts sind zulässig, insbesondere wenn sie qualitätsfördernd sind oder dem technischen Fortschritt dienen, also eine Produktverbesserung beinhalten. Sie sind aber immer so ausgelegt, daß sie den berechtigten Interessen des Verwenders zumutbar sind.

Sheet LINEARMODUL-ÜBERSICHT
A2: =Translation!A14 -> Toolbox-Translation - MODULARE MONTAGEAUTOMATION
A3: =Translation!A25 -> Berechnung von Linear- und Portalmodulen
D8: =Translation!A27 -> Auswahltabelle
D23: =Translation!A36 -> LM / KLM / CLM-Maximalhub = 450 | I23: =Translation!A36 -> LM / KLM / CLM-Maximalhub = 450 | N23: =Translation!A36 -> LM / KLM / CLM-Maximalhub = 450
N24: =Translation!A37 -> PMP-Maximalhub = 3700
D40: =Translation!A36 -> LM / KLM / CLM-Maximalhub = 450 | I40: =Translation!A36 -> LM / KLM / CLM-Maximalhub = 450 | N40: =Translation!A36 -> LM / KLM / CLM-Maximalhub = 450
D41: =Translation!A37 -> PMP-Maximalhub = 3700 | N41: =Translation!A37 -> PMP-Maximalhub = 3700

Sheet EM-LM-1
A2: =Translation!A14 -> Toolbox-Translation - MODULARE MONTAGEAUTOMATION
A3: =Translation!A50 -> Berechnung Linearmodule
C6: =Translation!A54 -> LM / KLM / CLM - Linearmodule | K6: =Translation!A58 -> Geben Sie Ihre Werte mit -Enter- ein !
I8: H (mm) | K8: 10 | M8: =Translation!A59 -> H = Hub ( max. 450 )
K10: =Translation!A60 -> Masse (m) | M10: =Translation!A62 -> Koordinaten Massenschwerpunkt / Kraftangriff
K12: =Translation!A61 -> Kraft (F) | M12: X ( mm ) | O12: Y ( mm ) | Q12: Z ( mm )
I14: m (kg) | K14: 0 | M14: 0 | O14: 0 | Q14: 0
M16: X ( mm ) | O16: Y ( mm ) | Q16: Z ( mm )
I18: Fx (N) | K18: 0 | O18: 0 | Q18: 0
I20: Fy (N) | K20: 0 | M20: 0 | Q20: 0
I22: Fz (N) | K22: 0 | M22: 0 | O22: 0
C27: =Translation!A57 -> Achtung: Kräfte und Koordinaten mit Vorzeichen !
C28: =Translation!A84 -> ACHTUNG:
C32: =Translation!A85 -> Die auf der Berechnungsseite angegebenen Verfahrzeiten sind reine Verfahrzeiten von einer Endlage in die andere Endlage. Ventilschaltzeiten, Schlauchbefüllungszeiten oder SPS-Reaktionszeiten sind nicht enthalten und bei der Ermittlung von Zykluszeiten zu berücksichtigen. Bitte beachten Sie, dass zum Erreichen der minimal möglichen Verfahrzeit die kundenseitige Stützkonstruktion der resultierenden Dynamik angepasst werden muss !
I35: =Translation!A87 -> Auf der Berechnungsseite der Linearmodule können Sie die Verfahrzeit ändern !
G51: TRUE

Sheet EM-LM-1-1
A2: =Translation!A14 -> Toolbox-Translation - MODULARE MONTAGEAUTOMATION
A3: =Translation!A50 -> Berechnung Linearmodule
F6: + - | I6: =Translation!A65 -> Hier ändern Sie die Verfahrzeit
C10: =Translation!A66 -> LM - Linearmodule | K10: =IF(OR('EM-LM-1'!K8>59,'EM-LM-1'!K8<3,K63=1,M63=1)," ","LM 25") -> LM 25 | M10: =IF(OR('EM-LM-1'!K8>100,K65=1,M65=1)," ","LM 50") -> LM 50 | O10: =IF(OR('EM-LM-1'!K8>225,K67=1,M67=1)," ","LM 100") -> LM 100 | Q10: =IF(OR('EM-LM-1'!K8>350,K71=1,M71=1)," ","LM 200") -> LM 200 | S10: =IF(OR('EM-LM-1'!K8>450,K73=1,M73=1)," ","LM 300") -> LM 300
C11: =Translation!A67 -> Katalogseite | K11: =IF(K10="LM 25","01.010"," ") -> 01.010 | M11: =IF(M10="LM 50","01.020"," ") -> 01.020 | O11: =IF(O10="LM 100","01.030"," ") -> 01.030 | Q11: =IF(Q10="LM 200","01.040"," ") -> 01.040 | S11: =IF(S10="LM 300","01.050"," ") -> 01.050
C12: =Translation!A68 -> Zyl.-kraft bei 6 bar ( N ) | K12: =IF(K10="LM 25","67 / 50",C59) -> 67 / 50 | M12: =IF(M10="LM 50","120 / 103",C59) -> 120 / 103 | O12: =IF(O10="LM 100","294 / 226",C59) -> 294 / 226 | Q12: =IF(Q10="LM 200","482 / 415",C59) -> 482 / 415 | S12: =IF(S10="LM 300","753 / 633",C59) -> 753 / 633
C14: =Translation!A70 -> Führungssystem | K14: =IF(AND(K10=" ",M10=" ",O10=" ",Q10=" ",S10=" ")," ",C60) -> Kreuzrollenführung für Anwendungen mit höheren Anforderungen
C16: =Translation!A93 -> Verzögerungskraft ( N ) | K16: =IF(K10="LM 25",'EM-Ber-LM25-1'!C43,-1) -> 0.3225814922 | M16: =IF(M10="LM 50",'EM-Ber-LM50-1'!C43,-1) -> 1.539795022 | O16: =IF(O10="LM 100",'EM-Ber-LM100-1'!C43,-1) -> 2.250165171 | Q16: =IF(Q10="LM 200",'EM-Ber-LM200-1'!C43,-1) -> 5.014484539 | S16: =IF(S10="LM 300",'EM-Ber-LM300-1'!C43,-1) -> 8.56378996
C17: =Translation!A71 -> Auslastung Führung | K17: =IF(K10="LM 25",'EM-Ber-LM25-1'!J38,-1) -> 0 | M17: =IF(M10="LM 50",'EM-Ber-LM50-1'!J38,-1) -> 0 | O17: =IF(O10="LM 100",'EM-Ber-LM100-1'!J38,-1) -> 0 | Q17: =IF(Q10="LM 200",'EM-Ber-LM200-1'!J38,-1) -> 0 | S17: =IF(S10="LM 300",'EM-Ber-LM300-1'!J38,-1) -> 0
C18: =Translation!A72 -> Auslastung Dämpfer/Hub | K18: =IF(K10="LM 25",'EM-Ber-LM25-1'!C55,-1) -> 0.1344322592 | M18: =IF(M10="LM 50",'EM-Ber-LM50-1'!C55,-1) -> 0.1412036064 | O18: =IF(O10="LM 100",'EM-Ber-LM100-1'!C55,-1) -> 0.3331703454 | Q18: =IF(Q10="LM 200",'EM-Ber-LM200-1'!C55,-1) -> 0.2986828952 | S18: =IF(S10="LM 300",'EM-Ber-LM300-1'!C55,-1) -> 0.4669155319
C19: =Translation!A73 -> Verfahrzeit / Hub ( s ) | K19: =IF(K10="LM 25",'EM-Ber-LM25-1'!L50,-1) -> 0.1611764706 | M19: =IF(M10="LM 50",'EM-Ber-LM50-1'!L50,-1) -> 0.098 | O19: =IF(O10="LM 100",'EM-Ber-LM100-1'!L50,-1) -> 0.092 | Q19: =IF(Q10="LM 200",'EM-Ber-LM200-1'!L50,-1) -> 0.075 | S19: =IF(S10="LM 300",'EM-Ber-LM300-1'!L50,-1) -> 0.064
C20: =Translation!A74 -> Max. Zyklenzahl / Min. | K20: =IF(K10="LM 25",'EM-Ber-LM25-1'!G52,-1) -> 120 | M20: =IF(M10="LM 50",'EM-Ber-LM50-1'!G52,-1) -> 120 | O20: =IF(O10="LM 100",'EM-Ber-LM100-1'!G52,-1) -> 120 | Q20: =IF(Q10="LM 200",'EM-Ber-LM200-1'!G52,-1) -> 70.19892593 | S20: =IF(S10="LM 300",'EM-Ber-LM300-1'!G52,-1) -> 44.90580631
O21: =IF(O10="LM 100",1,0) -> 1 | Q21: =IF(Q10="LM 200",1,0) -> 1 | S21: =IF(S10="LM 300",1,0) -> 1
C22: =Translation!A75 -> Anzahl der Stoßdämpfer pro Endlage | O22: 1 | Q22: 1 | S22: 1
C26: =Translation!A82 -> KLM - Linearmodule | K26: =IF(OR('EM-LM-1'!K8>59,'EM-LM-1'!K8<3,K63=1,M63=1)," ","KLM 25") -> KLM 25 | M26: =IF(OR('EM-LM-1'!K8>125,K65=1,M65=1)," ","KLM 50") -> KLM 50 | O26: =IF(OR('EM-LM-1'!K8>225,K67=1,M67=1)," ","KLM 100") -> KLM 100 | S26: =IF(OR('EM-LM-1'!K8>300,K73=1,M73=1)," ","KLM 300") -> KLM 300
C27: =Translation!A67 -> Katalogseite | K27: =IF(K26="KLM 25","01.110"," ") -> 01.110 | M27: =IF(M26="KLM 50","01.120"," ") -> 01.120 | O27: =IF(O26="KLM 100","1.130"," ") -> 1.130 | S27: =IF(S26="KLM 100","1.130"," ") -> 
C28: =Translation!A68 -> Zyl.-kraft bei 6 bar ( N ) | K28: =IF(K26="KLM 25","67 / 50",C59) -> 67 / 50 | M28: =IF(M26="KLM 50","120 / 103",C59) -> 120 / 103 | O28: =IF(O26="KLM 100","294 / 226",C59) -> 294 / 226 | S28: =IF(S26="KLM 300","753 / 633",C59) -> 753 / 633
C30: =Translation!A70 -> Führungssystem | K30: =IF(AND(K26=" ",M26=" ",O26=" ",S26=" ")," ",C61) -> Kugelumlaufführung für Standardanwendungen
C32: =Translation!A93 -> Verzögerungskraft ( N ) | K32: =IF(K26="KLM 25",'EM-Ber-KLM25-1'!C43,-1) -> 0.3665698775 | M32: =IF(M26="KLM 50",'EM-Ber-KLM50-1'!C43,-1) -> 3.140824295 | O32: =IF(O26="KLM 100",'EM-Ber-KLM100-1'!C43,-1) -> 3.428756021 | S32: =IF(S26="KLM 300",'EM-Ber-KLM300-1'!C43,-1) -> 13.06640118
C33: =Translation!A71 -> Auslastung Führung | K33: =IF(K26="KLM 25",'EM-Ber-KLM25-1'!J38,-1) -> 0 | M33: =IF(M26="KLM 50",'EM-Ber-KLM50-1'!J38,-1) -> 0 | O33: =IF(O26="KLM 100",'EM-Ber-KLM100-1'!J38,-1) -> 0 | S33: =IF(S26="KLM 300",'EM-Ber-KLM300-1'!J38,-1) -> 0
C34: =Translation!A72 -> Auslastung Dämpfer/Hub | K34: =IF(K26="KLM 25",'EM-Ber-KLM25-1'!C55,-1) -> 0.1344912036 | M34: =IF(M26="KLM 50",'EM-Ber-KLM50-1'!C55,-1) -> 0.1424550777 | O34: =IF(O26="KLM 100",'EM-Ber-KLM100-1'!C55,-1) -> 0.3340606436 | S34: =IF(S26="KLM 300",'EM-Ber-KLM300-1'!C55,-1) -> 0.4687719931
C35: =Translation!A73 -> Verfahrzeit / Hub ( s ) | K35: =IF(K26="KLM 25",'EM-Ber-KLM25-1'!L50,-1) -> 0.1611764706 | M35: =IF(M26="KLM 50",'EM-Ber-KLM50-1'!L50,-1) -> 0.0834 | O35: =IF(O26="KLM 100",'EM-Ber-KLM100-1'!L50,-1) -> 0.082 | S35: =IF(S26="KLM 300",'EM-Ber-KLM300-1'!L50,-1) -> 0.064
C36: =Translation!A74 -> Max. Zyklenzahl / Min. | K36: =IF(K26="KLM 25",'EM-Ber-KLM25-1'!G52,-1) -> 120 | M36: =IF(M26="KLM 50",'EM-Ber-KLM50-1'!G52,-1) -> 120 | O36: =IF(O26="KLM 100",'EM-Ber-KLM100-1'!G52,-1) -> 120 | S36: =IF(S26="KLM 300",'EM-Ber-KLM300-1'!G52,-1) -> 44.72796742
O37: =IF(O26="KLM 100",1,0) -> 1 | S37: =IF(S26="KLM 300",1,0) -> 1
C38: =Translation!A75 -> Anzahl der Stoßdämpfer pro Endlage | O38: 1 | S38: 1
C42: =Translation!A83 -> CLM - Linearmodule | G42: =IF(OR('EM-LM-1'!K8>42,K75=1,M75=1)," ","CLM 08") -> CLM 08 | I42: =IF(OR('EM-LM-1'!K8>48,'EM-LM-1'!K8<2,K77=1,M77=1)," ","CLM 10") -> CLM 10 | K42: =IF(OR('EM-LM-1'!K8>59,'EM-LM-1'!K8<3,K63=1,M63=1)," ","CLM 25") -> CLM 25 | M42: =IF(OR('EM-LM-1'!K8>100,K65=1,M65=1)," ","CLM 50") -> CLM 50 | O42: =IF(OR('EM-LM-1'!K8>150,K69=1,M69=1)," ","CLM 100") -> CLM 100 | Q42: =IF(OR('EM-LM-1'!K8>150,K71=1,M71=1)," ","CLM 200") -> CLM 200
C43: =Translation!A67 -> Katalogseite | G43: =IF(G42="CLM 08","01.310"," ") -> 01.310 | I43: =IF(I42="CLM 10","01.320"," ") -> 01.320 | K43: =IF(K42="CLM 25","01.330"," ") -> 01.330 | M43: =IF(M42="CLM 50","01.340"," ") -> 01.340 | O43: =IF(O42="CLM 100","01.350"," ") -> 01.350 | Q43: =IF(Q42="CLM 200","01.360"," ") -> 01.360
C44: =Translation!A68 -> Zyl.-kraft bei 6 bar ( N ) | G44: =IF(G42="CLM 08","30 / 25",C59) -> 30 / 25 | I44: =IF(I42="CLM 10","47 / 39",C59) -> 47 / 39 | K44: =IF(K42="CLM 25","67 / 50",C59) -> 67 / 50 | M44: =IF(M42="CLM 50","120 / 103",C59) -> 120 / 103 | O44: =IF(O42="CLM 100","294 / 247",C59) -> 294 / 247 | Q44: =IF(Q42="CLM 200","482 / 415",C59) -> 482 / 415
C46: =Translation!A70 -> Führungssystem | G46: =IF(AND(G42=" ",I42=" ",K42=" ",M42=" ",O42=" ",Q42=" ")," ",C60) -> Kreuzrollenführung für Anwendungen mit höheren Anforderungen
C48: =Translation!A93 -> Verzögerungskraft ( N ) | G48: =IF(G42="CLM 08",'EM-Ber-CLM08-1'!C43,-1) -> 21.42095872 | I48: =IF(I42="CLM 10",'EM-Ber-CLM10-1'!C43,-1) -> 0.7832734955 | K48: =IF(K42="CLM 25",'EM-Ber-CLM25-1'!C43,-1) -> 0.3225814922 | M48: =IF(M42="CLM 50",'EM-Ber-CLM50-1'!C43,-1) -> 1.329822974 | O48: =IF(O42="CLM 100",'EM-Ber-CLM100-1'!C43,-1) -> 1.776446188 | Q48: =IF(Q42="CLM 200",'EM-Ber-CLM200-1'!C43,-1) -> 3.985872326
C49: =Translation!A71 -> Auslastung Führung | G49: =IF(G42="CLM 08",'EM-Ber-CLM08-1'!J38,-1) -> 0 | I49: =IF(I42="CLM 10",'EM-Ber-CLM10-1'!J38,-1) -> 0 | K49: =IF(K42="CLM 25",'EM-Ber-CLM25-1'!J38,-1) -> 0 | M49: =IF(M42="CLM 50",'EM-Ber-CLM50-1'!J38,-1) -> 0 | O49: =IF(O42="CLM 100",'EM-Ber-CLM100-1'!J38,-1) -> 0 | Q49: =IF(Q42="CLM 200",'EM-Ber-CLM200-1'!J38,-1) -> 0
C50: =Translation!A72 -> Auslastung Dämpfer/Hub | I50: =IF(I42="CLM 10",'EM-Ber-CLM10-1'!C55,-1) -> 0.2376239662 | K50: =IF(K42="CLM 25",'EM-Ber-CLM25-1'!C55,-1) -> 0.1344322592 | M50: =IF(M42="CLM 50",'EM-Ber-CLM50-1'!C55,-1) -> 0.1410394783 | O50: =IF(O42="CLM 100",'EM-Ber-CLM100-1'!C55,-1) -> 0.3328125018 | Q50: =IF(Q42="CLM 200",'EM-Ber-CLM200-1'!C55,-1) -> 0.2982587904
C51: =Translation!A73 -> Verfahrzeit / Hub ( s ) | G51: =IF(G42="CLM 08",'EM-Ber-CLM08-1'!L50,-1) -> 0.05142857143 | I51: =IF(I42="CLM 10",'EM-Ber-CLM10-1'!L50,-1) -> 0.06571428571 | K51: =IF(K42="CLM 25",'EM-Ber-CLM25-1'!L50,-1) -> 0.1611764706 | M51: =IF(M42="CLM 50",'EM-Ber-CLM50-1'!L50,-1) -> 0.098 | O51: =IF(O42="CLM 100",'EM-Ber-CLM100-1'!L50,-1) -> 0.092 | Q51: =IF(Q42="CLM 200",'EM-Ber-CLM200-1'!L50,-1) -> 0.075
C52: =Translation!A74 -> Max. Zyklenzahl / Min. | G52: =IF(G42="CLM 08",'EM-Ber-CLM08-1'!G52,-1) -> 120 | I52: =IF(I42="CLM 10",'EM-Ber-CLM10-1'!G52,-1) -> 120 | K52: =IF(K42="CLM 25",'EM-Ber-CLM25-1'!G52,-1) -> 120 | M52: =IF(M42="CLM 50",'EM-Ber-CLM50-1'!G52,-1) -> 120 | O52: =IF(O42="CLM 100",'EM-Ber-CLM100-1'!G52,-1) -> 120 | Q52: =IF(Q42="CLM 200",'EM-Ber-CLM200-1'!G52,-1) -> 70.29874427
I58: =I59*0.01 -> 2.02
C59: =Translation!A78 -> UNZULÄSSIG | I59: 202
C60: =Translation!A76 -> Kreuzrollenführung für Anwendungen mit höheren Anforderungen
C61: =Translation!A77 -> Kugelumlaufführung für Standardanwendungen
C63: Wegfallkriterium wegen Kraft Y: | G63: LM/KLM/CLM 25 | I63: =IF(AND('EM-LM-1'!G$51=TRUE,'EM-LM-1'!K$20>'Allgemeine Werte'!E$52),1,0) -> 0 | K63: =IF(OR(I63=1,I64=1),1,0) -> 0 | M63: =IF(AND('EM-LM-1'!K$20<='Allgemeine Werte'!G52,'EM-LM-1'!K$20>=-'Allgemeine Werte'!G52),0,1) -> 0
I64: =IF(AND('EM-LM-1'!G$51=FALSE,'EM-LM-1'!K$20<-'Allgemeine Werte'!E$52),1,0) -> 0
G65: LM/KLM/CLM 50 | I65: =IF(AND('EM-LM-1'!G$51=TRUE,'EM-LM-1'!K$20>'Allgemeine Werte'!E$53),1,0) -> 0 | K65: =IF(OR(I65=1,I66=1),1,0) -> 0 | M65: =IF(AND('EM-LM-1'!K$20<='Allgemeine Werte'!G53,'EM-LM-1'!K$20>=-'Allgemeine Werte'!G53),0,1) -> 0
I66: =IF(AND('EM-LM-1'!G$51=FALSE,'EM-LM-1'!K$20<-'Allgemeine Werte'!E$53),1,0) -> 0
G67: LM/KLM 100 | I67: =IF(AND('EM-LM-1'!G$51=TRUE,'EM-LM-1'!K$20>'Allgemeine Werte'!E$54),1,0) -> 0 | K67: =IF(OR(I67=1,I68=1),1,0) -> 0 | M67: =IF(AND('EM-LM-1'!K$20<='Allgemeine Werte'!G54,'EM-LM-1'!K$20>=-'Allgemeine Werte'!G54),0,1) -> 0
I68: =IF(AND('EM-LM-1'!G$51=FALSE,'EM-LM-1'!K$20<-'Allgemeine Werte'!E$54),1,0) -> 0
G69: CLM 100 | I69: =IF(AND('EM-LM-1'!G$51=TRUE,'EM-LM-1'!K$20>'Allgemeine Werte'!E$55),1,0) -> 0 | K69: =IF(OR(I69=1,I70=1),1,0) -> 0 | M69: =IF(AND('EM-LM-1'!K$20<='Allgemeine Werte'!G55,'EM-LM-1'!K$20>=-'Allgemeine Werte'!G55),0,1) -> 0
I70: =IF(AND('EM-LM-1'!G$51=FALSE,'EM-LM-1'!K$20<-'Allgemeine Werte'!E$55),1,0) -> 0
G71: LM/CLM 200 | I71: =IF(AND('EM-LM-1'!G$51=TRUE,'EM-LM-1'!K$20>'Allgemeine Werte'!E$56),1,0) -> 0 | K71: =IF(OR(I71=1,I72=1),1,0) -> 0 | M71: =IF(AND('EM-LM-1'!K$20<='Allgemeine Werte'!G56,'EM-LM-1'!K$20>=-'Allgemeine Werte'!G56),0,1) -> 0
I72: =IF(AND('EM-LM-1'!G$51=FALSE,'EM-LM-1'!K$20<-'Allgemeine Werte'!E$56),1,0) -> 0
G73: LM/KLM 300 | I73: =IF(AND('EM-LM-1'!G$51=TRUE,'EM-LM-1'!K$20>'Allgemeine Werte'!E$57),1,0) -> 0 | K73: =IF(OR(I73=1,I74=1),1,0) -> 0 | M73: =IF(AND('EM-LM-1'!K$20<='Allgemeine Werte'!G57,'EM-LM-1'!K$20>=-'Allgemeine Werte'!G57),0,1) -> 0
I74: =IF(AND('EM-LM-1'!G$51=FALSE,'EM-LM-1'!K$20<-'Allgemeine Werte'!E$57),1,0) -> 0
G75: CLM 08 | I75: =IF(AND('EM-LM-1'!G$51=TRUE,'EM-LM-1'!K$20>'Allgemeine Werte'!E$60),1,0) -> 0 | K75: =IF(OR(I75=1,I76=1),1,0) -> 0 | M75: =IF(AND('EM-LM-1'!K$20<='Allgemeine Werte'!G60,'EM-LM-1'!K$20>=-'Allgemeine Werte'!G60),0,1) -> 0
I76: =IF(AND('EM-LM-1'!G$51=FALSE,'EM-LM-1'!K$20<-'Allgemeine Werte'!E$60),1,0) -> 0
G77: CLM 10 | I77: =IF(AND('EM-LM-1'!G$51=TRUE,'EM-LM-1'!K$20>'Allgemeine Werte'!E$61),1,0) -> 0 | K77: =IF(OR(I77=1,I78=1),1,0) -> 0 | M77: =IF(AND('EM-LM-1'!K$20<='Allgemeine Werte'!G61,'EM-LM-1'!K$20>=-'Allgemeine Werte'!G61),0,1) -> 0
I78: =IF(AND('EM-LM-1'!G$51=FALSE,'EM-LM-1'!K$20<-'Allgemeine Werte'!E$61),1,0) -> 0

Sheet EM-LM-2
A2: =Translation!A14 -> Toolbox-Translation - MODULARE MONTAGEAUTOMATION
A3: =Translation!A50 -> Berechnung Linearmodule
C6: =Translation!A54 -> LM / KLM / CLM - Linearmodule | K6: =Translation!A58 -> Geben Sie Ihre Werte mit -Enter- ein !
I8: H (mm) | K8: 10 | M8: =Translation!A59 -> H = Hub ( max. 450 )
K10: =Translation!A60 -> Masse (m) | M10: =Translation!A62 -> Koordinaten Massenschwerpunkt / Kraftangriff
K12: =Translation!A61 -> Kraft (F) | M12: X ( mm ) | O12: Y ( mm ) | Q12: Z ( mm )
I14: m (kg) | K14: 0 | M14: 0 | O14: 0 | Q14: 0
M16: ( N )
I18: Fx (N) | K18: 0 | O18: 0 | Q18: 0
I20: Fy (N) | K20: 0 | M20: 0 | Q20: 0
I22: Fz (N) | K22: 0 | M22: 0 | O22: 0
C27: =Translation!A57 -> Achtung: Kräfte und Koordinaten mit Vorzeichen !
C28: =Translation!A84 -> ACHTUNG:
C32: =Translation!A85 -> Die auf der Berechnungsseite angegebenen Verfahrzeiten sind reine Verfahrzeiten von einer Endlage in die andere Endlage. Ventilschaltzeiten, Schlauchbefüllungszeiten oder SPS-Reaktionszeiten sind nicht enthalten und bei der Ermittlung von Zykluszeiten zu berücksichtigen. Bitte beachten Sie, dass zum Erreichen der minimal möglichen Verfahrzeit die kundenseitige Stützkonstruktion der resultierenden Dynamik angepasst werden muss !
I35: =Translation!A87 -> Auf der Berechnungsseite der Linearmodule können Sie die Verfahrzeit ändern !
G51: TRUE

Sheet EM-LM-2-1
A2: =Translation!A14 -> Toolbox-Translation - MODULARE MONTAGEAUTOMATION
A3: =Translation!A50 -> Berechnung Linearmodule
F6: + - | I6: =Translation!A65 -> Hier ändern Sie die Verfahrzeit
C10: =Translation!A66 -> LM - Linearmodule | K10: =IF(OR('EM-LM-2'!K8>59,'EM-LM-2'!K8<3,K63=1,M63=1)," ","LM 25") -> LM 25 | M10: =IF(OR('EM-LM-2'!K8>100,K65=1,M65=1)," ","LM 50") -> LM 50 | O10: =IF(OR('EM-LM-2'!K8>225,K67=1,M67=1)," ","LM 100") -> LM 100 | Q10: =IF(OR('EM-LM-2'!K8>350,K71=1,M71=1)," ","LM 200") -> LM 200 | S10: =IF(OR('EM-LM-2'!K8>450,K73=1,M73=1)," ","LM 300") -> LM 300
C11: =Translation!A67 -> Katalogseite | K11: =IF(K10="LM 25","01.010"," ") -> 01.010 | M11: =IF(M10="LM 50","01.020"," ") -> 01.020 | O11: =IF(O10="LM 100","01.030"," ") -> 01.030 | Q11: =IF(Q10="LM 200","01.040"," ") -> 01.040 | S11: =IF(S10="LM 300","01.050"," ") -> 01.050
C12: =Translation!A68 -> Zyl.-kraft bei 6 bar ( N ) | K12: =IF(K10="LM 25","67 / 50",C59) -> 67 / 50 | M12: =IF(M10="LM 50","120 / 103",C59) -> 120 / 103 | O12: =IF(O10="LM 100","294 / 226",C59) -> 294 / 226 | Q12: =IF(Q10="LM 200","482 / 415",C59) -> 482 / 415 | S12: =IF(S10="LM 300","753 / 633",C59) -> 753 / 633
C14: =Translation!A70 -> Führungssystem | K14: =IF(AND(K10=" ",M10=" ",O10=" ",Q10=" ",S10=" ")," ",C60) -> Kreuzrollenführung für Anwendungen mit höheren Anforderungen
C16: =Translation!A93 -> Verzögerungskraft ( N ) | K16: =IF(K10="LM 25",'EM-Ber-LM25-2'!C43,-1) -> 0.3225814922 | M16: =IF(M10="LM 50",'EM-Ber-LM50-2'!C43,-1) -> 1.539795022 | O16: =IF(O10="LM 100",'EM-Ber-LM100-2'!C43,-1) -> 2.250165171 | Q16: =IF(Q10="LM 200",'EM-Ber-LM200-2'!C43,-1) -> 5.014484539 | S16: =IF(S10="LM 300",'EM-Ber-LM300-2'!C43,-1) -> 8.56378996
C17: =Translation!A71 -> Auslastung Führung | K17: =IF(K10="LM 25",'EM-Ber-LM25-2'!J38,-1) -> 0 | M17: =IF(M10="LM 50",'EM-Ber-LM50-2'!J38,-1) -> 0 | O17: =IF(O10="LM 100",'EM-Ber-LM100-2'!J38,-1) -> 0 | Q17: =IF(Q10="LM 200",'EM-Ber-LM200-2'!J38,-1) -> 0 | S17: =IF(S10="LM 300",'EM-Ber-LM300-2'!J38,-1) -> 0
C18: =Translation!A72 -> Auslastung Dämpfer/Hub | K18: =IF(K10="LM 25",'EM-Ber-LM25-2'!C55,-1) -> 0.1344322592 | M18: =IF(M10="LM 50",'EM-Ber-LM50-2'!C55,-1) -> 0.1412036064 | O18: =IF(O10="LM 100",'EM-Ber-LM100-2'!C55,-1) -> 0.3331703454 | Q18: =IF(Q10="LM 200",'EM-Ber-LM200-2'!C55,-1) -> 0.2986828952 | S18: =IF(S10="LM 300",'EM-Ber-LM300-2'!C55,-1) -> 0.4669155319
C19: =Translation!A73 -> Verfahrzeit / Hub ( s ) | K19: =IF(K10="LM 25",'EM-Ber-LM25-2'!L50,-1) -> 0.1611764706 | M19: =IF(M10="LM 50",'EM-Ber-LM50-2'!L50,-1) -> 0.098 | O19: =IF(O10="LM 100",'EM-Ber-LM100-2'!L50,-1) -> 0.092 | Q19: =IF(Q10="LM 200",'EM-Ber-LM200-2'!L50,-1) -> 0.075 | S19: =IF(S10="LM 300",'EM-Ber-LM300-2'!L50,-1) -> 0.064
C20: =Translation!A74 -> Max. Zyklenzahl / Min. | K20: =IF(K10="LM 25",'EM-Ber-LM25-2'!G52,-1) -> 120 | M20: =IF(M10="LM 50",'EM-Ber-LM50-2'!G52,-1) -> 120 | O20: =IF(O10="LM 100",'EM-Ber-LM100-2'!G52,-1) -> 120 | Q20: =IF(Q10="LM 200",'EM-Ber-LM200-2'!G52,-1) -> 70.19892593 | S20: =IF(S10="LM 300",'EM-Ber-LM300-2'!G52,-1) -> 44.90580631
O21: =IF(O10="LM 100",1,0) -> 1 | Q21: =IF(Q10="LM 200",1,0) -> 1 | S21: =IF(S10="LM 300",1,0) -> 1
C22: =Translation!A75 -> Anzahl der Stoßdämpfer pro Endlage | O22: 1 | Q22: 1 | S22: 1
C26: =Translation!A82 -> KLM - Linearmodule | K26: =IF(OR('EM-LM-2'!K8>59,'EM-LM-2'!K8<3,K63=1,M63=1)," ","KLM 25") -> KLM 25 | M26: =IF(OR('EM-LM-2'!K8>125,K65=1,M65=1)," ","KLM 50") -> KLM 50 | O26: =IF(OR('EM-LM-2'!K8>225,K67=1,M67=1)," ","KLM 100") -> KLM 100 | S26: =IF(OR('EM-LM-2'!K8>300,K73=1,M73=1)," ","KLM 300") -> KLM 300
C27: =Translation!A67 -> Katalogseite | K27: =IF(K26="KLM 25","01.110"," ") -> 01.110 | M27: =IF(M26="KLM 50","01.120"," ") -> 01.120 | O27: =IF(O26="KLM 100","1.130"," ") -> 1.130 | S27: =IF(S26="KLM 100","1.130"," ") -> 
C28: =Translation!A68 -> Zyl.-kraft bei 6 bar ( N ) | K28: =IF(K26="KLM 25","67 / 50",C59) -> 67 / 50 | M28: =IF(M26="KLM 50","120 / 103",C59) -> 120 / 103 | O28: =IF(O26="KLM 100","294 / 226",C59) -> 294 / 226 | S28: =IF(S26="KLM 300","753 / 633",C59) -> 753 / 633
C30: =Translation!A70 -> Führungssystem | K30: =IF(AND(K26=" ",M26=" ",O26=" ",S26=" ")," ",C61) -> Kugelumlaufführung für Standardanwendungen
C32: =Translation!A93 -> Verzögerungskraft ( N ) | K32: =IF(K26="KLM 25",'EM-Ber-KLM25-2'!C43,-1) -> 0.3665698775 | M32: =IF(M26="KLM 50",'EM-Ber-KLM50-2'!C43,-1) -> 3.140824295 | O32: =IF(O26="KLM 100",'EM-Ber-KLM100-2'!C43,-1) -> 3.428756021 | S32: =IF(S26="KLM 300",'EM-Ber-KLM300-2'!C43,-1) -> 13.06640118
C33: =Translation!A71 -> Auslastung Führung | K33: =IF(K26="KLM 25",'EM-Ber-KLM25-2'!J38,-1) -> 0 | M33: =IF(M26="KLM 50",'EM-Ber-KLM50-2'!J38,-1) -> 0 | O33: =IF(O26="KLM 100",'EM-Ber-KLM100-2'!J38,-1) -> 0 | S33: =IF(S26="KLM 300",'EM-Ber-KLM300-2'!J38,-1) -> 0
C34: =Translation!A72 -> Auslastung Dämpfer/Hub | K34: =IF(K26="KLM 25",'EM-Ber-KLM25-2'!C55,-1) -> 0.1344912036 | M34: =IF(M26="KLM 50",'EM-Ber-KLM50-2'!C55,-1) -> 0.1424550777 | O34: =IF(O26="KLM 100",'EM-Ber-KLM100-2'!C55,-1) -> 0.3340606436 | S34: =IF(S26="KLM 300",'EM-Ber-KLM300-2'!C55,-1) -> 0.4687719931
C35: =Translation!A73 -> Verfahrzeit / Hub ( s ) | K35: =IF(K26="KLM 25",'EM-Ber-KLM25-2'!L50,-1) -> 0.1611764706 | M35: =IF(M26="KLM 50",'EM-Ber-KLM50-2'!L50,-1) -> 0.0834 | O35: =IF(O26="KLM 100",'EM-Ber-KLM100-2'!L50,-1) -> 0.082 | S35: =IF(S26="KLM 300",'EM-Ber-KLM300-2'!L50,-1) -> 0.064
C36: =Translation!A74 -> Max. Zyklenzahl / Min. | K36: =IF(K26="KLM 25",'EM-Ber-KLM25-2'!G52,-1) -> 120 | M36: =IF(M26="KLM 50",'EM-Ber-KLM50-2'!G52,-1) -> 120 | O36: =IF(O26="KLM 100",'EM-Ber-KLM100-2'!G52,-1) -> 120 | S36: =IF(S26="KLM 300",'EM-Ber-KLM300-2'!G52,-1) -> 44.72796742
O37: =IF(O26="KLM 100",1,0) -> 1 | S37: =IF(S26="KLM 300",1,0) -> 1
C38: =Translation!A75 -> Anzahl der Stoßdämpfer pro Endlage | O38: 1 | S38: 1
C42: =Translation!A83 -> CLM - Linearmodule | G42: =IF(OR('EM-LM-2'!K8>42,K75=1,M75=1)," ","CLM 08") -> CLM 08 | I42: =IF(OR('EM-LM-2'!K8>48,'EM-LM-2'!K8<2,K77=1,M77=1)," ","CLM 10") -> CLM 10 | K42: =IF(OR('EM-LM-2'!K8>59,'EM-LM-2'!K8<3,K63=1,M63=1)," ","CLM 25") -> CLM 25 | M42: =IF(OR('EM-LM-2'!K8>100,K65=1,M65=1)," ","CLM 50") -> CLM 50 | O42: =IF(OR('EM-LM-2'!K8>150,K69=1,M69=1)," ","CLM 100") -> CLM 100 | Q42: =IF(OR('EM-LM-2'!K8>150,K71=1,M71=1)," ","CLM 200") -> CLM 200
C43: =Translation!A67 -> Katalogseite | G43: =IF(G42="CLM 08","01.310"," ") -> 01.310 | I43: =IF(I42="CLM 10","01.320"," ") -> 01.320 | K43: =IF(K42="CLM 25","01.330"," ") -> 01.330 | M43: =IF(M42="CLM 50","01.340"," ") -> 01.340 | O43: =IF(O42="CLM 100","01.350"," ") -> 01.350 | Q43: =IF(Q42="CLM 200","01.360"," ") -> 01.360
C44: =Translation!A68 -> Zyl.-kraft bei 6 bar ( N ) | G44: =IF(G42="CLM 08","30 / 25",C59) -> 30 / 25 | I44: =IF(I42="CLM 10","47 / 39",C59) -> 47 / 39 | K44: =IF(K42="CLM 25","67 / 50",C59) -> 67 / 50 | M44: =IF(M42="CLM 50","120 / 103",C59) -> 120 / 103 | O44: =IF(O42="CLM 100","294 / 247",C59) -> 294 / 247 | Q44: =IF(Q42="CLM 200","482 / 415",C59) -> 482 / 415
C46: =Translation!A70 -> Führungssystem | G46: =IF(AND(G42=" ",I42=" ",K42=" ",M42=" ",O42=" ",Q42=" ")," ",C60) -> Kreuzrollenführung für Anwendungen mit höheren Anforderungen
C48: =Translation!A93 -> Verzögerungskraft ( N ) | G48: =IF(G42="CLM 08",'EM-Ber-CLM08-2'!C43,-1) -> 21.42095872 | I48: =IF(I42="CLM 10",'EM-Ber-CLM10-2'!C43,-1) -> 0.7832734955 | K48: =IF(K42="CLM 25",'EM-Ber-CLM25-2'!C43,-1) -> 0.3225814922 | M48: =IF(M42="CLM 50",'EM-Ber-CLM50-2'!C43,-1) -> 1.329822974 | O48: =IF(O42="CLM 100",'EM-Ber-CLM100-2'!C43,-1) -> 1.776446188 | Q48: =IF(Q42="CLM 200",'EM-Ber-CLM200-2'!C43,-1) -> 3.985872326
C49: =Translation!A71 -> Auslastung Führung | G49: =IF(G42="CLM 08",'EM-Ber-CLM08-2'!J38,-1) -> 0 | I49: =IF(I42="CLM 10",'EM-Ber-CLM10-2'!J38,-1) -> 0 | K49: =IF(K42="CLM 25",'EM-Ber-CLM25-2'!J38,-1) -> 0 | M49: =IF(M42="CLM 50",'EM-Ber-CLM50-2'!J38,-1) -> 0 | O49: =IF(O42="CLM 100",'EM-Ber-CLM100-2'!J38,-1) -> 0 | Q49: =IF(Q42="CLM 200",'EM-Ber-CLM200-2'!J38,-1) -> 0
C50: =Translation!A72 -> Auslastung Dämpfer/Hub | I50: =IF(I42="CLM 10",'EM-Ber-CLM10-2'!C55,-1) -> 0.2376239662 | K50: =IF(K42="CLM 25",'EM-Ber-CLM25-2'!C55,-1) -> 0.1344322592 | M50: =IF(M42="CLM 50",'EM-Ber-CLM50-2'!C55,-1) -> 0.1410394783 | O50: =IF(O42="CLM 100",'EM-Ber-CLM100-2'!C55,-1) -> 0.3328125018 | Q50: =IF(Q42="CLM 200",'EM-Ber-CLM200-2'!C55,-1) -> 0.2982587904
C51: =Translation!A73 -> Verfahrzeit / Hub ( s ) | G51: =IF(G42="CLM 08",'EM-Ber-CLM08-2'!L50,-1) -> 0.05142857143 | I51: =IF(I42="CLM 10",'EM-Ber-CLM10-2'!L50,-1) -> 0.06571428571 | K51: =IF(K42="CLM 25",'EM-Ber-CLM25-2'!L50,-1) -> 0.1611764706 | M51: =IF(M42="CLM 50",'EM-Ber-CLM50-2'!L50,-1) -> 0.098 | O51: =IF(O42="CLM 100",'EM-Ber-CLM100-2'!L50,-1) -> 0.092 | Q51: =IF(Q42="CLM 200",'EM-Ber-CLM200-2'!L50,-1) -> 0.075
C52: =Translation!A74 -> Max. Zyklenzahl / Min. | G52: =IF(G42="CLM 08",'EM-Ber-CLM08-2'!G52,-1) -> 120 | I52: =IF(I42="CLM 10",'EM-Ber-CLM10-2'!G52,-1) -> 120 | K52: =IF(K42="CLM 25",'EM-Ber-CLM25-2'!G52,-1) -> 120 | M52: =IF(M42="CLM 50",'EM-Ber-CLM50-2'!G52,-1) -> 120 | O52: =IF(O42="CLM 100",'EM-Ber-CLM100-2'!G52,-1) -> 120 | Q52: =IF(Q42="CLM 200",'EM-Ber-CLM200-2'!G52,-1) -> 70.29874427
I58: =I59*0.01 -> 2.02
C59: =Translation!A78 -> UNZULÄSSIG | I59: 202
C60: =Translation!A76 -> Kreuzrollenführung für Anwendungen mit höheren Anforderungen
C61: =Translation!A77 -> Kugelumlaufführung für Standardanwendungen
C63: Wegfallkriterium wegen Kraft Y: | G63: LM/KLM/CLM 25 | I63: =IF(AND('EM-LM-2'!G$51=TRUE,'EM-LM-2'!K$20>'Allgemeine Werte'!E$52),1,0) -> 0 | K63: =IF(OR(I63=1,I64=1),1,0) -> 0 | M63: =IF(AND('EM-LM-2'!K$20<='Allgemeine Werte'!G52,'EM-LM-2'!K$20>=-'Allgemeine Werte'!G52),0,1) -> 0
I64: =IF(AND('EM-LM-2'!G$51=FALSE,'EM-LM-2'!K$20<-'Allgemeine Werte'!E$52),1,0) -> 0
G65: LM/KLM/CLM 50 | I65: =IF(AND('EM-LM-2'!G$51=TRUE,'EM-LM-2'!K$20>'Allgemeine Werte'!E$53),1,0) -> 0 | K65: =IF(OR(I65=1,I66=1),1,0) -> 0 | M65: =IF(AND('EM-LM-2'!K$20<='Allgemeine Werte'!G53,'EM-LM-2'!K$20>=-'Allgemeine Werte'!G53),0,1) -> 0
I66: =IF(AND('EM-LM-2'!G$51=FALSE,'EM-LM-2'!K$20<-'Allgemeine Werte'!E$53),1,0) -> 0
G67: LM/KLM 100 | I67: =IF(AND('EM-LM-2'!G$51=TRUE,'EM-LM-2'!K$20>'Allgemeine Werte'!E$54),1,0) -> 0 | K67: =IF(OR(I67=1,I68=1),1,0) -> 0 | M67: =IF(AND('EM-LM-2'!K$20<='Allgemeine Werte'!G54,'EM-LM-2'!K$20>=-'Allgemeine Werte'!G54),0,1) -> 0
I68: =IF(AND('EM-LM-2'!G$51=FALSE,'EM-LM-2'!K$20<-'Allgemeine Werte'!E$54),1,0) -> 0
G69: CLM 100 | I69: =IF(AND('EM-LM-2'!G$51=TRUE,'EM-LM-2'!K$20>'Allgemeine Werte'!E$55),1,0) -> 0 | K69: =IF(OR(I69=1,I70=1),1,0) -> 0 | M69: =IF(AND('EM-LM-2'!K$20<='Allgemeine Werte'!G55,'EM-LM-2'!K$20>=-'Allgemeine Werte'!G55),0,1) -> 0
I70: =IF(AND('EM-LM-2'!G$51=FALSE,'EM-LM-2'!K$20<-'Allgemeine Werte'!E$55),1,0) -> 0
G71: LM/CLM 200 | I71: =IF(AND('EM-LM-2'!G$51=TRUE,'EM-LM-2'!K$20>'Allgemeine Werte'!E$56),1,0) -> 0 | K71: =IF(OR(I71=1,I72=1),1,0) -> 0 | M71: =IF(AND('EM-LM-2'!K$20<='Allgemeine Werte'!G56,'EM-LM-2'!K$20>=-'Allgemeine Werte'!G56),0,1) -> 0
I72: =IF(AND('EM-LM-2'!G$51=FALSE,'EM-LM-2'!K$20<-'Allgemeine Werte'!E$56),1,0) -> 0
G73: LM/KLM 300 | I73: =IF(AND('EM-LM-2'!G$51=TRUE,'EM-LM-2'!K$20>'Allgemeine Werte'!E$57),1,0) -> 0 | K73: =IF(OR(I73=1,I74=1),1,0) -> 0 | M73: =IF(AND('EM-LM-2'!K$20<='Allgemeine Werte'!G57,'EM-LM-2'!K$20>=-'Allgemeine Werte'!G57),0,1) -> 0
I74: =IF(AND('EM-LM-2'!G$51=FALSE,'EM-LM-2'!K$20<-'Allgemeine Werte'!E$57),1,0) -> 0
G75: CLM 08 | I75: =IF(AND('EM-LM-2'!G$51=TRUE,'EM-LM-2'!K$20>'Allgemeine Werte'!E$60),1,0) -> 0 | K75: =IF(OR(I75=1,I76=1),1,0) -> 0 | M75: =IF(AND('EM-LM-2'!K$20<='Allgemeine Werte'!G60,'EM-LM-2'!K$20>=-'Allgemeine Werte'!G60),0,1) -> 0
I76: =IF(AND('EM-LM-2'!G$51=FALSE,'EM-LM-2'!K$20<-'Allgemeine Werte'!E$60),1,0) -> 0
G77: CLM 10 | I77: =IF(AND('EM-LM-2'!G$51=TRUE,'EM-LM-2'!K$20>'Allgemeine Werte'!E$61),1,0) -> 0 | K77: =IF(OR(I77=1,I78=1),1,0) -> 0 | M77: =IF(AND('EM-LM-2'!K$20<='Allgemeine Werte'!G61,'EM-LM-2'!K$20>=-'Allgemeine Werte'!G61),0,1) -> 0
I78: =IF(AND('EM-LM-2'!G$51=FALSE,'EM-LM-2'!K$20<-'Allgemeine Werte'!E$61),1,0) -> 0

Sheet EM-LM-4
A2: =Translation!A14 -> Toolbox-Translation - MODULARE MONTAGEAUTOMATION
A3: =Translation!A50 -> Berechnung Linearmodule
C6: =Translation!A54 -> LM / KLM / CLM - Linearmodule | K6: =Translation!A58 -> Geben Sie Ihre Werte mit -Enter- ein !
I8: H (mm) | K8: 10 | M8: =Translation!A59 -> H = Hub ( max. 450 )
K10: =Translation!A60 -> Masse (m) | M10: =Translation!A62 -> Koordinaten Massenschwerpunkt / Kraftangriff
K12: =Translation!A61 -> Kraft (F) | M12: X ( mm ) | O12: Y ( mm ) | Q12: Z ( mm )
I14: m (kg) | K14: 0 | M14: 0 | O14: 0 | Q14: 0
M16: ( N )
I18: Fx (N) | K18: 0 | O18: 0 | Q18: 0
I20: Fy (N) | K20: 0 | M20: 0 | Q20: 0
I22: Fz (N) | K22: 0 | M22: 0 | O22: 0
C27: =Translation!A57 -> Achtung: Kräfte und Koordinaten mit Vorzeichen !
C28: =Translation!A84 -> ACHTUNG:
C32: =Translation!A85 -> Die auf der Berechnungsseite angegebenen Verfahrzeiten sind reine Verfahrzeiten von einer Endlage in die andere Endlage. Ventilschaltzeiten, Schlauchbefüllungszeiten oder SPS-Reaktionszeiten sind nicht enthalten und bei der Ermittlung von Zykluszeiten zu berücksichtigen. Bitte beachten Sie, dass zum Erreichen der minimal möglichen Verfahrzeit die kundenseitige Stützkonstruktion der resultierenden Dynamik angepasst werden muss !
I35: =Translation!A87 -> Auf der Berechnungsseite der Linearmodule können Sie die Verfahrzeit ändern !
G51: FALSE

Sheet EM-LM-4-1
A2: =Translation!A14 -> Toolbox-Translation - MODULARE MONTAGEAUTOMATION
A3: =Translation!A50 -> Berechnung Linearmodule
F6: + - | I6: =Translation!A65 -> Hier ändern Sie die Verfahrzeit
C10: =Translation!A66 -> LM - Linearmodule | K10: =IF(OR('EM-LM-4'!K8>59,'EM-LM-4'!K8<3,K63=1,M63=1)," ","LM 25") -> LM 25 | M10: =IF(OR('EM-LM-4'!K8>100,K65=1,M65=1)," ","LM 50") -> LM 50 | O10: =IF(OR('EM-LM-4'!K8>225,K67=1,M67=1)," ","LM 100") -> LM 100 | Q10: =IF(OR('EM-LM-4'!K8>350,K71=1,M71=1)," ","LM 200") -> LM 200 | S10: =IF(OR('EM-LM-4'!K8>450,K73=1,M73=1)," ","LM 300") -> LM 300
C11: =Translation!A67 -> Katalogseite | K11: =IF(K10="LM 25","01.010"," ") -> 01.010 | M11: =IF(M10="LM 50","01.020"," ") -> 01.020 | O11: =IF(O10="LM 100","01.030"," ") -> 01.030 | Q11: =IF(Q10="LM 200","01.040"," ") -> 01.040 | S11: =IF(S10="LM 300","01.050"," ") -> 01.050
C12: =Translation!A68 -> Zyl.-kraft bei 6 bar ( N ) | K12: =IF(K10="LM 25","67 / 50",C59) -> 67 / 50 | M12: =IF(M10="LM 50","120 / 103",C59) -> 120 / 103 | O12: =IF(O10="LM 100","294 / 226",C59) -> 294 / 226 | Q12: =IF(Q10="LM 200","482 / 415",C59) -> 482 / 415 | S12: =IF(S10="LM 300","753 / 633",C59) -> 753 / 633
C14: =Translation!A70 -> Führungssystem | K14: =IF(AND(K10=" ",M10=" ",O10=" ",Q10=" ",S10=" ")," ",C60) -> Kreuzrollenführung für Anwendungen mit höheren Anforderungen
C16: =Translation!A93 -> Verzögerungskraft ( N ) | K16: =IF(K10="LM 25",'EM-Ber-LM25-4'!C43,-1) -> 0.3225814922 | M16: =IF(M10="LM 50",'EM-Ber-LM50-4'!C43,-1) -> 1.539795022 | O16: =IF(O10="LM 100",'EM-Ber-LM100-4'!C43,-1) -> 2.250165171 | Q16: =IF(Q10="LM 200",'EM-Ber-LM200-4'!C43,-1) -> 5.014484539 | S16: =IF(S10="LM 300",'EM-Ber-LM300-4'!C43,-1) -> 8.56378996
C17: =Translation!A71 -> Auslastung Führung | K17: =IF(K10="LM 25",'EM-Ber-LM25-4'!J38,-1) -> 0 | M17: =IF(M10="LM 50",'EM-Ber-LM50-4'!J38,-1) -> 0 | O17: =IF(O10="LM 100",'EM-Ber-LM100-4'!J38,-1) -> 0 | Q17: =IF(Q10="LM 200",'EM-Ber-LM200-4'!J38,-1) -> 0 | S17: =IF(S10="LM 300",'EM-Ber-LM300-4'!J38,-1) -> 0
C18: =Translation!A72 -> Auslastung Dämpfer/Hub | K18: =IF(K10="LM 25",'EM-Ber-LM25-4'!C55,-1) -> 0.1344322592 | M18: =IF(M10="LM 50",'EM-Ber-LM50-4'!C55,-1) -> 0.1412036064 | O18: =IF(O10="LM 100",'EM-Ber-LM100-4'!C55,-1) -> 0.3331703454 | Q18: =IF(Q10="LM 200",'EM-Ber-LM200-4'!C55,-1) -> 0.2986828952 | S18: =IF(S10="LM 300",'EM-Ber-LM300-4'!C55,-1) -> 0.4669155319
C19: =Translation!A73 -> Verfahrzeit / Hub ( s ) | K19: =IF(K10="LM 25",'EM-Ber-LM25-4'!L50,-1) -> 0.1611764706 | M19: =IF(M10="LM 50",'EM-Ber-LM50-4'!L50,-1) -> 0.098 | O19: =IF(O10="LM 100",'EM-Ber-LM100-4'!L50,-1) -> 0.092 | Q19: =IF(Q10="LM 200",'EM-Ber-LM200-4'!L50,-1) -> 0.075 | S19: =IF(S10="LM 300",'EM-Ber-LM300-4'!L50,-1) -> 0.064
C20: =Translation!A74 -> Max. Zyklenzahl / Min. | K20: =IF(K10="LM 25",'EM-Ber-LM25-4'!G52,-1) -> 120 | M20: =IF(M10="LM 50",'EM-Ber-LM50-4'!G52,-1) -> 120 | O20: =IF(O10="LM 100",'EM-Ber-LM100-4'!G52,-1) -> 120 | Q20: =IF(Q10="LM 200",'EM-Ber-LM200-4'!G52,-1) -> 70.19892593 | S20: =IF(S10="LM 300",'EM-Ber-LM300-4'!G52,-1) -> 44.90580631
O21: =IF(O10="LM 100",1,0) -> 1 | Q21: =IF(Q10="LM 200",1,0) -> 1 | S21: =IF(S10="LM 300",1,0) -> 1
C22: =Translation!A75 -> Anzahl der Stoßdämpfer pro Endlage | O22: 1 | Q22: 1 | S22: 1
C26: =Translation!A82 -> KLM - Linearmodule | K26: =IF(OR('EM-LM-4'!K8>59,'EM-LM-4'!K8<3,K63=1,M63=1)," ","KLM 25") -> KLM 25 | M26: =IF(OR('EM-LM-4'!K8>125,K65=1,M65=1)," ","KLM 50") -> KLM 50 | O26: =IF(OR('EM-LM-4'!K8>225,K67=1,M67=1)," ","KLM 100") -> KLM 100 | S26: =IF(OR('EM-LM-4'!K8>300,K73=1,M73=1)," ","KLM 300") -> KLM 300
C27: =Translation!A67 -> Katalogseite | K27: =IF(K26="KLM 25","01.110"," ") -> 01.110 | M27: =IF(M26="KLM 50","01.120"," ") -> 01.120 | O27: =IF(O26="KLM 100","1.130"," ") -> 1.130 | S27: =IF(S26="KLM 100","1.130"," ") -> 
C28: =Translation!A68 -> Zyl.-kraft bei 6 bar ( N ) | K28: =IF(K26="KLM 25","67 / 50",C59) -> 67 / 50 | M28: =IF(M26="KLM 50","120 / 103",C59) -> 120 / 103 | O28: =IF(O26="KLM 100","294 / 226",C59) -> 294 / 226 | S28: =IF(S26="KLM 300","753 / 633",C59) -> 753 / 633
C30: =Translation!A70 -> Führungssystem | K30: =IF(AND(K26=" ",M26=" ",O26=" ",S26=" ")," ",C61) -> Kugelumlaufführung für Standardanwendungen
C32: =Translation!A93 -> Verzögerungskraft ( N ) | K32: =IF(K26="KLM 25",'EM-Ber-KLM25-4'!C43,-1) -> 0.3665698775 | M32: =IF(M26="KLM 50",'EM-Ber-KLM50-4'!C43,-1) -> 3.140824295 | O32: =IF(O26="KLM 100",'EM-Ber-KLM100-4'!C43,-1) -> 3.428756021 | S32: =IF(S26="KLM 300",'EM-Ber-KLM300-4'!C43,-1) -> 13.06640118
C33: =Translation!A71 -> Auslastung Führung | K33: =IF(K26="KLM 25",'EM-Ber-KLM25-4'!J38,-1) -> 0 | M33: =IF(M26="KLM 50",'EM-Ber-KLM50-4'!J38,-1) -> 0 | O33: =IF(O26="KLM 100",'EM-Ber-KLM100-4'!J38,-1) -> 0 | S33: =IF(S26="KLM 300",'EM-Ber-KLM300-4'!J38,-1) -> 0
C34: =Translation!A72 -> Auslastung Dämpfer/Hub | K34: =IF(K26="KLM 25",'EM-Ber-KLM25-4'!C55,-1) -> 0.1344912036 | M34: =IF(M26="KLM 50",'EM-Ber-KLM50-4'!C55,-1) -> 0.1424550777 | O34: =IF(O26="KLM 100",'EM-Ber-KLM100-4'!C55,-1) -> 0.3340606436 | S34: =IF(S26="KLM 300",'EM-Ber-KLM300-4'!C55,-1) -> 0.4687719931
C35: =Translation!A73 -> Verfahrzeit / Hub ( s ) | K35: =IF(K26="KLM 25",'EM-Ber-KLM25-4'!L50,-1) -> 0.1611764706 | M35: =IF(M26="KLM 50",'EM-Ber-KLM50-4'!L50,-1) -> 0.0834 | O35: =IF(O26="KLM 100",'EM-Ber-KLM100-4'!L50,-1) -> 0.082 | S35: =IF(S26="KLM 300",'EM-Ber-KLM300-4'!L50,-1) -> 0.064
C36: =Translation!A74 -> Max. Zyklenzahl / Min. | K36: =IF(K26="KLM 25",'EM-Ber-KLM25-4'!G52,-1) -> 120 | M36: =IF(M26="KLM 50",'EM-Ber-KLM50-4'!G52,-1) -> 120 | O36: =IF(O26="KLM 100",'EM-Ber-KLM100-4'!G52,-1) -> 120 | S36: =IF(S26="KLM 300",'EM-Ber-KLM300-4'!G52,-1) -> 44.72796742
O37: =IF(O26="KLM 100",1,0) -> 1 | S37: =IF(S26="KLM 300",1,0) -> 1
C38: =Translation!A75 -> Anzahl der Stoßdämpfer pro Endlage | O38: 1 | S38: 1
C42: =Translation!A83 -> CLM - Linearmodule | G42: =IF(OR('EM-LM-4'!K8>42,K75=1,M75=1)," ","CLM 08") -> CLM 08 | I42: =IF(OR('EM-LM-4'!K8>48,'EM-LM-4'!K8<2,K77=1,M77=1)," ","CLM 10") -> CLM 10 | K42: =IF(OR('EM-LM-4'!K8>59,'EM-LM-4'!K8<3,K63=1,M63=1)," ","CLM 25") -> CLM 25 | M42: =IF(OR('EM-LM-4'!K8>100,K65=1,M65=1)," ","CLM 50") -> CLM 50 | O42: =IF(OR('EM-LM-4'!K8>150,K69=1,M69=1)," ","CLM 100") -> CLM 100 | Q42: =IF(OR('EM-LM-4'!K8>150,K71=1,M71=1)," ","CLM 200") -> CLM 200
C43: =Translation!A67 -> Katalogseite | G43: =IF(G42="CLM 08","01.310"," ") -> 01.310 | I43: =IF(I42="CLM 10","01.320"," ") -> 01.320 | K43: =IF(K42="CLM 25","01.330"," ") -> 01.330 | M43: =IF(M42="CLM 50","01.340"," ") -> 01.340 | O43: =IF(O42="CLM 100","01.350"," ") -> 01.350 | Q43: =IF(Q42="CLM 200","01.360"," ") -> 01.360
C44: =Translation!A68 -> Zyl.-kraft bei 6 bar ( N ) | G44: =IF(G42="CLM 08","30 / 25",C59) -> 30 / 25 | I44: =IF(I42="CLM 10","47 / 39",C59) -> 47 / 39 | K44: =IF(K42="CLM 25","67 / 50",C59) -> 67 / 50 | M44: =IF(M42="CLM 50","120 / 103",C59) -> 120 / 103 | O44: =IF(O42="CLM 100","294 / 247",C59) -> 294 / 247 | Q44: =IF(Q42="CLM 200","482 / 415",C59) -> 482 / 415
C46: =Translation!A70 -> Führungssystem | G46: =IF(AND(G42=" ",I42=" ",K42=" ",M42=" ",O42=" ",Q42=" ")," ",C60) -> Kreuzrollenführung für Anwendungen mit höheren Anforderungen
C48: =Translation!A93 -> Verzögerungskraft ( N ) | G48: =IF(G42="CLM 08",'EM-Ber-CLM08-4'!C43,-1) -> 21.42095872 | I48: =IF(I42="CLM 10",'EM-Ber-CLM10-4'!C43,-1) -> 0.7832734955 | K48: =IF(K42="CLM 25",'EM-Ber-CLM25-4'!C43,-1) -> 0.3225814922 | M48: =IF(M42="CLM 50",'EM-Ber-CLM50-4'!C43,-1) -> 1.329822974 | O48: =IF(O42="CLM 100",'EM-Ber-CLM100-4'!C43,-1) -> 1.776446188 | Q48: =IF(Q42="CLM 200",'EM-Ber-CLM200-4'!C43,-1) -> 3.985872326
C49: =Translation!A71 -> Auslastung Führung | G49: =IF(G42="CLM 08",'EM-Ber-CLM08-4'!J38,-1) -> 0 | I49: =IF(I42="CLM 10",'EM-Ber-CLM10-4'!J38,-1) -> 0 | K49: =IF(K42="CLM 25",'EM-Ber-CLM25-4'!J38,-1) -> 0 | M49: =IF(M42="CLM 50",'EM-Ber-CLM50-4'!J38,-1) -> 0 | O49: =IF(O42="CLM 100",'EM-Ber-CLM100-4'!J38,-1) -> 0 | Q49: =IF(Q42="CLM 200",'EM-Ber-CLM200-4'!J38,-1) -> 0
C50: =Translation!A72 -> Auslastung Dämpfer/Hub | I50: =IF(I42="CLM 10",'EM-Ber-CLM10-4'!C55,-1) -> 0.2376239662 | K50: =IF(K42="CLM 25",'EM-Ber-CLM25-4'!C55,-1) -> 0.1344322592 | M50: =IF(M42="CLM 50",'EM-Ber-CLM50-4'!C55,-1) -> 0.1410394783 | O50: =IF(O42="CLM 100",'EM-Ber-CLM100-4'!C55,-1) -> 0.3328125018 | Q50: =IF(Q42="CLM 200",'EM-Ber-CLM200-4'!C55,-1) -> 0.2982587904
C51: =Translation!A73 -> Verfahrzeit / Hub ( s ) | G51: =IF(G42="CLM 08",'EM-Ber-CLM08-4'!L50,-1) -> 0.05142857143 | I51: =IF(I42="CLM 10",'EM-Ber-CLM10-4'!L50,-1) -> 0.06571428571 | K51: =IF(K42="CLM 25",'EM-Ber-CLM25-4'!L50,-1) -> 0.1611764706 | M51: =IF(M42="CLM 50",'EM-Ber-CLM50-4'!L50,-1) -> 0.098 | O51: =IF(O42="CLM 100",'EM-Ber-CLM100-4'!L50,-1) -> 0.092 | Q51: =IF(Q42="CLM 200",'EM-Ber-CLM200-4'!L50,-1) -> 0.075
C52: =Translation!A74 -> Max. Zyklenzahl / Min. | G52: =IF(G42="CLM 08",'EM-Ber-CLM08-4'!G52,-1) -> 120 | I52: =IF(I42="CLM 10",'EM-Ber-CLM10-4'!G52,-1) -> 120 | K52: =IF(K42="CLM 25",'EM-Ber-CLM25-4'!G52,-1) -> 120 | M52: =IF(M42="CLM 50",'EM-Ber-CLM50-4'!G52,-1) -> 120 | O52: =IF(O42="CLM 100",'EM-Ber-CLM100-4'!G52,-1) -> 120 | Q52: =IF(Q42="CLM 200",'EM-Ber-CLM200-4'!G52,-1) -> 70.29874427
I58: =I59*0.01 -> 2.02
C59: =Translation!A78 -> UNZULÄSSIG | I59: 202
C60: =Translation!A76 -> Kreuzrollenführung für Anwendungen mit höheren Anforderungen
C61: =Translation!A77 -> Kugelumlaufführung für Standardanwendungen
C63: Wegfallkriterium wegen Kraft Y: | G63: LM/KLM/CLM 25 | I63: =IF(AND('EM-LM-4'!G$51=FALSE,'EM-LM-4'!K$20>'Allgemeine Werte'!E$52),1,0) -> 0 | K63: =IF(OR(I63=1,I64=1),1,0) -> 0 | M63: =IF(AND('EM-LM-4'!K$20<='Allgemeine Werte'!G52,'EM-LM-4'!K$20>=-'Allgemeine Werte'!G52),0,1) -> 0
I64: =IF(AND('EM-LM-4'!G$51=TRUE,'EM-LM-4'!K$20<-'Allgemeine Werte'!E$52),1,0) -> 0
G65: LM/KLM/CLM 50 | I65: =IF(AND('EM-LM-4'!G$51=FALSE,'EM-LM-4'!K$20>'Allgemeine Werte'!E$53),1,0) -> 0 | K65: =IF(OR(I65=1,I66=1),1,0) -> 0 | M65: =IF(AND('EM-LM-4'!K$20<='Allgemeine Werte'!G53,'EM-LM-4'!K$20>=-'Allgemeine Werte'!G53),0,1) -> 0
I66: =IF(AND('EM-LM-4'!G$51=TRUE,'EM-LM-4'!K$20<-'Allgemeine Werte'!E$53),1,0) -> 0
G67: LM/KLM 100 | I67: =IF(AND('EM-LM-4'!G$51=FALSE,'EM-LM-4'!K$20>'Allgemeine Werte'!E$54),1,0) -> 0 | K67: =IF(OR(I67=1,I68=1),1,0) -> 0 | M67: =IF(AND('EM-LM-4'!K$20<='Allgemeine Werte'!G54,'EM-LM-4'!K$20>=-'Allgemeine Werte'!G54),0,1) -> 0
I68: =IF(AND('EM-LM-4'!G$51=TRUE,'EM-LM-4'!K$20<-'Allgemeine Werte'!E$54),1,0) -> 0
G69: CLM 100 | I69: =IF(AND('EM-LM-4'!G$51=FALSE,'EM-LM-4'!K$20>'Allgemeine Werte'!E$55),1,0) -> 0 | K69: =IF(OR(I69=1,I70=1),1,0) -> 0 | M69: =IF(AND('EM-LM-4'!K$20<='Allgemeine Werte'!G55,'EM-LM-4'!K$20>=-'Allgemeine Werte'!G55),0,1) -> 0
I70: =IF(AND('EM-LM-4'!G$51=TRUE,'EM-LM-4'!K$20<-'Allgemeine Werte'!E$55),1,0) -> 0
G71: LM/CLM 200 | I71: =IF(AND('EM-LM-4'!G$51=FALSE,'EM-LM-4'!K$20>'Allgemeine Werte'!E$56),1,0) -> 0 | K71: =IF(OR(I71=1,I72=1),1,0) -> 0 | M71: =IF(AND('EM-LM-4'!K$20<='Allgemeine Werte'!G56,'EM-LM-4'!K$20>=-'Allgemeine Werte'!G56),0,1) -> 0
I72: =IF(AND('EM-LM-4'!G$51=TRUE,'EM-LM-4'!K$20<-'Allgemeine Werte'!E$56),1,0) -> 0
G73: LM/KLM 300 | I73: =IF(AND('EM-LM-4'!G$51=FALSE,'EM-LM-4'!K$20>'Allgemeine Werte'!E$57),1,0) -> 0 | K73: =IF(OR(I73=1,I74=1),1,0) -> 0 | M73: =IF(AND('EM-LM-4'!K$20<='Allgemeine Werte'!G57,'EM-LM-4'!K$20>=-'Allgemeine Werte'!G57),0,1) -> 0
I74: =IF(AND('EM-LM-4'!G$51=TRUE,'EM-LM-4'!K$20<-'Allgemeine Werte'!E$57),1,0) -> 0
G75: CLM 08 | I75: =IF(AND('EM-LM-4'!G$51=FALSE,'EM-LM-4'!K$20>'Allgemeine Werte'!E$60),1,0) -> 0 | K75: =IF(OR(I75=1,I76=1),1,0) -> 0 | M75: =IF(AND('EM-LM-4'!K$20<='Allgemeine Werte'!G60,'EM-LM-4'!K$20>=-'Allgemeine Werte'!G60),0,1) -> 0
I76: =IF(AND('EM-LM-4'!G$51=TRUE,'EM-LM-4'!K$20<-'Allgemeine Werte'!E$60),1,0) -> 0
G77: CLM 10 | I77: =IF(AND('EM-LM-4'!G$51=FALSE,'EM-LM-4'!K$20>'Allgemeine Werte'!E$61),1,0) -> 0 | K77: =IF(OR(I77=1,I78=1),1,0) -> 0 | M77: =IF(AND('EM-LM-4'!K$20<='Allgemeine Werte'!G61,'EM-LM-4'!K$20>=-'Allgemeine Werte'!G61),0,1) -> 0
I78: =IF(AND('EM-LM-4'!G$51=TRUE,'EM-LM-4'!K$20<-'Allgemeine Werte'!E$61),1,0) -> 0

Sheet EM-LM-5
A2: =Translation!A14 -> Toolbox-Translation - MODULARE MONTAGEAUTOMATION
A3: =Translation!A50 -> Berechnung Linearmodule
C6: =Translation!A54 -> LM / KLM / CLM - Linearmodule | K6: =Translation!A58 -> Geben Sie Ihre Werte mit -Enter- ein !
I8: H (mm) | K8: 10 | M8: =Translation!A59 -> H = Hub ( max. 450 )
K10: =Translation!A60 -> Masse (m) | M10: =Translation!A62 -> Koordinaten Massenschwerpunkt / Kraftangriff
K12: =Translation!A61 -> Kraft (F) | M12: X ( mm ) | O12: Y ( mm ) | Q12: Z ( mm )
I14: m (kg) | K14: 0 | M14: 0 | O14: 0 | Q14: 0
M16: ( N )
I18: Fx (N) | K18: 0 | O18: 0 | Q18: 0
I20: Fy (N) | K20: 0 | M20: 0 | Q20: 0
I22: Fz (N) | K22: 0 | M22: 0 | O22: 0
C27: =Translation!A57 -> Achtung: Kräfte und Koordinaten mit Vorzeichen !
C28: =Translation!A84 -> ACHTUNG:
C32: =Translation!A85 -> Die auf der Berechnungsseite angegebenen Verfahrzeiten sind reine Verfahrzeiten von einer Endlage in die andere Endlage. Ventilschaltzeiten, Schlauchbefüllungszeiten oder SPS-Reaktionszeiten sind nicht enthalten und bei der Ermittlung von Zykluszeiten zu berücksichtigen. Bitte beachten Sie, dass zum Erreichen der minimal möglichen Verfahrzeit die kundenseitige Stützkonstruktion der resultierenden Dynamik angepasst werden muss !
I35: =Translation!A87 -> Auf der Berechnungsseite der Linearmodule können Sie die Verfahrzeit ändern !
G51: FALSE

Sheet EM-LM-5-1
A2: =Translation!A14 -> Toolbox-Translation - MODULARE MONTAGEAUTOMATION
A3: =Translation!A50 -> Berechnung Linearmodule
F6: + - | I6: =Translation!A65 -> Hier ändern Sie die Verfahrzeit
C10: =Translation!A66 -> LM - Linearmodule | K10: =IF(OR('EM-LM-5'!K8>59,'EM-LM-5'!K8<3,K63=1,M63=1)," ","LM 25") -> LM 25 | M10: =IF(OR('EM-LM-5'!K8>100,K65=1,M65=1)," ","LM 50") -> LM 50 | O10: =IF(OR('EM-LM-5'!K8>225,K67=1,M67=1)," ","LM 100") -> LM 100 | Q10: =IF(OR('EM-LM-5'!K8>350,K71=1,M71=1)," ","LM 200") -> LM 200 | S10: =IF(OR('EM-LM-5'!K8>450,K73=1,M73=1)," ","LM 300") -> LM 300
C11: =Translation!A67 -> Katalogseite | K11: =IF(K10="LM 25","01.010"," ") -> 01.010 | M11: =IF(M10="LM 50","01.020"," ") -> 01.020 | O11: =IF(O10="LM 100","01.030"," ") -> 01.030 | Q11: =IF(Q10="LM 200","01.040"," ") -> 01.040 | S11: =IF(S10="LM 300","01.050"," ") -> 01.050
C12: =Translation!A68 -> Zyl.-kraft bei 6 bar ( N ) | K12: =IF(K10="LM 25","67 / 50",C59) -> 67 / 50 | M12: =IF(M10="LM 50","120 / 103",C59) -> 120 / 103 | O12: =IF(O10="LM 100","294 / 226",C59) -> 294 / 226 | Q12: =IF(Q10="LM 200","482 / 415",C59) -> 482 / 415 | S12: =IF(S10="LM 300","753 / 633",C59) -> 753 / 633
C14: =Translation!A70 -> Führungssystem | K14: =IF(AND(K10=" ",M10=" ",O10=" ",Q10=" ",S10=" ")," ",C60) -> Kreuzrollenführung für Anwendungen mit höheren Anforderungen
C16: =Translation!A93 -> Verzögerungskraft ( N ) | K16: =IF(K10="LM 25",'EM-Ber-LM25-5'!C43,-1) -> 0.3225814922 | M16: =IF(M10="LM 50",'EM-Ber-LM50-5'!C43,-1) -> 1.539795022 | O16: =IF(O10="LM 100",'EM-Ber-LM100-5'!C43,-1) -> 2.250165171 | Q16: =IF(Q10="LM 200",'EM-Ber-LM200-5'!C43,-1) -> 5.014484539 | S16: =IF(S10="LM 300",'EM-Ber-LM300-5'!C43,-1) -> 8.56378996
C17: =Translation!A71 -> Auslastung Führung | K17: =IF(K10="LM 25",'EM-Ber-LM25-5'!J38,-1) -> 0 | M17: =IF(M10="LM 50",'EM-Ber-LM50-5'!J38,-1) -> 0 | O17: =IF(O10="LM 100",'EM-Ber-LM100-5'!J38,-1) -> 0 | Q17: =IF(Q10="LM 200",'EM-Ber-LM200-5'!J38,-1) -> 0 | S17: =IF(S10="LM 300",'EM-Ber-LM300-5'!J38,-1) -> 0
C18: =Translation!A72 -> Auslastung Dämpfer/Hub | K18: =IF(K10="LM 25",'EM-Ber-LM25-5'!C55,-1) -> 0.1344322592 | M18: =IF(M10="LM 50",'EM-Ber-LM50-5'!C55,-1) -> 0.1412036064 | O18: =IF(O10="LM 100",'EM-Ber-LM100-5'!C55,-1) -> 0.3331703454 | Q18: =IF(Q10="LM 200",'EM-Ber-LM200-5'!C55,-1) -> 0.2986828952 | S18: =IF(S10="LM 300",'EM-Ber-LM300-5'!C55,-1) -> 0.4669155319
C19: =Translation!A73 -> Verfahrzeit / Hub ( s ) | K19: =IF(K10="LM 25",'EM-Ber-LM25-5'!L50,-1) -> 0.1611764706 | M19: =IF(M10="LM 50",'EM-Ber-LM50-5'!L50,-1) -> 0.098 | O19: =IF(O10="LM 100",'EM-Ber-LM100-5'!L50,-1) -> 0.092 | Q19: =IF(Q10="LM 200",'EM-Ber-LM200-5'!L50,-1) -> 0.075 | S19: =IF(S10="LM 300",'EM-Ber-LM300-5'!L50,-1) -> 0.064
C20: =Translation!A74 -> Max. Zyklenzahl / Min. | K20: =IF(K10="LM 25",'EM-Ber-LM25-5'!G52,-1) -> 120 | M20: =IF(M10="LM 50",'EM-Ber-LM50-5'!G52,-1) -> 120 | O20: =IF(O10="LM 100",'EM-Ber-LM100-5'!G52,-1) -> 120 | Q20: =IF(Q10="LM 200",'EM-Ber-LM200-5'!G52,-1) -> 70.19892593 | S20: =IF(S10="LM 300",'EM-Ber-LM300-5'!G52,-1) -> 44.90580631
O21: =IF(O10="LM 100",1,0) -> 1 | Q21: =IF(Q10="LM 200",1,0) -> 1 | S21: =IF(S10="LM 300",1,0) -> 1
C22: =Translation!A75 -> Anzahl der Stoßdämpfer pro Endlage | O22: 1 | Q22: 1 | S22: 1
C26: =Translation!A82 -> KLM - Linearmodule | K26: =IF(OR('EM-LM-5'!K8>59,'EM-LM-5'!K8<3,K63=1,M63=1)," ","KLM 25") -> KLM 25 | M26: =IF(OR('EM-LM-5'!K8>125,K65=1,M65=1)," ","KLM 50") -> KLM 50 | O26: =IF(OR('EM-LM-5'!K8>225,K67=1,M67=1)," ","KLM 100") -> KLM 100 | S26: =IF(OR('EM-LM-5'!K8>300,K73=1,M73=1)," ","KLM 300") -> KLM 300
C27: =Translation!A67 -> Katalogseite | K27: =IF(K26="KLM 25","01.110"," ") -> 01.110 | M27: =IF(M26="KLM 50","01.120"," ") -> 01.120 | O27: =IF(O26="KLM 100","1.130"," ") -> 1.130 | S27: =IF(S26="KLM 100","1.130"," ") -> 
C28: =Translation!A68 -> Zyl.-kraft bei 6 bar ( N ) | K28: =IF(K26="KLM 25","67 / 50",C59) -> 67 / 50 | M28: =IF(M26="KLM 50","120 / 103",C59) -> 120 / 103 | O28: =IF(O26="KLM 100","294 / 226",C59) -> 294 / 226 | S28: =IF(S26="KLM 300","753 / 633",C59) -> 753 / 633
C30: =Translation!A70 -> Führungssystem | K30: =IF(AND(K26=" ",M26=" ",O26=" ",S26=" ")," ",C61) -> Kugelumlaufführung für Standardanwendungen
C32: =Translation!A93 -> Verzögerungskraft ( N ) | K32: =IF(K26="KLM 25",'EM-Ber-KLM25-5'!C43,-1) -> 0.3665698775 | M32: =IF(M26="KLM 50",'EM-Ber-KLM50-5'!C43,-1) -> 3.140824295 | O32: =IF(O26="KLM 100",'EM-Ber-KLM100-5'!C43,-1) -> 3.428756021 | S32: =IF(S26="KLM 300",'EM-Ber-KLM300-5'!C43,-1) -> 13.06640118
C33: =Translation!A71 -> Auslastung Führung | K33: =IF(K26="KLM 25",'EM-Ber-KLM25-5'!J38,-1) -> 0 | M33: =IF(M26="KLM 50",'EM-Ber-KLM50-5'!J38,-1) -> 0 | O33: =IF(O26="KLM 100",'EM-Ber-KLM100-5'!J38,-1) -> 0 | S33: =IF(S26="KLM 300",'EM-Ber-KLM300-5'!J38,-1) -> 0
C34: =Translation!A72 -> Auslastung Dämpfer/Hub | K34: =IF(K26="KLM 25",'EM-Ber-KLM25-5'!C55,-1) -> 0.1344912036 | M34: =IF(M26="KLM 50",'EM-Ber-KLM50-5'!C55,-1) -> 0.1424550777 | O34: =IF(O26="KLM 100",'EM-Ber-KLM100-5'!C55,-1) -> 0.3340606436 | S34: =IF(S26="KLM 300",'EM-Ber-KLM300-5'!C55,-1) -> 0.4687719931
C35: =Translation!A73 -> Verfahrzeit / Hub ( s ) | K35: =IF(K26="KLM 25",'EM-Ber-KLM25-5'!L50,-1) -> 0.1611764706 | M35: =IF(M26="KLM 50",'EM-Ber-KLM50-5'!L50,-1) -> 0.0834 | O35: =IF(O26="KLM 100",'EM-Ber-KLM100-5'!L50,-1) -> 0.082 | S35: =IF(S26="KLM 300",'EM-Ber-KLM300-5'!L50,-1) -> 0.064
C36: =Translation!A74 -> Max. Zyklenzahl / Min. | K36: =IF(K26="KLM 25",'EM-Ber-KLM25-5'!G52,-1) -> 120 | M36: =IF(M26="KLM 50",'EM-Ber-KLM50-5'!G52,-1) -> 120 | O36: =IF(O26="KLM 100",'EM-Ber-KLM100-5'!G52,-1) -> 120 | S36: =IF(S26="KLM 300",'EM-Ber-KLM300-5'!G52,-1) -> 44.72796742
O37: =IF(O26="KLM 100",1,0) -> 1 | S37: =IF(S26="KLM 300",1,0) -> 1
C38: =Translation!A75 -> Anzahl der Stoßdämpfer pro Endlage | O38: 1 | S38: 1
C42: =Translation!A83 -> CLM - Linearmodule | G42: =IF(OR('EM-LM-5'!K8>42,K75=1,M75=1)," ","CLM 08") -> CLM 08 | I42: =IF(OR('EM-LM-5'!K8>48,'EM-LM-5'!K8<2,K77=1,M77=1)," ","CLM 10") -> CLM 10 | K42: =IF(OR('EM-LM-5'!K8>59,'EM-LM-5'!K8<3,K63=1,M63=1)," ","CLM 25") -> CLM 25 | M42: =IF(OR('EM-LM-5'!K8>100,K65=1,M65=1)," ","CLM 50") -> CLM 50 | O42: =IF(OR('EM-LM-5'!K8>150,K69=1,M69=1)," ","CLM 100") -> CLM 100 | Q42: =IF(OR('EM-LM-5'!K8>150,K71=1,M71=1)," ","CLM 200") -> CLM 200
C43: =Translation!A67 -> Katalogseite | G43: =IF(G42="CLM 08","01.310"," ") -> 01.310 | I43: =IF(I42="CLM 10","01.320"," ") -> 01.320 | K43: =IF(K42="CLM 25","01.330"," ") -> 01.330 | M43: =IF(M42="CLM 50","01.340"," ") -> 01.340 | O43: =IF(O42="CLM 100","01.350"," ") -> 01.350 | Q43: =IF(Q42="CLM 200","01.360"," ") -> 01.360
C44: =Translation!A68 -> Zyl.-kraft bei 6 bar ( N ) | G44: =IF(G42="CLM 08","30 / 25",C59) -> 30 / 25 | I44: =IF(I42="CLM 10","47 / 39",C59) -> 47 / 39 | K44: =IF(K42="CLM 25","67 / 50",C59) -> 67 / 50 | M44: =IF(M42="CLM 50","120 / 103",C59) -> 120 / 103 | O44: =IF(O42="CLM 100","294 / 247",C59) -> 294 / 247 | Q44: =IF(Q42="CLM 200","482 / 415",C59) -> 482 / 415
C46: =Translation!A70 -> Führungssystem | G46: =IF(AND(G42=" ",I42=" ",K42=" ",M42=" ",O42=" ",Q42=" ")," ",C60) -> Kreuzrollenführung für Anwendungen mit höheren Anforderungen
C48: =Translation!A93 -> Verzögerungskraft ( N ) | G48: =IF(G42="CLM 08",'EM-Ber-CLM08-5'!C43,-1) -> 21.42095872 | I48: =IF(I42="CLM 10",'EM-Ber-CLM10-5'!C43,-1) -> 0.7832734955 | K48: =IF(K42="CLM 25",'EM-Ber-CLM25-5'!C43,-1) -> 0.3225814922 | M48: =IF(M42="CLM 50",'EM-Ber-CLM50-5'!C43,-1) -> 1.329822974 | O48: =IF(O42="CLM 100",'EM-Ber-CLM100-5'!C43,-1) -> 1.776446188 | Q48: =IF(Q42="CLM 200",'EM-Ber-CLM200-5'!C43,-1) -> 3.985872326
C49: =Translation!A71 -> Auslastung Führung | G49: =IF(G42="CLM 08",'EM-Ber-CLM08-5'!J38,-1) -> 0 | I49: =IF(I42="CLM 10",'EM-Ber-CLM10-5'!J38,-1) -> 0 | K49: =IF(K42="CLM 25",'EM-Ber-CLM25-5'!J38,-1) -> 0 | M49: =IF(M42="CLM 50",'EM-Ber-CLM50-5'!J38,-1) -> 0 | O49: =IF(O42="CLM 100",'EM-Ber-CLM100-5'!J38,-1) -> 0 | Q49: =IF(Q42="CLM 200",'EM-Ber-CLM200-5'!J38,-1) -> 0
C50: =Translation!A72 -> Auslastung Dämpfer/Hub | I50: =IF(I42="CLM 10",'EM-Ber-CLM10-5'!C55,-1) -> 0.2376239662 | K50: =IF(K42="CLM 25",'EM-Ber-CLM25-5'!C55,-1) -> 0.1344322592 | M50: =IF(M42="CLM 50",'EM-Ber-CLM50-5'!C55,-1) -> 0.1410394783 | O50: =IF(O42="CLM 100",'EM-Ber-CLM100-5'!C55,-1) -> 0.3328125018 | Q50: =IF(Q42="CLM 200",'EM-Ber-CLM200-5'!C55,-1) -> 0.2982587904
C51: =Translation!A73 -> Verfahrzeit / Hub ( s ) | G51: =IF(G42="CLM 08",'EM-Ber-CLM08-5'!L50,-1) -> 0.05142857143 | I51: =IF(I42="CLM 10",'EM-Ber-CLM10-5'!L50,-1) -> 0.06571428571 | K51: =IF(K42="CLM 25",'EM-Ber-CLM25-5'!L50,-1) -> 0.1611764706 | M51: =IF(M42="CLM 50",'EM-Ber-CLM50-5'!L50,-1) -> 0.098 | O51: =IF(O42="CLM 100",'EM-Ber-CLM100-5'!L50,-1) -> 0.092 | Q51: =IF(Q42="CLM 200",'EM-Ber-CLM200-5'!L50,-1) -> 0.075
C52: =Translation!A74 -> Max. Zyklenzahl / Min. | G52: =IF(G42="CLM 08",'EM-Ber-CLM08-5'!G52,-1) -> 120 | I52: =IF(I42="CLM 10",'EM-Ber-CLM10-5'!G52,-1) -> 120 | K52: =IF(K42="CLM 25",'EM-Ber-CLM25-5'!G52,-1) -> 120 | M52: =IF(M42="CLM 50",'EM-Ber-CLM50-5'!G52,-1) -> 120 | O52: =IF(O42="CLM 100",'EM-Ber-CLM100-5'!G52,-1) -> 120 | Q52: =IF(Q42="CLM 200",'EM-Ber-CLM200-5'!G52,-1) -> 70.29874427
I58: =I59*0.01 -> 2.02
C59: =Translation!A78 -> UNZULÄSSIG | I59: 202
C60: =Translation!A76 -> Kreuzrollenführung für Anwendungen mit höheren Anforderungen
C61: =Translation!A77 -> Kugelumlaufführung für Standardanwendungen
C63: Wegfallkriterium wegen Kraft Y: | G63: LM/KLM/CLM 25 | I63: =IF(AND('EM-LM-5'!G$51=FALSE,'EM-LM-5'!K$20>'Allgemeine Werte'!E$52),1,0) -> 0 | K63: =IF(OR(I63=1,I64=1),1,0) -> 0 | M63: =IF(AND('EM-LM-5'!K$20<='Allgemeine Werte'!G52,'EM-LM-5'!K$20>=-'Allgemeine Werte'!G52),0,1) -> 0
I64: =IF(AND('EM-LM-5'!G$51=TRUE,'EM-LM-5'!K$20<-'Allgemeine Werte'!E$52),1,0) -> 0
G65: LM/KLM/CLM 50 | I65: =IF(AND('EM-LM-5'!G$51=FALSE,'EM-LM-5'!K$20>'Allgemeine Werte'!E$53),1,0) -> 0 | K65: =IF(OR(I65=1,I66=1),1,0) -> 0 | M65: =IF(AND('EM-LM-5'!K$20<='Allgemeine Werte'!G53,'EM-LM-5'!K$20>=-'Allgemeine Werte'!G53),0,1) -> 0
I66: =IF(AND('EM-LM-5'!G$51=TRUE,'EM-LM-5'!K$20<-'Allgemeine Werte'!E$53),1,0) -> 0
G67: LM/KLM 100 | I67: =IF(AND('EM-LM-5'!G$51=FALSE,'EM-LM-5'!K$20>'Allgemeine Werte'!E$54),1,0) -> 0 | K67: =IF(OR(I67=1,I68=1),1,0) -> 0 | M67: =IF(AND('EM-LM-5'!K$20<='Allgemeine Werte'!G54,'EM-LM-5'!K$20>=-'Allgemeine Werte'!G54),0,1) -> 0
I68: =IF(AND('EM-LM-5'!G$51=TRUE,'EM-LM-5'!K$20<-'Allgemeine Werte'!E$54),1,0) -> 0
G69: CLM 100 | I69: =IF(AND('EM-LM-5'!G$51=FALSE,'EM-LM-5'!K$20>'Allgemeine Werte'!E$55),1,0) -> 0 | K69: =IF(OR(I69=1,I70=1),1,0) -> 0 | M69: =IF(AND('EM-LM-5'!K$20<='Allgemeine Werte'!G55,'EM-LM-5'!K$20>=-'Allgemeine Werte'!G55),0,1) -> 0
I70: =IF(AND('EM-LM-5'!G$51=TRUE,'EM-LM-5'!K$20<-'Allgemeine Werte'!E$55),1,0) -> 0
G71: LM/CLM 200 | I71: =IF(AND('EM-LM-5'!G$51=FALSE,'EM-LM-5'!K$20>'Allgemeine Werte'!E$56),1,0) -> 0 | K71: =IF(OR(I71=1,I72=1),1,0) -> 0 | M71: =IF(AND('EM-LM-5'!K$20<='Allgemeine Werte'!G56,'EM-LM-5'!K$20>=-'Allgemeine Werte'!G56),0,1) -> 0
I72: =IF(AND('EM-LM-5'!G$51=TRUE,'EM-LM-5'!K$20<-'Allgemeine Werte'!E$56),1,0) -> 0
G73: LM/KLM 300 | I73: =IF(AND('EM-LM-5'!G$51=FALSE,'EM-LM-5'!K$20>'Allgemeine Werte'!E$57),1,0) -> 0 | K73: =IF(OR(I73=1,I74=1),1,0) -> 0 | M73: =IF(AND('EM-LM-5'!K$20<='Allgemeine Werte'!G57,'EM-LM-5'!K$20>=-'Allgemeine Werte'!G57),0,1) -> 0
I74: =IF(AND('EM-LM-5'!G$51=TRUE,'EM-LM-5'!K$20<-'Allgemeine Werte'!E$57),1,0) -> 0
G75: CLM 08 | I75: =IF(AND('EM-LM-5'!G$51=FALSE,'EM-LM-5'!K$20>'Allgemeine Werte'!E$60),1,0) -> 0 | K75: =IF(OR(I75=1,I76=1),1,0) -> 0 | M75: =IF(AND('EM-LM-5'!K$20<='Allgemeine Werte'!G60,'EM-LM-5'!K$20>=-'Allgemeine Werte'!G60),0,1) -> 0
I76: =IF(AND('EM-LM-5'!G$51=TRUE,'EM-LM-5'!K$20<-'Allgemeine Werte'!E$60),1,0) -> 0
G77: CLM 10 | I77: =IF(AND('EM-LM-5'!G$51=FALSE,'EM-LM-5'!K$20>'Allgemeine Werte'!E$61),1,0) -> 0 | K77: =IF(OR(I77=1,I78=1),1,0) -> 0 | M77: =IF(AND('EM-LM-5'!K$20<='Allgemeine Werte'!G61,'EM-LM-5'!K$20>=-'Allgemeine Werte'!G61),0,1) -> 0
I78: =IF(AND('EM-LM-5'!G$51=TRUE,'EM-LM-5'!K$20<-'Allgemeine Werte'!E$61),1,0) -> 0

Sheet EM-LM-3
A2: =Translation!A14 -> Toolbox-Translation - MODULARE MONTAGEAUTOMATION
A3: =Translation!A50 -> Berechnung Linearmodule
C6: =Translation!A80 -> LM / KLM / CLM - Linearmodule | K6: =Translation!A58 -> Geben Sie Ihre Werte mit -Enter- ein !
I8: H (mm) | K8: 10 | M8: =Translation!A59 -> H = Hub ( max. 450 )
K10: =Translation!A60 -> Masse (m) | M10: =Translation!A62 -> Koordinaten Massenschwerpunkt / Kraftangriff
K12: =Translation!A61 -> Kraft (F) | M12: X ( mm ) | O12: Y ( mm ) | Q12: Z ( mm )
I14: m (kg) | K14: 0 | M14: 0 | O14: 0 | Q14: 0
M16: ( N )
I18: Fx (N) | K18: 0 | O18: 0 | Q18: 0
I20: Fy (N) | K20: 0 | M20: 0 | Q20: 0
K21: ,
I22: Fz (N) | K22: 0 | M22: 0 | O22: 0
C27: =Translation!A57 -> Achtung: Kräfte und Koordinaten mit Vorzeichen !
C28: =Translation!A84 -> ACHTUNG:
C32: =Translation!A85 -> Die auf der Berechnungsseite angegebenen Verfahrzeiten sind reine Verfahrzeiten von einer Endlage in die andere Endlage. Ventilschaltzeiten, Schlauchbefüllungszeiten oder SPS-Reaktionszeiten sind nicht enthalten und bei der Ermittlung von Zykluszeiten zu berücksichtigen. Bitte beachten Sie, dass zum Erreichen der minimal möglichen Verfahrzeit die kundenseitige Stützkonstruktion der resultierenden Dynamik angepasst werden muss !
I35: =Translation!A87 -> Auf der Berechnungsseite der Linearmodule können Sie die Verfahrzeit ändern !
G51: TRUE
G52: TRUE

Sheet EM-LM-3-1
A2: =Translation!A14 -> Toolbox-Translation - MODULARE MONTAGEAUTOMATION
A3: =Translation!A50 -> Berechnung Linearmodule
F6: + - | I6: =Translation!A65 -> Hier ändern Sie die Verfahrzeit
C10: =Translation!A66 -> LM - Linearmodule | K10: =IF(OR('EM-LM-3'!K8>59,'EM-LM-3'!K8<3,'EM-LM-3'!K14>3,K63=1)," ","LM 25") -> LM 25 | M10: =IF(OR('EM-LM-3'!K8>100,'EM-LM-3'!K14>6,K67=1)," ","LM 50") -> LM 50 | O10: =IF(OR('EM-LM-3'!K8>225,'EM-LM-3'!K14>14,K71=1)," ","LM 100") -> LM 100 | Q10: =IF(OR('EM-LM-3'!K8>350,'EM-LM-3'!K14>24,K75=1)," ","LM 200") -> LM 200 | S10: =IF(OR('EM-LM-3'!K8>450,'EM-LM-3'!K14>37,K79=1)," ","LM 300") -> LM 300
C11: =Translation!A67 -> Katalogseite | K11: =IF(K10="LM 25","01.010"," ") -> 01.010 | M11: =IF(M10="LM 50","01.020"," ") -> 01.020 | O11: =IF(O10="LM 100","01.030"," ") -> 01.030 | Q11: =IF(Q10="LM 200","01.040"," ") -> 01.040 | S11: =IF(S10="LM 300","01.050"," ") -> 01.050
C12: =Translation!A68 -> Zyl.-kraft bei 6 bar ( N ) | K12: =IF(K10="LM 25","67 / 50",C59) -> 67 / 50 | M12: =IF(M10="LM 50","120 / 103",C59) -> 120 / 103 | O12: =IF(O10="LM 100","294 / 226",C59) -> 294 / 226 | Q12: =IF(Q10="LM 200","482 / 415",C59) -> 482 / 415 | S12: =IF(S10="LM 300","753 / 633",C59) -> 753 / 633
C14: =Translation!A70 -> Führungssystem | K14: =IF(AND(K10=" ",M10=" ",O10=" ",Q10=" ",S10=" ")," ",C60) -> Kreuzrollenführung für Anwendungen mit höheren Anforderungen
C16: =Translation!A93 -> Verzögerungskraft ( N ) | K16: =IF(K10="LM 25",'EM-Ber-LM25-3'!C43,-1) -> 0.366669111 | M16: =IF(M10="LM 50",'EM-Ber-LM50-3'!C43,-1) -> 1.42139479 | O16: =IF(O10="LM 100",'EM-Ber-LM100-3'!C43,-1) -> 3.673880789 | Q16: =IF(Q10="LM 200",'EM-Ber-LM200-3'!C43,-1) -> 5.441063953 | S16: =IF(S10="LM 300",'EM-Ber-LM300-3'!C43,-1) -> 8.052636289
C17: =Translation!A71 -> Auslastung Führung | K17: =IF(K10="LM 25",'EM-Ber-LM25-3'!J38,-1) -> 0 | M17: =IF(M10="LM 50",'EM-Ber-LM50-3'!J38,-1) -> 0 | O17: =IF(O10="LM 100",'EM-Ber-LM100-3'!J38,-1) -> 0 | Q17: =IF(Q10="LM 200",'EM-Ber-LM200-3'!J38,-1) -> 0 | S17: =IF(S10="LM 300",'EM-Ber-LM300-3'!J38,-1) -> 0
C18: =Translation!A72 -> Auslastung Dämpfer/Hub | K18: =IF(K10="LM 25",'EM-Ber-LM25-3'!C55,-1) -> 0.1301749366 | M18: =IF(M10="LM 50",'EM-Ber-LM50-3'!C55,-1) -> 0.1360752569 | O18: =IF(O10="LM 100",'EM-Ber-LM100-3'!C55,-1) -> 0.3237385296 | Q18: =IF(Q10="LM 200",'EM-Ber-LM200-3'!C55,-1) -> 0.2870867771 | S18: =IF(S10="LM 300",'EM-Ber-LM300-3'!C55,-1) -> 0.4520652408
C19: =Translation!A73 -> Verfahrzeit / Hub ( s ) | K19: =IF(K10="LM 25",'EM-Ber-LM25-3'!L50,-1) -> 0.1511764706 | M19: =IF(M10="LM 50",'EM-Ber-LM50-3'!L50,-1) -> 0.102 | O19: =IF(O10="LM 100",'EM-Ber-LM100-3'!L50,-1) -> 0.072 | Q19: =IF(Q10="LM 200",'EM-Ber-LM200-3'!L50,-1) -> 0.072 | S19: =IF(S10="LM 300",'EM-Ber-LM300-3'!L50,-1) -> 0.066
C20: =Translation!A74 -> Max. Zyklenzahl / Min. | K20: =IF(K10="LM 25",'EM-Ber-LM25-3'!G52,-1) -> 120 | M20: =IF(M10="LM 50",'EM-Ber-LM50-3'!G52,-1) -> 120 | O20: =IF(O10="LM 100",'EM-Ber-LM100-3'!G52,-1) -> 120 | Q20: =IF(Q10="LM 200",'EM-Ber-LM200-3'!G52,-1) -> 73.03442759 | S20: =IF(S10="LM 300",'EM-Ber-LM300-3'!G52,-1) -> 46.38095687
O21: =IF(O10="LM 100",1,0) -> 1 | Q21: =IF(Q10="LM 200",1,0) -> 1 | S21: =IF(S10="LM 300",1,0) -> 1
C22: =Translation!A75 -> Anzahl der Stoßdämpfer pro Endlage | O22: 1 | Q22: 1 | S22: 1
C26: =Translation!A82 -> KLM - Linearmodule | K26: =IF(OR('EM-LM-3'!K8>59,'EM-LM-3'!K8<3,'EM-LM-3'!K14>3,K83=1)," ","KLM 25") -> KLM 25 | M26: =IF(OR('EM-LM-3'!K8>125,'EM-LM-3'!K14>6,K87=1)," ","KLM 50") -> KLM 50 | O26: =IF(OR('EM-LM-3'!K8>225,'EM-LM-3'!K14>14,K91=1)," ","KLM 100") -> KLM 100 | S26: =IF(OR('EM-LM-3'!K8>300,'EM-LM-3'!K14>37,K119=1)," ","KLM 300") -> KLM 300
C27: =Translation!A67 -> Katalogseite | K27: =IF(K26="KLM 25","01.110"," ") -> 01.110 | M27: =IF(M26="KLM 50","01.120"," ") -> 01.120 | O27: =IF(O26="KLM 100","1.130"," ") -> 1.130 | S27: =IF(S26="KLM 100","1.130"," ") -> 
C28: =Translation!A68 -> Zyl.-kraft bei 6 bar ( N ) | K28: =IF(K26="KLM 25","67 / 50",C59) -> 67 / 50 | M28: =IF(M26="KLM 50","120 / 103",C59) -> 120 / 103 | O28: =IF(O26="KLM 100","294 / 226",C59) -> 294 / 226 | S28: =IF(S26="KLM 300","753 / 633",C59) -> 753 / 633
C30: =Translation!A70 -> Führungssystem | K30: =IF(AND(K26=" ",M26=" ",O26=" ",S26=" ")," ",C61) -> Kugelumlaufführung für Standardanwendungen
C32: =Translation!A93 -> Verzögerungskraft ( N ) | K32: =IF(K26="KLM 25",'EM-Ber-KLM25-3'!C43,-1) -> 0.4166694443 | M32: =IF(M26="KLM 50",'EM-Ber-KLM50-3'!C43,-1) -> 2.274697192 | O32: =IF(O26="KLM 100",'EM-Ber-KLM100-3'!C43,-1) -> 1.976590834 | S32: =IF(S26="KLM 300",'EM-Ber-KLM300-3'!C43,-1) -> 12.28649661
C33: =Translation!A71 -> Auslastung Führung | K33: =IF(K26="KLM 25",'EM-Ber-KLM25-3'!J38,-1) -> 0 | M33: =IF(M26="KLM 50",'EM-Ber-KLM50-3'!J38,-1) -> 0 | O33: =IF(O26="KLM 100",'EM-Ber-KLM100-3'!J38,-1) -> 0 | S33: =IF(S26="KLM 300",'EM-Ber-KLM300-3'!J38,-1) -> 0
C34: =Translation!A72 -> Auslastung Dämpfer/Hub | K34: =IF(K26="KLM 25",'EM-Ber-KLM25-3'!C55,-1) -> 0.1296533371 | M34: =IF(M26="KLM 50",'EM-Ber-KLM50-3'!C55,-1) -> 0.134338805 | O34: =IF(O26="KLM 100",'EM-Ber-KLM100-3'!C55,-1) -> 0.3202443512 | S34: =IF(S26="KLM 300",'EM-Ber-KLM300-3'!C55,-1) -> 0.4461138171
C35: =Translation!A73 -> Verfahrzeit / Hub ( s ) | K35: =IF(K26="KLM 25",'EM-Ber-KLM25-3'!L50,-1) -> 0.1511764706 | M35: =IF(M26="KLM 50",'EM-Ber-KLM50-3'!L50,-1) -> 0.098 | O35: =IF(O26="KLM 100",'EM-Ber-KLM100-3'!L50,-1) -> 0.108 | S35: =IF(S26="KLM 300",'EM-Ber-KLM300-3'!L50,-1) -> 0.066
C36: =Translation!A74 -> Max. Zyklenzahl / Min. | K36: =IF(K26="KLM 25",'EM-Ber-KLM25-3'!G52,-1) -> 120 | M36: =IF(M26="KLM 50",'EM-Ber-KLM50-3'!G52,-1) -> 120 | O36: =IF(O26="KLM 100",'EM-Ber-KLM100-3'!G52,-1) -> 120 | S36: =IF(S26="KLM 300",'EM-Ber-KLM300-3'!G52,-1) -> 46.99970643
O37: =IF(O26="KLM 100",1,0) -> 1 | S37: =IF(S26="KLM 300",1,0) -> 1
C38: =Translation!A75 -> Anzahl der Stoßdämpfer pro Endlage | O38: 1 | S38: 1
C42: =Translation!A83 -> CLM - Linearmodule | G42: =IF(OR('EM-LM-3'!K8>42,'EM-LM-3'!K14>1.4,K111=1)," ","CLM 08") -> CLM 08 | I42: =IF(OR('EM-LM-3'!K8>48,'EM-LM-3'!K8<2,'EM-LM-3'!K14>2,K115=1)," ","CLM 10") -> CLM 10 | K42: =IF(OR('EM-LM-3'!K8>59,'EM-LM-3'!K8<3,'EM-LM-3'!K14>3,K95=1)," ","CLM 25") -> CLM 25 | M42: =IF(OR('EM-LM-3'!K8>100,'EM-LM-3'!K14>6,K99=1)," ","CLM 50") -> CLM 50 | O42: =IF(OR('EM-LM-3'!K8>150,'EM-LM-3'!K14>14,K103=1)," ","CLM 100") -> CLM 100 | Q42: =IF(OR('EM-LM-3'!K8>150,'EM-LM-3'!K14>24,K107=1)," ","CLM 200") -> CLM 200
C43: =Translation!A67 -> Katalogseite | G43: =IF(G42="CLM 08","01.310"," ") -> 01.310 | I43: =IF(I42="CLM 10","01.320"," ") -> 01.320 | K43: =IF(K42="CLM 25","01.330"," ") -> 01.330 | M43: =IF(M42="CLM 50","01.340"," ") -> 01.340 | O43: =IF(O42="CLM 100","01.350"," ") -> 01.350 | Q43: =IF(Q42="CLM 200","01.360"," ") -> 01.360
C44: =Translation!A68 -> Zyl.-kraft bei 6 bar ( N ) | G44: =IF(G42="CLM 08","30 / 25",C59) -> 30 / 25 | I44: =IF(I42="CLM 10","47 / 39",C59) -> 47 / 39 | K44: =IF(K42="CLM 25","67 / 50",C59) -> 67 / 50 | M44: =IF(M42="CLM 50","120 / 103",C59) -> 120 / 103 | O44: =IF(O42="CLM 100","294 / 247",C59) -> 294 / 247 | Q44: =IF(Q42="CLM 200","482 / 415",C59) -> 482 / 415
C46: =Translation!A70 -> Führungssystem | G46: =IF(AND(G42=" ",I42=" ",K42=" ",M42=" ",O42=" ",Q42=" ")," ",C60) -> Kreuzrollenführung für Anwendungen mit höheren Anforderungen
C48: =Translation!A93 -> Verzögerungskraft ( N ) | G48: =IF(G42="CLM 08",'EM-Ber-CLM08-3'!C43,-1) -> 21.42095872 | I48: =IF(I42="CLM 10",'EM-Ber-CLM10-3'!C43,-1) -> 0.7832734955 | K48: =IF(K42="CLM 25",'EM-Ber-CLM25-3'!C43,-1) -> 0.366669111 | M48: =IF(M42="CLM 50",'EM-Ber-CLM50-3'!C43,-1) -> 1.227568228 | O48: =IF(O42="CLM 100",'EM-Ber-CLM100-3'!C43,-1) -> 2.900432202 | Q48: =IF(Q42="CLM 200",'EM-Ber-CLM200-3'!C43,-1) -> 4.324948271
C49: =Translation!A71 -> Auslastung Führung | G49: =IF(G42="CLM 08",'EM-Ber-CLM08-3'!J38,-1) -> 0 | I49: =IF(I42="CLM 10",'EM-Ber-CLM10-3'!J38,-1) -> 0 | K49: =IF(K42="CLM 25",'EM-Ber-CLM25-3'!J38,-1) -> 0 | M49: =IF(M42="CLM 50",'EM-Ber-CLM50-3'!J38,-1) -> 0 | O49: =IF(O42="CLM 100",'EM-Ber-CLM100-3'!J38,-1) -> 0 | Q49: =IF(Q42="CLM 200",'EM-Ber-CLM200-3'!J38,-1) -> 0
C50: =Translation!A72 -> Auslastung Dämpfer/Hub | I50: =IF(I42="CLM 10",'EM-Ber-CLM10-3'!C55,-1) -> 0.2339942662 | K50: =IF(K42="CLM 25",'EM-Ber-CLM25-3'!C55,-1) -> 0.1301749366 | M50: =IF(M42="CLM 50",'EM-Ber-CLM50-3'!C55,-1) -> 0.1366104492 | O50: =IF(O42="CLM 100",'EM-Ber-CLM100-3'!C55,-1) -> 0.3253663314 | Q50: =IF(Q42="CLM 200",'EM-Ber-CLM200-3'!C55,-1) -> 0.2890413633
C51: =Translation!A73 -> Verfahrzeit / Hub ( s ) | G51: =IF(G42="CLM 08",'EM-Ber-CLM08-3'!L50,-1) -> 0.05142857143 | I51: =IF(I42="CLM 10",'EM-Ber-CLM10-3'!L50,-1) -> 0.06571428571 | K51: =IF(K42="CLM 25",'EM-Ber-CLM25-3'!L50,-1) -> 0.1511764706 | M51: =IF(M42="CLM 50",'EM-Ber-CLM50-3'!L50,-1) -> 0.102 | O51: =IF(O42="CLM 100",'EM-Ber-CLM100-3'!L50,-1) -> 0.072 | Q51: =IF(Q42="CLM 200",'EM-Ber-CLM200-3'!L50,-1) -> 0.072
C52: =Translation!A74 -> Max. Zyklenzahl / Min. | G52: =IF(G42="CLM 08",'EM-Ber-CLM08-3'!G52,-1) -> 120 | I52: =IF(I42="CLM 10",'EM-Ber-CLM10-3'!G52,-1) -> 120 | K52: =IF(K42="CLM 25",'EM-Ber-CLM25-3'!G52,-1) -> 120 | M52: =IF(M42="CLM 50",'EM-Ber-CLM50-3'!G52,-1) -> 120 | O52: =IF(O42="CLM 100",'EM-Ber-CLM100-3'!G52,-1) -> 120 | Q52: =IF(Q42="CLM 200",'EM-Ber-CLM200-3'!G52,-1) -> 72.54054644
I58: =I59*0.01 -> 2.02
C59: =Translation!A78 -> UNZULÄSSIG | I59: 202
C60: =Translation!A76 -> Kreuzrollenführung für Anwendungen mit höheren Anforderungen
C61: =Translation!A77 -> Kugelumlaufführung für Standardanwendungen
C63: Wegfallkriterium wegen Kraft Y: | G63: LM 25 | I63: =IF(AND('EM-LM-3'!G$51=TRUE,'EM-LM-3'!G$52=TRUE,OR('EM-LM-3'!K$20>'Allgemeine Werte'!E$52+'EM-Ber-LM25-3'!C$47*9.81,'EM-LM-3'!K$20<-('Allgemeine Werte'!G$52-'EM-Ber-LM25-3'!C$47*9.81))),1,0) -> 0 | K63: =IF(OR(I63=1,I64=1,I65=1,I66=1),1,0) -> 0
I64: =IF(AND('EM-LM-3'!G$51=TRUE,'EM-LM-3'!G$52=FALSE,OR('EM-LM-3'!K$20>'Allgemeine Werte'!E$52-'EM-Ber-LM25-3'!C$47*9.81,'EM-LM-3'!K$20<-('Allgemeine Werte'!G$52+'EM-Ber-LM25-3'!C$47*9.81))),1,0) -> 0
I65: =IF(AND('EM-LM-3'!G$51=FALSE,'EM-LM-3'!G$52=FALSE,OR('EM-LM-3'!K$20<-('Allgemeine Werte'!E$52+'EM-Ber-LM25-3'!C$47*9.81),'EM-LM-3'!K$20>'Allgemeine Werte'!G$52-'EM-Ber-LM25-3'!C$47*9.81)),1,0) -> 0
I66: =IF(AND('EM-LM-3'!G$51=FALSE,'EM-LM-3'!G$52=TRUE,OR('EM-LM-3'!K$20<-('Allgemeine Werte'!E$52-'EM-Ber-LM25-3'!C$47*9.81),'EM-LM-3'!K$20>'Allgemeine Werte'!G$52+'EM-Ber-LM25-3'!C$47*9.81)),1,0) -> 0
G67: LM 50 | I67: =IF(AND('EM-LM-3'!G$51=TRUE,'EM-LM-3'!G$52=TRUE,OR('EM-LM-3'!K$20>'Allgemeine Werte'!E$53+'EM-Ber-LM50-3'!C$47*9.81,'EM-LM-3'!K$20<-('Allgemeine Werte'!G$53-'EM-Ber-LM50-3'!C$47*9.81))),1,0) -> 0 | K67: =IF(OR(I67=1,I68=1,I69=1,I70=1),1,0) -> 0
I68: =IF(AND('EM-LM-3'!G$51=TRUE,'EM-LM-3'!G$52=FALSE,OR('EM-LM-3'!K$20>'Allgemeine Werte'!E$53-'EM-Ber-LM50-3'!C$47*9.81,'EM-LM-3'!K$20<-('Allgemeine Werte'!G$53+'EM-Ber-LM50-3'!C$47*9.81))),1,0) -> 0
I69: =IF(AND('EM-LM-3'!G$51=FALSE,'EM-LM-3'!G$52=FALSE,OR('EM-LM-3'!K$20<-('Allgemeine Werte'!E$53+'EM-Ber-LM50-3'!C$47*9.81),'EM-LM-3'!K$20>'Allgemeine Werte'!G$53-'EM-Ber-LM50-3'!C$47*9.81)),1,0) -> 0
I70: =IF(AND('EM-LM-3'!G$51=FALSE,'EM-LM-3'!G$52=TRUE,OR('EM-LM-3'!K$20<-('Allgemeine Werte'!E$53-'EM-Ber-LM50-3'!C$47*9.81),'EM-LM-3'!K$20>'Allgemeine Werte'!G$53+'EM-Ber-LM50-3'!C$47*9.81)),1,0) -> 0
G71: LM 100 | I71: =IF(AND('EM-LM-3'!G$51=TRUE,'EM-LM-3'!G$52=TRUE,OR('EM-LM-3'!K$20>'Allgemeine Werte'!E$54+'EM-Ber-LM100-3'!C$47*9.81,'EM-LM-3'!K$20<-('Allgemeine Werte'!G$54-'EM-Ber-LM100-3'!C$47*9.81))),1,0) -> 0 | K71: =IF(OR(I71=1,I72=1,I73=1,I74=1),1,0) -> 0
I72: =IF(AND('EM-LM-3'!G$51=TRUE,'EM-LM-3'!G$52=FALSE,OR('EM-LM-3'!K$20>'Allgemeine Werte'!E$54-'EM-Ber-LM100-3'!C$47*9.81,'EM-LM-3'!K$20<-('Allgemeine Werte'!G$54+'EM-Ber-LM100-3'!C$47*9.81))),1,0) -> 0
I73: =IF(AND('EM-LM-3'!G$51=FALSE,'EM-LM-3'!G$52=FALSE,OR('EM-LM-3'!K$20<-('Allgemeine Werte'!E$54+'EM-Ber-LM100-3'!C$47*9.81),'EM-LM-3'!K$20>'Allgemeine Werte'!G$54-'EM-Ber-LM100-3'!C$47*9.81)),1,0) -> 0
I74: =IF(AND('EM-LM-3'!G$51=FALSE,'EM-LM-3'!G$52=TRUE,OR('EM-LM-3'!K$20<-('Allgemeine Werte'!E$54-'EM-Ber-LM100-3'!C$47*9.81),'EM-LM-3'!K$20>'Allgemeine Werte'!G$54+'EM-Ber-LM100-3'!C$47*9.81)),1,0) -> 0
G75: LM 200 | I75: =IF(AND('EM-LM-3'!G$51=TRUE,'EM-LM-3'!G$52=TRUE,OR('EM-LM-3'!K$20>'Allgemeine Werte'!E$56+'EM-Ber-LM200-3'!C$47*9.81,'EM-LM-3'!K$20<-('Allgemeine Werte'!G$56-'EM-Ber-LM200-3'!C$47*9.81))),1,0) -> 0 | K75: =IF(OR(I75=1,I76=1,I77=1,I78=1),1,0) -> 0
I76: =IF(AND('EM-LM-3'!G$51=TRUE,'EM-LM-3'!G$52=FALSE,OR('EM-LM-3'!K$20>'Allgemeine Werte'!E$56-'EM-Ber-LM200-3'!C$47*9.81,'EM-LM-3'!K$20<-('Allgemeine Werte'!G$56+'EM-Ber-LM200-3'!C$47*9.81))),1,0) -> 0
I77: =IF(AND('EM-LM-3'!G$51=FALSE,'EM-LM-3'!G$52=FALSE,OR('EM-LM-3'!K$20<-('Allgemeine Werte'!E$56+'EM-Ber-LM200-3'!C$47*9.81),'EM-LM-3'!K$20>'Allgemeine Werte'!G$56-'EM-Ber-LM200-3'!C$47*9.81)),1,0) -> 0
I78: =IF(AND('EM-LM-3'!G$51=FALSE,'EM-LM-3'!G$52=TRUE,OR('EM-LM-3'!K$20<-('Allgemeine Werte'!E$56-'EM-Ber-LM200-3'!C$47*9.81),'EM-LM-3'!K$20>'Allgemeine Werte'!G$56+'EM-Ber-LM200-3'!C$47*9.81)),1,0) -> 0
G79: LM 300 | I79: =IF(AND('EM-LM-3'!G$51=TRUE,'EM-LM-3'!G$52=TRUE,OR('EM-LM-3'!K$20>'Allgemeine Werte'!E$57+'EM-Ber-LM300-3'!C$47*9.81,'EM-LM-3'!K$20<-('Allgemeine Werte'!G$57-'EM-Ber-LM300-3'!C$47*9.81))),1,0) -> 0 | K79: =IF(OR(I79=1,I80=1,I81=1,I82=1),1,0) -> 0
I80: =IF(AND('EM-LM-3'!G$51=TRUE,'EM-LM-3'!G$52=FALSE,OR('EM-LM-3'!K$20>'Allgemeine Werte'!E$57-'EM-Ber-LM300-3'!C$47*9.81,'EM-LM-3'!K$20<-('Allgemeine Werte'!G$57+'EM-Ber-LM300-3'!C$47*9.81))),1,0) -> 0
I81: =IF(AND('EM-LM-3'!G$51=FALSE,'EM-LM-3'!G$52=FALSE,OR('EM-LM-3'!K$20<-('Allgemeine Werte'!E$57+'EM-Ber-LM300-3'!C$47*9.81),'EM-LM-3'!K$20>'Allgemeine Werte'!G$57-'EM-Ber-LM300-3'!C$47*9.81)),1,0) -> 0
I82: =IF(AND('EM-LM-3'!G$51=FALSE,'EM-LM-3'!G$52=TRUE,OR('EM-LM-3'!K$20<-('Allgemeine Werte'!E$57-'EM-Ber-LM300-3'!C$47*9.81),'EM-LM-3'!K$20>'Allgemeine Werte'!G$57+'EM-Ber-LM300-3'!C$47*9.81)),1,0) -> 0
G83: KLM 25 | I83: =IF(AND('EM-LM-3'!G$51=TRUE,'EM-LM-3'!G$52=TRUE,OR('EM-LM-3'!K$20>'Allgemeine Werte'!E$52+'EM-Ber-KLM25-3'!C$47*9.81,'EM-LM-3'!K$20<-('Allgemeine Werte'!G$52-'EM-Ber-KLM25-3'!C$47*9.81))),1,0) -> 0 | K83: =IF(OR(I83=1,I84=1,I85=1,I86=1),1,0) -> 0
I84: =IF(AND('EM-LM-3'!G$51=TRUE,'EM-LM-3'!G$52=FALSE,OR('EM-LM-3'!K$20>'Allgemeine Werte'!E$52-'EM-Ber-KLM25-3'!C$47*9.81,'EM-LM-3'!K$20<-('Allgemeine Werte'!G$52+'EM-Ber-KLM25-3'!C$47*9.81))),1,0) -> 0
I85: =IF(AND('EM-LM-3'!G$51=FALSE,'EM-LM-3'!G$52=FALSE,OR('EM-LM-3'!K$20<-('Allgemeine Werte'!E$52+'EM-Ber-KLM25-3'!C$47*9.81),'EM-LM-3'!K$20>'Allgemeine Werte'!G$52-'EM-Ber-KLM25-3'!C$47*9.81)),1,0) -> 0
I86: =IF(AND('EM-LM-3'!G$51=FALSE,'EM-LM-3'!G$52=TRUE,OR('EM-LM-3'!K$20<-('Allgemeine Werte'!E$52-'EM-Ber-KLM25-3'!C$47*9.81),'EM-LM-3'!K$20>'Allgemeine Werte'!G$52+'EM-Ber-KLM25-3'!C$47*9.81)),1,0) -> 0
G87: KLM 50 | I87: =IF(AND('EM-LM-3'!G$51=TRUE,'EM-LM-3'!G$52=TRUE,OR('EM-LM-3'!K$20>'Allgemeine Werte'!E$53+'EM-Ber-KLM50-3'!C$47*9.81,'EM-LM-3'!K$20<-('Allgemeine Werte'!G$53-'EM-Ber-KLM50-3'!C$47*9.81))),1,0) -> 0 | K87: =IF(OR(I87=1,I88=1,I89=1,I90=1),1,0) -> 0
I88: =IF(AND('EM-LM-3'!G$51=TRUE,'EM-LM-3'!G$52=FALSE,OR('EM-LM-3'!K$20>'Allgemeine Werte'!E$53-'EM-Ber-KLM50-3'!C$47*9.81,'EM-LM-3'!K$20<-('Allgemeine Werte'!G$53+'EM-Ber-KLM50-3'!C$47*9.81))),1,0) -> 0
I89: =IF(AND('EM-LM-3'!G$51=FALSE,'EM-LM-3'!G$52=FALSE,OR('EM-LM-3'!K$20<-('Allgemeine Werte'!E$53+'EM-Ber-KLM50-3'!C$47*9.81),'EM-LM-3'!K$20>'Allgemeine Werte'!G$53-'EM-Ber-KLM50-3'!C$47*9.81)),1,0) -> 0
I90: =IF(AND('EM-LM-3'!G$51=FALSE,'EM-LM-3'!G$52=TRUE,OR('EM-LM-3'!K$20<-('Allgemeine Werte'!E$53-'EM-Ber-KLM50-3'!C$47*9.81),'EM-LM-3'!K$20>'Allgemeine Werte'!G$53+'EM-Ber-KLM50-3'!C$47*9.81)),1,0) -> 0
G91: KLM 100 | I91: =IF(AND('EM-LM-3'!G$51=TRUE,'EM-LM-3'!G$52=TRUE,OR('EM-LM-3'!K$20>'Allgemeine Werte'!E$54+'EM-Ber-KLM100-3'!C$47*9.81,'EM-LM-3'!K$20<-('Allgemeine Werte'!G$54-'EM-Ber-KLM100-3'!C$47*9.81))),1,0) -> 0 | K91: =IF(OR(I91=1,I92=1,I93=1,I94=1),1,0) -> 0
I92: =IF(AND('EM-LM-3'!G$51=TRUE,'EM-LM-3'!G$52=FALSE,OR('EM-LM-3'!K$20>'Allgemeine Werte'!E$54-'EM-Ber-KLM100-3'!C$47*9.81,'EM-LM-3'!K$20<-('Allgemeine Werte'!G$54+'EM-Ber-KLM100-3'!C$47*9.81))),1,0) -> 0
I93: =IF(AND('EM-LM-3'!G$51=FALSE,'EM-LM-3'!G$52=FALSE,OR('EM-LM-3'!K$20<-('Allgemeine Werte'!E$54+'EM-Ber-KLM100-3'!C$47*9.81),'EM-LM-3'!K$20>'Allgemeine Werte'!G$54-'EM-Ber-KLM100-3'!C$47*9.81)),1,0) -> 0
I94: =IF(AND('EM-LM-3'!G$51=FALSE,'EM-LM-3'!G$52=TRUE,OR('EM-LM-3'!K$20<-('Allgemeine Werte'!E$54-'EM-Ber-KLM100-3'!C$47*9.81),'EM-LM-3'!K$20>'Allgemeine Werte'!G$54+'EM-Ber-KLM100-3'!C$47*9.81)),1,0) -> 0
G95: CLM 25 | I95: =IF(AND('EM-LM-3'!G$51=TRUE,'EM-LM-3'!G$52=TRUE,OR('EM-LM-3'!K$20>'Allgemeine Werte'!E$52+'EM-Ber-CLM25-3'!C$47*9.81,'EM-LM-3'!K$20<-('Allgemeine Werte'!G$52-'EM-Ber-CLM25-3'!C$47*9.81))),1,0) -> 0 | K95: =IF(OR(I95=1,I96=1,I97=1,I98=1),1,0) -> 0
I96: =IF(AND('EM-LM-3'!G$51=TRUE,'EM-LM-3'!G$52=FALSE,OR('EM-LM-3'!K$20>'Allgemeine Werte'!E$52-'EM-Ber-CLM25-3'!C$47*9.81,'EM-LM-3'!K$20<-('Allgemeine Werte'!G$52+'EM-Ber-CLM25-3'!C$47*9.81))),1,0) -> 0
I97: =IF(AND('EM-LM-3'!G$51=FALSE,'EM-LM-3'!G$52=FALSE,OR('EM-LM-3'!K$20<-('Allgemeine Werte'!E$52+'EM-Ber-CLM25-3'!C$47*9.81),'EM-LM-3'!K$20>'Allgemeine Werte'!G$52-'EM-Ber-CLM25-3'!C$47*9.81)),1,0) -> 0
I98: =IF(AND('EM-LM-3'!G$51=FALSE,'EM-LM-3'!G$52=TRUE,OR('EM-LM-3'!K$20<-('Allgemeine Werte'!E$52-'EM-Ber-CLM25-3'!C$47*9.81),'EM-LM-3'!K$20>'Allgemeine Werte'!G$52+'EM-Ber-CLM25-3'!C$47*9.81)),1,0) -> 0
G99: CLM 50 | I99: =IF(AND('EM-LM-3'!G$51=TRUE,'EM-LM-3'!G$52=TRUE,OR('EM-LM-3'!K$20>'Allgemeine Werte'!E$53+'EM-Ber-CLM50-3'!C$47*9.81,'EM-LM-3'!K$20<-('Allgemeine Werte'!G$53-'EM-Ber-CLM50-3'!C$47*9.81))),1,0) -> 0 | K99: =IF(OR(I99=1,I100=1,I101=1,I102=1),1,0) -> 0
I100: =IF(AND('EM-LM-3'!G$51=TRUE,'EM-LM-3'!G$52=FALSE,OR('EM-LM-3'!K$20>'Allgemeine Werte'!E$53-'EM-Ber-CLM50-3'!C$47*9.81,'EM-LM-3'!K$20<-('Allgemeine Werte'!G$53+'EM-Ber-CLM50-3'!C$47*9.81))),1,0) -> 0
I101: =IF(AND('EM-LM-3'!G$51=FALSE,'EM-LM-3'!G$52=FALSE,OR('EM-LM-3'!K$20<-('Allgemeine Werte'!E$53+'EM-Ber-CLM50-3'!C$47*9.81),'EM-LM-3'!K$20>'Allgemeine Werte'!G$53-'EM-Ber-CLM50-3'!C$47*9.81)),1,0) -> 0
I102: =IF(AND('EM-LM-3'!G$51=FALSE,'EM-LM-3'!G$52=TRUE,OR('EM-LM-3'!K$20<-('Allgemeine Werte'!E$53-'EM-Ber-CLM50-3'!C$47*9.81),'EM-LM-3'!K$20>'Allgemeine Werte'!G$53+'EM-Ber-CLM50-3'!C$47*9.81)),1,0) -> 0
G103: CLM 100 | I103: =IF(AND('EM-LM-3'!G$51=TRUE,'EM-LM-3'!G$52=TRUE,OR('EM-LM-3'!K$20>'Allgemeine Werte'!E$55+'EM-Ber-CLM100-3'!C$47*9.81,'EM-LM-3'!K$20<-('Allgemeine Werte'!G$55-'EM-Ber-CLM100-3'!C$47*9.81))),1,0) -> 0 | K103: =IF(OR(I103=1,I104=1,I105=1,I106=1),1,0) -> 0
I104: =IF(AND('EM-LM-3'!G$51=TRUE,'EM-LM-3'!G$52=FALSE,OR('EM-LM-3'!K$20>'Allgemeine Werte'!E$55-'EM-Ber-CLM100-3'!C$47*9.81,'EM-LM-3'!K$20<-('Allgemeine Werte'!G$55+'EM-Ber-CLM100-3'!C$47*9.81))),1,0) -> 0
I105: =IF(AND('EM-LM-3'!G$51=FALSE,'EM-LM-3'!G$52=FALSE,OR('EM-LM-3'!K$20<-('Allgemeine Werte'!E$55+'EM-Ber-CLM100-3'!C$47*9.81),'EM-LM-3'!K$20>'Allgemeine Werte'!G$55-'EM-Ber-CLM100-3'!C$47*9.81)),1,0) -> 0
I106: =IF(AND('EM-LM-3'!G$51=FALSE,'EM-LM-3'!G$52=TRUE,OR('EM-LM-3'!K$20<-('Allgemeine Werte'!E$55-'EM-Ber-CLM100-3'!C$47*9.81),'EM-LM-3'!K$20>'Allgemeine Werte'!G$55+'EM-Ber-CLM100-3'!C$47*9.81)),1,0) -> 0
G107: CLM 200 | I107: =IF(AND('EM-LM-3'!G$51=TRUE,'EM-LM-3'!G$52=TRUE,OR('EM-LM-3'!K$20>'Allgemeine Werte'!E$56+'EM-Ber-CLM200-3'!C$47*9.81,'EM-LM-3'!K$20<-('Allgemeine Werte'!G$56-'EM-Ber-CLM200-3'!C$47*9.81))),1,0) -> 0 | K107: =IF(OR(I107=1,I108=1,I109=1,I110=1),1,0) -> 0
I108: =IF(AND('EM-LM-3'!G$51=TRUE,'EM-LM-3'!G$52=FALSE,OR('EM-LM-3'!K$20>'Allgemeine Werte'!E$56-'EM-Ber-CLM200-3'!C$47*9.81,'EM-LM-3'!K$20<-('Allgemeine Werte'!G$56+'EM-Ber-CLM200-3'!C$47*9.81))),1,0) -> 0
I109: =IF(AND('EM-LM-3'!G$51=FALSE,'EM-LM-3'!G$52=FALSE,OR('EM-LM-3'!K$20<-('Allgemeine Werte'!E$56+'EM-Ber-CLM200-3'!C$47*9.81),'EM-LM-3'!K$20>'Allgemeine Werte'!G$56-'EM-Ber-CLM200-3'!C$47*9.81)),1,0) -> 0
I110: =IF(AND('EM-LM-3'!G$51=FALSE,'EM-LM-3'!G$52=TRUE,OR('EM-LM-3'!K$20<-('Allgemeine Werte'!E$56-'EM-Ber-CLM200-3'!C$47*9.81),'EM-LM-3'!K$20>'Allgemeine Werte'!G$56+'EM-Ber-CLM200-3'!C$47*9.81)),1,0) -> 0
G111: CLM 08 | I111: =IF(AND('EM-LM-3'!G$51=TRUE,'EM-LM-3'!G$52=TRUE,OR('EM-LM-3'!K$20>'Allgemeine Werte'!E$60+'EM-Ber-CLM08-3'!C$47*9.81,'EM-LM-3'!K$20<-('Allgemeine Werte'!G$60-'EM-Ber-CLM08-3'!C$47*9.81))),1,0) -> 0 | K111: =IF(OR(I111=1,I112=1,I113=1,I114=1),1,0) -> 0
I112: =IF(AND('EM-LM-3'!G$51=TRUE,'EM-LM-3'!G$52=FALSE,OR('EM-LM-3'!K$20>'Allgemeine Werte'!E$60-'EM-Ber-CLM08-3'!C$47*9.81,'EM-LM-3'!K$20<-('Allgemeine Werte'!G$60+'EM-Ber-CLM08-3'!C$47*9.81))),1,0) -> 0
I113: =IF(AND('EM-LM-3'!G$51=FALSE,'EM-LM-3'!G$52=FALSE,OR('EM-LM-3'!K$20<-('Allgemeine Werte'!E$60+'EM-Ber-CLM08-3'!C$47*9.81),'EM-LM-3'!K$20>'Allgemeine Werte'!G$60-'EM-Ber-CLM08-3'!C$47*9.81)),1,0) -> 0
I114: =IF(AND('EM-LM-3'!G$51=FALSE,'EM-LM-3'!G$52=TRUE,OR('EM-LM-3'!K$20<-('Allgemeine Werte'!E$60-'EM-Ber-CLM08-3'!C$47*9.81),'EM-LM-3'!K$20>'Allgemeine Werte'!G$60+'EM-Ber-CLM08-3'!C$47*9.81)),1,0) -> 0
G115: CLM 10 | I115: =IF(AND('EM-LM-3'!G$51=TRUE,'EM-LM-3'!G$52=TRUE,OR('EM-LM-3'!K$20>'Allgemeine Werte'!E$61+'EM-Ber-CLM10-3'!C$47*9.81,'EM-LM-3'!K$20<-('Allgemeine Werte'!G$61-'EM-Ber-CLM10-3'!C$47*9.81))),1,0) -> 0 | K115: =IF(OR(I115=1,I116=1,I117=1,I118=1),1,0) -> 0
I116: =IF(AND('EM-LM-3'!G$51=TRUE,'EM-LM-3'!G$52=FALSE,OR('EM-LM-3'!K$20>'Allgemeine Werte'!E$61-'EM-Ber-CLM10-3'!C$47*9.81,'EM-LM-3'!K$20<-('Allgemeine Werte'!G$61+'EM-Ber-CLM10-3'!C$47*9.81))),1,0) -> 0
I117: =IF(AND('EM-LM-3'!G$51=FALSE,'EM-LM-3'!G$52=FALSE,OR('EM-LM-3'!K$20<-('Allgemeine Werte'!E$61+'EM-Ber-CLM10-3'!C$47*9.81),'EM-LM-3'!K$20>'Allgemeine Werte'!G$61-'EM-Ber-CLM10-3'!C$47*9.81)),1,0) -> 0
I118: =IF(AND('EM-LM-3'!G$51=FALSE,'EM-LM-3'!G$52=TRUE,OR('EM-LM-3'!K$20<-('Allgemeine Werte'!E$61-'EM-Ber-CLM10-3'!C$47*9.81),'EM-LM-3'!K$20>'Allgemeine Werte'!G$61+'EM-Ber-CLM10-3'!C$47*9.81)),1,0) -> 0
G119: KLM 300 | I119: =IF(AND('EM-LM-3'!G$51=TRUE,'EM-LM-3'!G$52=TRUE,OR('EM-LM-3'!K$20>'Allgemeine Werte'!E$57+'EM-Ber-KLM300-3'!C$47*9.81,'EM-LM-3'!K$20<-('Allgemeine Werte'!G$57-'EM-Ber-KLM300-3'!C$47*9.81))),1,0) -> 0 | K119: =IF(OR(I119=1,I120=1,I121=1,I122=1),1,0) -> 0
I120: =IF(AND('EM-LM-3'!G$51=TRUE,'EM-LM-3'!G$52=FALSE,OR('EM-LM-3'!K$20>'Allgemeine Werte'!E$57-'EM-Ber-KLM300-3'!C$47*9.81,'EM-LM-3'!K$20<-('Allgemeine Werte'!G$57+'EM-Ber-KLM300-3'!C$47*9.81))),1,0) -> 0
I121: =IF(AND('EM-LM-3'!G$51=FALSE,'EM-LM-3'!G$52=FALSE,OR('EM-LM-3'!K$20<-('Allgemeine Werte'!E$57+'EM-Ber-KLM300-3'!C$47*9.81),'EM-LM-3'!K$20>'Allgemeine Werte'!G$57-'EM-Ber-KLM300-3'!C$47*9.81)),1,0) -> 0
I122: =IF(AND('EM-LM-3'!G$51=FALSE,'EM-LM-3'!G$52=TRUE,OR('EM-LM-3'!K$20<-('Allgemeine Werte'!E$57-'EM-Ber-KLM300-3'!C$47*9.81),'EM-LM-3'!K$20>'Allgemeine Werte'!G$57+'EM-Ber-KLM300-3'!C$47*9.81)),1,0) -> 0

Sheet EM-LM-6
A2: =Translation!A14 -> Toolbox-Translation - MODULARE MONTAGEAUTOMATION
A3: =Translation!A50 -> Berechnung Linearmodule
C6: =Translation!A81 -> LM / KLM / CLM - Linearmodule | K6: =Translation!A58 -> Geben Sie Ihre Werte mit -Enter- ein !
I8: H (mm) | K8: 10 | M8: =Translation!A59 -> H = Hub ( max. 450 )
K10: =Translation!A60 -> Masse (m) | M10: =Translation!A62 -> Koordinaten Massenschwerpunkt / Kraftangriff
K12: =Translation!A61 -> Kraft (F) | M12: X ( mm ) | O12: Y ( mm ) | Q12: Z ( mm )
I14: m (kg) | K14: 0 | M14: 0 | O14: 0 | Q14: 0
M16: ( N )
I18: Fx (N) | K18: 0 | O18: 0 | Q18: 0
I20: Fy (N) | K20: 0 | M20: 0 | Q20: 0
I22: Fz (N) | K22: 0 | M22: 0 | O22: 0
C27: =Translation!A57 -> Achtung: Kräfte und Koordinaten mit Vorzeichen !
C28: =Translation!A84 -> ACHTUNG:
C32: =Translation!A85 -> Die auf der Berechnungsseite angegebenen Verfahrzeiten sind reine Verfahrzeiten von einer Endlage in die andere Endlage. Ventilschaltzeiten, Schlauchbefüllungszeiten oder SPS-Reaktionszeiten sind nicht enthalten und bei der Ermittlung von Zykluszeiten zu berücksichtigen. Bitte beachten Sie, dass zum Erreichen der minimal möglichen Verfahrzeit die kundenseitige Stützkonstruktion der resultierenden Dynamik angepasst werden muss !
I35: =Translation!A87 -> Auf der Berechnungsseite der Linearmodule können Sie die Verfahrzeit ändern !
G51: FALSE
G52: TRUE

Sheet EM-LM-6-1
A2: =Translation!A14 -> Toolbox-Translation - MODULARE MONTAGEAUTOMATION
A3: =Translation!A50 -> Berechnung Linearmodule
F6: + - | I6: =Translation!A65 -> Hier ändern Sie die Verfahrzeit
C10: =Translation!A66 -> LM - Linearmodule | K10: =IF(OR('EM-LM-6'!K8>59,'EM-LM-6'!K8<3,'EM-LM-6'!K14>3,K63=1)," ","LM 25") -> LM 25 | M10: =IF(OR('EM-LM-6'!K8>100,'EM-LM-6'!K14>6,K67=1)," ","LM 50") -> LM 50 | O10: =IF(OR('EM-LM-6'!K8>225,'EM-LM-6'!K14>14,K71=1)," ","LM 100") -> LM 100 | Q10: =IF(OR('EM-LM-6'!K8>350,'EM-LM-6'!K14>24,K75=1)," ","LM 200") -> LM 200 | S10: =IF(OR('EM-LM-6'!K8>450,'EM-LM-6'!K14>37,K79=1)," ","LM 300") -> LM 300
C11: =Translation!A67 -> Katalogseite | K11: =IF(K10="LM 25","01.010"," ") -> 01.010 | M11: =IF(M10="LM 50","01.020"," ") -> 01.020 | O11: =IF(O10="LM 100","01.030"," ") -> 01.030 | Q11: =IF(Q10="LM 200","01.040"," ") -> 01.040 | S11: =IF(S10="LM 300","01.050"," ") -> 01.050
C12: =Translation!A68 -> Zyl.-kraft bei 6 bar ( N ) | K12: =IF(K10="LM 25","67 / 50",C59) -> 67 / 50 | M12: =IF(M10="LM 50","120 / 103",C59) -> 120 / 103 | O12: =IF(O10="LM 100","294 / 226",C59) -> 294 / 226 | Q12: =IF(Q10="LM 200","482 / 415",C59) -> 482 / 415 | S12: =IF(S10="LM 300","753 / 633",C59) -> 753 / 633
C14: =Translation!A70 -> Führungssystem | K14: =IF(AND(K10=" ",M10=" ",O10=" ",Q10=" ",S10=" ")," ",C60) -> Kreuzrollenführung für Anwendungen mit höheren Anforderungen
C16: =Translation!A93 -> Verzögerungskraft ( N ) | K16: =IF(K10="LM 25",'EM-Ber-LM25-6'!C43,-1) -> 0.366669111 | M16: =IF(M10="LM 50",'EM-Ber-LM50-6'!C43,-1) -> 1.42139479 | O16: =IF(O10="LM 100",'EM-Ber-LM100-6'!C43,-1) -> 3.673880789 | Q16: =IF(Q10="LM 200",'EM-Ber-LM200-6'!C43,-1) -> 5.441063953 | S16: =IF(S10="LM 300",'EM-Ber-LM300-6'!C43,-1) -> 8.052636289
C17: =Translation!A71 -> Auslastung Führung | K17: =IF(K10="LM 25",'EM-Ber-LM25-6'!J38,-1) -> 0 | M17: =IF(M10="LM 50",'EM-Ber-LM50-6'!J38,-1) -> 0 | O17: =IF(O10="LM 100",'EM-Ber-LM100-6'!J38,-1) -> 0 | Q17: =IF(Q10="LM 200",'EM-Ber-LM200-6'!J38,-1) -> 0 | S17: =IF(S10="LM 300",'EM-Ber-LM300-6'!J38,-1) -> 0
C18: =Translation!A72 -> Auslastung Dämpfer/Hub | K18: =IF(K10="LM 25",'EM-Ber-LM25-6'!C55,-1) -> 0.1301749366 | M18: =IF(M10="LM 50",'EM-Ber-LM50-6'!C55,-1) -> 0.1360752569 | O18: =IF(O10="LM 100",'EM-Ber-LM100-6'!C55,-1) -> 0.3237385296 | Q18: =IF(Q10="LM 200",'EM-Ber-LM200-6'!C55,-1) -> 0.2870867771 | S18: =IF(S10="LM 300",'EM-Ber-LM300-6'!C55,-1) -> 0.4520652408
C19: =Translation!A73 -> Verfahrzeit / Hub ( s ) | K19: =IF(K10="LM 25",'EM-Ber-LM25-6'!L50,-1) -> 0.1511764706 | M19: =IF(M10="LM 50",'EM-Ber-LM50-6'!L50,-1) -> 0.102 | O19: =IF(O10="LM 100",'EM-Ber-LM100-6'!L50,-1) -> 0.072 | Q19: =IF(Q10="LM 200",'EM-Ber-LM200-6'!L50,-1) -> 0.072 | S19: =IF(S10="LM 300",'EM-Ber-LM300-6'!L50,-1) -> 0.066
C20: =Translation!A74 -> Max. Zyklenzahl / Min. | K20: =IF(K10="LM 25",'EM-Ber-LM25-6'!G52,-1) -> 120 | M20: =IF(M10="LM 50",'EM-Ber-LM50-6'!G52,-1) -> 120 | O20: =IF(O10="LM 100",'EM-Ber-LM100-6'!G52,-1) -> 120 | Q20: =IF(Q10="LM 200",'EM-Ber-LM200-6'!G52,-1) -> 73.03442759 | S20: =IF(S10="LM 300",'EM-Ber-LM300-6'!G52,-1) -> 46.38095687
O21: =IF(O10="LM 100",1,0) -> 1 | Q21: =IF(Q10="LM 200",1,0) -> 1 | S21: =IF(S10="LM 300",1,0) -> 1
C22: =Translation!A75 -> Anzahl der Stoßdämpfer pro Endlage | O22: 1 | Q22: 1 | S22: 1
C26: =Translation!A82 -> KLM - Linearmodule | K26: =IF(OR('EM-LM-6'!K8>59,'EM-LM-6'!K8<3,'EM-LM-6'!K14>3,K83=1)," ","KLM 25") -> KLM 25 | M26: =IF(OR('EM-LM-6'!K8>125,'EM-LM-6'!K14>6,K87=1)," ","KLM 50") -> KLM 50 | O26: =IF(OR('EM-LM-6'!K8>225,'EM-LM-6'!K14>14,K91=1)," ","KLM 100") -> KLM 100 | S26: =IF(OR('EM-LM-6'!K8>300,'EM-LM-6'!K14>37,K119=1)," ","KLM 300") -> KLM 300
C27: =Translation!A67 -> Katalogseite | K27: =IF(K26="KLM 25","01.110"," ") -> 01.110 | M27: =IF(M26="KLM 50","01.120"," ") -> 01.120 | O27: =IF(O26="KLM 100","1.130"," ") -> 1.130 | S27: =IF(S26="KLM 100","1.130"," ") -> 
C28: =Translation!A68 -> Zyl.-kraft bei 6 bar ( N ) | K28: =IF(K26="KLM 25","67 / 50",C59) -> 67 / 50 | M28: =IF(M26="KLM 50","120 / 103",C59) -> 120 / 103 | O28: =IF(O26="KLM 100","294 / 226",C59) -> 294 / 226 | S28: =IF(S26="KLM 300","753 / 633",C59) -> 753 / 633
C30: =Translation!A70 -> Führungssystem | K30: =IF(AND(K26=" ",M26=" ",O26=" ",S26=" ")," ",C61) -> Kugelumlaufführung für Standardanwendungen
C32: =Translation!A93 -> Verzögerungskraft ( N ) | K32: =IF(K26="KLM 25",'EM-Ber-KLM25-6'!C43,-1) -> 0.4166694443 | M32: =IF(M26="KLM 50",'EM-Ber-KLM50-6'!C43,-1) -> 2.274697192 | O32: =IF(O26="KLM 100",'EM-Ber-KLM100-6'!C43,-1) -> 1.976590834 | S32: =IF(S26="KLM 300",'EM-Ber-KLM300-6'!C43,-1) -> 12.28649661
C33: =Translation!A71 -> Auslastung Führung | K33: =IF(K26="KLM 25",'EM-Ber-KLM25-6'!J38,-1) -> 0 | M33: =IF(M26="KLM 50",'EM-Ber-KLM50-6'!J38,-1) -> 0 | O33: =IF(O26="KLM 100",'EM-Ber-KLM100-6'!J38,-1) -> 0 | S33: =IF(S26="KLM 300",'EM-Ber-KLM300-6'!J38,-1) -> 0
C34: =Translation!A72 -> Auslastung Dämpfer/Hub | K34: =IF(K26="KLM 25",'EM-Ber-KLM25-6'!C55,-1) -> 0.1296533371 | M34: =IF(M26="KLM 50",'EM-Ber-KLM50-6'!C55,-1) -> 0.134338805 | O34: =IF(O26="KLM 100",'EM-Ber-KLM100-6'!C55,-1) -> 0.3202443512 | S34: =IF(S26="KLM 300",'EM-Ber-KLM300-6'!C55,-1) -> 0.4461138171
C35: =Translation!A73 -> Verfahrzeit / Hub ( s ) | K35: =IF(K26="KLM 25",'EM-Ber-KLM25-6'!L50,-1) -> 0.1511764706 | M35: =IF(M26="KLM 50",'EM-Ber-KLM50-6'!L50,-1) -> 0.098 | O35: =IF(O26="KLM 100",'EM-Ber-KLM100-6'!L50,-1) -> 0.108 | S35: =IF(S26="KLM 300",'EM-Ber-KLM300-6'!L50,-1) -> 0.066
C36: =Translation!A74 -> Max. Zyklenzahl / Min. | K36: =IF(K26="KLM 25",'EM-Ber-KLM25-6'!G52,-1) -> 120 | M36: =IF(M26="KLM 50",'EM-Ber-KLM50-6'!G52,-1) -> 120 | O36: =IF(O26="KLM 100",'EM-Ber-KLM100-6'!G52,-1) -> 120 | S36: =IF(S26="KLM 300",'EM-Ber-KLM300-6'!G52,-1) -> 46.99970643
O37: =IF(O26="KLM 100",1,0) -> 1 | S37: =IF(S26="KLM 300",1,0) -> 1
C38: =Translation!A75 -> Anzahl der Stoßdämpfer pro Endlage | O38: 1 | S38: 1
C42: =Translation!A83 -> CLM - Linearmodule | G42: =IF(OR('EM-LM-6'!K8>42,'EM-LM-6'!K14>1.4,K111=1)," ","CLM 08") -> CLM 08 | I42: =IF(OR('EM-LM-6'!K8>48,'EM-LM-6'!K8<2,'EM-LM-6'!K14>2,K115=1)," ","CLM 10") -> CLM 10 | K42: =IF(OR('EM-LM-6'!K8>59,'EM-LM-6'!K8<3,'EM-LM-6'!K14>3,K95=1)," ","CLM 25") -> CLM 25 | M42: =IF(OR('EM-LM-6'!K8>100,'EM-LM-6'!K14>6,K99=1)," ","CLM 50") -> CLM 50 | O42: =IF(OR('EM-LM-6'!K8>150,'EM-LM-6'!K14>14,K103=1)," ","CLM 100") -> CLM 100 | Q42: =IF(OR('EM-LM-6'!K8>150,'EM-LM-6'!K14>24,K107=1)," ","CLM 200") -> CLM 200
C43: =Translation!A67 -> Katalogseite | G43: =IF(G42="CLM 08","01.310"," ") -> 01.310 | I43: =IF(I42="CLM 10","01.320"," ") -> 01.320 | K43: =IF(K42="CLM 25","01.330"," ") -> 01.330 | M43: =IF(M42="CLM 50","01.340"," ") -> 01.340 | O43: =IF(O42="CLM 100","01.350"," ") -> 01.350 | Q43: =IF(Q42="CLM 200","01.360"," ") -> 01.360
C44: =Translation!A68 -> Zyl.-kraft bei 6 bar ( N ) | G44: =IF(G42="CLM 08","30 / 25",C59) -> 30 / 25 | I44: =IF(I42="CLM 10","47 / 39",C59) -> 47 / 39 | K44: =IF(K42="CLM 25","67 / 50",C59) -> 67 / 50 | M44: =IF(M42="CLM 50","120 / 103",C59) -> 120 / 103 | O44: =IF(O42="CLM 100","294 / 247",C59) -> 294 / 247 | Q44: =IF(Q42="CLM 200","482 / 415",C59) -> 482 / 415
C46: =Translation!A70 -> Führungssystem | G46: =IF(AND(G42=" ",I42=" ",K42=" ",M42=" ",O42=" ",Q42=" ")," ",C60) -> Kreuzrollenführung für Anwendungen mit höheren Anforderungen
C48: =Translation!A93 -> Verzögerungskraft ( N ) | G48: =IF(G42="CLM 08",'EM-Ber-CLM08-6'!C43,-1) -> 21.42095872 | I48: =IF(I42="CLM 10",'EM-Ber-CLM10-6'!C43,-1) -> 0.7832734955 | K48: =IF(K42="CLM 25",'EM-Ber-CLM25-6'!C43,-1) -> 0.366669111 | M48: =IF(M42="CLM 50",'EM-Ber-CLM50-6'!C43,-1) -> 1.227568228 | O48: =IF(O42="CLM 100",'EM-Ber-CLM100-6'!C43,-1) -> 2.900432202 | Q48: =IF(Q42="CLM 200",'EM-Ber-CLM200-6'!C43,-1) -> 4.324948271
C49: =Translation!A71 -> Auslastung Führung | G49: =IF(G42="CLM 08",'EM-Ber-CLM08-6'!J38,-1) -> 0 | I49: =IF(I42="CLM 10",'EM-Ber-CLM10-6'!J38,-1) -> 0 | K49: =IF(K42="CLM 25",'EM-Ber-CLM25-6'!J38,-1) -> 0 | M49: =IF(M42="CLM 50",'EM-Ber-CLM50-6'!J38,-1) -> 0 | O49: =IF(O42="CLM 100",'EM-Ber-CLM100-6'!J38,-1) -> 0 | Q49: =IF(Q42="CLM 200",'EM-Ber-CLM200-6'!J38,-1) -> 0
C50: =Translation!A72 -> Auslastung Dämpfer/Hub | I50: =IF(I42="CLM 10",'EM-Ber-CLM10-6'!C55,-1) -> 0.2339942662 | K50: =IF(K42="CLM 25",'EM-Ber-CLM25-6'!C55,-1) -> 0.1301749366 | M50: =IF(M42="CLM 50",'EM-Ber-CLM50-6'!C55,-1) -> 0.1366104492 | O50: =IF(O42="CLM 100",'EM-Ber-CLM100-6'!C55,-1) -> 0.3253663314 | Q50: =IF(Q42="CLM 200",'EM-Ber-CLM200-6'!C55,-1) -> 0.2890413633
C51: =Translation!A73 -> Verfahrzeit / Hub ( s ) | G51: =IF(G42="CLM 08",'EM-Ber-CLM08-6'!L50,-1) -> 0.05142857143 | I51: =IF(I42="CLM 10",'EM-Ber-CLM10-6'!L50,-1) -> 0.06571428571 | K51: =IF(K42="CLM 25",'EM-Ber-CLM25-6'!L50,-1) -> 0.1511764706 | M51: =IF(M42="CLM 50",'EM-Ber-CLM50-6'!L50,-1) -> 0.102 | O51: =IF(O42="CLM 100",'EM-Ber-CLM100-6'!L50,-1) -> 0.072 | Q51: =IF(Q42="CLM 200",'EM-Ber-CLM200-6'!L50,-1) -> 0.072
C52: =Translation!A74 -> Max. Zyklenzahl / Min. | G52: =IF(G42="CLM 08",'EM-Ber-CLM08-6'!G52,-1) -> 120 | I52: =IF(I42="CLM 10",'EM-Ber-CLM10-6'!G52,-1) -> 120 | K52: =IF(K42="CLM 25",'EM-Ber-CLM25-6'!G52,-1) -> 120 | M52: =IF(M42="CLM 50",'EM-Ber-CLM50-6'!G52,-1) -> 120 | O52: =IF(O42="CLM 100",'EM-Ber-CLM100-6'!G52,-1) -> 120 | Q52: =IF(Q42="CLM 200",'EM-Ber-CLM200-6'!G52,-1) -> 72.54054644
I58: =I59*0.01 -> 2.02
C59: =Translation!A78 -> UNZULÄSSIG | I59: 202
C60: =Translation!A76 -> Kreuzrollenführung für Anwendungen mit höheren Anforderungen
C61: =Translation!A77 -> Kugelumlaufführung für Standardanwendungen
C63: Wegfallkriterium wegen Kraft Y: | G63: LM 25 | I63: =IF(AND('EM-LM-6'!G$51=TRUE,'EM-LM-6'!G$52=TRUE,OR('EM-LM-6'!K$20<-('Allgemeine Werte'!E$52-'EM-Ber-LM25-6'!C$47*9.81),'EM-LM-6'!K$20>'Allgemeine Werte'!G$52+'EM-Ber-LM25-6'!C$47*9.81)),1,0) -> 0 | K63: =IF(OR(I63=1,I64=1,I65=1,I66=1),1,0) -> 0
I64: =IF(AND('EM-LM-6'!G$51=TRUE,'EM-LM-6'!G$52=FALSE,OR('EM-LM-6'!K$20<-('Allgemeine Werte'!E$52+'EM-Ber-LM25-6'!C$47*9.81),'EM-LM-6'!K$20>'Allgemeine Werte'!G$52-'EM-Ber-LM25-6'!C$47*9.81)),1,0) -> 0
I65: =IF(AND('EM-LM-6'!G$51=FALSE,'EM-LM-6'!G$52=FALSE,OR('EM-LM-6'!K$20>'Allgemeine Werte'!E$52-'EM-Ber-LM25-6'!C$47*9.81,'EM-LM-6'!K$20<-('Allgemeine Werte'!G$52+'EM-Ber-LM25-6'!C$47*9.81))),1,0) -> 0
I66: =IF(AND('EM-LM-6'!G$51=FALSE,'EM-LM-6'!G$52=TRUE,OR('EM-LM-6'!K$20>'Allgemeine Werte'!E$52+'EM-Ber-LM25-6'!C$47*9.81,'EM-LM-6'!K$20<-('Allgemeine Werte'!G$52-'EM-Ber-LM25-6'!C$47*9.81))),1,0) -> 0
G67: LM 50 | I67: =IF(AND('EM-LM-6'!G$51=TRUE,'EM-LM-6'!G$52=TRUE,OR('EM-LM-6'!K$20<-('Allgemeine Werte'!E$53-'EM-Ber-LM50-6'!C$47*9.81),'EM-LM-6'!K$20>'Allgemeine Werte'!G$53+'EM-Ber-LM50-6'!C$47*9.81)),1,0) -> 0 | K67: =IF(OR(I67=1,I68=1,I69=1,I70=1),1,0) -> 0
I68: =IF(AND('EM-LM-6'!G$51=TRUE,'EM-LM-6'!G$52=FALSE,OR('EM-LM-6'!K$20<-('Allgemeine Werte'!E$53+'EM-Ber-LM50-6'!C$47*9.81),'EM-LM-6'!K$20>'Allgemeine Werte'!G$53-'EM-Ber-LM50-6'!C$47*9.81)),1,0) -> 0
I69: =IF(AND('EM-LM-6'!G$51=FALSE,'EM-LM-6'!G$52=FALSE,OR('EM-LM-6'!K$20>'Allgemeine Werte'!E$53-'EM-Ber-LM50-6'!C$47*9.81,'EM-LM-6'!K$20<-('Allgemeine Werte'!G$53+'EM-Ber-LM50-6'!C$47*9.81))),1,0) -> 0
I70: =IF(AND('EM-LM-6'!G$51=FALSE,'EM-LM-6'!G$52=TRUE,OR('EM-LM-6'!K$20>'Allgemeine Werte'!E$53+'EM-Ber-LM50-6'!C$47*9.81,'EM-LM-6'!K$20<-('Allgemeine Werte'!G$53-'EM-Ber-LM50-6'!C$47*9.81))),1,0) -> 0
G71: LM 100 | I71: =IF(AND('EM-LM-6'!G$51=TRUE,'EM-LM-6'!G$52=TRUE,OR('EM-LM-6'!K$20<-('Allgemeine Werte'!E$54-'EM-Ber-LM100-6'!C$47*9.81),'EM-LM-6'!K$20>'Allgemeine Werte'!G$54+'EM-Ber-LM100-6'!C$47*9.81)),1,0) -> 0 | K71: =IF(OR(I71=1,I72=1,I73=1,I74=1),1,0) -> 0
I72: =IF(AND('EM-LM-6'!G$51=TRUE,'EM-LM-6'!G$52=FALSE,OR('EM-LM-6'!K$20<-('Allgemeine Werte'!E$54+'EM-Ber-LM100-6'!C$47*9.81),'EM-LM-6'!K$20>'Allgemeine Werte'!G$54-'EM-Ber-LM100-6'!C$47*9.81)),1,0) -> 0
I73: =IF(AND('EM-LM-6'!G$51=FALSE,'EM-LM-6'!G$52=FALSE,OR('EM-LM-6'!K$20>'Allgemeine Werte'!E$54-'EM-Ber-LM100-6'!C$47*9.81,'EM-LM-6'!K$20<-('Allgemeine Werte'!G$54+'EM-Ber-LM100-6'!C$47*9.81))),1,0) -> 0
I74: =IF(AND('EM-LM-6'!G$51=FALSE,'EM-LM-6'!G$52=TRUE,OR('EM-LM-6'!K$20>'Allgemeine Werte'!E$54+'EM-Ber-LM100-6'!C$47*9.81,'EM-LM-6'!K$20<-('Allgemeine Werte'!G$54-'EM-Ber-LM100-6'!C$47*9.81))),1,0) -> 0
G75: LM 200 | I75: =IF(AND('EM-LM-6'!G$51=TRUE,'EM-LM-6'!G$52=TRUE,OR('EM-LM-6'!K$20<-('Allgemeine Werte'!E$56-'EM-Ber-LM200-6'!C$47*9.81),'EM-LM-6'!K$20>'Allgemeine Werte'!G$56+'EM-Ber-LM200-6'!C$47*9.81)),1,0) -> 0 | K75: =IF(OR(I75=1,I76=1,I77=1,I78=1),1,0) -> 0
I76: =IF(AND('EM-LM-6'!G$51=TRUE,'EM-LM-6'!G$52=FALSE,OR('EM-LM-6'!K$20<-('Allgemeine Werte'!E$56+'EM-Ber-LM200-6'!C$47*9.81),'EM-LM-6'!K$20>'Allgemeine Werte'!G$56-'EM-Ber-LM200-6'!C$47*9.81)),1,0) -> 0
I77: =IF(AND('EM-LM-6'!G$51=FALSE,'EM-LM-6'!G$52=FALSE,OR('EM-LM-6'!K$20>'Allgemeine Werte'!E$56-'EM-Ber-LM200-6'!C$47*9.81,'EM-LM-6'!K$20<-('Allgemeine Werte'!G$56+'EM-Ber-LM200-6'!C$47*9.81))),1,0) -> 0
I78: =IF(AND('EM-LM-6'!G$51=FALSE,'EM-LM-6'!G$52=TRUE,OR('EM-LM-6'!K$20>'Allgemeine Werte'!E$56+'EM-Ber-LM200-6'!C$47*9.81,'EM-LM-6'!K$20<-('Allgemeine Werte'!G$56-'EM-Ber-LM200-6'!C$47*9.81))),1,0) -> 0
G79: LM 300 | I79: =IF(AND('EM-LM-6'!G$51=TRUE,'EM-LM-6'!G$52=TRUE,OR('EM-LM-6'!K$20<-('Allgemeine Werte'!E$57-'EM-Ber-LM300-6'!C$47*9.81),'EM-LM-6'!K$20>'Allgemeine Werte'!G$57+'EM-Ber-LM300-6'!C$47*9.81)),1,0) -> 0 | K79: =IF(OR(I79=1,I80=1,I81=1,I82=1),1,0) -> 0
I80: =IF(AND('EM-LM-6'!G$51=TRUE,'EM-LM-6'!G$52=FALSE,OR('EM-LM-6'!K$20<-('Allgemeine Werte'!E$57+'EM-Ber-LM300-6'!C$47*9.81),'EM-LM-6'!K$20>'Allgemeine Werte'!G$57-'EM-Ber-LM300-6'!C$47*9.81)),1,0) -> 0
I81: =IF(AND('EM-LM-6'!G$51=FALSE,'EM-LM-6'!G$52=FALSE,OR('EM-LM-6'!K$20>'Allgemeine Werte'!E$57-'EM-Ber-LM300-6'!C$47*9.81,'EM-LM-6'!K$20<-('Allgemeine Werte'!G$57+'EM-Ber-LM300-6'!C$47*9.81))),1,0) -> 0
I82: =IF(AND('EM-LM-6'!G$51=FALSE,'EM-LM-6'!G$52=TRUE,OR('EM-LM-6'!K$20>'Allgemeine Werte'!E$57+'EM-Ber-LM300-6'!C$47*9.81,'EM-LM-6'!K$20<-('Allgemeine Werte'!G$57-'EM-Ber-LM300-6'!C$47*9.81))),1,0) -> 0
G83: KLM 25 | I83: =IF(AND('EM-LM-6'!G$51=TRUE,'EM-LM-6'!G$52=TRUE,OR('EM-LM-6'!K$20<-('Allgemeine Werte'!E$52-'EM-Ber-KLM25-6'!C$47*9.81),'EM-LM-6'!K$20>'Allgemeine Werte'!G$52+'EM-Ber-KLM25-6'!C$47*9.81)),1,0) -> 0 | K83: =IF(OR(I83=1,I84=1,I85=1,I86=1),1,0) -> 0
I84: =IF(AND('EM-LM-6'!G$51=TRUE,'EM-LM-6'!G$52=FALSE,OR('EM-LM-6'!K$20<-('Allgemeine Werte'!E$52+'EM-Ber-KLM25-6'!C$47*9.81),'EM-LM-6'!K$20>'Allgemeine Werte'!G$52-'EM-Ber-KLM25-6'!C$47*9.81)),1,0) -> 0
I85: =IF(AND('EM-LM-6'!G$51=FALSE,'EM-LM-6'!G$52=FALSE,OR('EM-LM-6'!K$20>'Allgemeine Werte'!E$52-'EM-Ber-KLM25-6'!C$47*9.81,'EM-LM-6'!K$20<-('Allgemeine Werte'!G$52+'EM-Ber-KLM25-6'!C$47*9.81))),1,0) -> 0
I86: =IF(AND('EM-LM-6'!G$51=FALSE,'EM-LM-6'!G$52=TRUE,OR('EM-LM-6'!K$20>'Allgemeine Werte'!E$52+'EM-Ber-KLM25-6'!C$47*9.81,'EM-LM-6'!K$20<-('Allgemeine Werte'!G$52-'EM-Ber-KLM25-6'!C$47*9.81))),1,0) -> 0
G87: KLM 50 | I87: =IF(AND('EM-LM-6'!G$51=TRUE,'EM-LM-6'!G$52=TRUE,OR('EM-LM-6'!K$20<-('Allgemeine Werte'!E$53-'EM-Ber-KLM50-6'!C$47*9.81),'EM-LM-6'!K$20>'Allgemeine Werte'!G$53+'EM-Ber-KLM50-6'!C$47*9.81)),1,0) -> 0 | K87: =IF(OR(I87=1,I88=1,I89=1,I90=1),1,0) -> 0
I88: =IF(AND('EM-LM-6'!G$51=TRUE,'EM-LM-6'!G$52=FALSE,OR('EM-LM-6'!K$20<-('Allgemeine Werte'!E$53+'EM-Ber-KLM50-6'!C$47*9.81),'EM-LM-6'!K$20>'Allgemeine Werte'!G$53-'EM-Ber-KLM50-6'!C$47*9.81)),1,0) -> 0
I89: =IF(AND('EM-LM-6'!G$51=FALSE,'EM-LM-6'!G$52=FALSE,OR('EM-LM-6'!K$20>'Allgemeine Werte'!E$53-'EM-Ber-KLM50-6'!C$47*9.81,'EM-LM-6'!K$20<-('Allgemeine Werte'!G$53+'EM-Ber-KLM50-6'!C$47*9.81))),1,0) -> 0
I90: =IF(AND('EM-LM-6'!G$51=FALSE,'EM-LM-6'!G$52=TRUE,OR('EM-LM-6'!K$20>'Allgemeine Werte'!E$53+'EM-Ber-KLM50-6'!C$47*9.81,'EM-LM-6'!K$20<-('Allgemeine Werte'!G$53-'EM-Ber-KLM50-6'!C$47*9.81))),1,0) -> 0
G91: KLM 100 | I91: =IF(AND('EM-LM-6'!G$51=TRUE,'EM-LM-6'!G$52=TRUE,OR('EM-LM-6'!K$20<-('Allgemeine Werte'!E$54-'EM-Ber-KLM100-6'!C$47*9.81),'EM-LM-6'!K$20>'Allgemeine Werte'!G$54+'EM-Ber-KLM100-6'!C$47*9.81)),1,0) -> 0 | K91: =IF(OR(I91=1,I92=1,I93=1,I94=1),1,0) -> 0
I92: =IF(AND('EM-LM-6'!G$51=TRUE,'EM-LM-6'!G$52=FALSE,OR('EM-LM-6'!K$20<-('Allgemeine Werte'!E$54+'EM-Ber-KLM100-6'!C$47*9.81),'EM-LM-6'!K$20>'Allgemeine Werte'!G$54-'EM-Ber-KLM100-6'!C$47*9.81)),1,0) -> 0
I93: =IF(AND('EM-LM-6'!G$51=FALSE,'EM-LM-6'!G$52=FALSE,OR('EM-LM-6'!K$20>'Allgemeine Werte'!E$54-'EM-Ber-KLM100-6'!C$47*9.81,'EM-LM-6'!K$20<-('Allgemeine Werte'!G$54+'EM-Ber-KLM100-6'!C$47*9.81))),1,0) -> 0
I94: =IF(AND('EM-LM-6'!G$51=FALSE,'EM-LM-6'!G$52=TRUE,OR('EM-LM-6'!K$20>'Allgemeine Werte'!E$54+'EM-Ber-KLM100-6'!C$47*9.81,'EM-LM-6'!K$20<-('Allgemeine Werte'!G$54-'EM-Ber-KLM100-6'!C$47*9.81))),1,0) -> 0
G95: CLM 25 | I95: =IF(AND('EM-LM-6'!G$51=TRUE,'EM-LM-6'!G$52=TRUE,OR('EM-LM-6'!K$20<-('Allgemeine Werte'!E$52-'EM-Ber-CLM25-6'!C$47*9.81),'EM-LM-6'!K$20>'Allgemeine Werte'!G$52+'EM-Ber-CLM25-6'!C$47*9.81)),1,0) -> 0 | K95: =IF(OR(I95=1,I96=1,I97=1,I98=1),1,0) -> 0
I96: =IF(AND('EM-LM-6'!G$51=TRUE,'EM-LM-6'!G$52=FALSE,OR('EM-LM-6'!K$20<-('Allgemeine Werte'!E$52+'EM-Ber-CLM25-6'!C$47*9.81),'EM-LM-6'!K$20>'Allgemeine Werte'!G$52-'EM-Ber-CLM25-6'!C$47*9.81)),1,0) -> 0
I97: =IF(AND('EM-LM-6'!G$51=FALSE,'EM-LM-6'!G$52=FALSE,OR('EM-LM-6'!K$20>'Allgemeine Werte'!E$52-'EM-Ber-CLM25-6'!C$47*9.81,'EM-LM-6'!K$20<-('Allgemeine Werte'!G$52+'EM-Ber-CLM25-6'!C$47*9.81))),1,0) -> 0
I98: =IF(AND('EM-LM-6'!G$51=FALSE,'EM-LM-6'!G$52=TRUE,OR('EM-LM-6'!K$20>'Allgemeine Werte'!E$52+'EM-Ber-CLM25-6'!C$47*9.81,'EM-LM-6'!K$20<-('Allgemeine Werte'!G$52-'EM-Ber-CLM25-6'!C$47*9.81))),1,0) -> 0
G99: CLM 50 | I99: =IF(AND('EM-LM-6'!G$51=TRUE,'EM-LM-6'!G$52=TRUE,OR('EM-LM-6'!K$20<-('Allgemeine Werte'!E$53-'EM-Ber-CLM50-6'!C$47*9.81),'EM-LM-6'!K$20>'Allgemeine Werte'!G$53+'EM-Ber-CLM50-6'!C$47*9.81)),1,0) -> 0 | K99: =IF(OR(I99=1,I100=1,I101=1,I102=1),1,0) -> 0
I100: =IF(AND('EM-LM-6'!G$51=TRUE,'EM-LM-6'!G$52=FALSE,OR('EM-LM-6'!K$20<-('Allgemeine Werte'!E$53+'EM-Ber-CLM50-6'!C$47*9.81),'EM-LM-6'!K$20>'Allgemeine Werte'!G$53-'EM-Ber-CLM50-6'!C$47*9.81)),1,0) -> 0
I101: =IF(AND('EM-LM-6'!G$51=FALSE,'EM-LM-6'!G$52=FALSE,OR('EM-LM-6'!K$20>'Allgemeine Werte'!E$53-'EM-Ber-CLM50-6'!C$47*9.81,'EM-LM-6'!K$20<-('Allgemeine Werte'!G$53+'EM-Ber-CLM50-6'!C$47*9.81))),1,0) -> 0
I102: =IF(AND('EM-LM-6'!G$51=FALSE,'EM-LM-6'!G$52=TRUE,OR('EM-LM-6'!K$20>'Allgemeine Werte'!E$53+'EM-Ber-CLM50-6'!C$47*9.81,'EM-LM-6'!K$20<-('Allgemeine Werte'!G$53-'EM-Ber-CLM50-6'!C$47*9.81))),1,0) -> 0
G103: CLM 100 | I103: =IF(AND('EM-LM-6'!G$51=TRUE,'EM-LM-6'!G$52=TRUE,OR('EM-LM-6'!K$20<-('Allgemeine Werte'!E$55-'EM-Ber-CLM100-6'!C$47*9.81),'EM-LM-6'!K$20>'Allgemeine Werte'!G$55+'EM-Ber-CLM100-6'!C$47*9.81)),1,0) -> 0 | K103: =IF(OR(I103=1,I104=1,I105=1,I106=1),1,0) -> 0
I104: =IF(AND('EM-LM-6'!G$51=TRUE,'EM-LM-6'!G$52=FALSE,OR('EM-LM-6'!K$20<-('Allgemeine Werte'!E$55+'EM-Ber-CLM100-6'!C$47*9.81),'EM-LM-6'!K$20>'Allgemeine Werte'!G$55-'EM-Ber-CLM100-6'!C$47*9.81)),1,0) -> 0
I105: =IF(AND('EM-LM-6'!G$51=FALSE,'EM-LM-6'!G$52=FALSE,OR('EM-LM-6'!K$20>'Allgemeine Werte'!E$55-'EM-Ber-CLM100-6'!C$47*9.81,'EM-LM-6'!K$20<-('Allgemeine Werte'!G$55+'EM-Ber-CLM100-6'!C$47*9.81))),1,0) -> 0
I106: =IF(AND('EM-LM-6'!G$51=FALSE,'EM-LM-6'!G$52=TRUE,OR('EM-LM-6'!K$20>'Allgemeine Werte'!E$55+'EM-Ber-CLM100-6'!C$47*9.81,'EM-LM-6'!K$20<-('Allgemeine Werte'!G$55-'EM-Ber-CLM100-6'!C$47*9.81))),1,0) -> 0
G107: CLM 200 | I107: =IF(AND('EM-LM-6'!G$51=TRUE,'EM-LM-6'!G$52=TRUE,OR('EM-LM-6'!K$20<-('Allgemeine Werte'!E$56-'EM-Ber-CLM200-6'!C$47*9.81),'EM-LM-6'!K$20>'Allgemeine Werte'!G$56+'EM-Ber-CLM200-6'!C$47*9.81)),1,0) -> 0 | K107: =IF(OR(I107=1,I108=1,I109=1,I110=1),1,0) -> 0
I108: =IF(AND('EM-LM-6'!G$51=TRUE,'EM-LM-6'!G$52=FALSE,OR('EM-LM-6'!K$20<-('Allgemeine Werte'!E$56+'EM-Ber-CLM200-6'!C$47*9.81),'EM-LM-6'!K$20>'Allgemeine Werte'!G$56-'EM-Ber-CLM200-6'!C$47*9.81)),1,0) -> 0
I109: =IF(AND('EM-LM-6'!G$51=FALSE,'EM-LM-6'!G$52=FALSE,OR('EM-LM-6'!K$20>'Allgemeine Werte'!E$56-'EM-Ber-CLM200-6'!C$47*9.81,'EM-LM-6'!K$20<-('Allgemeine Werte'!G$56+'EM-Ber-CLM200-6'!C$47*9.81))),1,0) -> 0
I110: =IF(AND('EM-LM-6'!G$51=FALSE,'EM-LM-6'!G$52=TRUE,OR('EM-LM-6'!K$20>'Allgemeine Werte'!E$56+'EM-Ber-CLM200-6'!C$47*9.81,'EM-LM-6'!K$20<-('Allgemeine Werte'!G$56-'EM-Ber-CLM200-6'!C$47*9.81))),1,0) -> 0
G111: CLM 08 | I111: =IF(AND('EM-LM-6'!G$51=TRUE,'EM-LM-6'!G$52=TRUE,OR('EM-LM-6'!K$20<-('Allgemeine Werte'!E$60-'EM-Ber-CLM08-6'!C$47*9.81),'EM-LM-6'!K$20>'Allgemeine Werte'!G$60+'EM-Ber-CLM08-6'!C$47*9.81)),1,0) -> 0 | K111: =IF(OR(I111=1,I112=1,I113=1,I114=1),1,0) -> 0
I112: =IF(AND('EM-LM-6'!G$51=TRUE,'EM-LM-6'!G$52=FALSE,OR('EM-LM-6'!K$20<-('Allgemeine Werte'!E$60+'EM-Ber-CLM08-6'!C$47*9.81),'EM-LM-6'!K$20>'Allgemeine Werte'!G$60-'EM-Ber-CLM08-6'!C$47*9.81)),1,0) -> 0
I113: =IF(AND('EM-LM-6'!G$51=FALSE,'EM-LM-6'!G$52=FALSE,OR('EM-LM-6'!K$20>'Allgemeine Werte'!E$60-'EM-Ber-CLM08-6'!C$47*9.81,'EM-LM-6'!K$20<-('Allgemeine Werte'!G$60+'EM-Ber-CLM08-6'!C$47*9.81))),1,0) -> 0
I114: =IF(AND('EM-LM-6'!G$51=FALSE,'EM-LM-6'!G$52=TRUE,OR('EM-LM-6'!K$20>'Allgemeine Werte'!E$60+'EM-Ber-CLM08-6'!C$47*9.81,'EM-LM-6'!K$20<-('Allgemeine Werte'!G$60-'EM-Ber-CLM08-6'!C$47*9.81))),1,0) -> 0
G115: CLM 10 | I115: =IF(AND('EM-LM-6'!G$51=TRUE,'EM-LM-6'!G$52=TRUE,OR('EM-LM-6'!K$20<-('Allgemeine Werte'!E$61-'EM-Ber-CLM10-6'!C$47*9.81),'EM-LM-6'!K$20>'Allgemeine Werte'!G$61+'EM-Ber-CLM10-6'!C$47*9.81)),1,0) -> 0 | K115: =IF(OR(I115=1,I116=1,I117=1,I118=1),1,0) -> 0
I116: =IF(AND('EM-LM-6'!G$51=TRUE,'EM-LM-6'!G$52=FALSE,OR('EM-LM-6'!K$20<-('Allgemeine Werte'!E$61+'EM-Ber-CLM10-6'!C$47*9.81),'EM-LM-6'!K$20>'Allgemeine Werte'!G$61-'EM-Ber-CLM10-6'!C$47*9.81)),1,0) -> 0
I117: =IF(AND('EM-LM-6'!G$51=FALSE,'EM-LM-6'!G$52=FALSE,OR('EM-LM-6'!K$20>'Allgemeine Werte'!E$61-'EM-Ber-CLM10-6'!C$47*9.81,'EM-LM-6'!K$20<-('Allgemeine Werte'!G$61+'EM-Ber-CLM10-6'!C$47*9.81))),1,0) -> 0
I118: =IF(AND('EM-LM-6'!G$51=FALSE,'EM-LM-6'!G$52=TRUE,OR('EM-LM-6'!K$20>'Allgemeine Werte'!E$61+'EM-Ber-CLM10-6'!C$47*9.81,'EM-LM-6'!K$20<-('Allgemeine Werte'!G$61-'EM-Ber-CLM10-6'!C$47*9.81))),1,0) -> 0
G119: KLM 300 | I119: =IF(AND('EM-LM-6'!G$51=TRUE,'EM-LM-6'!G$52=TRUE,OR('EM-LM-6'!K$20<-('Allgemeine Werte'!E$57-'EM-Ber-KLM300-6'!C$47*9.81),'EM-LM-6'!K$20>'Allgemeine Werte'!G$57+'EM-Ber-KLM300-6'!C$47*9.81)),1,0) -> 0 | K119: =IF(OR(I119=1,I120=1,I121=1,I122=1),1,0) -> 0
I120: =IF(AND('EM-LM-6'!G$51=TRUE,'EM-LM-6'!G$52=FALSE,OR('EM-LM-6'!K$20<-('Allgemeine Werte'!E$57+'EM-Ber-KLM300-6'!C$47*9.81),'EM-LM-6'!K$20>'Allgemeine Werte'!G$57-'EM-Ber-KLM300-6'!C$47*9.81)),1,0) -> 0
I121: =IF(AND('EM-LM-6'!G$51=FALSE,'EM-LM-6'!G$52=FALSE,OR('EM-LM-6'!K$20>'Allgemeine Werte'!E$57-'EM-Ber-KLM300-6'!C$47*9.81,'EM-LM-6'!K$20<-('Allgemeine Werte'!G$57+'EM-Ber-KLM300-6'!C$47*9.81))),1,0) -> 0
I122: =IF(AND('EM-LM-6'!G$51=FALSE,'EM-LM-6'!G$52=TRUE,OR('EM-LM-6'!K$20>'Allgemeine Werte'!E$57+'EM-Ber-KLM300-6'!C$47*9.81,'EM-LM-6'!K$20<-('Allgemeine Werte'!G$57-'EM-Ber-KLM300-6'!C$47*9.81))),1,0) -> 0

Sheet EM-PMP-1
A2: =Translation!A14 -> Toolbox-Translation - MODULARE MONTAGEAUTOMATION
A3: =Translation!A104 -> Berechnung Portalmodule
C6: =Translation!A107 -> PMP - Portalmodule | K6: =Translation!A111 -> Geben Sie Ihre Werte mit -Enter- ein !
I8: H (mm) | K8: 10 | M8: =Translation!A112 -> H = Hub ( max. 3700 )
K10: =Translation!A113 -> Masse (m) | M10: =Translation!A115 -> Koordinaten Massenschwerpunkt / Kraftangriff
K12: =Translation!A114 -> Kraft (F) | M12: X ( mm ) | O12: Y ( mm ) | Q12: Z ( mm )
I14: m (kg) | K14: 0 | M14: 0 | O14: 0 | Q14: 0
M16: ( N )
I18: Fx (N) | K18: 0 | O18: 0 | Q18: 0
I20: Fy (N) | K20: 0 | M20: 0 | Q20: 0
I22: Fz (N) | K22: 0 | M22: 0 | O22: 0
C27: =Translation!A110 -> Achtung: Kräfte und Koordinaten mit Vorzeichen ! | J27: + - | M27: =Translation!A117 -> Hier ändern Sie die Verfahrzeit
C28: =Translation!A130 -> ACHTUNG:
C30: =Translation!A131 -> Die angegebenen Verfahrzeiten sind reine Verfahrzeiten von einer Endlage in die andere Endlage. Ventilschaltzeiten, Schlauchbefüllungszeiten oder SPS-Reaktionszeiten sind nicht enthalten und bei der Ermittlung von Zykluszeiten zu berücksichtigen. Bitte beachten Sie, dass zum Erreichen der minimal möglichen Verfahrzeit die kundenseitige Stützkonstruktion der resultierenden Dynamik angepasst werden muss !
G31: =Translation!A118 -> Module | K31: =IF(OR(K14>20,K8>3700,I54=1)," ","PMP 16") -> PMP 16 | O31: =IF(OR(K14>40,K8>3700,I56=1)," ","PMP 25") -> PMP 25
G32: =Translation!A119 -> Katalogseite | K32: =IF(K31="PMP 16","01.520"," ") -> 01.520 | O32: =IF(O31="PMP 25","01.530"," ") -> 01.530
G33: =Translation!A120 -> Zyl.-kraft bei 6 bar ( N ) | K33: =IF(K31="PMP 16","100",C50) -> 100 | O33: =IF(O31="PMP 25","250",C50) -> 250
G35: =Translation!A122 -> Führungssystem | K35: =IF(K31="PMP 16",C51," ") -> Profilschienenführung | O35: =IF(O31="PMP 25",C51," ") -> Profilschienenführung
G37: =Translation!A132 -> Verzögerungskraft ( N ) | K37: =IF(K31="PMP 16",'EM-Ber-PMP16-1'!C43,-1) -> 0.5110698029 | O37: =IF(O31="PMP 25",'EM-Ber-PMP25-1'!C43,-1) -> 0.617723121
G38: =Translation!A123 -> Auslastung Führung | K38: =IF(K31="PMP 16",'EM-Ber-PMP16-1'!J38,-1) -> 0 | O38: =IF(O31="PMP 25",'EM-Ber-PMP25-1'!J38,-1) -> 0
G39: =Translation!A124 -> Auslastung Dämpfer/Hub | K39: =IF(K31="PMP 16",'EM-Ber-PMP16-1'!C55,-1) -> 0.1131311562 | O39: =IF(O31="PMP 25",'EM-Ber-PMP25-1'!C55,-1) -> 0.1541008458
G40: =Translation!A125 -> Verfahrzeit / Hub ( s ) | K40: =IF(K31="PMP 16",'EM-Ber-PMP16-1'!L50,-1) -> 0.214 | O40: =IF(O31="PMP 25",'EM-Ber-PMP25-1'!L50,-1) -> 0.235
G41: =Translation!A126 -> Max. Zyklenzahl / Min. | K41: =IF(K31="PMP 16",'EM-Ber-PMP16-1'!G52,-1) -> 120 | O41: =IF(O31="PMP 25",'EM-Ber-PMP25-1'!G52,-1) -> 80
G43: =Translation!A127 -> Anzahl der Stoßdämpfer pro Endlage | O43: 1
I49: =I50*0.01 -> 2.02
C50: =Translation!A129 -> UNZULÄSSIG | I50: 202
C51: =Translation!A128 -> Profilschienenführung | G51: FALSE
C54: Wegfallkriterium wegen Kraft Y: | E54: PMP 16 | G54: =IF(AND(G51=TRUE,OR(K20>'Allgemeine Werte'!G58,K20<-'Allgemeine Werte'!E58)),1,0) -> 0 | I54: =IF(OR(G54=1,G55=1),1,0) -> 0
G55: =IF(AND(G51=FALSE,OR(K20>'Allgemeine Werte'!E58,K20<-'Allgemeine Werte'!G58)),1,0) -> 0
E56: PMP 25 | G56: =IF(AND(G51=TRUE,OR(K20>'Allgemeine Werte'!G59,K20<-'Allgemeine Werte'!E59)),1,0) -> 0 | I56: =IF(OR(G56=1,G57=1),1,0) -> 0
G57: =IF(AND(G51=FALSE,OR(K20>'Allgemeine Werte'!E59,K20<-'Allgemeine Werte'!G59)),1,0) -> 0

Sheet EM-PMP-2
A2: =Translation!A14 -> Toolbox-Translation - MODULARE MONTAGEAUTOMATION
A3: =Translation!A104 -> Berechnung Portalmodule
C6: =Translation!A107 -> PMP - Portalmodule | K6: =Translation!A111 -> Geben Sie Ihre Werte mit -Enter- ein !
I8: H (mm) | K8: 10 | M8: =Translation!A112 -> H = Hub ( max. 3700 )
K10: =Translation!A113 -> Masse (m) | M10: =Translation!A115 -> Koordinaten Massenschwerpunkt / Kraftangriff
K12: =Translation!A114 -> Kraft (F) | M12: X ( mm ) | O12: Y ( mm ) | Q12: Z ( mm )
I14: m (kg) | K14: 0 | M14: 0 | O14: 0 | Q14: 0
M16: ( N )
I18: Fx (N) | K18: 0 | O18: 0 | Q18: 0
I20: Fy (N) | K20: 0 | M20: 0 | Q20: 0
I22: Fz (N) | K22: 0 | M22: 0 | O22: 0
C27: =Translation!A110 -> Achtung: Kräfte und Koordinaten mit Vorzeichen ! | J27: + - | M27: =Translation!A117 -> Hier ändern Sie die Verfahrzeit
C28: =Translation!A130 -> ACHTUNG:
C30: =Translation!A131 -> Die angegebenen Verfahrzeiten sind reine Verfahrzeiten von einer Endlage in die andere Endlage. Ventilschaltzeiten, Schlauchbefüllungszeiten oder SPS-Reaktionszeiten sind nicht enthalten und bei der Ermittlung von Zykluszeiten zu berücksichtigen. Bitte beachten Sie, dass zum Erreichen der minimal möglichen Verfahrzeit die kundenseitige Stützkonstruktion der resultierenden Dynamik angepasst werden muss !
G31: =Translation!A118 -> Module | K31: =IF(OR(K14>20,K8>3700,I54=1)," ","PMP 16") -> PMP 16 | O31: =IF(OR(K14>40,K8>3700,I56=1)," ","PMP 25") -> PMP 25
G32: =Translation!A119 -> Katalogseite | K32: =IF(K31="PMP 16","01.520"," ") -> 01.520 | O32: =IF(O31="PMP 25","01.530"," ") -> 01.530
G33: =Translation!A120 -> Zyl.-kraft bei 6 bar ( N ) | K33: =IF(K31="PMP 16","100",C50) -> 100 | O33: =IF(O31="PMP 25","250",C50) -> 250
G35: =Translation!A122 -> Führungssystem | K35: =IF(K31="PMP 16",C51," ") -> Profilschienenführung | O35: =IF(O31="PMP 25",C51," ") -> Profilschienenführung
G37: =Translation!A132 -> Verzögerungskraft ( N ) | K37: =IF(K31="PMP 16",'EM-Ber-PMP16-2'!C43,-1) -> 0.5110698029 | O37: =IF(O31="PMP 25",'EM-Ber-PMP25-2'!C43,-1) -> 0.617723121
G38: =Translation!A123 -> Auslastung Führung | K38: =IF(K31="PMP 16",'EM-Ber-PMP16-2'!J38,-1) -> 0 | O38: =IF(O31="PMP 25",'EM-Ber-PMP25-2'!J38,-1) -> 0
G39: =Translation!A124 -> Auslastung Dämpfer/Hub | K39: =IF(K31="PMP 16",'EM-Ber-PMP16-2'!C55,-1) -> 0.1131311562 | O39: =IF(O31="PMP 25",'EM-Ber-PMP25-2'!C55,-1) -> 0.1541008458
G40: =Translation!A125 -> Verfahrzeit / Hub ( s ) | K40: =IF(K31="PMP 16",'EM-Ber-PMP16-2'!L50,-1) -> 0.214 | O40: =IF(O31="PMP 25",'EM-Ber-PMP25-2'!L50,-1) -> 0.235
G41: =Translation!A126 -> Max. Zyklenzahl / Min. | K41: =IF(K31="PMP 16",'EM-Ber-PMP16-2'!G52,-1) -> 120 | O41: =IF(O31="PMP 25",'EM-Ber-PMP25-2'!G52,-1) -> 80
G43: =Translation!A127 -> Anzahl der Stoßdämpfer pro Endlage | O43: 1
I49: =I50*0.01 -> 2.02
C50: =Translation!A129 -> UNZULÄSSIG | I50: 202
C51: =Translation!A128 -> Profilschienenführung | G51: FALSE
C54: Wegfallkriterium wegen Kraft Y: | E54: PMP 16 | G54: =IF(AND(G51=TRUE,OR(K20>'Allgemeine Werte'!G58,K20<-'Allgemeine Werte'!E58)),1,0) -> 0 | I54: =IF(OR(G54=1,G55=1),1,0) -> 0
G55: =IF(AND(G51=FALSE,OR(K20>'Allgemeine Werte'!E58,K20<-'Allgemeine Werte'!G58)),1,0) -> 0
E56: PMP 25 | G56: =IF(AND(G51=TRUE,OR(K20>'Allgemeine Werte'!G59,K20<-'Allgemeine Werte'!E59)),1,0) -> 0 | I56: =IF(OR(G56=1,G57=1),1,0) -> 0
G57: =IF(AND(G51=FALSE,OR(K20>'Allgemeine Werte'!E59,K20<-'Allgemeine Werte'!G59)),1,0) -> 0

Sheet EM-PMP-3
A2: =Translation!A14 -> Toolbox-Translation - MODULARE MONTAGEAUTOMATION
A3: =Translation!A104 -> Berechnung Portalmodule
C6: =Translation!A107 -> PMP - Portalmodule | K6: =Translation!A111 -> Geben Sie Ihre Werte mit -Enter- ein !
I8: H (mm) | K8: 10 | M8: =Translation!A112 -> H = Hub ( max. 3700 )
K10: =Translation!A113 -> Masse (m) | M10: =Translation!A115 -> Koordinaten Massenschwerpunkt / Kraftangriff
K12: =Translation!A114 -> Kraft (F) | M12: X ( mm ) | O12: Y ( mm ) | Q12: Z ( mm )
I14: m (kg) | K14: 0 | M14: 0 | O14: 0 | Q14: 0
M16: ( N )
I18: Fx (N) | K18: 0 | O18: 0 | Q18: 0
I20: Fy (N) | K20: 0 | M20: 0 | Q20: 0
I22: Fz (N) | K22: 0 | M22: 0 | O22: 0
C27: =Translation!A110 -> Achtung: Kräfte und Koordinaten mit Vorzeichen ! | J27: + - | M27: =Translation!A117 -> Hier ändern Sie die Verfahrzeit
C28: =Translation!A130 -> ACHTUNG:
C30: =Translation!A131 -> Die angegebenen Verfahrzeiten sind reine Verfahrzeiten von einer Endlage in die andere Endlage. Ventilschaltzeiten, Schlauchbefüllungszeiten oder SPS-Reaktionszeiten sind nicht enthalten und bei der Ermittlung von Zykluszeiten zu berücksichtigen. Bitte beachten Sie, dass zum Erreichen der minimal möglichen Verfahrzeit die kundenseitige Stützkonstruktion der resultierenden Dynamik angepasst werden muss !
G31: =Translation!A118 -> Module | K31: =IF(OR(K14>5,K8>3700,I54=1)," ","PMP 16") -> PMP 16 | O31: =IF(OR(K14>12.5,K8>3700,I56=1)," ","PMP 25") -> PMP 25
I32: =Translation!A119 -> Katalogseite | M32: =IF(K31="PMP 16","01.520"," ") -> 01.520 | Q32: =IF(O31="PMP 25","01.530"," ") -> 01.530
G33: =Translation!A120 -> Zyl.-kraft bei 6 bar ( N ) | K33: =IF(K31="PMP 16","100",C50) -> 100 | O33: =IF(O31="PMP 25","250",C50) -> 250
G35: =Translation!A122 -> Führungssystem | K35: =IF(K31="PMP 16",C51," ") -> Profilschienenführung | O35: =IF(O31="PMP 25",C51," ") -> Profilschienenführung
G37: =Translation!A132 -> Verzögerungskraft ( N ) | K37: =IF(K31="PMP 16",'EM-Ber-PMP16-3'!C43,-1) -> 0.3138810279 | O37: =IF(O31="PMP 25",'EM-Ber-PMP25-3'!C43,-1) -> 0.5657681561
G38: =Translation!A123 -> Auslastung Führung | K38: =IF(K31="PMP 16",'EM-Ber-PMP16-3'!J38,-1) -> 0 | O38: =IF(O31="PMP 25",'EM-Ber-PMP25-3'!J38,-1) -> 0
G39: =Translation!A124 -> Auslastung Dämpfer/Hub | K39: =IF(K31="PMP 16",'EM-Ber-PMP16-3'!C55,-1) -> 0.1262545542 | O39: =IF(O31="PMP 25",'EM-Ber-PMP25-3'!C55,-1) -> 0.1685680398
G40: =Translation!A125 -> Verfahrzeit / Hub ( s ) | K40: =IF(K31="PMP 16",'EM-Ber-PMP16-3'!L50,-1) -> 0.273 | O40: =IF(O31="PMP 25",'EM-Ber-PMP25-3'!L50,-1) -> 0.246
G41: =Translation!A126 -> Max. Zyklenzahl / Min. | K41: =IF(K31="PMP 16",'EM-Ber-PMP16-3'!G52,-1) -> 109.8901099 | O41: =IF(O31="PMP 25",'EM-Ber-PMP25-3'!G52,-1) -> 80
G43: =Translation!A127 -> Anzahl der Stoßdämpfer pro Endlage | O43: 1
I49: =I50*0.01 -> 2.02
C50: =Translation!A129 -> UNZULÄSSIG | I50: 202
C51: =Translation!A128 -> Profilschienenführung | G51: FALSE
C54: Wegfallkriterium wegen Kraft Y: | E54: PMP 16 | G54: =IF(AND(G51=TRUE,OR(K20>'Allgemeine Werte'!G58+'EM-Ber-PMP16-3'!C47*9.81,K20<-('Allgemeine Werte'!E58-'EM-Ber-PMP16-3'!C47*9.81))),1,0) -> 0 | I54: =IF(OR(G54=1,G55=1),1,0) -> 0
G55: =IF(AND(G51=FALSE,OR(K20>'Allgemeine Werte'!E58+'EM-Ber-PMP16-3'!C47*9.81,K20<-('Allgemeine Werte'!G58-'EM-Ber-PMP16-3'!C47*9.81))),1,0) -> 0
E56: PMP 25 | G56: =IF(AND(G51=TRUE,OR(K20>'Allgemeine Werte'!G59+'EM-Ber-PMP25-3'!C47*9.81,K20<-('Allgemeine Werte'!E59-'EM-Ber-PMP25-3'!C47*9.81))),1,0) -> 0 | I56: =IF(OR(G56=1,G57=1),1,0) -> 0
G57: =IF(AND(G51=FALSE,OR(K20>'Allgemeine Werte'!E59+'EM-Ber-PMP25-3'!C47*9.81,K20<-('Allgemeine Werte'!G59-'EM-Ber-PMP25-3'!C47*9.81))),1,0) -> 0

Sheet EM-Ber-LM25-1
A1: Linearmodul Typ | C1: LM 25
A3: Berechnung der Führungsbelastung
G4: Statisch auf Grund | H4: Statisch auf Grund
A5: Hub | B5: mm | C5: ='EM-LM-1'!K8 -> 10 | G5: Zusatzmasse m | H5: Zusatzmasse m | I5: Dynamisch auf Grund | J5: Statisch auf Grund | K5: Statisch auf Grund
A6: Zylinderkraft | B6: N | C6: 67 | G6: Modul ausgef. | H6: Modul eingef. | I6: Zusatzmasse m | J6: Zusatzkraft Modul eingef. | K6: Zusatzkraft Modul ausgef.
A7: Faktor | C7: =ROUNDDOWN(((C5-8)/17.1),0) -> 0 | G7: I | H7: II | I7: III | J7: IV | K7: V
A8: Modulgewicht | B8: kg | C8: =0.44+(C7*0.08) -> 0.44 | E8: Moment Mx=M2 | F8: Nm | G8: =(C12*9.81)*((C38+C34/2+C33)/1000) -> 0 | H8: =C12*9.81*((C37+C34/2+C33)/1000) -> 0 | I8: =C42*(C15/1000) -> 0 | J8: =(C21*C23/1000)-C25*((C27+C37+C34/2)/1000) -> 0 | K8: =(C21*C23/1000)-C25*((C27+C38+C34/2)/1000) -> 0
A9: Zylinderkraft zurück | B9: N | C9: 50 | E9: Moment My=M1 | F9: Nm | G9: =C12*9.81*(C13/1000) -> 0 | H9: =C12*9.81*(C13/1000) -> 0 | I9: - | J9: =C17*C19/1000-C25*(C26/1000) -> 0 | K9: =C17*C19/1000-C25*(C26/1000) -> 0
A10: Verfahrgeschwindigkeit | B10: m/s | C10: ='EM-LM-1-1'!I58 -> 2.02 | E10: Moment Mz=M3 | F10: Nm | G10: - | H10: - | I10: =C42*(C13/1000) -> 0 | J10: =C21*C22/1000-C17*(C18+C37+C34/2)/1000 -> 0 | K10: =C21*C22/1000-C17*(C18+C38+C34/2)/1000 -> 0
J11: ='EM-LM-1'!G51 -> TRUE
A12: Zusatzmasse | B12: kg | C12: ='EM-LM-1'!K14 -> 0 | E12: Mx Summe I + III | F12: Nm | G12: =G8+I8 -> 0
A13: Schwerpunktabstand x-Richtung | B13: mm | C13: ='EM-LM-1'!M14 -> 0 | E13: Absolutbetrag | G13: =ABS(G12) -> 0
A14: Schwerpunktabstand y-Richtung | B14: mm | C14: ='EM-LM-1'!O14 -> 0 | E14: Mx Summe II-III | G14: =H8-I8 -> 0
A15: Schwerpunktabstand z-Richt.(Mitte Rolle) | B15: mm | C15: ='EM-LM-1'!Q14+9 -> 9 | E15: Absolutbetrag | G15: =ABS(G14) -> 0
E16: I | F16: Nm | G16: =ABS(G8) -> 0
A17: Zusatzkraft Fx | B17: N | C17: ='EM-LM-1'!K18 -> 0 | E17: I oder I+III oder II-III | G17: =MAX(G16,G15,G13) -> 0
A18: Kraftangriffspunkt von Fx in y-Richtung | B18: mm | C18: ='EM-LM-1'!O18 -> 0 | E18: Mx Summe I+V oder II+IV | F18: Nm | G18: =IF(AND(J8=0,K8=0),MAX(G8,H8),IF(J11=TRUE,H8+J8,G8+K8)) -> 0
A19: Kraftangrp. von Fx in z-Richt.(Mitte Rolle) | B19: mm | C19: ='EM-LM-1'!Q18+9 -> 9 | E19: Absolutbetrag | G19: =ABS(G18) -> 0
E20: Mx ges | F20: Nm | G20: =MAX(G17,G19) -> 0
A21: Zusatzkraft Fy | B21: N | C21: ='EM-LM-1'!K20 -> 0 | E21: Mx zul | F21: Nm | G21: =C34/1000*120 -> 4.8 | I21: Maximal-Werte der Momente und Kräfte nicht aus Katalog, sondern exakt berechnete Werte !!
A22: Kraftangriffspunkt von Fy in x-Richtung | B22: mm | C22: ='EM-LM-1'!M20 -> 0
A23: Kraftangrp. von Fy in z-Richt.(Mitte Rolle) | B23: mm | C23: ='EM-LM-1'!Q20+9 -> 9 | E23: My Summe I+V ( = II+IV ) | F23: Nm | G23: =G9+K9 -> 0
E24: Absolutbetrag | G24: =ABS(G23) -> 0
A25: Zusatzkraft Fz | B25: N | C25: ='EM-LM-1'!K22 -> 0 | E25: My ges | F25: Nm | G25: =G24 -> 0
A26: Kraftangriffspunkt von Fz in x-Richtung | B26: mm | C26: ='EM-LM-1'!M22 -> 0 | E26: My zul | F26: Nm | G26: =4.4+(0.85*C7) -> 4.4
A27: Kraftangriffspunkt von Fz in y-Richtung | B27: mm | C27: ='EM-LM-1'!O22 -> 0
E29: Mz III | F29: Nm | G29: =I10 -> 0
A30: Länge L (Stirnplatte zu 1. Rolle - HubN/2) | B30: mm | C30: 29 | E30: Absolutbetrag | G30: =ABS(G29) -> 0
A31: Nennhub/2 HubN/2 | B31: mm | C31: =(25+(C7*17))/2 -> 12.5 | E31: Mz IV/V | F31: Nm | G31: =IF(J11=TRUE,J10,K10) -> 0
A32: tatsächlicher gefahrener Hub/2 | B32: mm | C32: =C5/2 -> 5 | E32: Absolutbetrag | G32: =ABS(G31) -> 0
A33: Schwerpunktabstand in y-Richtung | B33: mm | C33: =C14 -> 0 | E33: Mz ges | F33: Nm | G33: =MAX(G30,G32) -> 0
A34: Wert K ( Abstand erste / letzte Rolle ) | B34: mm | C34: =40+(C7*8) -> 40 | E34: Mz zul | F34: Nm | G34: =G21/2 -> 2.4
I36: Belastungsgleichung stat. | J36: =G19/G21+G25/G26+G32/G34+G38/G39+G42/G43 -> 0
A37: l1 bei eingefahrenem Hub | B37: mm | C37: =C30+C31 -> 41.5 | E37: Fx ges | F37: N | G37: =C17 -> 0 | I37: Belastungsgleichung dyn. | J37: =G17/G21+G30/G34+G40/G43 -> 0
A38: l1 bei ausgefahrenem Hub | B38: mm | C38: =C30+C31+C32 -> 46.5 | E38: Absolutwert | G38: =ABS(G37) -> 0 | I38: Belastungsgleichung | J38: =MAX(J36:J37) -> 0
E39: Fx zul | F39: N | G39: =G43 -> 660
A40: Stoßdämpferhub s ( Hub bis a=0 ) | B40: m | C40: ='Allgemeine Werte'!M34 -> 0.00402 | E40: Gewichtskraft | F40: N | G40: =C12*9.81 -> 0
A41: Verzögerung a=vxv/2xs | B41: m/s2 | C41: =POWER(C48,2)/(2*C40) -> 1.46627951 | E41: Fz ges abs | F41: N | G41: =ABS(-C25+C12*9.81) -> 0 | I41: Verfahrzeitberechnung | K41: =0.000709343*POWER(C5,2)-0.095761246*C5+6.100692042 -> 5.214013882
A42: Kraft zur Verzögerung der Masse | B42: N | C42: =C12*C41 -> 0 | E42: Max aus E40,E41 | G42: =MAX(G40,G41) -> 0 | I42: Verfahrzeit berechnet ( t=Wurzel aus (2xsxm/F) | K42: =(SQRT(2*(C5/1000)*(C12+C8/2)/C9))*K41 -> 0.04891178577
A43: Kraft zur Verzög. d. Masse incl Modul/2 | B43: N | C43: =C47*C41 -> 0.3225814922 | E43: Fz zul | F43: N | G43: =660+120*C7 -> 660 | I43: Mittlere Verfahrgeschwindigkeit berechnet | K43: =(C5/1000)/K42 -> 0.2044497015
I44: Endgeschwindigkeit berechnet | K44: =K43*'Allgemeine Werte'!E71 -> 0.3577869776
A45: Stoßdämpferberechnung | E45: Max. Zyklenzahl / Min.
A46: Anzahl Stoßdämpfer | C46: 1 | E46: Zyklen aus Verfahrzeit | G46: =60/(2*L50) -> 186.1313869 | I46: Endgeschwindigkeit (Eingabe) | K46: =C10 -> 2.02
A47: Gesamtmasse | B47: kg | C47: =C12+C8/2 -> 0.22 | I47: Mittlere Verfahrgeschwindigkeit (Eingabe) m/s | K47: =C10/'Allgemeine Werte'!E71 -> 1.154285714
A48: Aufprallgeschwindigkeit | B48: m/s | C48: =L54 -> 0.1085766423 | E48: Ezul / Stunde | F48: Nm | G48: ='Allgemeine Werte'!H34*C46*0.95 -> 13680 | I48: Verfahrzeit (Eingabe) | J48: s | K48: =(C5/1000)/K47 -> 0.008663366337 | L48: Verfahrzeit für Berechnung
A49: W1 | B49: Nm | C49: =C47*POWER(C48,2)*0.5 -> 0.001296777599 | E49: Ezul / Minute | F49: Nm | G49: =G48/60 -> 228 | L49: ( max )
A50: Hub Stoßdämpfer | B50: m | C50: ='Allgemeine Werte'!L34 -> 0.006 | E50: Zyklen aus Ezul | G50: =G49/C53 -> 565.3404953 | I50: min. Verfahrzeit vor | J50: gemessen | K50: =0.14+((C5-8)/17)*0.01 -> 0.1411764706 | L50: =MAX(K48,K53,K42) -> 0.1611764706
A51: Zylinderkraft | B51: N | C51: 67 | I51: Mittlere Verfahrgeschwindigkeit vor | K51: =(C5/1000)/K50 -> 0.07083333333
A52: W2 ( Antriebsenergie ) | B52: Nm | C52: =C51*C50 -> 0.402 | E52: Max. Zyklen | G52: =MIN(G46,G50,G55) -> 120 | I52: Endgeschwindigkeit vor | K52: =K51*'Allgemeine Werte'!E71 -> 0.1239583333 | L52: Endgeschwindigkeit f. Ber.
A53: W1+W2 ( Energie / Hub ) | B53: Nm | C53: =C52+C49 -> 0.4032967776 | I53: min. Verfahrzeit zurück | K53: =0.16+((C5-8)/17)*0.01 -> 0.1611764706 | L53: ( min )
A54: Ezul / Zyklus ( Hub ) | B54: Nm | C54: ='Allgemeine Werte'!G34*C50/'Allgemeine Werte'!K34*C46 -> 3 | E54: Stoßd.-kolbenrückstellzeit | G54: ='Allgemeine Werte'!E34 -> 0.5 | I54: Mittlere Verfahrgeschwindigkeit zurück | K54: =(C5/1000)/K53 -> 0.06204379562 | L54: =MIN(K46,K55,K44) -> 0.1085766423
A55: Auslastung / Zyklus | C55: =C53/C54 -> 0.1344322592 | E55: Max. Zyklen aus Rückstellzeit | G55: =60/G54 -> 120 | I55: Endgeschwindigkeit zurück | K55: =K54*'Allgemeine Werte'!E71 -> 0.1085766423

Sheet EM-Ber-LM25-2
A1: Linearmodul Typ | C1: LM 25
A3: Berechnung der Führungsbelastung
G4: Statisch auf Grund | H4: Statisch auf Grund
A5: Hub | B5: mm | C5: ='EM-LM-2'!K8 -> 10 | G5: Zusatzmasse m | H5: Zusatzmasse m | I5: Dynamisch auf Grund | J5: Statisch auf Grund | K5: Statisch auf Grund
A6: Zylinderkraft | B6: N | C6: 67 | G6: Modul ausgef. | H6: Modul eingef. | I6: Zusatzmasse m | J6: Zusatzkraft Modul eingef. | K6: Zusatzkraft Modul ausgef.
A7: Faktor | C7: =ROUNDDOWN(((C5-8)/17.1),0) -> 0 | G7: I | H7: II | I7: III | J7: IV | K7: V
A8: Modulgewicht | B8: kg | C8: =0.44+(C7*0.08) -> 0.44 | E8: Moment Mx=M3 | F8: Nm | G8: =(C12*9.81)*((C38+C34/2+C33)/1000) -> 0 | H8: =C12*9.81*((C37+C34/2+C33)/1000) -> 0 | I8: =C42*(C15/1000) -> 0 | J8: =(C21*C23/1000)-C25*((C27+C37+C34/2)/1000) -> 0 | K8: =(C21*C23/1000)-C25*((C27+C38+C34/2)/1000) -> 0
A9: Zylinderkraft zurück | B9: N | C9: 50 | E9: Moment My=M1 | F9: Nm | G9: =C12*9.81*((C13)/1000) -> 0 | H9: =C12*9.81*((C13)/1000) -> 0 | I9: - | J9: =C17*(C19/1000)-C25*C26/1000 -> 0 | K9: =C17*(C19/1000)-C25*C26/1000 -> 0
A10: Verfahrgeschwindigkeit | B10: m/s | C10: ='EM-LM-2-1'!I58 -> 2.02 | E10: Moment Mz=M2 | F10: Nm | G10: - | H10: - | I10: =C42*(C13/1000) -> 0 | J10: =C21*C22/1000-C17*(C18+C37+C34/2)/1000 -> 0 | K10: =C21*C22/1000-C17*(C18+C38+C34/2)/1000 -> 0
J11: ='EM-LM-2'!G51 -> TRUE
A12: Zusatzmasse | B12: kg | C12: ='EM-LM-2'!K14 -> 0 | E12: Mx Summe I + III | F12: Nm | G12: =G8+I8 -> 0
A13: Schwerpunktabstand x-Richt.(Mitte Rolle) | B13: mm | C13: ='EM-LM-2'!M14+9 -> 9 | E13: Absolutbetrag | G13: =ABS(G12) -> 0
A14: Schwerpunktabstand y-Richtung | B14: mm | C14: ='EM-LM-2'!O14 -> 0 | E14: Mx Summe II-III | G14: =H8-I8 -> 0
A15: Schwerpunktabstand z-Richtung | B15: mm | C15: ='EM-LM-2'!Q14 -> 0 | E15: Absolutbetrag | G15: =ABS(G14) -> 0
E16: I | F16: Nm | G16: =ABS(G8) -> 0
A17: Zusatzkraft Fx | B17: N | C17: ='EM-LM-2'!K18 -> 0 | E17: I oder I+III oder II-III | G17: =MAX(G16,G15,G13) -> 0
A18: Kraftangriffspunkt von Fx in y-Richtung | B18: mm | C18: ='EM-LM-2'!O18 -> 0 | E18: Mx Summe I+V oder II+IV | F18: Nm | G18: =IF(AND(J8=0,K8=0),MAX(G8,H8),IF(J11=TRUE,H8+J8,G8+K8)) -> 0
A19: Kraftangriffspunkt von Fx in z-Richtung | B19: mm | C19: ='EM-LM-2'!Q18 -> 0 | E19: Absolutbetrag | G19: =ABS(G18) -> 0
E20: Mx ges | F20: Nm | G20: =MAX(G17,G19) -> 0
A21: Zusatzkraft Fy | B21: N | C21: ='EM-LM-2'!K20 -> 0 | E21: Mx zul | F21: Nm | G21: =G34/2 -> 2.4 | I21: Maximal-Werte der Momente und Kräfte nicht aus Katalog, sondern exakt berechnete Werte !!
A22: Kraftangrp. von Fy in x-Richt. (Mitte Rolle) | B22: mm | C22: ='EM-LM-2'!M20+9 -> 9
A23: Kraftangrp. von Fy in z-Richt. | B23: mm | C23: ='EM-LM-2'!Q20 -> 0 | E23: My Summe I+V ( = II+IV ) | F23: Nm | G23: =G9+K9 -> 0
E24: Absolutbetrag | G24: =ABS(G23) -> 0
A25: Zusatzkraft Fz | B25: N | C25: ='EM-LM-2'!K22 -> 0 | E25: My ges | F25: Nm | G25: =G24 -> 0
A26: Kraftangrp. von Fz in x-Richt. (Mitte Rolle) | B26: mm | C26: ='EM-LM-2'!M22+9 -> 9 | E26: My zul | F26: Nm | G26: =4.4+(0.85*C7) -> 4.4
A27: Kraftangriffspunkt von Fz in y-Richtung | B27: mm | C27: ='EM-LM-2'!O22 -> 0
E29: Mz III | F29: Nm | G29: =I10 -> 0
A30: Länge L (Stirnplatte zu 1. Rolle - HubN/2) | B30: mm | C30: 29 | E30: Absolutbetrag | G30: =ABS(G29) -> 0
A31: Nennhub/2 HubN/2 | B31: mm | C31: =(25+(C7*17))/2 -> 12.5 | E31: Mz IV/V | F31: Nm | G31: =IF(J11=TRUE,J10,K10) -> 0
A32: tatsächlicher gefahrener Hub/2 | B32: mm | C32: =C5/2 -> 5 | E32: Absolutbetrag | G32: =ABS(G31) -> 0
A33: Schwerpunktabstand in y-Richtung | B33: mm | C33: =C14 -> 0 | E33: Mz ges | F33: Nm | G33: =MAX(G30,G32) -> 0
A34: Wert K ( Abstand erste / letzte Rolle ) | B34: mm | C34: =40+(C7*8) -> 40 | E34: Mz zul | F34: Nm | G34: =C34/1000*120 -> 4.8
I36: Belastungsgleichung stat. | J36: =G19/G21+G25/G26+G32/G34+G38/G39+G42/G43 -> 0
A37: l1 bei eingefahrenem Hub | B37: mm | C37: =C30+C31 -> 41.5 | E37: Fx ges | F37: N | G37: =C17 -> 0 | I37: Belastungsgleichung dyn. | J37: =G17/G21+G30/G34+G40/G43 -> 0
A38: l1 bei ausgefahrenem Hub | B38: mm | C38: =C30+C31+C32 -> 46.5 | E38: Absolutwert | G38: =ABS(G37) -> 0 | I38: Belastungsgleichung | J38: =MAX(J36:J37) -> 0
E39: Fx zul | F39: N | G39: =G43 -> 660
A40: Stoßdämpferhub s ( Hub bis a=0 ) | B40: m | C40: ='Allgemeine Werte'!M34 -> 0.00402 | E40: Gewichtskraft | F40: N | G40: =C12*9.81 -> 0
A41: Verzögerung a=vxv/2xs | B41: m/s2 | C41: =POWER(C48,2)/(2*C40) -> 1.46627951 | E41: Fz ges abs | F41: N | G41: =ABS(-C25+C12*9.81) -> 0 | I41: Verfahrzeitberechnung | K41: =0.000709343*POWER(C5,2)-0.095761246*C5+6.100692042 -> 5.214013882
A42: Kraft zur Verzögerung der Masse | B42: N | C42: =C12*C41 -> 0 | E42: Max aus E40,E41 | G42: =MAX(G40,G41) -> 0 | I42: Verfahrzeit berechnet ( t=Wurzel aus (2xsxm/F) | K42: =(SQRT(2*(C5/1000)*(C12+C8/2)/C9))*K41 -> 0.04891178577
A43: Kraft zur Verzög. d. Masse incl Modul/2 | B43: N | C43: =C47*C41 -> 0.3225814922 | E43: Fz zul | F43: N | G43: =660+120*C7 -> 660 | I43: Mittlere Verfahrgeschwindigkeit berechnet | K43: =(C5/1000)/K42 -> 0.2044497015
I44: Endgeschwindigkeit berechnet | K44: =K43*'Allgemeine Werte'!E71 -> 0.3577869776
A45: Stoßdämpferberechnung | E45: Max. Zyklenzahl / Min.
A46: Anzahl Stoßdämpfer | C46: 1 | E46: Zyklen aus Verfahrzeit | G46: =60/(2*L50) -> 186.1313869 | I46: Endgeschwindigkeit (Eingabe) | K46: =C10 -> 2.02
A47: Gesamtmasse | B47: kg | C47: =C12+C8/2 -> 0.22 | I47: Mittlere Verfahrgeschwindigkeit (Eingabe) m/s | K47: =C10/'Allgemeine Werte'!E71 -> 1.154285714
A48: Aufprallgeschwindigkeit | B48: m/s | C48: =L54 -> 0.1085766423 | E48: Ezul / Stunde | F48: Nm | G48: ='Allgemeine Werte'!H34*C46*0.95 -> 13680 | I48: Verfahrzeit (Eingabe) | J48: s | K48: =(C5/1000)/K47 -> 0.008663366337 | L48: Verfahrzeit für Berechnung
A49: W1 | B49: Nm | C49: =C47*POWER(C48,2)*0.5 -> 0.001296777599 | E49: Ezul / Minute | F49: Nm | G49: =G48/60 -> 228 | L49: ( max )
A50: Hub Stoßdämpfer | B50: m | C50: ='Allgemeine Werte'!L34 -> 0.006 | E50: Zyklen aus Ezul | G50: =G49/C53 -> 565.3404953 | I50: min. Verfahrzeit vor | J50: gemessen | K50: =0.14+((C5-8)/17)*0.01 -> 0.1411764706 | L50: =MAX(K48,K53,K42) -> 0.1611764706
A51: Zylinderkraft | B51: N | C51: 67 | I51: Mittlere Verfahrgeschwindigkeit vor | K51: =(C5/1000)/K50 -> 0.07083333333
A52: W2 ( Antriebsenergie ) | B52: Nm | C52: =C51*C50 -> 0.402 | E52: Max. Zyklen | G52: =MIN(G46,G50,G55) -> 120 | I52: Endgeschwindigkeit vor | K52: =K51*'Allgemeine Werte'!E71 -> 0.1239583333 | L52: Endgeschwindigkeit f. Ber.
A53: W1+W2 ( Energie / Hub ) | B53: Nm | C53: =C52+C49 -> 0.4032967776 | I53: min. Verfahrzeit zurück | K53: =0.16+((C5-8)/17)*0.01 -> 0.1611764706 | L53: ( min )
A54: Ezul / Zyklus ( Hub ) | B54: Nm | C54: ='Allgemeine Werte'!G34*C50/'Allgemeine Werte'!K34*C46 -> 3 | E54: Stoßd.-kolbenrückstellzeit | G54: ='Allgemeine Werte'!E34 -> 0.5 | I54: Mittlere Verfahrgeschwindigkeit zurück | K54: =(C5/1000)/K53 -> 0.06204379562 | L54: =MIN(K46,K55,K44) -> 0.1085766423
A55: Auslastung / Zyklus | C55: =C53/C54 -> 0.1344322592 | E55: Max. Zyklen aus Rückstellzeit | G55: =60/G54 -> 120 | I55: Endgeschwindigkeit zurück | K55: =K54*'Allgemeine Werte'!E71 -> 0.1085766423

Sheet EM-Ber-LM25-3
A1: Linearmodul Typ | C1: LM 25
A3: Berechnung der Führungsbelastung
G4: Statisch auf Grund | H4: Statisch auf Grund
A5: Hub | B5: mm | C5: ='EM-LM-3'!K8 -> 10 | G5: Zusatzmasse m | H5: Zusatzmasse m | I5: Dynamisch auf Grund | J5: Statisch auf Grund | K5: Statisch auf Grund
A6: Zylinderkraft | B6: N | C6: 67 | G6: Modul ausgef. | H6: Modul eingef. | I6: Zusatzmasse m | J6: Zusatzkraft Modul eingef. | K6: Zusatzkraft Modul ausgef.
A7: Faktor | C7: =ROUNDDOWN(((C5-8)/17.1),0) -> 0 | G7: I | H7: II | I7: III | J7: IV | K7: V
A8: Modulgewicht | B8: kg | C8: =0.44+(C7*0.08) -> 0.44 | E8: Moment Mx=M3 | F8: Nm | G8: =C12*9.81*((C15)/1000) -> 0 | H8: =C12*9.81*((C15)/1000) -> 0 | I8: =C42*(C15/1000) -> 0 | J8: =IF(K11=TRUE,-(C21*C23/1000)+C25*((C27+C37+C34/2)/1000),(C21*C23/1000)-C25*((C27+C37+C34/2)/1000)) -> 0 | K8: =IF(K11=TRUE,-(C21*C23/1000)+C25*((C27+C38+C34/2)/1000),(C21*C23/1000)-C25*((C27+C38+C34/2)/1000)) -> 0
A9: Zylinderkraft zurück | B9: N | C9: 50 | E9: Moment My=M1 | F9: Nm | G9: - | H9: - | I9: - | J9: =C17*(C19/1000)-C25*C26/1000 -> 0 | K9: =C17*(C19/1000)-C25*C26/1000 -> 0
A10: Verfahrgeschwindigkeit | B10: m/s | C10: ='EM-LM-3-1'!I58 -> 2.02 | E10: Moment Mz=M2 | F10: Nm | G10: =C12*9.81*((C13)/1000) -> 0 | H10: =C12*9.81*((C13)/1000) -> 0 | I10: =C42*(C13/1000) -> 0 | J10: =IF(K11=TRUE,-C21*C22/1000+C17*(C18+C37+C34/2)/1000,C21*C22/1000-C17*(C18+C37+C34/2)/1000) -> 0 | K10: =IF(K11=TRUE,-C21*C22/1000+C17*(C18+C38+C34/2)/1000,C21*C22/1000-C17*(C18+C38+C34/2)/1000) -> 0
J11: ='EM-LM-3'!G51 -> TRUE | K11: ='EM-LM-3'!G52 -> TRUE
A12: Zusatzmasse | B12: kg | C12: ='EM-LM-3'!K14 -> 0
A13: Schwerpunktabstand x-Richt.(Mitte Rolle) | B13: mm | C13: ='EM-LM-3'!M14+9 -> 9
A14: Schwerpunktabstand y-Richtung | B14: mm | C14: ='EM-LM-3'!O14 -> 0
A15: Schwerpunktabstand z-Richtung | B15: mm | C15: ='EM-LM-3'!Q14 -> 0
E16: Mx Summe I(II) + III | F16: Nm | G16: =G8+I8 -> 0
A17: Zusatzkraft Fx | B17: N | C17: ='EM-LM-3'!K18 -> 0 | E17: Absolutbetrag | G17: =ABS(G16) -> 0
A18: Kraftangriffspunkt von Fx in y-Richtung | B18: mm | C18: ='EM-LM-3'!O18 -> 0 | E18: Mx Summe I+V oder II+IV | F18: Nm | G18: =IF(J11=TRUE,H8+J8,G8+K8) -> 0
A19: Kraftangriffspunkt von Fx in z-Richtung | B19: mm | C19: ='EM-LM-3'!Q18 -> 0 | E19: Absolutbetrag | G19: =ABS(G18) -> 0
E20: Mx ges | F20: Nm | G20: =MAX(G17,G19) -> 0
A21: Zusatzkraft Fy | B21: N | C21: ='EM-LM-3'!K20 -> 0 | E21: Mx zul | F21: Nm | G21: =G34/2 -> 2.4 | I21: Maximal-Werte der Momente und Kräfte nicht aus Katalog, sondern exakt berechnete Werte !!
A22: Kraftangrp. von Fy in x-Richt. (Mitte Rolle) | B22: mm | C22: ='EM-LM-3'!M20+9 -> 9
A23: Kraftangrp. von Fy in z-Richt. | B23: mm | C23: ='EM-LM-3'!Q20 -> 0 | E23: My IV = V | F23: Nm | G23: =J9 -> 0
E24: Absolutbetrag | G24: =ABS(G23) -> 0
A25: Zusatzkraft Fz | B25: N | C25: ='EM-LM-3'!K22 -> 0 | E25: My ges | F25: Nm | G25: =G24 -> 0
A26: Kraftangrp. von Fz in x-Richt. (Mitte Rolle) | B26: mm | C26: ='EM-LM-3'!M22+9 -> 9 | E26: My zul | F26: Nm | G26: =4.4+(0.85*C7) -> 4.4
A27: Kraftangriffspunkt von Fz in y-Richtung | B27: mm | C27: ='EM-LM-3'!O22 -> 0
E29: Mz Summe I(II)+III | F29: Nm | G29: =G10+I10 -> 0
A30: Länge L (Stirnplatte zu 1. Rolle - HubN/2) | B30: mm | C30: 29 | E30: Absolutbetrag | G30: =ABS(G29) -> 0
A31: Nennhub/2 HubN/2 | B31: mm | C31: =(25+(C7*17))/2 -> 12.5 | E31: Mz Summe I+V oder II+IV | F31: Nm | G31: =IF(J11=TRUE,H10+J10,G10+K10) -> 0
A32: tatsächlicher gefahrener Hub/2 | B32: mm | C32: =C5/2 -> 5 | E32: Absolutbetrag | G32: =ABS(G31) -> 0
A33: Schwerpunktabstand in y-Richtung | B33: mm | C33: =C14 -> 0 | E33: Mz ges | F33: Nm | G33: =MAX(G30,G32) -> 0
A34: Wert K ( Abstand erste / letzte Rolle ) | B34: mm | C34: =40+(C7*8) -> 40 | E34: Mz zul | F34: Nm | G34: =C34/1000*120 -> 4.8
I36: Belastungsgleichung stat. | J36: =G19/G21+G25/G26+G32/G34+G38/G39+G42/G43 -> 0
A37: l1 bei eingefahrenem Hub | B37: mm | C37: =C30+C31 -> 41.5 | E37: Fx ges | F37: N | G37: =C17 -> 0 | I37: Belastungsgleichung dyn. | J37: =G17/G21+G30/G34 -> 0
A38: l1 bei ausgefahrenem Hub | B38: mm | C38: =C30+C31+C32 -> 46.5 | E38: Absolutwert | G38: =ABS(G37) -> 0 | I38: Belastungsgleichung | J38: =MAX(J36:J37) -> 0
E39: Fx zul | F39: N | G39: =G43 -> 660
A40: Stoßdämpferhub s ( Hub bis a=0 ) | B40: m | C40: ='Allgemeine Werte'!M34 -> 0.00402
A41: Verzögerung a=vxv/2xs | B41: m/s2 | C41: =POWER(C48,2)/(2*C40) -> 1.666677777 | E41: Fz ges | F41: N | G41: =-C25 -> 0 | I41: Verfahrzeitberechnung | K41: =0.000778547*POWER(C5,2)-0.099809689*C5+5.908650519 -> 4.988408329
A42: Kraft zur Verzögerung der Masse | B42: N | C42: =C12*C41 -> 0 | E42: Absolutwert | G42: =ABS(G41) -> 0 | I42: Verfahrzeit berechnet ( t=Wurzel aus (2xsxm/F) | K42: =(SQRT(2*(C5/1000)*(C12+C8/2)/(C6-(C12+C8/2)*9.81)))*K41 -> 0.04109233337
A43: Kraft zur Verzög. d. Masse incl Modul/2 | B43: N | C43: =C47*C41 -> 0.366669111 | E43: Fz zul | F43: N | G43: =660+120*C7 -> 660 | I43: Mittlere Verfahrgeschwindigkeit berechnet | K43: =(C5/1000)/K42 -> 0.2433543968
I44: Endgeschwindigkeit berechnet | K44: =K43*'Allgemeine Werte'!E71 -> 0.4258701944
A45: Stoßdämpferberechnung | E45: Max. Zyklenzahl / Min.
A46: Anzahl Stoßdämpfer | C46: 1 | E46: Zyklen aus Verfahrzeit | G46: =60/(2*L50) -> 198.4435798 | I46: Endgeschwindigkeit (Eingabe) | K46: =C10 -> 2.02
A47: Gesamtmasse | B47: kg | C47: =C12+C8/2 -> 0.22 | I47: Mittlere Verfahrgeschwindigkeit (Eingabe) m/s | K47: =C10/'Allgemeine Werte'!E71 -> 1.154285714
A48: Aufprallgeschwindigkeit | B48: m/s | C48: =L54 -> 0.1157587549 | E48: Ezul / Stunde | F48: Nm | G48: ='Allgemeine Werte'!H34*C46*0.95 -> 13680 | I48: Verfahrzeit (Eingabe) | J48: s | K48: =(C5/1000)/K47 -> 0.008663366337 | L48: Verfahrzeit für Berechnung
A49: W1 | B49: Nm | C49: =C47*POWER(C48,2)*0.5 -> 0.001474009826 | E49: Ezul / Minute | F49: Nm | G49: =G48/60 -> 228 | L49: ( max )
A50: Hub Stoßdämpfer | B50: m | C50: ='Allgemeine Werte'!L34 -> 0.006 | E50: Zyklen aus Ezul | G50: =G49/C53 -> 583.8297446 | I50: min. Verfahrzeit ab | J50: gemessen | K50: =0.13+((C5-8)/17)*0.01 -> 0.1311764706 | L50: =MAX(K48,K53,K42) -> 0.1511764706
A51: Zylinderkraft | B51: N | C51: 67 | I51: Mittlere Verfahrgeschwindigkeit ab | K51: =(C5/1000)/K50 -> 0.07623318386
A52: W2 ( Antriebsenergie ) | B52: Nm | C52: =MAX(C56,C57)*C50 -> 0.3890508 | E52: Max. Zyklen | G52: =MIN(G46,G50,G55) -> 120 | I52: Endgeschwindigkeit ab | K52: =K51*'Allgemeine Werte'!E71 -> 0.1334080717 | L52: Endgeschwindigkeit f. Ber.
A53: W1+W2 ( Energie / Hub ) | B53: Nm | C53: =C52+C49 -> 0.3905248098 | I53: min. Verfahrzeit auf | K53: =0.15+(((C5-8)/17)*0.01) -> 0.1511764706 | L53: ( min )
A54: Ezul / Zyklus ( Hub ) | B54: Nm | C54: ='Allgemeine Werte'!G34*C50/'Allgemeine Werte'!K34*C46 -> 3 | E54: Stoßd.-kolbenrückstellzeit | G54: ='Allgemeine Werte'!E34 -> 0.5 | I54: Mittlere Verfahrgeschwindigkeit auf | K54: =(C5/1000)/K53 -> 0.06614785992 | L54: =MIN(K46,K55,K44) -> 0.1157587549
A55: Auslastung / Zyklus | C55: =C53/C54 -> 0.1301749366 | E55: Max. Zyklen aus Rückstellzeit | G55: =60/G54 -> 120 | I55: Endgeschwindigkeit auf | K55: =K54*'Allgemeine Werte'!E71 -> 0.1157587549
A56: Antriebskraft nach oben | C56: =C6-C47*9.81 -> 64.8418
A57: Antriebskraft nach unten | C57: =C9+C47*9.81 -> 52.1582

Sheet EM-Ber-LM25-4
A1: Linearmodul Typ | C1: LM 25
A3: Berechnung der Führungsbelastung
G4: Statisch auf Grund | H4: Statisch auf Grund
A5: Hub | B5: mm | C5: ='EM-LM-4'!K8 -> 10 | G5: Zusatzmasse m | H5: Zusatzmasse m | I5: Dynamisch auf Grund | J5: Statisch auf Grund | K5: Statisch auf Grund
A6: Zylinderkraft | B6: N | C6: 67 | G6: Modul ausgef. | H6: Modul eingef. | I6: Zusatzmasse m | J6: Zusatzkraft Modul eingef. | K6: Zusatzkraft Modul ausgef.
A7: Faktor | C7: =ROUNDDOWN(((C5-8)/17.1),0) -> 0 | G7: I | H7: II | I7: III | J7: IV | K7: V
A8: Modulgewicht | B8: kg | C8: =0.44+(C7*0.08) -> 0.44 | E8: Moment Mx=M2 | F8: Nm | G8: =(C12*9.81)*((C37-C32+C34/2+C33)/1000) -> 0 | H8: =C12*9.81*((C37+C34/2+C33)/1000) -> 0 | I8: =C42*(C15/1000) -> 0 | J8: =(C21*C23/1000)-C25*((C27+C37+C34/2)/1000) -> 0 | K8: =(C21*C23/1000)-C25*((C27+C37-C32+C34/2)/1000) -> 0
A9: Zylinderkraft zurück | B9: N | C9: 50 | E9: Moment My=M1 | F9: Nm | G9: =C12*9.81*(C13/1000) -> 0 | H9: =C12*9.81*(C13/1000) -> 0 | I9: - | J9: =C17*C19/1000-C25*(C26/1000) -> 0 | K9: =C17*C19/1000-C25*(C26/1000) -> 0
A10: Verfahrgeschwindigkeit | B10: m/s | C10: ='EM-LM-4-1'!I58 -> 2.02 | E10: Moment Mz=M3 | F10: Nm | G10: - | H10: - | I10: =C42*(C13/1000) -> 0 | J10: =C21*C22/1000-C17*(C18+C37+C34/2)/1000 -> 0 | K10: =C21*C22/1000-C17*(C18+C37-C32+C34/2)/1000 -> 0
J11: ='EM-LM-4'!G51 -> FALSE
A12: Zusatzmasse | B12: kg | C12: ='EM-LM-4'!K14 -> 0 | E12: Mx Summe I + III | F12: Nm | G12: =G8+I8 -> 0
A13: Schwerpunktabstand x-Richtung | B13: mm | C13: ='EM-LM-4'!M14 -> 0 | E13: Absolutbetrag | G13: =ABS(G12) -> 0
A14: Schwerpunktabstand y-Richtung | B14: mm | C14: ='EM-LM-4'!O14 -> 0 | E14: Mx Summe II-III | G14: =H8-I8 -> 0
A15: Schwerpunktabstand z-Richt.(Mitte Rolle) | B15: mm | C15: ='EM-LM-4'!Q14+23 -> 23 | E15: Absolutbetrag | G15: =ABS(G14) -> 0
E16: I | F16: Nm | G16: =ABS(G8) -> 0
A17: Zusatzkraft Fx | B17: N | C17: ='EM-LM-4'!K18 -> 0 | E17: I oder I+III oder II-III | G17: =MAX(G16,G15,G13) -> 0
A18: Kraftangriffspunkt von Fx in y-Richtung | B18: mm | C18: ='EM-LM-4'!O18 -> 0 | E18: Mx Summe I+V oder II+IV | F18: Nm | G18: =IF(AND(J8=0,K8=0),MAX(G8,H8),IF(J11=TRUE,H8+J8,G8+K8)) -> 0
A19: Kraftangrp. von Fx in z-Richt.(Mitte Rolle) | B19: mm | C19: ='EM-LM-4'!Q18+23 -> 23 | E19: Absolutbetrag | G19: =ABS(G18) -> 0
E20: Mx ges | F20: Nm | G20: =MAX(G17,G19) -> 0
A21: Zusatzkraft Fy | B21: N | C21: ='EM-LM-4'!K20 -> 0 | E21: Mx zul | F21: Nm | G21: =C34/1000*120 -> 4.8 | I21: Maximal-Werte der Momente und Kräfte nicht aus Katalog, sondern exakt berechnete Werte !!
A22: Kraftangriffspunkt von Fy in x-Richtung | B22: mm | C22: ='EM-LM-4'!M20 -> 0
A23: Kraftangrp. von Fy in z-Richt.(Mitte Rolle) | B23: mm | C23: ='EM-LM-4'!Q20+23 -> 23 | E23: My Summe I+V ( = II+IV ) | F23: Nm | G23: =G9+K9 -> 0
E24: Absolutbetrag | G24: =ABS(G23) -> 0
A25: Zusatzkraft Fz | B25: N | C25: ='EM-LM-4'!K22 -> 0 | E25: My ges | F25: Nm | G25: =G24 -> 0
A26: Kraftangriffspunkt von Fz in x-Richtung | B26: mm | C26: ='EM-LM-4'!M22 -> 0 | E26: My zul | F26: Nm | G26: =4.4+(0.85*C7) -> 4.4
A27: Kraftangriffspunkt von Fz in y-Richtung | B27: mm | C27: ='EM-LM-4'!O22 -> 0
E29: Mz III | F29: Nm | G29: =I10 -> 0
A30: Länge L (Stirnplatte zu 1. Rolle - HubN/2) | B30: mm | C30: 29 | E30: Absolutbetrag | G30: =ABS(G29) -> 0
A31: Nennhub/2 HubN/2 | B31: mm | C31: =(25+(C7*17))/2 -> 12.5 | E31: Mz IV/V | F31: Nm | G31: =IF(J11=TRUE,J10,K10) -> 0
A32: tatsächlicher gefahrener Hub/2 | B32: mm | C32: =C5/2 -> 5 | E32: Absolutbetrag | G32: =ABS(G31) -> 0
A33: Schwerpunktabstand in y-Richtung | B33: mm | C33: =C14 -> 0 | E33: Mz ges | F33: Nm | G33: =MAX(G30,G32) -> 0
A34: Wert K ( Abstand erste / letzte Rolle ) | B34: mm | C34: =40+(C7*8) -> 40 | E34: Mz zul | F34: Nm | G34: =G21/2 -> 2.4
A35: Anfangswert (Abst. Stirnpl./Deckplatte) | B35: mm | C35: 18
I36: Belastungsgleichung stat. | J36: =G19/G21+G25/G26+G32/G34+G38/G39+G42/G43 -> 0
A37: l1 bei eingefahrenem Hub | B37: mm | C37: =C30+C31-C35 -> 23.5 | E37: Fx ges | F37: N | G37: =C17 -> 0 | I37: Belastungsgleichung dyn. | J37: =G17/G21+G30/G34+G40/G43 -> 0
A38: l1 bei ausgefahrenem Hub | B38: mm | C38: =C30+C31+C32-C35 -> 28.5 | E38: Absolutwert | G38: =ABS(G37) -> 0 | I38: Belastungsgleichung | J38: =MAX(J36:J37) -> 0
E39: Fx zul | F39: N | G39: =G43 -> 660
A40: Stoßdämpferhub s ( Hub bis a=0 ) | B40: m | C40: ='Allgemeine Werte'!M34 -> 0.00402 | E40: Gewichtskraft | F40: N | G40: =C12*9.81 -> 0
A41: Verzögerung a=vxv/2xs | B41: m/s2 | C41: =POWER(C48,2)/(2*C40) -> 1.46627951 | E41: Fz ges abs | F41: N | G41: =ABS(-C25+C12*9.81) -> 0 | I41: Verfahrzeitberechnung | K41: =0.000709343*POWER(C5,2)-0.095761246*C5+6.100692042 -> 5.214013882
A42: Kraft zur Verzögerung der Masse | B42: N | C42: =C12*C41 -> 0 | E42: Max aus E40,E41 | G42: =MAX(G40,G41) -> 0 | I42: Verfahrzeit berechnet ( t=Wurzel aus (2xsxm/F) | K42: =(SQRT(2*(C5/1000)*(C12+C8/2)/C9))*K41 -> 0.04891178577
A43: Kraft zur Verzög. d. Masse incl Modul/2 | B43: N | C43: =C47*C41 -> 0.3225814922 | E43: Fz zul | F43: N | G43: =660+120*C7 -> 660 | I43: Mittlere Verfahrgeschwindigkeit berechnet | K43: =(C5/1000)/K42 -> 0.2044497015
I44: Endgeschwindigkeit berechnet | K44: =K43*'Allgemeine Werte'!E71 -> 0.3577869776
A45: Stoßdämpferberechnung | E45: Max. Zyklenzahl / Min.
A46: Anzahl Stoßdämpfer | C46: 1 | E46: Zyklen aus Verfahrzeit | G46: =60/(2*L50) -> 186.1313869 | I46: Endgeschwindigkeit (Eingabe) | K46: =C10 -> 2.02
A47: Gesamtmasse | B47: kg | C47: =C12+C8/2 -> 0.22 | I47: Mittlere Verfahrgeschwindigkeit (Eingabe) m/s | K47: =C10/'Allgemeine Werte'!E71 -> 1.154285714
A48: Aufprallgeschwindigkeit | B48: m/s | C48: =L54 -> 0.1085766423 | E48: Ezul / Stunde | F48: Nm | G48: ='Allgemeine Werte'!H34*C46*0.95 -> 13680 | I48: Verfahrzeit (Eingabe) | J48: s | K48: =(C5/1000)/K47 -> 0.008663366337 | L48: Verfahrzeit für Berechnung
A49: W1 | B49: Nm | C49: =C47*POWER(C48,2)*0.5 -> 0.001296777599 | E49: Ezul / Minute | F49: Nm | G49: =G48/60 -> 228 | L49: ( max )
A50: Hub Stoßdämpfer | B50: m | C50: ='Allgemeine Werte'!L34 -> 0.006 | E50: Zyklen aus Ezul | G50: =G49/C53 -> 565.3404953 | I50: min. Verfahrzeit vor | J50: gemessen | K50: =0.14+((C5-8)/17)*0.01 -> 0.1411764706 | L50: =MAX(K48,K53,K42) -> 0.1611764706
A51: Zylinderkraft | B51: N | C51: 67 | I51: Mittlere Verfahrgeschwindigkeit vor | K51: =(C5/1000)/K50 -> 0.07083333333
A52: W2 ( Antriebsenergie ) | B52: Nm | C52: =C51*C50 -> 0.402 | E52: Max. Zyklen | G52: =MIN(G46,G50,G55) -> 120 | I52: Endgeschwindigkeit vor | K52: =K51*'Allgemeine Werte'!E71 -> 0.1239583333 | L52: Endgeschwindigkeit f. Ber.
A53: W1+W2 ( Energie / Hub ) | B53: Nm | C53: =C52+C49 -> 0.4032967776 | I53: min. Verfahrzeit zurück | K53: =0.16+((C5-8)/17)*0.01 -> 0.1611764706 | L53: ( min )
A54: Ezul / Zyklus ( Hub ) | B54: Nm | C54: ='Allgemeine Werte'!G34*C50/'Allgemeine Werte'!K34*C46 -> 3 | E54: Stoßd.-kolbenrückstellzeit | G54: ='Allgemeine Werte'!E34 -> 0.5 | I54: Mittlere Verfahrgeschwindigkeit zurück | K54: =(C5/1000)/K53 -> 0.06204379562 | L54: =MIN(K46,K55,K44) -> 0.1085766423
A55: Auslastung / Zyklus | C55: =C53/C54 -> 0.1344322592 | E55: Max. Zyklen aus Rückstellzeit | G55: =60/G54 -> 120 | I55: Endgeschwindigkeit zurück | K55: =K54*'Allgemeine Werte'!E71 -> 0.1085766423

Sheet EM-Ber-LM25-5
A1: Linearmodul Typ | C1: LM 25
A3: Berechnung der Führungsbelastung
G4: Statisch auf Grund | H4: Statisch auf Grund
A5: Hub | B5: mm | C5: ='EM-LM-5'!K8 -> 10 | G5: Zusatzmasse m | H5: Zusatzmasse m | I5: Dynamisch auf Grund | J5: Statisch auf Grund | K5: Statisch auf Grund
A6: Zylinderkraft | B6: N | C6: 67 | G6: Modul ausgef. | H6: Modul eingef. | I6: Zusatzmasse m | J6: Zusatzkraft Modul eingef. | K6: Zusatzkraft Modul ausgef.
A7: Faktor | C7: =ROUNDDOWN(((C5-8)/17.1),0) -> 0 | G7: I | H7: II | I7: III | J7: IV | K7: V
A8: Modulgewicht | B8: kg | C8: =0.44+(C7*0.08) -> 0.44 | E8: Moment Mx=M3 | F8: Nm | G8: =(C12*9.81)*((C37-C32+C34/2+C33)/1000) -> 0 | H8: =C12*9.81*((C37+C34/2+C33)/1000) -> 0 | I8: =C42*(C15/1000) -> 0 | J8: =(C21*C23/1000)-C25*((C27+C37+C34/2)/1000) -> 0 | K8: =(C21*C23/1000)-C25*((C27+C37-C32+C34/2)/1000) -> 0
A9: Zylinderkraft zurück | B9: N | C9: 50 | E9: Moment My=M1 | F9: Nm | G9: =C12*9.81*((C13)/1000) -> 0 | H9: =C12*9.81*((C13)/1000) -> 0 | I9: - | J9: =C17*(C19/1000)-C25*C26/1000 -> 0 | K9: =C17*(C19/1000)-C25*C26/1000 -> 0
A10: Verfahrgeschwindigkeit | B10: m/s | C10: ='EM-LM-5-1'!I58 -> 2.02 | E10: Moment Mz=M2 | F10: Nm | G10: - | H10: - | I10: =C42*(C13/1000) -> 0 | J10: =C21*C22/1000-C17*(C18+C37+C34/2)/1000 -> 0 | K10: =C21*C22/1000-C17*(C18+C37-C32+C34/2)/1000 -> 0
J11: ='EM-LM-5'!G51 -> FALSE
A12: Zusatzmasse | B12: kg | C12: ='EM-LM-5'!K14 -> 0 | E12: Mx Summe I + III | F12: Nm | G12: =G8+I8 -> 0
A13: Schwerpunktabstand x-Richt.(Mitte Rolle) | B13: mm | C13: ='EM-LM-5'!M14+23 -> 23 | E13: Absolutbetrag | G13: =ABS(G12) -> 0
A14: Schwerpunktabstand y-Richtung | B14: mm | C14: ='EM-LM-5'!O14 -> 0 | E14: Mx Summe II-III | G14: =H8-I8 -> 0
A15: Schwerpunktabstand z-Richtung | B15: mm | C15: ='EM-LM-5'!Q14 -> 0 | E15: Absolutbetrag | G15: =ABS(G14) -> 0
E16: I | F16: Nm | G16: =ABS(G8) -> 0
A17: Zusatzkraft Fx | B17: N | C17: ='EM-LM-5'!K18 -> 0 | E17: I oder I+III oder II-III | G17: =MAX(G16,G15,G13) -> 0
A18: Kraftangriffspunkt von Fx in y-Richtung | B18: mm | C18: ='EM-LM-5'!O18 -> 0 | E18: Mx Summe I+V oder II+IV | F18: Nm | G18: =IF(AND(J8=0,K8=0),MAX(G8,H8),IF(J11=TRUE,H8+J8,G8+K8)) -> 0
A19: Kraftangriffspunkt von Fx in z-Richtung | B19: mm | C19: ='EM-LM-5'!Q18 -> 0 | E19: Absolutbetrag | G19: =ABS(G18) -> 0
E20: Mx ges | F20: Nm | G20: =MAX(G17,G19) -> 0
A21: Zusatzkraft Fy | B21: N | C21: ='EM-LM-5'!K20 -> 0 | E21: Mx zul | F21: Nm | G21: =G34/2 -> 2.4 | I21: Maximal-Werte der Momente und Kräfte nicht aus Katalog, sondern exakt berechnete Werte !!
A22: Kraftangrp. von Fy in x-Richt. (Mitte Rolle) | B22: mm | C22: ='EM-LM-5'!M20+23 -> 23
A23: Kraftangrp. von Fy in z-Richt. | B23: mm | C23: ='EM-LM-5'!Q20 -> 0 | E23: My Summe I+V ( = II+IV ) | F23: Nm | G23: =G9+K9 -> 0
E24: Absolutbetrag | G24: =ABS(G23) -> 0
A25: Zusatzkraft Fz | B25: N | C25: ='EM-LM-5'!K22 -> 0 | E25: My ges | F25: Nm | G25: =G24 -> 0
A26: Kraftangrp. von Fz in x-Richt. (Mitte Rolle) | B26: mm | C26: ='EM-LM-5'!M22+23 -> 23 | E26: My zul | F26: Nm | G26: =4.4+(0.85*C7) -> 4.4
A27: Kraftangriffspunkt von Fz in y-Richtung | B27: mm | C27: ='EM-LM-5'!O22 -> 0
E29: Mz III | F29: Nm | G29: =I10 -> 0
A30: Länge L (Stirnplatte zu 1. Rolle - HubN/2) | B30: mm | C30: 29 | E30: Absolutbetrag | G30: =ABS(G29) -> 0
A31: Nennhub/2 HubN/2 | B31: mm | C31: =(25+(C7*17))/2 -> 12.5 | E31: Mz IV/V | F31: Nm | G31: =IF(J11=TRUE,J10,K10) -> 0
A32: tatsächlicher gefahrener Hub/2 | B32: mm | C32: =C5/2 -> 5 | E32: Absolutbetrag | G32: =ABS(G31) -> 0
A33: Schwerpunktabstand in y-Richtung | B33: mm | C33: =C14 -> 0 | E33: Mz ges | F33: Nm | G33: =MAX(G30,G32) -> 0
A34: Wert K ( Abstand erste / letzte Rolle ) | B34: mm | C34: =40+(C7*8) -> 40 | E34: Mz zul | F34: Nm | G34: =C34/1000*120 -> 4.8
A35: Anfangswert (Abst. Stirnpl./Deckplatte) | B35: mm | C35: 18
I36: Belastungsgleichung stat. | J36: =G19/G21+G25/G26+G32/G34+G38/G39+G42/G43 -> 0
A37: l1 bei eingefahrenem Hub | B37: mm | C37: =C30+C31-C35 -> 23.5 | E37: Fx ges | F37: N | G37: =C17 -> 0 | I37: Belastungsgleichung dyn. | J37: =G17/G21+G30/G34+G40/G43 -> 0
A38: l1 bei ausgefahrenem Hub | B38: mm | C38: =C30+C31+C32-C35 -> 28.5 | E38: Absolutwert | G38: =ABS(G37) -> 0 | I38: Belastungsgleichung | J38: =MAX(J36:J37) -> 0
E39: Fx zul | F39: N | G39: =G43 -> 660
A40: Stoßdämpferhub s ( Hub bis a=0 ) | B40: m | C40: ='Allgemeine Werte'!M34 -> 0.00402 | E40: Gewichtskraft | F40: N | G40: =C12*9.81 -> 0
A41: Verzögerung a=vxv/2xs | B41: m/s2 | C41: =POWER(C48,2)/(2*C40) -> 1.46627951 | E41: Fz ges abs | F41: N | G41: =ABS(-C25+C12*9.81) -> 0 | I41: Verfahrzeitberechnung | K41: =0.000709343*POWER(C5,2)-0.095761246*C5+6.100692042 -> 5.214013882
A42: Kraft zur Verzögerung der Masse | B42: N | C42: =C12*C41 -> 0 | E42: Max aus E40,E41 | G42: =MAX(G40,G41) -> 0 | I42: Verfahrzeit berechnet ( t=Wurzel aus (2xsxm/F) | K42: =(SQRT(2*(C5/1000)*(C12+C8/2)/C9))*K41 -> 0.04891178577
A43: Kraft zur Verzög. d. Masse incl Modul/2 | B43: N | C43: =C47*C41 -> 0.3225814922 | E43: Fz zul | F43: N | G43: =660+120*C7 -> 660 | I43: Mittlere Verfahrgeschwindigkeit berechnet | K43: =(C5/1000)/K42 -> 0.2044497015
I44: Endgeschwindigkeit berechnet | K44: =K43*'Allgemeine Werte'!E71 -> 0.3577869776
A45: Stoßdämpferberechnung | E45: Max. Zyklenzahl / Min.
A46: Anzahl Stoßdämpfer | C46: 1 | E46: Zyklen aus Verfahrzeit | G46: =60/(2*L50) -> 186.1313869 | I46: Endgeschwindigkeit (Eingabe) | K46: =C10 -> 2.02
A47: Gesamtmasse | B47: kg | C47: =C12+C8/2 -> 0.22 | I47: Mittlere Verfahrgeschwindigkeit (Eingabe) m/s | K47: =C10/'Allgemeine Werte'!E71 -> 1.154285714
A48: Aufprallgeschwindigkeit | B48: m/s | C48: =L54 -> 0.1085766423 | E48: Ezul / Stunde | F48: Nm | G48: ='Allgemeine Werte'!H34*C46*0.95 -> 13680 | I48: Verfahrzeit (Eingabe) | J48: s | K48: =(C5/1000)/K47 -> 0.008663366337 | L48: Verfahrzeit für Berechnung
A49: W1 | B49: Nm | C49: =C47*POWER(C48,2)*0.5 -> 0.001296777599 | E49: Ezul / Minute | F49: Nm | G49: =G48/60 -> 228 | L49: ( max )
A50: Hub Stoßdämpfer | B50: m | C50: ='Allgemeine Werte'!L34 -> 0.006 | E50: Zyklen aus Ezul | G50: =G49/C53 -> 565.3404953 | I50: min. Verfahrzeit vor | J50: gemessen | K50: =0.14+((C5-8)/17)*0.01 -> 0.1411764706 | L50: =MAX(K48,K53,K42) -> 0.1611764706
A51: Zylinderkraft | B51: N | C51: 67 | I51: Mittlere Verfahrgeschwindigkeit vor | K51: =(C5/1000)/K50 -> 0.07083333333
A52: W2 ( Antriebsenergie ) | B52: Nm | C52: =C51*C50 -> 0.402 | E52: Max. Zyklen | G52: =MIN(G46,G50,G55) -> 120 | I52: Endgeschwindigkeit vor | K52: =K51*'Allgemeine Werte'!E71 -> 0.1239583333 | L52: Endgeschwindigkeit f. Ber.
A53: W1+W2 ( Energie / Hub ) | B53: Nm | C53: =C52+C49 -> 0.4032967776 | I53: min. Verfahrzeit zurück | K53: =0.16+((C5-8)/17)*0.01 -> 0.1611764706 | L53: ( min )
A54: Ezul / Zyklus ( Hub ) | B54: Nm | C54: ='Allgemeine Werte'!G34*C50/'Allgemeine Werte'!K34*C46 -> 3 | E54: Stoßd.-kolbenrückstellzeit | G54: ='Allgemeine Werte'!E34 -> 0.5 | I54: Mittlere Verfahrgeschwindigkeit zurück | K54: =(C5/1000)/K53 -> 0.06204379562 | L54: =MIN(K46,K55,K44) -> 0.1085766423
A55: Auslastung / Zyklus | C55: =C53/C54 -> 0.1344322592 | E55: Max. Zyklen aus Rückstellzeit | G55: =60/G54 -> 120 | I55: Endgeschwindigkeit zurück | K55: =K54*'Allgemeine Werte'!E71 -> 0.1085766423

Sheet EM-Ber-LM25-6
A1: Linearmodul Typ | C1: LM 25
A3: Berechnung der Führungsbelastung
G4: Statisch auf Grund | H4: Statisch auf Grund
A5: Hub | B5: mm | C5: ='EM-LM-6'!K8 -> 10 | G5: Zusatzmasse m | H5: Zusatzmasse m | I5: Dynamisch auf Grund | J5: Statisch auf Grund | K5: Statisch auf Grund
A6: Zylinderkraft | B6: N | C6: 67 | G6: Modul ausgef. | H6: Modul eingef. | I6: Zusatzmasse m | J6: Zusatzkraft Modul eingef. | K6: Zusatzkraft Modul ausgef.
A7: Faktor | C7: =ROUNDDOWN(((C5-8)/17.1),0) -> 0 | G7: I | H7: II | I7: III | J7: IV | K7: V
A8: Modulgewicht | B8: kg | C8: =0.44+(C7*0.08) -> 0.44 | E8: Moment Mx=M3 | F8: Nm | G8: =C12*9.81*((C15)/1000) -> 0 | H8: =C12*9.81*((C15)/1000) -> 0 | I8: =C42*(C15/1000) -> 0 | J8: =IF(K11=TRUE,-(C21*C23/1000)+C25*((C27+C37+C34/2)/1000),(C21*C23/1000)-C25*((C27+C37+C34/2)/1000)) -> 0 | K8: =IF(K11=TRUE,-(C21*C23/1000)+C25*((C27+C37-C32+C34/2)/1000),(C21*C23/1000)-C25*((C27+C37-C32+C34/2)/1000)) -> 0
A9: Zylinderkraft zurück | B9: N | C9: 50 | E9: Moment My=M1 | F9: Nm | G9: - | H9: - | I9: - | J9: =C17*(C19/1000)-C25*C26/1000 -> 0 | K9: =C17*(C19/1000)-C25*C26/1000 -> 0
A10: Verfahrgeschwindigkeit | B10: m/s | C10: ='EM-LM-6-1'!I58 -> 2.02 | E10: Moment Mz=M2 | F10: Nm | G10: =C12*9.81*((C13)/1000) -> 0 | H10: =C12*9.81*((C13)/1000) -> 0 | I10: =C42*(C13/1000) -> 0 | J10: =IF(K11=TRUE,-C21*C22/1000+C17*(C18+C37+C34/2)/1000,C21*C22/1000-C17*(C18+C37+C34/2)/1000) -> 0 | K10: =IF(K11=TRUE,-C21*C22/1000+C17*(C18+C37-C32+C34/2)/1000,C21*C22/1000-C17*(C18+C37-C32+C34/2)/1000) -> 0
J11: ='EM-LM-6'!G51 -> FALSE | K11: ='EM-LM-6'!G52 -> TRUE
A12: Zusatzmasse | B12: kg | C12: ='EM-LM-6'!K14 -> 0
A13: Schwerpunktabstand x-Richt.(Mitte Rolle) | B13: mm | C13: ='EM-LM-6'!M14+23 -> 23
A14: Schwerpunktabstand y-Richtung | B14: mm | C14: ='EM-LM-6'!O14 -> 0
A15: Schwerpunktabstand z-Richtung | B15: mm | C15: ='EM-LM-6'!Q14 -> 0
E16: Mx Summe I(II) + III | F16: Nm | G16: =G8+I8 -> 0
A17: Zusatzkraft Fx | B17: N | C17: ='EM-LM-6'!K18 -> 0 | E17: Absolutbetrag | G17: =ABS(G16) -> 0
A18: Kraftangriffspunkt von Fx in y-Richtung | B18: mm | C18: ='EM-LM-6'!O18 -> 0 | E18: Mx Summe I+V oder II+IV | F18: Nm | G18: =IF(J11=TRUE,H8+J8,G8+K8) -> 0
A19: Kraftangriffspunkt von Fx in z-Richtung | B19: mm | C19: ='EM-LM-6'!Q18 -> 0 | E19: Absolutbetrag | G19: =ABS(G18) -> 0
E20: Mx ges | F20: Nm | G20: =MAX(G17,G19) -> 0
A21: Zusatzkraft Fy | B21: N | C21: ='EM-LM-6'!K20 -> 0 | E21: Mx zul | F21: Nm | G21: =G34/2 -> 2.4 | I21: Maximal-Werte der Momente und Kräfte nicht aus Katalog, sondern exakt berechnete Werte !!
A22: Kraftangrp. von Fy in x-Richt. (Mitte Rolle) | B22: mm | C22: ='EM-LM-6'!M20+23 -> 23
A23: Kraftangrp. von Fy in z-Richt. | B23: mm | C23: ='EM-LM-6'!Q20 -> 0 | E23: My IV = V | F23: Nm | G23: =J9 -> 0
E24: Absolutbetrag | G24: =ABS(G23) -> 0
A25: Zusatzkraft Fz | B25: N | C25: ='EM-LM-6'!K22 -> 0 | E25: My ges | F25: Nm | G25: =G24 -> 0
A26: Kraftangrp. von Fz in x-Richt. (Mitte Rolle) | B26: mm | C26: ='EM-LM-6'!M22+23 -> 23 | E26: My zul | F26: Nm | G26: =4.4+(0.85*C7) -> 4.4
A27: Kraftangriffspunkt von Fz in y-Richtung | B27: mm | C27: ='EM-LM-6'!O22 -> 0
E29: Mz Summe I(II)+III | F29: Nm | G29: =G10+I10 -> 0
A30: Länge L (Stirnplatte zu 1. Rolle - HubN/2) | B30: mm | C30: 29 | E30: Absolutbetrag | G30: =ABS(G29) -> 0
A31: Nennhub/2 HubN/2 | B31: mm | C31: =(25+(C7*17))/2 -> 12.5 | E31: Mz Summe I+V oder II+IV | F31: Nm | G31: =IF(J11=TRUE,H10+J10,G10+K10) -> 0
A32: tatsächlicher gefahrener Hub/2 | B32: mm | C32: =C5/2 -> 5 | E32: Absolutbetrag | G32: =ABS(G31) -> 0
A33: Schwerpunktabstand in y-Richtung | B33: mm | C33: =C14 -> 0 | E33: Mz ges | F33: Nm | G33: =MAX(G30,G32) -> 0
A34: Wert K ( Abstand erste / letzte Rolle ) | B34: mm | C34: =40+(C7*8) -> 40 | E34: Mz zul | F34: Nm | G34: =C34/1000*120 -> 4.8
A35: Anfangswert (Abst. Stirnpl./Deckplatte) | B35: mm | C35: 18
I36: Belastungsgleichung stat. | J36: =G19/G21+G25/G26+G32/G34+G38/G39+G42/G43 -> 0
A37: l1 bei eingefahrenem Hub | B37: mm | C37: =C30+C31-C35 -> 23.5 | E37: Fx ges | F37: N | G37: =C17 -> 0 | I37: Belastungsgleichung dyn. | J37: =G17/G21+G30/G34 -> 0
A38: l1 bei ausgefahrenem Hub | B38: mm | C38: =C30+C31+C32-C35 -> 28.5 | E38: Absolutwert | G38: =ABS(G37) -> 0 | I38: Belastungsgleichung | J38: =MAX(J36:J37) -> 0
E39: Fx zul | F39: N | G39: =G43 -> 660
A40: Stoßdämpferhub s ( Hub bis a=0 ) | B40: m | C40: ='Allgemeine Werte'!M34 -> 0.00402
A41: Verzögerung a=vxv/2xs | B41: m/s2 | C41: =POWER(C48,2)/(2*C40) -> 1.666677777 | E41: Fz ges | F41: N | G41: =-C25 -> 0 | I41: Verfahrzeitberechnung | K41: =0.000778547*POWER(C5,2)-0.099809689*C5+5.908650519 -> 4.988408329
A42: Kraft zur Verzögerung der Masse | B42: N | C42: =C12*C41 -> 0 | E42: Absolutwert | G42: =ABS(G41) -> 0 | I42: Verfahrzeit berechnet ( t=Wurzel aus (2xsxm/F) | K42: =(SQRT(2*(C5/1000)*(C12+C8/2)/(C6-(C12+C8/2)*9.81)))*K41 -> 0.04109233337
A43: Kraft zur Verzög. d. Masse incl Modul/2 | B43: N | C43: =C47*C41 -> 0.366669111 | E43: Fz zul | F43: N | G43: =660+120*C7 -> 660 | I43: Mittlere Verfahrgeschwindigkeit berechnet | K43: =(C5/1000)/K42 -> 0.2433543968
I44: Endgeschwindigkeit berechnet | K44: =K43*'Allgemeine Werte'!E71 -> 0.4258701944
A45: Stoßdämpferberechnung | E45: Max. Zyklenzahl / Min.
A46: Anzahl Stoßdämpfer | C46: 1 | E46: Zyklen aus Verfahrzeit | G46: =60/(2*L50) -> 198.4435798 | I46: Endgeschwindigkeit (Eingabe) | K46: =C10 -> 2.02
A47: Gesamtmasse | B47: kg | C47: =C12+C8/2 -> 0.22 | I47: Mittlere Verfahrgeschwindigkeit (Eingabe) m/s | K47: =C10/'Allgemeine Werte'!E71 -> 1.154285714
A48: Aufprallgeschwindigkeit | B48: m/s | C48: =L54 -> 0.1157587549 | E48: Ezul / Stunde | F48: Nm | G48: ='Allgemeine Werte'!H34*C46*0.95 -> 13680 | I48: Verfahrzeit (Eingabe) | J48: s | K48: =(C5/1000)/K47 -> 0.008663366337 | L48: Verfahrzeit für Berechnung
A49: W1 | B49: Nm | C49: =C47*POWER(C48,2)*0.5 -> 0.001474009826 | E49: Ezul / Minute | F49: Nm | G49: =G48/60 -> 228 | L49: ( max )
A50: Hub Stoßdämpfer | B50: m | C50: ='Allgemeine Werte'!L34 -> 0.006 | E50: Zyklen aus Ezul | G50: =G49/C53 -> 583.8297446 | I50: min. Verfahrzeit ab | J50: gemessen | K50: =0.13+((C5-8)/17)*0.01 -> 0.1311764706 | L50: =MAX(K48,K53,K42) -> 0.1511764706
A51: Zylinderkraft | B51: N | C51: 67 | I51: Mittlere Verfahrgeschwindigkeit ab | K51: =(C5/1000)/K50 -> 0.07623318386
A52: W2 ( Antriebsenergie ) | B52: Nm | C52: =MAX(C56,C57)*C50 -> 0.3890508 | E52: Max. Zyklen | G52: =MIN(G46,G50,G55) -> 120 | I52: Endgeschwindigkeit ab | K52: =K51*'Allgemeine Werte'!E71 -> 0.1334080717 | L52: Endgeschwindigkeit f. Ber.
A53: W1+W2 ( Energie / Hub ) | B53: Nm | C53: =C52+C49 -> 0.3905248098 | I53: min. Verfahrzeit auf | K53: =0.15+(((C5-8)/17)*0.01) -> 0.1511764706 | L53: ( min )
A54: Ezul / Zyklus ( Hub ) | B54: Nm | C54: ='Allgemeine Werte'!G34*C50/'Allgemeine Werte'!K34*C46 -> 3 | E54: Stoßd.-kolbenrückstellzeit | G54: ='Allgemeine Werte'!E34 -> 0.5 | I54: Mittlere Verfahrgeschwindigkeit auf | K54: =(C5/1000)/K53 -> 0.06614785992 | L54: =MIN(K46,K55,K44) -> 0.1157587549
A55: Auslastung / Zyklus | C55: =C53/C54 -> 0.1301749366 | E55: Max. Zyklen aus Rückstellzeit | G55: =60/G54 -> 120 | I55: Endgeschwindigkeit auf | K55: =K54*'Allgemeine Werte'!E71 -> 0.1157587549
A56: Antriebskraft nach oben | C56: =C6-C47*9.81 -> 64.8418
A57: Antriebskraft nach unten | C57: =C9+C47*9.81 -> 52.1582

Sheet EM-Ber-LM50-1
A1: Linearmodul Typ | C1: LM 50
A3: Berechnung der Führungsbelastung
G4: Statisch auf Grund | H4: Statisch auf Grund
A5: Hub | B5: mm | C5: ='EM-LM-1'!K8 -> 10 | G5: Zusatzmasse m | H5: Zusatzmasse m | I5: Dynamisch auf Grund | J5: Statisch auf Grund | K5: Statisch auf Grund
A6: Zylinderkraft | B6: N | C6: 120 | G6: Modul ausgef. | H6: Modul eingef. | I6: Zusatzmasse m | J6: Zusatzkraft Modul eingef. | K6: Zusatzkraft Modul ausgef.
A7: Faktor | C7: =ROUNDDOWN(((C5+12.5)/25.1)+0.5,0) -> 1 | G7: I | H7: II | I7: III | J7: IV | K7: V
A8: Modulgewicht | B8: kg | C8: =0.7+(C7*0.18) -> 0.88 | E8: Moment Mx=M2 | F8: Nm | G8: =(C12*9.81)*((C38+C34/2+C33)/1000) -> 0 | H8: =C12*9.81*((C37+C34/2+C33)/1000) -> 0 | I8: =C42*(C15/1000) -> 0 | J8: =(C21*C23/1000)-C25*((C27+C37+C34/2)/1000) -> 0 | K8: =(C21*C23/1000)-C25*((C27+C38+C34/2)/1000) -> 0
A9: Zylinderkraft zurück | B9: N | C9: 103 | E9: Moment My=M1 | F9: Nm | G9: =C12*9.81*(C13/1000) -> 0 | H9: =C12*9.81*(C13/1000) -> 0 | I9: - | J9: =C17*C19/1000-C25*(C26/1000) -> 0 | K9: =C17*C19/1000-C25*(C26/1000) -> 0
A10: Verfahrgeschwindigkeit | B10: m/s | C10: ='EM-LM-1-1'!I58 -> 2.02 | E10: Moment Mz=M3 | F10: Nm | G10: - | H10: - | I10: =C42*(C13/1000) -> 0 | J10: =C21*C22/1000-C17*(C18+C37+C34/2)/1000 -> 0 | K10: =C21*C22/1000-C17*(C18+C38+C34/2)/1000 -> 0
J11: ='EM-LM-1'!G51 -> TRUE
A12: Zusatzmasse | B12: kg | C12: ='EM-LM-1'!K14 -> 0 | E12: Mx Summe I + III | F12: Nm | G12: =G8+I8 -> 0
A13: Schwerpunktabstand x-Richtung | B13: mm | C13: ='EM-LM-1'!M14 -> 0 | E13: Absolutbetrag | G13: =ABS(G12) -> 0
A14: Schwerpunktabstand y-Richtung | B14: mm | C14: ='EM-LM-1'!O14 -> 0 | E14: Mx Summe II-III | G14: =H8-I8 -> 0
A15: Schwerpunktabstand z-Richt.(Mitte Rolle) | B15: mm | C15: ='EM-LM-1'!Q14+10 -> 10 | E15: Absolutbetrag | G15: =ABS(G14) -> 0
E16: I | F16: Nm | G16: =ABS(G8) -> 0
A17: Zusatzkraft Fx | B17: N | C17: ='EM-LM-1'!K18 -> 0 | E17: I oder I+III oder II-III | G17: =MAX(G16,G15,G13) -> 0
A18: Kraftangriffspunkt von Fx in y-Richtung | B18: mm | C18: ='EM-LM-1'!O18 -> 0 | E18: Mx Summe I+V oder II+IV | F18: Nm | G18: =IF(AND(J8=0,K8=0),MAX(G8,H8),IF(J11=TRUE,H8+J8,G8+K8)) -> 0
A19: Kraftangrp. von Fx in z-Richt.(Mitte Rolle) | B19: mm | C19: ='EM-LM-1'!Q18+10 -> 10 | E19: Absolutbetrag | G19: =ABS(G18) -> 0
E20: Mx ges | F20: Nm | G20: =MAX(G17,G19) -> 0
A21: Zusatzkraft Fy | B21: N | C21: ='EM-LM-1'!K20 -> 0 | E21: Mx zul | F21: Nm | G21: =C34/1000*260 -> 11.7 | I21: Maximal-Werte der Momente und Kräfte nicht aus Katalog, sondern exakt berechnete Werte !!
A22: Kraftangriffspunkt von Fy in x-Richtung | B22: mm | C22: ='EM-LM-1'!M20 -> 0
A23: Kraftangrp. von Fy in z-Richt.(Mitte Rolle) | B23: mm | C23: ='EM-LM-1'!Q20+10 -> 10 | E23: My Summe I+V ( = II+IV ) | F23: Nm | G23: =G9+K9 -> 0
E24: Absolutbetrag | G24: =ABS(G23) -> 0
A25: Zusatzkraft Fz | B25: N | C25: ='EM-LM-1'!K22 -> 0 | E25: My ges | F25: Nm | G25: =G24 -> 0
A26: Kraftangriffspunkt von Fz in x-Richtung | B26: mm | C26: ='EM-LM-1'!M22 -> 0 | E26: My zul | F26: Nm | G26: =8+(2.5*C7) -> 10.5
A27: Kraftangriffspunkt von Fz in y-Richtung | B27: mm | C27: ='EM-LM-1'!O22 -> 0
E29: Mz III | F29: Nm | G29: =I10 -> 0
A30: Länge L (Stirnplatte zu 1. Rolle - HubN/2) | B30: mm | C30: 33 | E30: Absolutbetrag | G30: =ABS(G29) -> 0
A31: Nennhub/2 HubN/2 | B31: mm | C31: =(0+(C7*25))/2 -> 12.5 | E31: Mz IV/V | F31: Nm | G31: =IF(J11=TRUE,J10,K10) -> 0
A32: tatsächlicher gefahrener Hub/2 | B32: mm | C32: =C5/2 -> 5 | E32: Absolutbetrag | G32: =ABS(G31) -> 0
A33: Schwerpunktabstand in y-Richtung | B33: mm | C33: =C14 -> 0 | E33: Mz ges | F33: Nm | G33: =MAX(G30,G32) -> 0
A34: Wert K ( Abstand erste / letzte Rolle ) | B34: mm | C34: =31.7+(13.3*C7) -> 45 | E34: Mz zul | F34: Nm | G34: =G21/2 -> 5.85
I36: Belastungsgleichung stat. | J36: =G19/G21+G25/G26+G32/G34+G38/G39+G42/G43 -> 0
A37: l1 bei eingefahrenem Hub | B37: mm | C37: =C30+C31 -> 45.5 | E37: Fx ges | F37: N | G37: =C17 -> 0 | I37: Belastungsgleichung dyn. | J37: =G17/G21+G30/G34+G40/G43 -> 0
A38: l1 bei ausgefahrenem Hub | B38: mm | C38: =C30+C31+C32 -> 50.5 | E38: Absolutwert | G38: =ABS(G37) -> 0 | I38: Belastungsgleichung | J38: =MAX(J36:J37) -> 0
E39: Fx zul | F39: N | G39: =G43 -> 1300
A40: Stoßdämpferhub s ( Hub bis a=0 ) | B40: m | C40: ='Allgemeine Werte'!M36 -> 0.004556 | E40: Gewichtskraft | F40: N | G40: =C12*9.81 -> 0
A41: Verzögerung a=vxv/2xs | B41: m/s2 | C41: =POWER(C48,2)/(2*C40) -> 3.499534142 | E41: Fz ges abs | F41: N | G41: =ABS(-C25+C12*9.81) -> 0 | I41: Verfahrzeitberechnung
A42: Kraft zur Verzögerung der Masse | B42: N | C42: =C12*C41 -> 0 | E42: Max aus E40,E41 | G42: =MAX(G40,G41) -> 0 | I42: Verfahrzeit berechnet ( t=Wurzel aus (2xsxm/F) | K42: =(SQRT(2*(C5/1000)*(C12+C8/2)/C9))*(2.8-C7*0.2) -> 0.02403234067
A43: Kraft zur Verzög. d. Masse incl Modul/2 | B43: N | C43: =C47*C41 -> 1.539795022 | E43: Fz zul | F43: N | G43: =975+325*C7 -> 1300 | I43: Mittlere Verfahrgeschwindigkeit berechnet | K43: =(C5/1000)/K42 -> 0.4161059523
I44: Endgeschwindigkeit berechnet | K44: =K43*'Allgemeine Werte'!E71 -> 0.7281854165
A45: Stoßdämpferberechnung | E45: Max. Zyklenzahl / Min.
A46: Anzahl Stoßdämpfer | C46: 1 | E46: Zyklen aus Verfahrzeit | G46: =60/(2*L50) -> 306.122449 | I46: Endgeschwindigkeit (Eingabe) | K46: =C10 -> 2.02
A47: Gesamtmasse | B47: kg | C47: =C12+C8/2 -> 0.44 | I47: Mittlere Verfahrgeschwindigkeit (Eingabe) m/s | K47: =C10/'Allgemeine Werte'!E71 -> 1.154285714
A48: Aufprallgeschwindigkeit | B48: m/s | C48: =L54 -> 0.1785714286 | E48: Ezul / Stunde | F48: Nm | G48: ='Allgemeine Werte'!H36*C46*0.95 -> 23940 | I48: Verfahrzeit (Eingabe) | J48: s | K48: =(C5/1000)/K47 -> 0.008663366337 | L48: Verfahrzeit für Berechnung
A49: W1 | B49: Nm | C49: =C47*POWER(C48,2)*0.5 -> 0.007015306122 | E49: Ezul / Minute | F49: Nm | G49: =G48/60 -> 399 | L49: ( max )
A50: Hub Stoßdämpfer | B50: m | C50: ='Allgemeine Werte'!L36 -> 0.0068 | E50: Zyklen aus Ezul | G50: =G49/C53 -> 484.8026483 | I50: min. Verfahrzeit vor | J50: gemessen | K50: =0.07+((C5/12.5)*0.01) -> 0.078 | L50: =MAX(K48,K53,K42) -> 0.098
A51: Zylinderkraft | B51: N | C51: 120 | I51: Mittlere Verfahrgeschwindigkeit vor | K51: =(C5/1000)/K50 -> 0.1282051282
A52: W2 ( Antriebsenergie ) | B52: Nm | C52: =C51*C50 -> 0.816 | E52: Max. Zyklen | G52: =MIN(G46,G50,G55) -> 120 | I52: Endgeschwindigkeit vor | K52: =K51*'Allgemeine Werte'!E71 -> 0.2243589744 | L52: Endgeschwindigkeit f. Ber.
A53: W1+W2 ( Energie / Hub ) | B53: Nm | C53: =C52+C49 -> 0.8230153061 | I53: min. Verfahrzeit zurück | K53: =0.09+((C5/12.5)*0.01) -> 0.098 | L53: ( min )
A54: Ezul / Zyklus ( Hub ) | B54: Nm | C54: ='Allgemeine Werte'!G36*C50/'Allgemeine Werte'!K36*C46 -> 5.828571429 | E54: Stoßd.-kolbenrückstellzeit | G54: ='Allgemeine Werte'!E36 -> 0.5 | I54: Mittlere Verfahrgeschwindigkeit zurück | K54: =(C5/1000)/K53 -> 0.1020408163 | L54: =MIN(K46,K55,K44) -> 0.1785714286
A55: Auslastung / Zyklus | C55: =C53/C54 -> 0.1412036064 | E55: Max. Zyklen aus Rückstellzeit | G55: =60/G54 -> 120 | I55: Endgeschwindigkeit zurück | K55: =K54*'Allgemeine Werte'!E71 -> 0.1785714286

Sheet EM-Ber-LM50-2
A1: Linearmodul Typ | C1: LM 50
A3: Berechnung der Führungsbelastung
G4: Statisch auf Grund | H4: Statisch auf Grund
A5: Hub | B5: mm | C5: ='EM-LM-2'!K8 -> 10 | G5: Zusatzmasse m | H5: Zusatzmasse m | I5: Dynamisch auf Grund | J5: Statisch auf Grund | K5: Statisch auf Grund
A6: Zylinderkraft | B6: N | C6: 120 | G6: Modul ausgef. | H6: Modul eingef. | I6: Zusatzmasse m | J6: Zusatzkraft Modul eingef. | K6: Zusatzkraft Modul ausgef.
A7: Faktor | C7: =ROUNDDOWN(((C5+12.5)/25.1)+0.5,0) -> 1 | G7: I | H7: II | I7: III | J7: IV | K7: V
A8: Modulgewicht | B8: kg | C8: =0.7+(C7*0.18) -> 0.88 | E8: Moment Mx=M3 | F8: Nm | G8: =(C12*9.81)*((C38+C34/2+C33)/1000) -> 0 | H8: =C12*9.81*((C37+C34/2+C33)/1000) -> 0 | I8: =C42*(C15/1000) -> 0 | J8: =(C21*C23/1000)-C25*((C27+C37+C34/2)/1000) -> 0 | K8: =(C21*C23/1000)-C25*((C27+C38+C34/2)/1000) -> 0
A9: Zylinderkraft zurück | B9: N | C9: 103 | E9: Moment My=M1 | F9: Nm | G9: =C12*9.81*((C13)/1000) -> 0 | H9: =C12*9.81*((C13)/1000) -> 0 | I9: - | J9: =C17*(C19/1000)-C25*C26/1000 -> 0 | K9: =C17*(C19/1000)-C25*C26/1000 -> 0
A10: Verfahrgeschwindigkeit | B10: m/s | C10: ='EM-LM-2-1'!I58 -> 2.02 | E10: Moment Mz=M2 | F10: Nm | G10: - | H10: - | I10: =C42*(C13/1000) -> 0 | J10: =C21*C22/1000-C17*(C18+C37+C34/2)/1000 -> 0 | K10: =C21*C22/1000-C17*(C18+C38+C34/2)/1000 -> 0
J11: ='EM-LM-2'!G51 -> TRUE
A12: Zusatzmasse | B12: kg | C12: ='EM-LM-2'!K14 -> 0 | E12: Mx Summe I + III | F12: Nm | G12: =G8+I8 -> 0
A13: Schwerpunktabstand x-Richt.(Mitte Rolle) | B13: mm | C13: ='EM-LM-2'!M14+10 -> 10 | E13: Absolutbetrag | G13: =ABS(G12) -> 0
A14: Schwerpunktabstand y-Richtung | B14: mm | C14: ='EM-LM-2'!O14 -> 0 | E14: Mx Summe II-III | G14: =H8-I8 -> 0
A15: Schwerpunktabstand z-Richtung | B15: mm | C15: ='EM-LM-2'!Q14 -> 0 | E15: Absolutbetrag | G15: =ABS(G14) -> 0
E16: I | F16: Nm | G16: =ABS(G8) -> 0
A17: Zusatzkraft Fx | B17: N | C17: ='EM-LM-2'!K18 -> 0 | E17: I oder I+III oder II-III | G17: =MAX(G16,G15,G13) -> 0
A18: Kraftangriffspunkt von Fx in y-Richtung | B18: mm | C18: ='EM-LM-2'!O18 -> 0 | E18: Mx Summe I+V oder II+IV | F18: Nm | G18: =IF(AND(J8=0,K8=0),MAX(G8,H8),IF(J11=TRUE,H8+J8,G8+K8)) -> 0
A19: Kraftangriffspunkt von Fx in z-Richtung | B19: mm | C19: ='EM-LM-2'!Q18 -> 0 | E19: Absolutbetrag | G19: =ABS(G18) -> 0
E20: Mx ges | F20: Nm | G20: =MAX(G17,G19) -> 0
A21: Zusatzkraft Fy | B21: N | C21: ='EM-LM-2'!K20 -> 0 | E21: Mx zul | F21: Nm | G21: =G34/2 -> 5.85 | I21: Maximal-Werte der Momente und Kräfte nicht aus Katalog, sondern exakt berechnete Werte !!
A22: Kraftangrp. von Fy in x-Richt. (Mitte Rolle) | B22: mm | C22: ='EM-LM-2'!M20+10 -> 10
A23: Kraftangrp. von Fy in z-Richt. | B23: mm | C23: ='EM-LM-2'!Q20 -> 0 | E23: My Summe I+V ( = II+IV ) | F23: Nm | G23: =G9+K9 -> 0
E24: Absolutbetrag | G24: =ABS(G23) -> 0
A25: Zusatzkraft Fz | B25: N | C25: ='EM-LM-2'!K22 -> 0 | E25: My ges | F25: Nm | G25: =G24 -> 0
A26: Kraftangrp. von Fz in x-Richt. (Mitte Rolle) | B26: mm | C26: ='EM-LM-2'!M22+10 -> 10 | E26: My zul | F26: Nm | G26: =8+(2.5*C7) -> 10.5
A27: Kraftangriffspunkt von Fz in y-Richtung | B27: mm | C27: ='EM-LM-2'!O22 -> 0
E29: Mz III | F29: Nm | G29: =I10 -> 0
A30: Länge L (Stirnplatte zu 1. Rolle - HubN/2) | B30: mm | C30: 33 | E30: Absolutbetrag | G30: =ABS(G29) -> 0
A31: Nennhub/2 HubN/2 | B31: mm | C31: =(0+(C7*25))/2 -> 12.5 | E31: Mz IV/V | F31: Nm | G31: =IF(J11=TRUE,J10,K10) -> 0
A32: tatsächlicher gefahrener Hub/2 | B32: mm | C32: =C5/2 -> 5 | E32: Absolutbetrag | G32: =ABS(G31) -> 0
A33: Schwerpunktabstand in y-Richtung | B33: mm | C33: =C14 -> 0 | E33: Mz ges | F33: Nm | G33: =MAX(G30,G32) -> 0
A34: Wert K ( Abstand erste / letzte Rolle ) | B34: mm | C34: =31.7+(13.3*C7) -> 45 | E34: Mz zul | F34: Nm | G34: =C34/1000*260 -> 11.7
I36: Belastungsgleichung stat. | J36: =G19/G21+G25/G26+G32/G34+G38/G39+G42/G43 -> 0
A37: l1 bei eingefahrenem Hub | B37: mm | C37: =C30+C31 -> 45.5 | E37: Fx ges | F37: N | G37: =C17 -> 0 | I37: Belastungsgleichung dyn. | J37: =G17/G21+G30/G34+G40/G43 -> 0
A38: l1 bei ausgefahrenem Hub | B38: mm | C38: =C30+C31+C32 -> 50.5 | E38: Absolutwert | G38: =ABS(G37) -> 0 | I38: Belastungsgleichung | J38: =MAX(J36:J37) -> 0
E39: Fx zul | F39: N | G39: =G43 -> 1300
A40: Stoßdämpferhub s ( Hub bis a=0 ) | B40: m | C40: ='Allgemeine Werte'!M36 -> 0.004556 | E40: Gewichtskraft | F40: N | G40: =C12*9.81 -> 0
A41: Verzögerung a=vxv/2xs | B41: m/s2 | C41: =POWER(C48,2)/(2*C40) -> 3.499534142 | E41: Fz ges abs | F41: N | G41: =ABS(-C25+C12*9.81) -> 0 | I41: Verfahrzeitberechnung
A42: Kraft zur Verzögerung der Masse | B42: N | C42: =C12*C41 -> 0 | E42: Max aus E40,E41 | G42: =MAX(G40,G41) -> 0 | I42: Verfahrzeit berechnet ( t=Wurzel aus (2xsxm/F) | K42: =(SQRT(2*(C5/1000)*(C12+C8/2)/C9))*(2.8-C7*0.2) -> 0.02403234067
A43: Kraft zur Verzög. d. Masse incl Modul/2 | B43: N | C43: =C47*C41 -> 1.539795022 | E43: Fz zul | F43: N | G43: =975+325*C7 -> 1300 | I43: Mittlere Verfahrgeschwindigkeit berechnet | K43: =(C5/1000)/K42 -> 0.4161059523
I44: Endgeschwindigkeit berechnet | K44: =K43*'Allgemeine Werte'!E71 -> 0.7281854165
A45: Stoßdämpferberechnung | E45: Max. Zyklenzahl / Min.
A46: Anzahl Stoßdämpfer | C46: 1 | E46: Zyklen aus Verfahrzeit | G46: =60/(2*L50) -> 306.122449 | I46: Endgeschwindigkeit (Eingabe) | K46: =C10 -> 2.02
A47: Gesamtmasse | B47: kg | C47: =C12+C8/2 -> 0.44 | I47: Mittlere Verfahrgeschwindigkeit (Eingabe) m/s | K47: =C10/'Allgemeine Werte'!E71 -> 1.154285714
A48: Aufprallgeschwindigkeit | B48: m/s | C48: =L54 -> 0.1785714286 | E48: Ezul / Stunde | F48: Nm | G48: ='Allgemeine Werte'!H36*C46*0.95 -> 23940 | I48: Verfahrzeit (Eingabe) | J48: s | K48: =(C5/1000)/K47 -> 0.008663366337 | L48: Verfahrzeit für Berechnung
A49: W1 | B49: Nm | C49: =C47*POWER(C48,2)*0.5 -> 0.007015306122 | E49: Ezul / Minute | F49: Nm | G49: =G48/60 -> 399 | L49: ( max )
A50: Hub Stoßdämpfer | B50: m | C50: ='Allgemeine Werte'!L36 -> 0.0068 | E50: Zyklen aus Ezul | G50: =G49/C53 -> 484.8026483 | I50: min. Verfahrzeit vor | J50: gemessen | K50: =0.07+((C5/12.5)*0.01) -> 0.078 | L50: =MAX(K48,K53,K42) -> 0.098
A51: Zylinderkraft | B51: N | C51: 120 | I51: Mittlere Verfahrgeschwindigkeit vor | K51: =(C5/1000)/K50 -> 0.1282051282
A52: W2 ( Antriebsenergie ) | B52: Nm | C52: =C51*C50 -> 0.816 | E52: Max. Zyklen | G52: =MIN(G46,G50,G55) -> 120 | I52: Endgeschwindigkeit vor | K52: =K51*'Allgemeine Werte'!E71 -> 0.2243589744 | L52: Endgeschwindigkeit f. Ber.
A53: W1+W2 ( Energie / Hub ) | B53: Nm | C53: =C52+C49 -> 0.8230153061 | I53: min. Verfahrzeit zurück | K53: =0.09+((C5/12.5)*0.01) -> 0.098 | L53: ( min )
A54: Ezul / Zyklus ( Hub ) | B54: Nm | C54: ='Allgemeine Werte'!G36*C50/'Allgemeine Werte'!K36*C46 -> 5.828571429 | E54: Stoßd.-kolbenrückstellzeit | G54: ='Allgemeine Werte'!E36 -> 0.5 | I54: Mittlere Verfahrgeschwindigkeit zurück | K54: =(C5/1000)/K53 -> 0.1020408163 | L54: =MIN(K46,K55,K44) -> 0.1785714286
A55: Auslastung / Zyklus | C55: =C53/C54 -> 0.1412036064 | E55: Max. Zyklen aus Rückstellzeit | G55: =60/G54 -> 120 | I55: Endgeschwindigkeit zurück | K55: =K54*'Allgemeine Werte'!E71 -> 0.1785714286

Sheet EM-Ber-LM50-3
A1: Linearmodul Typ | C1: LM 50
A3: Berechnung der Führungsbelastung
G4: Statisch auf Grund | H4: Statisch auf Grund
A5: Hub | B5: mm | C5: ='EM-LM-3'!K8 -> 10 | G5: Zusatzmasse m | H5: Zusatzmasse m | I5: Dynamisch auf Grund | J5: Statisch auf Grund | K5: Statisch auf Grund
A6: Zylinderkraft | B6: N | C6: 120 | G6: Modul ausgef. | H6: Modul eingef. | I6: Zusatzmasse m | J6: Zusatzkraft Modul eingef. | K6: Zusatzkraft Modul ausgef.
A7: Faktor | C7: =ROUNDDOWN(((C5+12.5)/25.1)+0.5,0) -> 1 | G7: I | H7: II | I7: III | J7: IV | K7: V
A8: Modulgewicht | B8: kg | C8: =0.7+(C7*0.18) -> 0.88 | E8: Moment Mx=M3 | F8: Nm | G8: =C12*9.81*((C15)/1000) -> 0 | H8: =C12*9.81*((C15)/1000) -> 0 | I8: =C42*(C15/1000) -> 0 | J8: =IF(K11=TRUE,-(C21*C23/1000)+C25*((C27+C37+C34/2)/1000),(C21*C23/1000)-C25*((C27+C37+C34/2)/1000)) -> 0 | K8: =IF(K11=TRUE,-(C21*C23/1000)+C25*((C27+C38+C34/2)/1000),(C21*C23/1000)-C25*((C27+C38+C34/2)/1000)) -> 0
A9: Zylinderkraft zurück | B9: N | C9: 103 | E9: Moment My=M1 | F9: Nm | G9: - | H9: - | I9: - | J9: =C17*(C19/1000)-C25*C26/1000 -> 0 | K9: =C17*(C19/1000)-C25*C26/1000 -> 0
A10: Verfahrgeschwindigkeit | B10: m/s | C10: ='EM-LM-3-1'!I58 -> 2.02 | E10: Moment Mz=M2 | F10: Nm | G10: =C12*9.81*((C13)/1000) -> 0 | H10: =C12*9.81*((C13)/1000) -> 0 | I10: =C42*(C13/1000) -> 0 | J10: =IF(K11=TRUE,-C21*C22/1000+C17*(C18+C37+C34/2)/1000,C21*C22/1000-C17*(C18+C37+C34/2)/1000) -> 0 | K10: =IF(K11=TRUE,-C21*C22/1000+C17*(C18+C38+C34/2)/1000,C21*C22/1000-C17*(C18+C38+C34/2)/1000) -> 0
J11: ='EM-LM-3'!G51 -> TRUE | K11: ='EM-LM-3'!G52 -> TRUE
A12: Zusatzmasse | B12: kg | C12: ='EM-LM-3'!K14 -> 0
A13: Schwerpunktabstand x-Richt.(Mitte Rolle) | B13: mm | C13: ='EM-LM-3'!M14+10 -> 10
A14: Schwerpunktabstand y-Richtung | B14: mm | C14: ='EM-LM-3'!O14 -> 0
A15: Schwerpunktabstand z-Richtung | B15: mm | C15: ='EM-LM-3'!Q14 -> 0
E16: Mx Summe I(II) + III | F16: Nm | G16: =G8+I8 -> 0
A17: Zusatzkraft Fx | B17: N | C17: ='EM-LM-3'!K18 -> 0 | E17: Absolutbetrag | G17: =ABS(G16) -> 0
A18: Kraftangriffspunkt von Fx in y-Richtung | B18: mm | C18: ='EM-LM-3'!O18 -> 0 | E18: Mx Summe I+V oder II+IV | F18: Nm | G18: =IF(J11=TRUE,H8+J8,G8+K8) -> 0
A19: Kraftangriffspunkt von Fx in z-Richtung | B19: mm | C19: ='EM-LM-3'!Q18 -> 0 | E19: Absolutbetrag | G19: =ABS(G18) -> 0
E20: Mx ges | F20: Nm | G20: =MAX(G17,G19) -> 0
A21: Zusatzkraft Fy | B21: N | C21: ='EM-LM-3'!K20 -> 0 | E21: Mx zul | F21: Nm | G21: =G34/2 -> 5.85 | I21: Maximal-Werte der Momente und Kräfte nicht aus Katalog, sondern exakt berechnete Werte !!
A22: Kraftangrp. von Fy in x-Richt. (Mitte Rolle) | B22: mm | C22: ='EM-LM-3'!M20+10 -> 10
A23: Kraftangrp. von Fy in z-Richt. | B23: mm | C23: ='EM-LM-3'!Q20 -> 0 | E23: My IV = V | F23: Nm | G23: =J9 -> 0
E24: Absolutbetrag | G24: =ABS(G23) -> 0
A25: Zusatzkraft Fz | B25: N | C25: ='EM-LM-3'!K22 -> 0 | E25: My ges | F25: Nm | G25: =G24 -> 0
A26: Kraftangrp. von Fz in x-Richt. (Mitte Rolle) | B26: mm | C26: ='EM-LM-3'!M22+10 -> 10 | E26: My zul | F26: Nm | G26: =8+(2.5*C7) -> 10.5
A27: Kraftangriffspunkt von Fz in y-Richtung | B27: mm | C27: ='EM-LM-3'!O22 -> 0
E29: Mz Summe I(II)+III | F29: Nm | G29: =G10+I10 -> 0
A30: Länge L (Stirnplatte zu 1. Rolle - HubN/2) | B30: mm | C30: 33 | E30: Absolutbetrag | G30: =ABS(G29) -> 0
A31: Nennhub/2 HubN/2 | B31: mm | C31: =(0+(C7*25))/2 -> 12.5 | E31: Mz Summe I+V oder II+IV | F31: Nm | G31: =IF(J11=TRUE,H10+J10,G10+K10) -> 0
A32: tatsächlicher gefahrener Hub/2 | B32: mm | C32: =C5/2 -> 5 | E32: Absolutbetrag | G32: =ABS(G31) -> 0
A33: Schwerpunktabstand in y-Richtung | B33: mm | C33: =C14 -> 0 | E33: Mz ges | F33: Nm | G33: =MAX(G30,G32) -> 0
A34: Wert K ( Abstand erste / letzte Rolle ) | B34: mm | C34: =31.7+(13.3*C7) -> 45 | E34: Mz zul | F34: Nm | G34: =C34/1000*260 -> 11.7
I36: Belastungsgleichung stat. | J36: =G19/G21+G25/G26+G32/G34+G38/G39+G42/G43 -> 0
A37: l1 bei eingefahrenem Hub | B37: mm | C37: =C30+C31 -> 45.5 | E37: Fx ges | F37: N | G37: =C17 -> 0 | I37: Belastungsgleichung dyn. | J37: =G17/G21+G30/G34 -> 0
A38: l1 bei ausgefahrenem Hub | B38: mm | C38: =C30+C31+C32 -> 50.5 | E38: Absolutwert | G38: =ABS(G37) -> 0 | I38: Belastungsgleichung | J38: =MAX(J36:J37) -> 0
E39: Fx zul | F39: N | G39: =G43 -> 1300
A40: Stoßdämpferhub s ( Hub bis a=0 ) | B40: m | C40: ='Allgemeine Werte'!M36 -> 0.004556
A41: Verzögerung a=vxv/2xs | B41: m/s2 | C41: =POWER(C48,2)/(2*C40) -> 3.230442705 | E41: Fz ges | F41: N | G41: =-C25 -> 0 | I41: Verfahrzeitberechnung
A42: Kraft zur Verzögerung der Masse | B42: N | C42: =C12*C41 -> 0 | E42: Absolutwert | G42: =ABS(G41) -> 0 | I42: Verfahrzeit berechnet ( t=Wurzel aus (2xsxm/F) | K42: =(SQRT(2*(C5/1000)*(C12+C8/2)/(C6-(C12+C8/2)*9.81)))*(3.05-C7*0.2) -> 0.02485709079
A43: Kraft zur Verzög. d. Masse incl Modul/2 | B43: N | C43: =C47*C41 -> 1.42139479 | E43: Fz zul | F43: N | G43: =975+325*C7 -> 1300 | I43: Mittlere Verfahrgeschwindigkeit berechnet | K43: =(C5/1000)/K42 -> 0.4022996933
I44: Endgeschwindigkeit berechnet | K44: =K43*'Allgemeine Werte'!E71 -> 0.7040244633
A45: Stoßdämpferberechnung | E45: Max. Zyklenzahl / Min.
A46: Anzahl Stoßdämpfer | C46: 1 | E46: Zyklen aus Verfahrzeit | G46: =60/(2*L50) -> 294.1176471 | I46: Endgeschwindigkeit (Eingabe) | K46: =C10 -> 2.02
A47: Gesamtmasse | B47: kg | C47: =C12+C8/2 -> 0.44 | I47: Mittlere Verfahrgeschwindigkeit (Eingabe) m/s | K47: =C10/'Allgemeine Werte'!E71 -> 1.154285714
A48: Aufprallgeschwindigkeit | B48: m/s | C48: =L54 -> 0.1715686275 | E48: Ezul / Stunde | F48: Nm | G48: ='Allgemeine Werte'!H36*C46*0.95 -> 23940 | I48: Verfahrzeit (Eingabe) | J48: s | K48: =(C5/1000)/K47 -> 0.008663366337 | L48: Verfahrzeit für Berechnung
A49: W1 | B49: Nm | C49: =C47*POWER(C48,2)*0.5 -> 0.006475874664 | E49: Ezul / Minute | F49: Nm | G49: =G48/60 -> 399 | L49: ( max )
A50: Hub Stoßdämpfer | B50: m | C50: ='Allgemeine Werte'!L36 -> 0.0068 | E50: Zyklen aus Ezul | G50: =G49/C53 -> 503.0736954 | I50: min. Verfahrzeit ab | J50: gemessen | K50: =0.05+((C5/12.5)*0.01) -> 0.058 | L50: =MAX(K48,K53,K42) -> 0.102
A51: Zylinderkraft | B51: N | C51: 120 | I51: Mittlere Verfahrgeschwindigkeit ab | K51: =(C5/1000)/K50 -> 0.1724137931
A52: W2 ( Antriebsenergie ) | B52: Nm | C52: =MAX(C56,C57)*C50 -> 0.78664848 | E52: Max. Zyklen | G52: =MIN(G46,G50,G55) -> 120 | I52: Endgeschwindigkeit ab | K52: =K51*'Allgemeine Werte'!E71 -> 0.3017241379 | L52: Endgeschwindigkeit f. Ber.
A53: W1+W2 ( Energie / Hub ) | B53: Nm | C53: =C52+C49 -> 0.7931243547 | I53: min. Verfahrzeit auf | K53: =0.09+((C5/12.5)*0.015) -> 0.102 | L53: ( min )
A54: Ezul / Zyklus ( Hub ) | B54: Nm | C54: ='Allgemeine Werte'!G36*C50/'Allgemeine Werte'!K36*C46 -> 5.828571429 | E54: Stoßd.-kolbenrückstellzeit | G54: ='Allgemeine Werte'!E36 -> 0.5 | I54: Mittlere Verfahrgeschwindigkeit auf | K54: =(C5/1000)/K53 -> 0.09803921569 | L54: =MIN(K46,K55,K44) -> 0.1715686275
A55: Auslastung / Zyklus | C55: =C53/C54 -> 0.1360752569 | E55: Max. Zyklen aus Rückstellzeit | G55: =60/G54 -> 120 | I55: Endgeschwindigkeit auf | K55: =K54*'Allgemeine Werte'!E71 -> 0.1715686275
A56: Antriebskraft nach oben | C56: =C6-C47*9.81 -> 115.6836
A57: Antriebskraft nach unten | C57: =C9+C47*9.81 -> 107.3164

Sheet EM-Ber-LM50-4
A1: Linearmodul Typ | C1: LM 50
A3: Berechnung der Führungsbelastung
G4: Statisch auf Grund | H4: Statisch auf Grund
A5: Hub | B5: mm | C5: ='EM-LM-4'!K8 -> 10 | G5: Zusatzmasse m | H5: Zusatzmasse m | I5: Dynamisch auf Grund | J5: Statisch auf Grund | K5: Statisch auf Grund
A6: Zylinderkraft | B6: N | C6: 120 | G6: Modul ausgef. | H6: Modul eingef. | I6: Zusatzmasse m | J6: Zusatzkraft Modul eingef. | K6: Zusatzkraft Modul ausgef.
A7: Faktor | C7: =ROUNDDOWN(((C5+12.5)/25.1)+0.5,0) -> 1 | G7: I | H7: II | I7: III | J7: IV | K7: V
A8: Modulgewicht | B8: kg | C8: =0.7+(C7*0.18) -> 0.88 | E8: Moment Mx=M2 | F8: Nm | G8: =(C12*9.81)*((C37-C32+C34/2+C33)/1000) -> 0 | H8: =C12*9.81*((C37+C34/2+C33)/1000) -> 0 | I8: =C42*(C15/1000) -> 0 | J8: =(C21*C23/1000)-C25*((C27+C37+C34/2)/1000) -> 0 | K8: =(C21*C23/1000)-C25*((C27+C37-C32+C34/2)/1000) -> 0
A9: Zylinderkraft zurück | B9: N | C9: 103 | E9: Moment My=M1 | F9: Nm | G9: =C12*9.81*(C13/1000) -> 0 | H9: =C12*9.81*(C13/1000) -> 0 | I9: - | J9: =C17*C19/1000-C25*(C26/1000) -> 0 | K9: =C17*C19/1000-C25*(C26/1000) -> 0
A10: Verfahrgeschwindigkeit | B10: m/s | C10: ='EM-LM-4-1'!I58 -> 2.02 | E10: Moment Mz=M3 | F10: Nm | G10: - | H10: - | I10: =C42*(C13/1000) -> 0 | J10: =C21*C22/1000-C17*(C18+C37+C34/2)/1000 -> 0 | K10: =C21*C22/1000-C17*(C18+C37-C32+C34/2)/1000 -> 0
J11: ='EM-LM-4'!G51 -> FALSE
A12: Zusatzmasse | B12: kg | C12: ='EM-LM-4'!K14 -> 0 | E12: Mx Summe I + III | F12: Nm | G12: =G8+I8 -> 0
A13: Schwerpunktabstand x-Richtung | B13: mm | C13: ='EM-LM-4'!M14 -> 0 | E13: Absolutbetrag | G13: =ABS(G12) -> 0
A14: Schwerpunktabstand y-Richtung | B14: mm | C14: ='EM-LM-4'!O14 -> 0 | E14: Mx Summe II-III | G14: =H8-I8 -> 0
A15: Schwerpunktabstand z-Richt.(Mitte Rolle) | B15: mm | C15: ='EM-LM-4'!Q14+35 -> 35 | E15: Absolutbetrag | G15: =ABS(G14) -> 0
E16: I | F16: Nm | G16: =ABS(G8) -> 0
A17: Zusatzkraft Fx | B17: N | C17: ='EM-LM-4'!K18 -> 0 | E17: I oder I+III oder II-III | G17: =MAX(G16,G15,G13) -> 0
A18: Kraftangriffspunkt von Fx in y-Richtung | B18: mm | C18: ='EM-LM-4'!O18 -> 0 | E18: Mx Summe I+V oder II+IV | F18: Nm | G18: =IF(AND(J8=0,K8=0),MAX(G8,H8),IF(J11=TRUE,H8+J8,G8+K8)) -> 0
A19: Kraftangrp. von Fx in z-Richt.(Mitte Rolle) | B19: mm | C19: ='EM-LM-4'!Q18+35 -> 35 | E19: Absolutbetrag | G19: =ABS(G18) -> 0
E20: Mx ges | F20: Nm | G20: =MAX(G17,G19) -> 0
A21: Zusatzkraft Fy | B21: N | C21: ='EM-LM-4'!K20 -> 0 | E21: Mx zul | F21: Nm | G21: =C34/1000*260 -> 11.7 | I21: Maximal-Werte der Momente und Kräfte nicht aus Katalog, sondern exakt berechnete Werte !!
A22: Kraftangriffspunkt von Fy in x-Richtung | B22: mm | C22: ='EM-LM-4'!M20 -> 0
A23: Kraftangrp. von Fy in z-Richt.(Mitte Rolle) | B23: mm | C23: ='EM-LM-4'!Q20+35 -> 35 | E23: My Summe I+V ( = II+IV ) | F23: Nm | G23: =G9+K9 -> 0
E24: Absolutbetrag | G24: =ABS(G23) -> 0
A25: Zusatzkraft Fz | B25: N | C25: ='EM-LM-4'!K22 -> 0 | E25: My ges | F25: Nm | G25: =G24 -> 0
A26: Kraftangriffspunkt von Fz in x-Richtung | B26: mm | C26: ='EM-LM-4'!M22 -> 0 | E26: My zul | F26: Nm | G26: =8+(2.5*C7) -> 10.5
A27: Kraftangriffspunkt von Fz in y-Richtung | B27: mm | C27: ='EM-LM-4'!O22 -> 0
E29: Mz III | F29: Nm | G29: =I10 -> 0
A30: Länge L (Stirnplatte zu 1. Rolle - HubN/2) | B30: mm | C30: 33 | E30: Absolutbetrag | G30: =ABS(G29) -> 0
A31: Nennhub/2 HubN/2 | B31: mm | C31: =(0+(C7*25))/2 -> 12.5 | E31: Mz IV/V | F31: Nm | G31: =IF(J11=TRUE,J10,K10) -> 0
A32: tatsächlicher gefahrener Hub/2 | B32: mm | C32: =C5/2 -> 5 | E32: Absolutbetrag | G32: =ABS(G31) -> 0
A33: Schwerpunktabstand in y-Richtung | B33: mm | C33: =C14 -> 0 | E33: Mz ges | F33: Nm | G33: =MAX(G30,G32) -> 0
A34: Wert K ( Abstand erste / letzte Rolle ) | B34: mm | C34: =31.7+(13.3*C7) -> 45 | E34: Mz zul | F34: Nm | G34: =G21/2 -> 5.85
A35: Anfangswert (Abst. Stirnpl./Deckplatte) | B35: mm | C35: 21
I36: Belastungsgleichung stat. | J36: =G19/G21+G25/G26+G32/G34+G38/G39+G42/G43 -> 0
A37: l1 bei eingefahrenem Hub | B37: mm | C37: =C30+C31-C35 -> 24.5 | E37: Fx ges | F37: N | G37: =C17 -> 0 | I37: Belastungsgleichung dyn. | J37: =G17/G21+G30/G34+G40/G43 -> 0
A38: l1 bei ausgefahrenem Hub | B38: mm | C38: =C30+C31+C32-C35 -> 29.5 | E38: Absolutwert | G38: =ABS(G37) -> 0 | I38: Belastungsgleichung | J38: =MAX(J36:J37) -> 0
E39: Fx zul | F39: N | G39: =G43 -> 1300
A40: Stoßdämpferhub s ( Hub bis a=0 ) | B40: m | C40: ='Allgemeine Werte'!M36 -> 0.004556 | E40: Gewichtskraft | F40: N | G40: =C12*9.81 -> 0
A41: Verzögerung a=vxv/2xs | B41: m/s2 | C41: =POWER(C48,2)/(2*C40) -> 3.499534142 | E41: Fz ges abs | F41: N | G41: =ABS(-C25+C12*9.81) -> 0 | I41: Verfahrzeitberechnung
A42: Kraft zur Verzögerung der Masse | B42: N | C42: =C12*C41 -> 0 | E42: Max aus E40,E41 | G42: =MAX(G40,G41) -> 0 | I42: Verfahrzeit berechnet ( t=Wurzel aus (2xsxm/F) | K42: =(SQRT(2*(C5/1000)*(C12+C8/2)/C9))*(2.8-C7*0.2) -> 0.02403234067
A43: Kraft zur Verzög. d. Masse incl Modul/2 | B43: N | C43: =C47*C41 -> 1.539795022 | E43: Fz zul | F43: N | G43: =975+325*C7 -> 1300 | I43: Mittlere Verfahrgeschwindigkeit berechnet | K43: =(C5/1000)/K42 -> 0.4161059523
I44: Endgeschwindigkeit berechnet | K44: =K43*'Allgemeine Werte'!E71 -> 0.7281854165
A45: Stoßdämpferberechnung | E45: Max. Zyklenzahl / Min.
A46: Anzahl Stoßdämpfer | C46: 1 | E46: Zyklen aus Verfahrzeit | G46: =60/(2*L50) -> 306.122449 | I46: Endgeschwindigkeit (Eingabe) | K46: =C10 -> 2.02
A47: Gesamtmasse | B47: kg | C47: =C12+C8/2 -> 0.44 | I47: Mittlere Verfahrgeschwindigkeit (Eingabe) m/s | K47: =C10/'Allgemeine Werte'!E71 -> 1.154285714
A48: Aufprallgeschwindigkeit | B48: m/s | C48: =L54 -> 0.1785714286 | E48: Ezul / Stunde | F48: Nm | G48: ='Allgemeine Werte'!H36*C46*0.95 -> 23940 | I48: Verfahrzeit (Eingabe) | J48: s | K48: =(C5/1000)/K47 -> 0.008663366337 | L48: Verfahrzeit für Berechnung
A49: W1 | B49: Nm | C49: =C47*POWER(C48,2)*0.5 -> 0.007015306122 | E49: Ezul / Minute | F49: Nm | G49: =G48/60 -> 399 | L49: ( max )
A50: Hub Stoßdämpfer | B50: m | C50: ='Allgemeine Werte'!L36 -> 0.0068 | E50: Zyklen aus Ezul | G50: =G49/C53 -> 484.8026483 | I50: min. Verfahrzeit vor | J50: gemessen | K50: =0.07+((C5/12.5)*0.01) -> 0.078 | L50: =MAX(K48,K53,K42) -> 0.098
A51: Zylinderkraft | B51: N | C51: 120 | I51: Mittlere Verfahrgeschwindigkeit vor | K51: =(C5/1000)/K50 -> 0.1282051282
A52: W2 ( Antriebsenergie ) | B52: Nm | C52: =C51*C50 -> 0.816 | E52: Max. Zyklen | G52: =MIN(G46,G50,G55) -> 120 | I52: Endgeschwindigkeit vor | K52: =K51*'Allgemeine Werte'!E71 -> 0.2243589744 | L52: Endgeschwindigkeit f. Ber.
A53: W1+W2 ( Energie / Hub ) | B53: Nm | C53: =C52+C49 -> 0.8230153061 | I53: min. Verfahrzeit zurück | K53: =0.09+((C5/12.5)*0.01) -> 0.098 | L53: ( min )
A54: Ezul / Zyklus ( Hub ) | B54: Nm | C54: ='Allgemeine Werte'!G36*C50/'Allgemeine Werte'!K36*C46 -> 5.828571429 | E54: Stoßd.-kolbenrückstellzeit | G54: ='Allgemeine Werte'!E36 -> 0.5 | I54: Mittlere Verfahrgeschwindigkeit zurück | K54: =(C5/1000)/K53 -> 0.1020408163 | L54: =MIN(K46,K55,K44) -> 0.1785714286
A55: Auslastung / Zyklus | C55: =C53/C54 -> 0.1412036064 | E55: Max. Zyklen aus Rückstellzeit | G55: =60/G54 -> 120 | I55: Endgeschwindigkeit zurück | K55: =K54*'Allgemeine Werte'!E71 -> 0.1785714286

Sheet EM-Ber-LM50-5
A1: Linearmodul Typ | C1: LM 50
A3: Berechnung der Führungsbelastung
G4: Statisch auf Grund | H4: Statisch auf Grund
A5: Hub | B5: mm | C5: ='EM-LM-5'!K8 -> 10 | G5: Zusatzmasse m | H5: Zusatzmasse m | I5: Dynamisch auf Grund | J5: Statisch auf Grund | K5: Statisch auf Grund
A6: Zylinderkraft | B6: N | C6: 120 | G6: Modul ausgef. | H6: Modul eingef. | I6: Zusatzmasse m | J6: Zusatzkraft Modul eingef. | K6: Zusatzkraft Modul ausgef.
A7: Faktor | C7: =ROUNDDOWN(((C5+12.5)/25.1)+0.5,0) -> 1 | G7: I | H7: II | I7: III | J7: IV | K7: V
A8: Modulgewicht | B8: kg | C8: =0.7+(C7*0.18) -> 0.88 | E8: Moment Mx=M3 | F8: Nm | G8: =(C12*9.81)*((C37-C32+C34/2+C33)/1000) -> 0 | H8: =C12*9.81*((C37+C34/2+C33)/1000) -> 0 | I8: =C42*(C15/1000) -> 0 | J8: =(C21*C23/1000)-C25*((C27+C37+C34/2)/1000) -> 0 | K8: =(C21*C23/1000)-C25*((C27+C37-C32+C34/2)/1000) -> 0
A9: Zylinderkraft zurück | B9: N | C9: 103 | E9: Moment My=M1 | F9: Nm | G9: =C12*9.81*((C13)/1000) -> 0 | H9: =C12*9.81*((C13)/1000) -> 0 | I9: - | J9: =C17*(C19/1000)-C25*C26/1000 -> 0 | K9: =C17*(C19/1000)-C25*C26/1000 -> 0
A10: Verfahrgeschwindigkeit | B10: m/s | C10: ='EM-LM-5-1'!I58 -> 2.02 | E10: Moment Mz=M2 | F10: Nm | G10: - | H10: - | I10: =C42*(C13/1000) -> 0 | J10: =C21*C22/1000-C17*(C18+C37+C34/2)/1000 -> 0 | K10: =C21*C22/1000-C17*(C18+C37-C32+C34/2)/1000 -> 0
J11: ='EM-LM-5'!G51 -> FALSE
A12: Zusatzmasse | B12: kg | C12: ='EM-LM-5'!K14 -> 0 | E12: Mx Summe I + III | F12: Nm | G12: =G8+I8 -> 0
A13: Schwerpunktabstand x-Richt.(Mitte Rolle) | B13: mm | C13: ='EM-LM-5'!M14+35 -> 35 | E13: Absolutbetrag | G13: =ABS(G12) -> 0
A14: Schwerpunktabstand y-Richtung | B14: mm | C14: ='EM-LM-5'!O14 -> 0 | E14: Mx Summe II-III | G14: =H8-I8 -> 0
A15: Schwerpunktabstand z-Richtung | B15: mm | C15: ='EM-LM-5'!Q14 -> 0 | E15: Absolutbetrag | G15: =ABS(G14) -> 0
E16: I | F16: Nm | G16: =ABS(G8) -> 0
A17: Zusatzkraft Fx | B17: N | C17: ='EM-LM-5'!K18 -> 0 | E17: I oder I+III oder II-III | G17: =MAX(G16,G15,G13) -> 0
A18: Kraftangriffspunkt von Fx in y-Richtung | B18: mm | C18: ='EM-LM-5'!O18 -> 0 | E18: Mx Summe I+V oder II+IV | F18: Nm | G18: =IF(AND(J8=0,K8=0),MAX(G8,H8),IF(J11=TRUE,H8+J8,G8+K8)) -> 0
A19: Kraftangriffspunkt von Fx in z-Richtung | B19: mm | C19: ='EM-LM-5'!Q18 -> 0 | E19: Absolutbetrag | G19: =ABS(G18) -> 0
E20: Mx ges | F20: Nm | G20: =MAX(G17,G19) -> 0
A21: Zusatzkraft Fy | B21: N | C21: ='EM-LM-5'!K20 -> 0 | E21: Mx zul | F21: Nm | G21: =G34/2 -> 5.85 | I21: Maximal-Werte der Momente und Kräfte nicht aus Katalog, sondern exakt berechnete Werte !!
A22: Kraftangrp. von Fy in x-Richt. (Mitte Rolle) | B22: mm | C22: ='EM-LM-5'!M20+35 -> 35
A23: Kraftangrp. von Fy in z-Richt. | B23: mm | C23: ='EM-LM-5'!Q20 -> 0 | E23: My Summe I+V ( = II+IV ) | F23: Nm | G23: =G9+K9 -> 0
E24: Absolutbetrag | G24: =ABS(G23) -> 0
A25: Zusatzkraft Fz | B25: N | C25: ='EM-LM-5'!K22 -> 0 | E25: My ges | F25: Nm | G25: =G24 -> 0
A26: Kraftangrp. von Fz in x-Richt. (Mitte Rolle) | B26: mm | C26: ='EM-LM-5'!M22+35 -> 35 | E26: My zul | F26: Nm | G26: =8+(2.5*C7) -> 10.5
A27: Kraftangriffspunkt von Fz in y-Richtung | B27: mm | C27: ='EM-LM-5'!O22 -> 0
E29: Mz III | F29: Nm | G29: =I10 -> 0
A30: Länge L (Stirnplatte zu 1. Rolle - HubN/2) | B30: mm | C30: 33 | E30: Absolutbetrag | G30: =ABS(G29) -> 0
A31: Nennhub/2 HubN/2 | B31: mm | C31: =(0+(C7*25))/2 -> 12.5 | E31: Mz IV/V | F31: Nm | G31: =IF(J11=TRUE,J10,K10) -> 0
A32: tatsächlicher gefahrener Hub/2 | B32: mm | C32: =C5/2 -> 5 | E32: Absolutbetrag | G32: =ABS(G31) -> 0
A33: Schwerpunktabstand in y-Richtung | B33: mm | C33: =C14 -> 0 | E33: Mz ges | F33: Nm | G33: =MAX(G30,G32) -> 0
A34: Wert K ( Abstand erste / letzte Rolle ) | B34: mm | C34: =31.7+(13.3*C7) -> 45 | E34: Mz zul | F34: Nm | G34: =C34/1000*260 -> 11.7
A35: Anfangswert (Abst. Stirnpl./Deckplatte) | B35: mm | C35: 21
I36: Belastungsgleichung stat. | J36: =G19/G21+G25/G26+G32/G34+G38/G39+G42/G43 -> 0
A37: l1 bei eingefahrenem Hub | B37: mm | C37: =C30+C31-C35 -> 24.5 | E37: Fx ges | F37: N | G37: =C17 -> 0 | I37: Belastungsgleichung dyn. | J37: =G17/G21+G30/G34+G40/G43 -> 0
A38: l1 bei ausgefahrenem Hub | B38: mm | C38: =C30+C31+C32-C35 -> 29.5 | E38: Absolutwert | G38: =ABS(G37) -> 0 | I38: Belastungsgleichung | J38: =MAX(J36:J37) -> 0
E39: Fx zul | F39: N | G39: =G43 -> 1300
A40: Stoßdämpferhub s ( Hub bis a=0 ) | B40: m | C40: ='Allgemeine Werte'!M36 -> 0.004556 | E40: Gewichtskraft | F40: N | G40: =C12*9.81 -> 0
A41: Verzögerung a=vxv/2xs | B41: m/s2 | C41: =POWER(C48,2)/(2*C40) -> 3.499534142 | E41: Fz ges abs | F41: N | G41: =ABS(-C25+C12*9.81) -> 0 | I41: Verfahrzeitberechnung
A42: Kraft zur Verzögerung der Masse | B42: N | C42: =C12*C41 -> 0 | E42: Max aus E40,E41 | G42: =MAX(G40,G41) -> 0 | I42: Verfahrzeit berechnet ( t=Wurzel aus (2xsxm/F) | K42: =(SQRT(2*(C5/1000)*(C12+C8/2)/C9))*(2.8-C7*0.2) -> 0.02403234067
A43: Kraft zur Verzög. d. Masse incl Modul/2 | B43: N | C43: =C47*C41 -> 1.539795022 | E43: Fz zul | F43: N | G43: =975+325*C7 -> 1300 | I43: Mittlere Verfahrgeschwindigkeit berechnet | K43: =(C5/1000)/K42 -> 0.4161059523
I44: Endgeschwindigkeit berechnet | K44: =K43*'Allgemeine Werte'!E71 -> 0.7281854165
A45: Stoßdämpferberechnung | E45: Max. Zyklenzahl / Min.
A46: Anzahl Stoßdämpfer | C46: 1 | E46: Zyklen aus Verfahrzeit | G46: =60/(2*L50) -> 306.122449 | I46: Endgeschwindigkeit (Eingabe) | K46: =C10 -> 2.02
A47: Gesamtmasse | B47: kg | C47: =C12+C8/2 -> 0.44 | I47: Mittlere Verfahrgeschwindigkeit (Eingabe) m/s | K47: =C10/'Allgemeine Werte'!E71 -> 1.154285714
A48: Aufprallgeschwindigkeit | B48: m/s | C48: =L54 -> 0.1785714286 | E48: Ezul / Stunde | F48: Nm | G48: ='Allgemeine Werte'!H36*C46*0.95 -> 23940 | I48: Verfahrzeit (Eingabe) | J48: s | K48: =(C5/1000)/K47 -> 0.008663366337 | L48: Verfahrzeit für Berechnung
A49: W1 | B49: Nm | C49: =C47*POWER(C48,2)*0.5 -> 0.007015306122 | E49: Ezul / Minute | F49: Nm | G49: =G48/60 -> 399 | L49: ( max )
A50: Hub Stoßdämpfer | B50: m | C50: ='Allgemeine Werte'!L36 -> 0.0068 | E50: Zyklen aus Ezul | G50: =G49/C53 -> 484.8026483 | I50: min. Verfahrzeit vor | J50: gemessen | K50: =0.07+((C5/12.5)*0.01) -> 0.078 | L50: =MAX(K48,K53,K42) -> 0.098
A51: Zylinderkraft | B51: N | C51: 120 | I51: Mittlere Verfahrgeschwindigkeit vor | K51: =(C5/1000)/K50 -> 0.1282051282
A52: W2 ( Antriebsenergie ) | B52: Nm | C52: =C51*C50 -> 0.816 | E52: Max. Zyklen | G52: =MIN(G46,G50,G55) -> 120 | I52: Endgeschwindigkeit vor | K52: =K51*'Allgemeine Werte'!E71 -> 0.2243589744 | L52: Endgeschwindigkeit f. Ber.
A53: W1+W2 ( Energie / Hub ) | B53: Nm | C53: =C52+C49 -> 0.8230153061 | I53: min. Verfahrzeit zurück | K53: =0.09+((C5/12.5)*0.01) -> 0.098 | L53: ( min )
A54: Ezul / Zyklus ( Hub ) | B54: Nm | C54: ='Allgemeine Werte'!G36*C50/'Allgemeine Werte'!K36*C46 -> 5.828571429 | E54: Stoßd.-kolbenrückstellzeit | G54: ='Allgemeine Werte'!E36 -> 0.5 | I54: Mittlere Verfahrgeschwindigkeit zurück | K54: =(C5/1000)/K53 -> 0.1020408163 | L54: =MIN(K46,K55,K44) -> 0.1785714286
A55: Auslastung / Zyklus | C55: =C53/C54 -> 0.1412036064 | E55: Max. Zyklen aus Rückstellzeit | G55: =60/G54 -> 120 | I55: Endgeschwindigkeit zurück | K55: =K54*'Allgemeine Werte'!E71 -> 0.1785714286

Sheet EM-Ber-LM50-6
A1: Linearmodul Typ | C1: LM 50
A3: Berechnung der Führungsbelastung
G4: Statisch auf Grund | H4: Statisch auf Grund
A5: Hub | B5: mm | C5: ='EM-LM-6'!K8 -> 10 | G5: Zusatzmasse m | H5: Zusatzmasse m | I5: Dynamisch auf Grund | J5: Statisch auf Grund | K5: Statisch auf Grund
A6: Zylinderkraft | B6: N | C6: 120 | G6: Modul ausgef. | H6: Modul eingef. | I6: Zusatzmasse m | J6: Zusatzkraft Modul eingef. | K6: Zusatzkraft Modul ausgef.
A7: Faktor | C7: =ROUNDDOWN(((C5+12.5)/25.1)+0.5,0) -> 1 | G7: I | H7: II | I7: III | J7: IV | K7: V
A8: Modulgewicht | B8: kg | C8: =0.7+(C7*0.18) -> 0.88 | E8: Moment Mx=M3 | F8: Nm | G8: =C12*9.81*((C15)/1000) -> 0 | H8: =C12*9.81*((C15)/1000) -> 0 | I8: =C42*(C15/1000) -> 0 | J8: =IF(K11=TRUE,-(C21*C23/1000)+C25*((C27+C37+C34/2)/1000),(C21*C23/1000)-C25*((C27+C37+C34/2)/1000)) -> 0 | K8: =IF(K11=TRUE,-(C21*C23/1000)+C25*((C27+C37-C32+C34/2)/1000),(C21*C23/1000)-C25*((C27+C37-C32+C34/2)/1000)) -> 0
A9: Zylinderkraft zurück | B9: N | C9: 103 | E9: Moment My=M1 | F9: Nm | G9: - | H9: - | I9: - | J9: =C17*(C19/1000)-C25*C26/1000 -> 0 | K9: =C17*(C19/1000)-C25*C26/1000 -> 0
A10: Verfahrgeschwindigkeit | B10: m/s | C10: ='EM-LM-6-1'!I58 -> 2.02 | E10: Moment Mz=M2 | F10: Nm | G10: =C12*9.81*((C13)/1000) -> 0 | H10: =C12*9.81*((C13)/1000) -> 0 | I10: =C42*(C13/1000) -> 0 | J10: =IF(K11=TRUE,-C21*C22/1000+C17*(C18+C37+C34/2)/1000,C21*C22/1000-C17*(C18+C37+C34/2)/1000) -> 0 | K10: =IF(K11=TRUE,-C21*C22/1000+C17*(C18+C37-C32+C34/2)/1000,C21*C22/1000-C17*(C18+C37-C32+C34/2)/1000) -> 0
J11: ='EM-LM-6'!G51 -> FALSE | K11: ='EM-LM-6'!G52 -> TRUE
A12: Zusatzmasse | B12: kg | C12: ='EM-LM-6'!K14 -> 0
A13: Schwerpunktabstand x-Richt.(Mitte Rolle) | B13: mm | C13: ='EM-LM-6'!M14+35 -> 35
A14: Schwerpunktabstand y-Richtung | B14: mm | C14: ='EM-LM-6'!O14 -> 0
A15: Schwerpunktabstand z-Richtung | B15: mm | C15: ='EM-LM-6'!Q14 -> 0
E16: Mx Summe I(II) + III | F16: Nm | G16: =G8+I8 -> 0
A17: Zusatzkraft Fx | B17: N | C17: ='EM-LM-6'!K18 -> 0 | E17: Absolutbetrag | G17: =ABS(G16) -> 0
A18: Kraftangriffspunkt von Fx in y-Richtung | B18: mm | C18: ='EM-LM-6'!O18 -> 0 | E18: Mx Summe I+V oder II+IV | F18: Nm | G18: =IF(J11=TRUE,H8+J8,G8+K8) -> 0
A19: Kraftangriffspunkt von Fx in z-Richtung | B19: mm | C19: ='EM-LM-6'!Q18 -> 0 | E19: Absolutbetrag | G19: =ABS(G18) -> 0
E20: Mx ges | F20: Nm | G20: =MAX(G17,G19) -> 0
A21: Zusatzkraft Fy | B21: N | C21: ='EM-LM-6'!K20 -> 0 | E21: Mx zul | F21: Nm | G21: =G34/2 -> 5.85 | I21: Maximal-Werte der Momente und Kräfte nicht aus Katalog, sondern exakt berechnete Werte !!
A22: Kraftangrp. von Fy in x-Richt. (Mitte Rolle) | B22: mm | C22: ='EM-LM-6'!M20+35 -> 35
A23: Kraftangrp. von Fy in z-Richt. | B23: mm | C23: ='EM-LM-6'!Q20 -> 0 | E23: My IV = V | F23: Nm | G23: =J9 -> 0
E24: Absolutbetrag | G24: =ABS(G23) -> 0
A25: Zusatzkraft Fz | B25: N | C25: ='EM-LM-6'!K22 -> 0 | E25: My ges | F25: Nm | G25: =G24 -> 0
A26: Kraftangrp. von Fz in x-Richt. (Mitte Rolle) | B26: mm | C26: ='EM-LM-6'!M22+35 -> 35 | E26: My zul | F26: Nm | G26: =8+(2.5*C7) -> 10.5
A27: Kraftangriffspunkt von Fz in y-Richtung | B27: mm | C27: ='EM-LM-6'!O22 -> 0
E29: Mz Summe I(II)+III | F29: Nm | G29: =G10+I10 -> 0
A30: Länge L (Stirnplatte zu 1. Rolle - HubN/2) | B30: mm | C30: 33 | E30: Absolutbetrag | G30: =ABS(G29) -> 0
A31: Nennhub/2 HubN/2 | B31: mm | C31: =(0+(C7*25))/2 -> 12.5 | E31: Mz Summe I+V oder II+IV | F31: Nm | G31: =IF(J11=TRUE,H10+J10,G10+K10) -> 0
A32: tatsächlicher gefahrener Hub/2 | B32: mm | C32: =C5/2 -> 5 | E32: Absolutbetrag | G32: =ABS(G31) -> 0
A33: Schwerpunktabstand in y-Richtung | B33: mm | C33: =C14 -> 0 | E33: Mz ges | F33: Nm | G33: =MAX(G30,G32) -> 0
A34: Wert K ( Abstand erste / letzte Rolle ) | B34: mm | C34: =31.7+(13.3*C7) -> 45 | E34: Mz zul | F34: Nm | G34: =C34/1000*260 -> 11.7
A35: Anfangswert (Abst. Stirnpl./Deckplatte) | B35: mm | C35: 21
I36: Belastungsgleichung stat. | J36: =G19/G21+G25/G26+G32/G34+G38/G39+G42/G43 -> 0
A37: l1 bei eingefahrenem Hub | B37: mm | C37: =C30+C31-C35 -> 24.5 | E37: Fx ges | F37: N | G37: =C17 -> 0 | I37: Belastungsgleichung dyn. | J37: =G17/G21+G30/G34 -> 0
A38: l1 bei ausgefahrenem Hub | B38: mm | C38: =C30+C31+C32-C35 -> 29.5 | E38: Absolutwert | G38: =ABS(G37) -> 0 | I38: Belastungsgleichung | J38: =MAX(J36:J37) -> 0
E39: Fx zul | F39: N | G39: =G43 -> 1300
A40: Stoßdämpferhub s ( Hub bis a=0 ) | B40: m | C40: ='Allgemeine Werte'!M36 -> 0.004556
A41: Verzögerung a=vxv/2xs | B41: m/s2 | C41: =POWER(C48,2)/(2*C40) -> 3.230442705 | E41: Fz ges | F41: N | G41: =-C25 -> 0 | I41: Verfahrzeitberechnung
A42: Kraft zur Verzögerung der Masse | B42: N | C42: =C12*C41 -> 0 | E42: Absolutwert | G42: =ABS(G41) -> 0 | I42: Verfahrzeit berechnet ( t=Wurzel aus (2xsxm/F) | K42: =(SQRT(2*(C5/1000)*(C12+C8/2)/(C6-(C12+C8/2)*9.81)))*(3.05-C7*0.2) -> 0.02485709079
A43: Kraft zur Verzög. d. Masse incl Modul/2 | B43: N | C43: =C47*C41 -> 1.42139479 | E43: Fz zul | F43: N | G43: =975+325*C7 -> 1300 | I43: Mittlere Verfahrgeschwindigkeit berechnet | K43: =(C5/1000)/K42 -> 0.4022996933
I44: Endgeschwindigkeit berechnet | K44: =K43*'Allgemeine Werte'!E71 -> 0.7040244633
A45: Stoßdämpferberechnung | E45: Max. Zyklenzahl / Min.
A46: Anzahl Stoßdämpfer | C46: 1 | E46: Zyklen aus Verfahrzeit | G46: =60/(2*L50) -> 294.1176471 | I46: Endgeschwindigkeit (Eingabe) | K46: =C10 -> 2.02
A47: Gesamtmasse | B47: kg | C47: =C12+C8/2 -> 0.44 | I47: Mittlere Verfahrgeschwindigkeit (Eingabe) m/s | K47: =C10/'Allgemeine Werte'!E71 -> 1.154285714
A48: Aufprallgeschwindigkeit | B48: m/s | C48: =L54 -> 0.1715686275 | E48: Ezul / Stunde | F48: Nm | G48: ='Allgemeine Werte'!H36*C46*0.95 -> 23940 | I48: Verfahrzeit (Eingabe) | J48: s | K48: =(C5/1000)/K47 -> 0.008663366337 | L48: Verfahrzeit für Berechnung
A49: W1 | B49: Nm | C49: =C47*POWER(C48,2)*0.5 -> 0.006475874664 | E49: Ezul / Minute | F49: Nm | G49: =G48/60 -> 399 | L49: ( max )
A50: Hub Stoßdämpfer | B50: m | C50: ='Allgemeine Werte'!L36 -> 0.0068 | E50: Zyklen aus Ezul | G50: =G49/C53 -> 503.0736954 | I50: min. Verfahrzeit ab | J50: gemessen | K50: =0.05+((C5/12.5)*0.01) -> 0.058 | L50: =MAX(K48,K53,K42) -> 0.102
A51: Zylinderkraft | B51: N | C51: 120 | I51: Mittlere Verfahrgeschwindigkeit ab | K51: =(C5/1000)/K50 -> 0.1724137931
A52: W2 ( Antriebsenergie ) | B52: Nm | C52: =MAX(C56,C57)*C50 -> 0.78664848 | E52: Max. Zyklen | G52: =MIN(G46,G50,G55) -> 120 | I52: Endgeschwindigkeit ab | K52: =K51*'Allgemeine Werte'!E71 -> 0.3017241379 | L52: Endgeschwindigkeit f. Ber.
A53: W1+W2 ( Energie / Hub ) | B53: Nm | C53: =C52+C49 -> 0.7931243547 | I53: min. Verfahrzeit auf | K53: =0.09+((C5/12.5)*0.015) -> 0.102 | L53: ( min )
A54: Ezul / Zyklus ( Hub ) | B54: Nm | C54: ='Allgemeine Werte'!G36*C50/'Allgemeine Werte'!K36*C46 -> 5.828571429 | E54: Stoßd.-kolbenrückstellzeit | G54: ='Allgemeine Werte'!E36 -> 0.5 | I54: Mittlere Verfahrgeschwindigkeit auf | K54: =(C5/1000)/K53 -> 0.09803921569 | L54: =MIN(K46,K55,K44) -> 0.1715686275
A55: Auslastung / Zyklus | C55: =C53/C54 -> 0.1360752569 | E55: Max. Zyklen aus Rückstellzeit | G55: =60/G54 -> 120 | I55: Endgeschwindigkeit auf | K55: =K54*'Allgemeine Werte'!E71 -> 0.1715686275
A56: Antriebskraft nach oben | C56: =C6-C47*9.81 -> 115.6836
A57: Antriebskraft nach unten | C57: =C9+C47*9.81 -> 107.3164

Sheet EM-Ber-LM100-1
A1: Linearmodul Typ | C1: LM 100
A3: Berechnung der Führungsbelastung
G4: Statisch auf Grund | H4: Statisch auf Grund
A5: Hub | B5: mm | C5: ='EM-LM-1'!K8 -> 10 | G5: Zusatzmasse m | H5: Zusatzmasse m | I5: Dynamisch auf Grund | J5: Statisch auf Grund | K5: Statisch auf Grund
A6: Zylinderkraft vor | B6: N | C6: 294 | G6: Modul ausgef. | H6: Modul eingef. | I6: Zusatzmasse m | J6: Zusatzkraft Modul eingef. | K6: Zusatzkraft Modul ausgef.
A7: Faktor | C7: =ROUNDDOWN((C5/50.1)+0.5,0) -> 0 | G7: I | H7: II | I7: III | J7: IV | K7: V
A8: Modulgewicht | B8: kg | C8: =1.9+(C7*0.7) -> 1.9 | E8: Moment Mx=M2 | F8: Nm | G8: =(C12*9.81)*((C38+C34/2+C33)/1000) -> 0 | H8: =C12*9.81*((C37+C34/2+C33)/1000) -> 0 | I8: =C42*(C15/1000) -> 0 | J8: =(C21*C23/1000)-C25*((C27+C37+C34/2)/1000) -> 0 | K8: =(C21*C23/1000)-C25*((C27+C38+C34/2)/1000) -> 0
A9: Zylinderkraft zurück | B9: N | C9: 226 | E9: Moment My=M1 | F9: Nm | G9: =C12*9.81*(C13/1000) -> 0 | H9: =C12*9.81*(C13/1000) -> 0 | I9: - | J9: =C17*C19/1000-C25*(C26/1000) -> 0 | K9: =C17*C19/1000-C25*(C26/1000) -> 0
A10: Verfahrgeschwindigkeit | B10: m/s | C10: ='EM-LM-1-1'!I58 -> 2.02 | E10: Moment Mz=M3 | F10: Nm | G10: - | H10: - | I10: =C42*(C13/1000) -> 0 | J10: =C21*C22/1000-C17*(C18+C37+C34/2)/1000 -> 0 | K10: =C21*C22/1000-C17*(C18+C38+C34/2)/1000 -> 0
J11: ='EM-LM-1'!G51 -> TRUE
A12: Zusatzmasse | B12: kg | C12: ='EM-LM-1'!K14 -> 0 | E12: Mx Summe I + III | F12: Nm | G12: =G8+I8 -> 0
A13: Schwerpunktabstand x-Richtung | B13: mm | C13: ='EM-LM-1'!M14 -> 0 | E13: Absolutbetrag | G13: =ABS(G12) -> 0
A14: Schwerpunktabstand y-Richtung | B14: mm | C14: ='EM-LM-1'!O14 -> 0 | E14: Mx Summe II-III | G14: =H8-I8 -> 0
A15: Schwerpunktabstand z-Richt.(Mitte Rolle) | B15: mm | C15: ='EM-LM-1'!Q14+16 -> 16 | E15: Absolutbetrag | G15: =ABS(G14) -> 0
E16: I | F16: Nm | G16: =ABS(G8) -> 0
A17: Zusatzkraft Fx | B17: N | C17: ='EM-LM-1'!K18 -> 0 | E17: I oder I+III oder II-III | G17: =MAX(G16,G15,G13) -> 0
A18: Kraftangriffspunkt von Fx in y-Richtung | B18: mm | C18: ='EM-LM-1'!O18 -> 0 | E18: Mx Summe I+V oder II+IV | F18: Nm | G18: =IF(AND(J8=0,K8=0),MAX(G8,H8),IF(J11=TRUE,H8+J8,G8+K8)) -> 0
A19: Kraftangrp. von Fx in z-Richt.(Mitte Rolle) | B19: mm | C19: ='EM-LM-1'!Q18+16 -> 16 | E19: Absolutbetrag | G19: =ABS(G18) -> 0
E20: Mx ges | F20: Nm | G20: =MAX(G17,G19) -> 0
A21: Zusatzkraft Fy | B21: N | C21: ='EM-LM-1'!K20 -> 0 | E21: Mx zul | F21: Nm | G21: =C34/1000*530 -> 29.8125 | I21: Maximal-Werte der Momente und Kräfte nicht aus Katalog, sondern exakt berechnete Werte !!
A22: Kraftangriffspunkt von Fy in x-Richtung | B22: mm | C22: ='EM-LM-1'!M20 -> 0
A23: Kraftangrp. von Fy in z-Richt.(Mitte Rolle) | B23: mm | C23: ='EM-LM-1'!Q20+16 -> 16 | E23: My Summe I+V ( = II+IV ) | F23: Nm | G23: =G9+K9 -> 0
E24: Absolutbetrag | G24: =ABS(G23) -> 0
A25: Zusatzkraft Fz | B25: N | C25: ='EM-LM-1'!K22 -> 0 | E25: My ges | F25: Nm | G25: =G24 -> 0
A26: Kraftangriffspunkt von Fz in x-Richtung | B26: mm | C26: ='EM-LM-1'!M22 -> 0 | E26: My zul | F26: Nm | G26: =36+(14*C7) -> 36
A27: Kraftangriffspunkt von Fz in y-Richtung | B27: mm | C27: ='EM-LM-1'!O22 -> 0
E29: Mz III | F29: Nm | G29: =I10 -> 0
A30: Länge L (Stirnplatte zu 1. Rolle - HubN/2) | B30: mm | C30: 39.6 | E30: Absolutbetrag | G30: =ABS(G29) -> 0
A31: Nennhub/2 HubN/2 | B31: mm | C31: =(25+(C7*50))/2 -> 12.5 | E31: Mz IV/V | F31: Nm | G31: =IF(J11=TRUE,J10,K10) -> 0
A32: tatsächlicher gefahrener Hub/2 | B32: mm | C32: =C5/2 -> 5 | E32: Absolutbetrag | G32: =ABS(G31) -> 0
A33: Schwerpunktabstand in y-Richtung | B33: mm | C33: =C14 -> 0 | E33: Mz ges | F33: Nm | G33: =MAX(G30,G32) -> 0
A34: Wert K ( Abstand erste / letzte Rolle ) | B34: mm | C34: =56.25+(C7*25) -> 56.25 | E34: Mz zul | F34: Nm | G34: =G21/2 -> 14.90625
I36: Belastungsgleichung stat. | J36: =G19/G21+G25/G26+G32/G34+G38/G39+G42/G43 -> 0 | L36: me =
A37: l1 bei eingefahrenem Hub | B37: mm | C37: =C30+C31 -> 52.1 | E37: Fx ges | F37: N | G37: =C17 -> 0 | I37: Belastungsgleichung dyn. | J37: =G17/G21+G30/G34+G40/G43 -> 0 | L37: =2*C53/POWER(L54,2) -> 186.210032
A38: l1 bei ausgefahrenem Hub | B38: mm | C38: =C30+C31+C32 -> 57.1 | E38: Absolutwert | G38: =ABS(G37) -> 0 | I38: Belastungsgleichung | J38: =MAX(J36:J37) -> 0 | L38: me max =
E39: Fx zul | F39: N | G39: =G43 -> 2650 | L39: =40*C46 -> 40
A40: Stoßdämpferhub s ( Hub bis a=0 ) | B40: m | C40: ='Allgemeine Werte'!M38 -> 0.007638 | E40: Gewichtskraft | F40: N | G40: =C12*9.81 -> 0 | L40: me/me max =
A41: Verzögerung a=vxv/2xs | B41: m/s2 | C41: =POWER(C48,2)/(2*C40) -> 2.368594917 | E41: Fz ges abs | F41: N | G41: =ABS(-C25+C12*9.81) -> 0 | I41: Verfahrzeitberechnung | L41: =L37/L39 -> 4.6552508
A42: Kraft zur Verzögerung der Masse | B42: N | C42: =C12*C41 -> 0 | E42: Max aus E40,E41 | G42: =MAX(G40,G41) -> 0 | I42: Verfahrzeit berechnet ( t=Wurzel aus (2xsxm/F) | K42: =(SQRT(2*(C5/1000)*(C12+C8/2)/C9))*(2.7+C7*0.05) -> 0.02475633467
A43: Kraft zur Verzög. d. Masse incl Modul/2 | B43: N | C43: =C47*C41 -> 2.250165171 | E43: Fz zul | F43: N | G43: =2650+1060*C7 -> 2650 | I43: Mittlere Verfahrgeschwindigkeit berechnet | K43: =(C5/1000)/K42 -> 0.4039370179
I44: Endgeschwindigkeit berechnet | K44: =K43*'Allgemeine Werte'!E71 -> 0.7068897813
A45: Stoßdämpferberechnung | E45: Max. Zyklenzahl / Min.
A46: Anzahl Stoßdämpfer | C46: ='EM-LM-1-1'!O22 -> 1 | E46: Zyklen aus Verfahrzeit | G46: =60/(2*L50) -> 326.0869565 | I46: Endgeschwindigkeit (Eingabe) | K46: =C10 -> 2.02
A47: Gesamtmasse | B47: kg | C47: =C12+C8/2 -> 0.95 | I47: Mittlere Verfahrgeschwindigkeit (Eingabe) m/s | K47: =C10/'Allgemeine Werte'!E71 -> 1.154285714
A48: Aufprallgeschwindigkeit | B48: m/s | C48: =L54 -> 0.1902173913 | E48: Ezul / Stunde | F48: Nm | G48: ='Allgemeine Werte'!H38*C46*0.95 -> 26790 | I48: Verfahrzeit (Eingabe) | J48: s | K48: =(C5/1000)/K47 -> 0.008663366337 | L48: Verfahrzeit für Berechnung
A49: W1 | B49: Nm | C49: =C47*POWER(C48,2)*0.5 -> 0.01718676158 | E49: Ezul / Minute | F49: Nm | G49: =G48/60 -> 446.5 | L49: ( max )
A50: Hub Stoßdämpfer | B50: m | C50: ='Allgemeine Werte'!L38 -> 0.0114 | E50: Zyklen aus Ezul | G50: =G49/C53 -> 132.5402976 | I50: min. Verfahrzeit vor | J50: gemessen | K50: =0.05+(C5/25)*0.03 -> 0.062 | L50: =MAX(K48,K53,K42) -> 0.092
A51: Zylinderkraft | B51: N | C51: 294 | I51: Mittlere Verfahrgeschwindigkeit vor | K51: =(C5/1000)/K50 -> 0.1612903226
A52: W2 ( Antriebsenergie ) | B52: Nm | C52: =C51*C50 -> 3.3516 | E52: Max. Zyklen | G52: =MIN(G46,G50,G55) -> 120 | I52: Endgeschwindigkeit vor | K52: =K51*'Allgemeine Werte'!E71 -> 0.2822580645 | L52: Endgeschwindigkeit f. Ber.
A53: W1+W2 ( Energie / Hub ) | B53: Nm | C53: =C52+C49 -> 3.368786762 | I53: min. Verfahrzeit zurück | K53: =0.08+((C5/25)*0.03) -> 0.092 | L53: ( min )
A54: Ezul / Zyklus ( Hub ) | B54: Nm | C54: ='Allgemeine Werte'!G38*C50/'Allgemeine Werte'!K38*C46 -> 10.11130435 | E54: Stoßd.-kolbenrückstellzeit | G54: ='Allgemeine Werte'!E38 -> 0.5 | I54: Mittlere Verfahrgeschwindigkeit zurück | K54: =(C5/1000)/K53 -> 0.1086956522 | L54: =MIN(K46,K55,K44) -> 0.1902173913
A55: Auslastung / Zyklus | C55: =C53/C54 -> 0.3331703454 | E55: Max. Zyklen aus Rückstellzeit | G55: =60/G54 -> 120 | I55: Endgeschwindigkeit zurück | K55: =K54*'Allgemeine Werte'!E71 -> 0.1902173913

Sheet EM-Ber-LM100-2
A1: Linearmodul Typ | C1: LM 100
A3: Berechnung der Führungsbelastung
G4: Statisch auf Grund | H4: Statisch auf Grund
A5: Hub | B5: mm | C5: ='EM-LM-2'!K8 -> 10 | G5: Zusatzmasse m | H5: Zusatzmasse m | I5: Dynamisch auf Grund | J5: Statisch auf Grund | K5: Statisch auf Grund
A6: Zylinderkraft vor | B6: N | C6: 294 | G6: Modul ausgef. | H6: Modul eingef. | I6: Zusatzmasse m | J6: Zusatzkraft Modul eingef. | K6: Zusatzkraft Modul ausgef.
A7: Faktor | C7: =ROUNDDOWN((C5/50.1)+0.5,0) -> 0 | G7: I | H7: II | I7: III | J7: IV | K7: V
A8: Modulgewicht | B8: kg | C8: =1.9+(C7*0.7) -> 1.9 | E8: Moment Mx=M3 | F8: Nm | G8: =(C12*9.81)*((C38+C34/2+C33)/1000) -> 0 | H8: =C12*9.81*((C37+C34/2+C33)/1000) -> 0 | I8: =C42*(C15/1000) -> 0 | J8: =(C21*C23/1000)-C25*((C27+C37+C34/2)/1000) -> 0 | K8: =(C21*C23/1000)-C25*((C27+C38+C34/2)/1000) -> 0
A9: Zylinderkraft zurück | B9: N | C9: 226 | E9: Moment My=M1 | F9: Nm | G9: =C12*9.81*((C13)/1000) -> 0 | H9: =C12*9.81*((C13)/1000) -> 0 | I9: - | J9: =C17*(C19/1000)-C25*C26/1000 -> 0 | K9: =C17*(C19/1000)-C25*C26/1000 -> 0
A10: Verfahrgeschwindigkeit | B10: m/s | C10: ='EM-LM-2-1'!I58 -> 2.02 | E10: Moment Mz=M2 | F10: Nm | G10: - | H10: - | I10: =C42*(C13/1000) -> 0 | J10: =C21*C22/1000-C17*(C18+C37+C34/2)/1000 -> 0 | K10: =C21*C22/1000-C17*(C18+C38+C34/2)/1000 -> 0
J11: ='EM-LM-2'!G51 -> TRUE
A12: Zusatzmasse | B12: kg | C12: ='EM-LM-2'!K14 -> 0 | E12: Mx Summe I + III | F12: Nm | G12: =G8+I8 -> 0
A13: Schwerpunktabstand x-Richt.(Mitte Rolle) | B13: mm | C13: ='EM-LM-2'!M14+16 -> 16 | E13: Absolutbetrag | G13: =ABS(G12) -> 0
A14: Schwerpunktabstand y-Richtung | B14: mm | C14: ='EM-LM-2'!O14 -> 0 | E14: Mx Summe II-III | G14: =H8-I8 -> 0
A15: Schwerpunktabstand z-Richtung | B15: mm | C15: ='EM-LM-2'!Q14 -> 0 | E15: Absolutbetrag | G15: =ABS(G14) -> 0
E16: I | F16: Nm | G16: =ABS(G8) -> 0
A17: Zusatzkraft Fx | B17: N | C17: ='EM-LM-2'!K18 -> 0 | E17: I oder I+III oder II-III | G17: =MAX(G16,G15,G13) -> 0
A18: Kraftangriffspunkt von Fx in y-Richtung | B18: mm | C18: ='EM-LM-2'!O18 -> 0 | E18: Mx Summe I+V oder II+IV | F18: Nm | G18: =IF(AND(J8=0,K8=0),MAX(G8,H8),IF(J11=TRUE,H8+J8,G8+K8)) -> 0
A19: Kraftangriffspunkt von Fx in z-Richtung | B19: mm | C19: ='EM-LM-2'!Q18 -> 0 | E19: Absolutbetrag | G19: =ABS(G18) -> 0
E20: Mx ges | F20: Nm | G20: =MAX(G17,G19) -> 0
A21: Zusatzkraft Fy | B21: N | C21: ='EM-LM-2'!K20 -> 0 | E21: Mx zul | F21: Nm | G21: =G34/2 -> 14.90625 | I21: Maximal-Werte der Momente und Kräfte nicht aus Katalog, sondern exakt berechnete Werte !!
A22: Kraftangrp. von Fy in x-Richt. (Mitte Rolle) | B22: mm | C22: ='EM-LM-2'!M20+16 -> 16
A23: Kraftangrp. von Fy in z-Richt. | B23: mm | C23: ='EM-LM-2'!Q20 -> 0 | E23: My Summe I+V ( = II+IV ) | F23: Nm | G23: =G9+K9 -> 0
E24: Absolutbetrag | G24: =ABS(G23) -> 0
A25: Zusatzkraft Fz | B25: N | C25: ='EM-LM-2'!K22 -> 0 | E25: My ges | F25: Nm | G25: =G24 -> 0
A26: Kraftangrp. von Fz in x-Richt. (Mitte Rolle) | B26: mm | C26: ='EM-LM-2'!M22+16 -> 16 | E26: My zul | F26: Nm | G26: =36+(14*C7) -> 36
A27: Kraftangriffspunkt von Fz in y-Richtung | B27: mm | C27: ='EM-LM-2'!O22 -> 0
E29: Mz III | F29: Nm | G29: =I10 -> 0
A30: Länge L (Stirnplatte zu 1. Rolle - HubN/2) | B30: mm | C30: 39.6 | E30: Absolutbetrag | G30: =ABS(G29) -> 0
A31: Nennhub/2 HubN/2 | B31: mm | C31: =(25+(C7*50))/2 -> 12.5 | E31: Mz IV/V | F31: Nm | G31: =IF(J11=TRUE,J10,K10) -> 0
A32: tatsächlicher gefahrener Hub/2 | B32: mm | C32: =C5/2 -> 5 | E32: Absolutbetrag | G32: =ABS(G31) -> 0
A33: Schwerpunktabstand in y-Richtung | B33: mm | C33: =C14 -> 0 | E33: Mz ges | F33: Nm | G33: =MAX(G30,G32) -> 0
A34: Wert K ( Abstand erste / letzte Rolle ) | B34: mm | C34: =56.25+(C7*25) -> 56.25 | E34: Mz zul | F34: Nm | G34: =C34/1000*530 -> 29.8125
I36: Belastungsgleichung stat. | J36: =G19/G21+G25/G26+G32/G34+G38/G39+G42/G43 -> 0
A37: l1 bei eingefahrenem Hub | B37: mm | C37: =C30+C31 -> 52.1 | E37: Fx ges | F37: N | G37: =C17 -> 0 | I37: Belastungsgleichung dyn. | J37: =G17/G21+G30/G34+G40/G43 -> 0
A38: l1 bei ausgefahrenem Hub | B38: mm | C38: =C30+C31+C32 -> 57.1 | E38: Absolutwert | G38: =ABS(G37) -> 0 | I38: Belastungsgleichung | J38: =MAX(J36:J37) -> 0
E39: Fx zul | F39: N | G39: =G43 -> 2650
A40: Stoßdämpferhub s ( Hub bis a=0 ) | B40: m | C40: ='Allgemeine Werte'!M38 -> 0.007638 | E40: Gewichtskraft | F40: N | G40: =C12*9.81 -> 0
A41: Verzögerung a=vxv/2xs | B41: m/s2 | C41: =POWER(C48,2)/(2*C40) -> 2.368594917 | E41: Fz ges abs | F41: N | G41: =ABS(-C25+C12*9.81) -> 0 | I41: Verfahrzeitberechnung
A42: Kraft zur Verzögerung der Masse | B42: N | C42: =C12*C41 -> 0 | E42: Max aus E40,E41 | G42: =MAX(G40,G41) -> 0 | I42: Verfahrzeit berechnet ( t=Wurzel aus (2xsxm/F) | K42: =(SQRT(2*(C5/1000)*(C12+C8/2)/C9))*(2.7+C7*0.05) -> 0.02475633467
A43: Kraft zur Verzög. d. Masse incl Modul/2 | B43: N | C43: =C47*C41 -> 2.250165171 | E43: Fz zul | F43: N | G43: =2650+1060*C7 -> 2650 | I43: Mittlere Verfahrgeschwindigkeit berechnet | K43: =(C5/1000)/K42 -> 0.4039370179
I44: Endgeschwindigkeit berechnet | K44: =K43*'Allgemeine Werte'!E71 -> 0.7068897813
A45: Stoßdämpferberechnung | E45: Max. Zyklenzahl / Min.
A46: Anzahl Stoßdämpfer | C46: ='EM-LM-2-1'!O22 -> 1 | E46: Zyklen aus Verfahrzeit | G46: =60/(2*L50) -> 326.0869565 | I46: Endgeschwindigkeit (Eingabe) | K46: =C10 -> 2.02
A47: Gesamtmasse | B47: kg | C47: =C12+C8/2 -> 0.95 | I47: Mittlere Verfahrgeschwindigkeit (Eingabe) m/s | K47: =C10/'Allgemeine Werte'!E71 -> 1.154285714
A48: Aufprallgeschwindigkeit | B48: m/s | C48: =L54 -> 0.1902173913 | E48: Ezul / Stunde | F48: Nm | G48: ='Allgemeine Werte'!H38*C46*0.95 -> 26790 | I48: Verfahrzeit (Eingabe) | J48: s | K48: =(C5/1000)/K47 -> 0.008663366337 | L48: Verfahrzeit für Berechnung
A49: W1 | B49: Nm | C49: =C47*POWER(C48,2)*0.5 -> 0.01718676158 | E49: Ezul / Minute | F49: Nm | G49: =G48/60 -> 446.5 | L49: ( max )
A50: Hub Stoßdämpfer | B50: m | C50: ='Allgemeine Werte'!L38 -> 0.0114 | E50: Zyklen aus Ezul | G50: =G49/C53 -> 132.5402976 | I50: min. Verfahrzeit vor | J50: gemessen | K50: =0.05+(C5/25)*0.03 -> 0.062 | L50: =MAX(K48,K53,K42) -> 0.092
A51: Zylinderkraft | B51: N | C51: 294 | I51: Mittlere Verfahrgeschwindigkeit vor | K51: =(C5/1000)/K50 -> 0.1612903226
A52: W2 ( Antriebsenergie ) | B52: Nm | C52: =C51*C50 -> 3.3516 | E52: Max. Zyklen | G52: =MIN(G46,G50,G55) -> 120 | I52: Endgeschwindigkeit vor | K52: =K51*'Allgemeine Werte'!E71 -> 0.2822580645 | L52: Endgeschwindigkeit f. Ber.
A53: W1+W2 ( Energie / Hub ) | B53: Nm | C53: =C52+C49 -> 3.368786762 | I53: min. Verfahrzeit zurück | K53: =0.08+((C5/25)*0.03) -> 0.092 | L53: ( min )
A54: Ezul / Zyklus ( Hub ) | B54: Nm | C54: ='Allgemeine Werte'!G38*C50/'Allgemeine Werte'!K38*C46 -> 10.11130435 | E54: Stoßd.-kolbenrückstellzeit | G54: ='Allgemeine Werte'!E38 -> 0.5 | I54: Mittlere Verfahrgeschwindigkeit zurück | K54: =(C5/1000)/K53 -> 0.1086956522 | L54: =MIN(K46,K55,K44) -> 0.1902173913
A55: Auslastung / Zyklus | C55: =C53/C54 -> 0.3331703454 | E55: Max. Zyklen aus Rückstellzeit | G55: =60/G54 -> 120 | I55: Endgeschwindigkeit zurück | K55: =K54*'Allgemeine Werte'!E71 -> 0.1902173913

Sheet EM-Ber-LM100-3
A1: Linearmodul Typ | C1: LM 100
A3: Berechnung der Führungsbelastung
G4: Statisch auf Grund | H4: Statisch auf Grund
A5: Hub | B5: mm | C5: ='EM-LM-3'!K8 -> 10 | G5: Zusatzmasse m | H5: Zusatzmasse m | I5: Dynamisch auf Grund | J5: Statisch auf Grund | K5: Statisch auf Grund
A6: Zylinderkraft vor | B6: N | C6: 294 | G6: Modul ausgef. | H6: Modul eingef. | I6: Zusatzmasse m | J6: Zusatzkraft Modul eingef. | K6: Zusatzkraft Modul ausgef.
A7: Faktor | C7: =ROUNDDOWN((C5/50.1)+0.5,0) -> 0 | G7: I | H7: II | I7: III | J7: IV | K7: V
A8: Modulgewicht | B8: kg | C8: =1.9+(C7*0.7) -> 1.9 | E8: Moment Mx=M3 | F8: Nm | G8: =C12*9.81*((C15)/1000) -> 0 | H8: =C12*9.81*((C15)/1000) -> 0 | I8: =C42*(C15/1000) -> 0 | J8: =IF(K11=TRUE,-(C21*C23/1000)+C25*((C27+C37+C34/2)/1000),(C21*C23/1000)-C25*((C27+C37+C34/2)/1000)) -> 0 | K8: =IF(K11=TRUE,-(C21*C23/1000)+C25*((C27+C38+C34/2)/1000),(C21*C23/1000)-C25*((C27+C38+C34/2)/1000)) -> 0
A9: Zylinderkraft zurück | B9: N | C9: 226 | E9: Moment My=M1 | F9: Nm | G9: - | H9: - | I9: - | J9: =C17*(C19/1000)-C25*C26/1000 -> 0 | K9: =C17*(C19/1000)-C25*C26/1000 -> 0
A10: Verfahrgeschwindigkeit | B10: m/s | C10: ='EM-LM-3-1'!I58 -> 2.02 | E10: Moment Mz=M2 | F10: Nm | G10: =C12*9.81*((C13)/1000) -> 0 | H10: =C12*9.81*((C13)/1000) -> 0 | I10: =C42*(C13/1000) -> 0 | J10: =IF(K11=TRUE,-C21*C22/1000+C17*(C18+C37+C34/2)/1000,C21*C22/1000-C17*(C18+C37+C34/2)/1000) -> 0 | K10: =IF(K11=TRUE,-C21*C22/1000+C17*(C18+C38+C34/2)/1000,C21*C22/1000-C17*(C18+C38+C34/2)/1000) -> 0
J11: ='EM-LM-3'!G51 -> TRUE | K11: ='EM-LM-3'!G52 -> TRUE
A12: Zusatzmasse | B12: kg | C12: ='EM-LM-3'!K14 -> 0
A13: Schwerpunktabstand x-Richt.(Mitte Rolle) | B13: mm | C13: ='EM-LM-3'!M14+16 -> 16
A14: Schwerpunktabstand y-Richtung | B14: mm | C14: ='EM-LM-3'!O14 -> 0
A15: Schwerpunktabstand z-Richtung | B15: mm | C15: ='EM-LM-3'!Q14 -> 0
E16: Mx Summe I(II) + III | F16: Nm | G16: =G8+I8 -> 0
A17: Zusatzkraft Fx | B17: N | C17: ='EM-LM-3'!K18 -> 0 | E17: Absolutbetrag | G17: =ABS(G16) -> 0
A18: Kraftangriffspunkt von Fx in y-Richtung | B18: mm | C18: ='EM-LM-3'!O18 -> 0 | E18: Mx Summe I+V oder II+IV | F18: Nm | G18: =IF(J11=TRUE,H8+J8,G8+K8) -> 0
A19: Kraftangriffspunkt von Fx in z-Richtung | B19: mm | C19: ='EM-LM-3'!Q18 -> 0 | E19: Absolutbetrag | G19: =ABS(G18) -> 0
E20: Mx ges | F20: Nm | G20: =MAX(G17,G19) -> 0
A21: Zusatzkraft Fy | B21: N | C21: ='EM-LM-3'!K20 -> 0 | E21: Mx zul | F21: Nm | G21: =G34/2 -> 14.90625 | I21: Maximal-Werte der Momente und Kräfte nicht aus Katalog, sondern exakt berechnete Werte !!
A22: Kraftangrp. von Fy in x-Richt. (Mitte Rolle) | B22: mm | C22: ='EM-LM-3'!M20+16 -> 16
A23: Kraftangrp. von Fy in z-Richt. | B23: mm | C23: ='EM-LM-3'!Q20 -> 0 | E23: My IV = V | F23: Nm | G23: =J9 -> 0
E24: Absolutbetrag | G24: =ABS(G23) -> 0
A25: Zusatzkraft Fz | B25: N | C25: ='EM-LM-3'!K22 -> 0 | E25: My ges | F25: Nm | G25: =G24 -> 0
A26: Kraftangrp. von Fz in x-Richt. (Mitte Rolle) | B26: mm | C26: ='EM-LM-3'!M22+16 -> 16 | E26: My zul | F26: Nm | G26: =36+(14*C7) -> 36
A27: Kraftangriffspunkt von Fz in y-Richtung | B27: mm | C27: ='EM-LM-3'!O22 -> 0
E29: Mz Summe I(II)+III | F29: Nm | G29: =G10+I10 -> 0
A30: Länge L (Stirnplatte zu 1. Rolle - HubN/2) | B30: mm | C30: 39.6 | E30: Absolutbetrag | G30: =ABS(G29) -> 0
A31: Nennhub/2 HubN/2 | B31: mm | C31: =(25+(C7*50))/2 -> 12.5 | E31: Mz Summe I+V oder II+IV | F31: Nm | G31: =IF(J11=TRUE,H10+J10,G10+K10) -> 0
A32: tatsächlicher gefahrener Hub/2 | B32: mm | C32: =C5/2 -> 5 | E32: Absolutbetrag | G32: =ABS(G31) -> 0
A33: Schwerpunktabstand in y-Richtung | B33: mm | C33: =C14 -> 0 | E33: Mz ges | F33: Nm | G33: =MAX(G30,G32) -> 0
A34: Wert K ( Abstand erste / letzte Rolle ) | B34: mm | C34: =56.25+(C7*25) -> 56.25 | E34: Mz zul | F34: Nm | G34: =C34/1000*530 -> 29.8125
I36: Belastungsgleichung stat. | J36: =G19/G21+G25/G26+G32/G34+G38/G39+G42/G43 -> 0
A37: l1 bei eingefahrenem Hub | B37: mm | C37: =C30+C31 -> 52.1 | E37: Fx ges | F37: N | G37: =C17 -> 0 | I37: Belastungsgleichung dyn. | J37: =G17/G21+G30/G34 -> 0
A38: l1 bei ausgefahrenem Hub | B38: mm | C38: =C30+C31+C32 -> 57.1 | E38: Absolutwert | G38: =ABS(G37) -> 0 | I38: Belastungsgleichung | J38: =MAX(J36:J37) -> 0
E39: Fx zul | F39: N | G39: =G43 -> 2650
A40: Stoßdämpferhub s ( Hub bis a=0 ) | B40: m | C40: ='Allgemeine Werte'!M38 -> 0.007638
A41: Verzögerung a=vxv/2xs | B41: m/s2 | C41: =POWER(C48,2)/(2*C40) -> 3.867242936 | E41: Fz ges | F41: N | G41: =-C25 -> 0 | I41: Verfahrzeitberechnung
A42: Kraft zur Verzögerung der Masse | B42: N | C42: =C12*C41 -> 0 | E42: Absolutwert | G42: =ABS(G41) -> 0 | I42: Verfahrzeit berechnet ( t=Wurzel aus (2xsxm/F) | K42: =(SQRT(2*(C5/1000)*(C12+C8/2)/(C6-(C12+C8/2)*9.81)))*(2.45+C7*0.05) -> 0.02001538853
A43: Kraft zur Verzög. d. Masse incl Modul/2 | B43: N | C43: =C47*C41 -> 3.673880789 | E43: Fz zul | F43: N | G43: =2650+1060*C7 -> 2650 | I43: Mittlere Verfahrgeschwindigkeit berechnet | K43: =(C5/1000)/K42 -> 0.4996155825
I44: Endgeschwindigkeit berechnet | K44: =K43*'Allgemeine Werte'!E71 -> 0.8743272694
A45: Stoßdämpferberechnung | E45: Max. Zyklenzahl / Min.
A46: Anzahl Stoßdämpfer | C46: ='EM-LM-3-1'!O22 -> 1 | E46: Zyklen aus Verfahrzeit | G46: =60/(2*L50) -> 416.6666667 | I46: Endgeschwindigkeit (Eingabe) | K46: =C10 -> 2.02
A47: Gesamtmasse | B47: kg | C47: =C12+C8/2 -> 0.95 | I47: Mittlere Verfahrgeschwindigkeit (Eingabe) m/s | K47: =C10/'Allgemeine Werte'!E71 -> 1.154285714
A48: Aufprallgeschwindigkeit | B48: m/s | C48: =L54 -> 0.2430555556 | E48: Ezul / Stunde | F48: Nm | G48: ='Allgemeine Werte'!H38*C46*0.95 -> 26790 | I48: Verfahrzeit (Eingabe) | J48: s | K48: =(C5/1000)/K47 -> 0.008663366337 | L48: Verfahrzeit für Berechnung
A49: W1 | B49: Nm | C49: =C47*POWER(C48,2)*0.5 -> 0.02806110147 | E49: Ezul / Minute | F49: Nm | G49: =G48/60 -> 446.5 | L49: ( max )
A50: Hub Stoßdämpfer | B50: m | C50: ='Allgemeine Werte'!L38 -> 0.0114 | E50: Zyklen aus Ezul | G50: =G49/C53 -> 136.4017338 | I50: min. Verfahrzeit ab | J50: gemessen | K50: =0.045+(C5/25)*0.025 -> 0.055 | L50: =MAX(K48,K53,K42) -> 0.072
A51: Zylinderkraft | B51: N | C51: 294 | I51: Mittlere Verfahrgeschwindigkeit ab | K51: =(C5/1000)/K50 -> 0.1818181818
A52: W2 ( Antriebsenergie ) | B52: Nm | C52: =MAX(C56,C57)*C50 -> 3.2453577 | E52: Max. Zyklen | G52: =MIN(G46,G50,G55) -> 120 | I52: Endgeschwindigkeit ab | K52: =K51*'Allgemeine Werte'!E71 -> 0.3181818182 | L52: Endgeschwindigkeit f. Ber.
A53: W1+W2 ( Energie / Hub ) | B53: Nm | C53: =C52+C49 -> 3.273418801 | I53: min. Verfahrzeit auf | K53: =0.06+((C5/25)*0.03) -> 0.072 | L53: ( min )
A54: Ezul / Zyklus ( Hub ) | B54: Nm | C54: ='Allgemeine Werte'!G38*C50/'Allgemeine Werte'!K38*C46 -> 10.11130435 | E54: Stoßd.-kolbenrückstellzeit | G54: ='Allgemeine Werte'!E38 -> 0.5 | I54: Mittlere Verfahrgeschwindigkeit auf | K54: =(C5/1000)/K53 -> 0.1388888889 | L54: =MIN(K46,K55,K44) -> 0.2430555556
A55: Auslastung / Zyklus | C55: =C53/C54 -> 0.3237385296 | E55: Max. Zyklen aus Rückstellzeit | G55: =60/G54 -> 120 | I55: Endgeschwindigkeit auf | K55: =K54*'Allgemeine Werte'!E71 -> 0.2430555556
A56: Antriebskraft nach oben | C56: =C6-C47*9.81 -> 284.6805
A57: Antriebskraft nach unten | C57: =C9+C47*9.81 -> 235.3195

Sheet EM-Ber-LM100-4
A1: Linearmodul Typ | C1: LM 100
A3: Berechnung der Führungsbelastung
G4: Statisch auf Grund | H4: Statisch auf Grund
A5: Hub | B5: mm | C5: ='EM-LM-4'!K8 -> 10 | G5: Zusatzmasse m | H5: Zusatzmasse m | I5: Dynamisch auf Grund | J5: Statisch auf Grund | K5: Statisch auf Grund
A6: Zylinderkraft vor | B6: N | C6: 294 | G6: Modul ausgef. | H6: Modul eingef. | I6: Zusatzmasse m | J6: Zusatzkraft Modul eingef. | K6: Zusatzkraft Modul ausgef.
A7: Faktor | C7: =ROUNDDOWN((C5/50.1)+0.5,0) -> 0 | G7: I | H7: II | I7: III | J7: IV | K7: V
A8: Modulgewicht | B8: kg | C8: =1.9+(C7*0.7) -> 1.9 | E8: Moment Mx=M2 | F8: Nm | G8: =(C12*9.81)*((C37-C32+C34/2+C33)/1000) -> 0 | H8: =C12*9.81*((C37+C34/2+C33)/1000) -> 0 | I8: =C42*(C15/1000) -> 0 | J8: =(C21*C23/1000)-C25*((C27+C37+C34/2)/1000) -> 0 | K8: =(C21*C23/1000)-C25*((C27+C37-C32+C34/2)/1000) -> 0
A9: Zylinderkraft zurück | B9: N | C9: 226 | E9: Moment My=M1 | F9: Nm | G9: =C12*9.81*(C13/1000) -> 0 | H9: =C12*9.81*(C13/1000) -> 0 | I9: - | J9: =C17*C19/1000-C25*(C26/1000) -> 0 | K9: =C17*C19/1000-C25*(C26/1000) -> 0
A10: Verfahrgeschwindigkeit | B10: m/s | C10: ='EM-LM-4-1'!I58 -> 2.02 | E10: Moment Mz=M3 | F10: Nm | G10: - | H10: - | I10: =C42*(C13/1000) -> 0 | J10: =C21*C22/1000-C17*(C18+C37+C34/2)/1000 -> 0 | K10: =C21*C22/1000-C17*(C18+C37-C32+C34/2)/1000 -> 0
J11: ='EM-LM-4'!G51 -> FALSE
A12: Zusatzmasse | B12: kg | C12: ='EM-LM-4'!K14 -> 0 | E12: Mx Summe I + III | F12: Nm | G12: =G8+I8 -> 0
A13: Schwerpunktabstand x-Richtung | B13: mm | C13: ='EM-LM-4'!M14 -> 0 | E13: Absolutbetrag | G13: =ABS(G12) -> 0
A14: Schwerpunktabstand y-Richtung | B14: mm | C14: ='EM-LM-4'!O14 -> 0 | E14: Mx Summe II-III | G14: =H8-I8 -> 0
A15: Schwerpunktabstand z-Richt.(Mitte Rolle) | B15: mm | C15: ='EM-LM-4'!Q14+44 -> 44 | E15: Absolutbetrag | G15: =ABS(G14) -> 0
E16: I | F16: Nm | G16: =ABS(G8) -> 0
A17: Zusatzkraft Fx | B17: N | C17: ='EM-LM-4'!K18 -> 0 | E17: I oder I+III oder II-III | G17: =MAX(G16,G15,G13) -> 0
A18: Kraftangriffspunkt von Fx in y-Richtung | B18: mm | C18: ='EM-LM-4'!O18 -> 0 | E18: Mx Summe I+V oder II+IV | F18: Nm | G18: =IF(AND(J8=0,K8=0),MAX(G8,H8),IF(J11=TRUE,H8+J8,G8+K8)) -> 0
A19: Kraftangrp. von Fx in z-Richt.(Mitte Rolle) | B19: mm | C19: ='EM-LM-4'!Q18+44 -> 44 | E19: Absolutbetrag | G19: =ABS(G18) -> 0
E20: Mx ges | F20: Nm | G20: =MAX(G17,G19) -> 0
A21: Zusatzkraft Fy | B21: N | C21: ='EM-LM-4'!K20 -> 0 | E21: Mx zul | F21: Nm | G21: =C34/1000*530 -> 29.8125 | I21: Maximal-Werte der Momente und Kräfte nicht aus Katalog, sondern exakt berechnete Werte !!
A22: Kraftangriffspunkt von Fy in x-Richtung | B22: mm | C22: ='EM-LM-4'!M20 -> 0
A23: Kraftangrp. von Fy in z-Richt.(Mitte Rolle) | B23: mm | C23: ='EM-LM-4'!Q20+44 -> 44 | E23: My Summe I+V ( = II+IV ) | F23: Nm | G23: =G9+K9 -> 0
E24: Absolutbetrag | G24: =ABS(G23) -> 0
A25: Zusatzkraft Fz | B25: N | C25: ='EM-LM-4'!K22 -> 0 | E25: My ges | F25: Nm | G25: =G24 -> 0
A26: Kraftangriffspunkt von Fz in x-Richtung | B26: mm | C26: ='EM-LM-4'!M22 -> 0 | E26: My zul | F26: Nm | G26: =36+(14*C7) -> 36
A27: Kraftangriffspunkt von Fz in y-Richtung | B27: mm | C27: ='EM-LM-4'!O22 -> 0
E29: Mz III | F29: Nm | G29: =I10 -> 0
A30: Länge L (Stirnplatte zu 1. Rolle - HubN/2) | B30: mm | C30: 39.6 | E30: Absolutbetrag | G30: =ABS(G29) -> 0
A31: Nennhub/2 HubN/2 | B31: mm | C31: =(25+(C7*50))/2 -> 12.5 | E31: Mz IV/V | F31: Nm | G31: =IF(J11=TRUE,J10,K10) -> 0
A32: tatsächlicher gefahrener Hub/2 | B32: mm | C32: =C5/2 -> 5 | E32: Absolutbetrag | G32: =ABS(G31) -> 0
A33: Schwerpunktabstand in y-Richtung | B33: mm | C33: =C14 -> 0 | E33: Mz ges | F33: Nm | G33: =MAX(G30,G32) -> 0
A34: Wert K ( Abstand erste / letzte Rolle ) | B34: mm | C34: =56.25+(C7*25) -> 56.25 | E34: Mz zul | F34: Nm | G34: =G21/2 -> 14.90625
A35: Anfangswert (Abst. Stirnpl./Deckplatte) | B35: mm | C35: 25
I36: Belastungsgleichung stat. | J36: =G19/G21+G25/G26+G32/G34+G38/G39+G42/G43 -> 0
A37: l1 bei eingefahrenem Hub | B37: mm | C37: =C30+C31-C35 -> 27.1 | E37: Fx ges | F37: N | G37: =C17 -> 0 | I37: Belastungsgleichung dyn. | J37: =G17/G21+G30/G34+G40/G43 -> 0
A38: l1 bei ausgefahrenem Hub | B38: mm | C38: =C30+C31+C32-C35 -> 32.1 | E38: Absolutwert | G38: =ABS(G37) -> 0 | I38: Belastungsgleichung | J38: =MAX(J36:J37) -> 0
E39: Fx zul | F39: N | G39: =G43 -> 2650
A40: Stoßdämpferhub s ( Hub bis a=0 ) | B40: m | C40: ='Allgemeine Werte'!M38 -> 0.007638 | E40: Gewichtskraft | F40: N | G40: =C12*9.81 -> 0
A41: Verzögerung a=vxv/2xs | B41: m/s2 | C41: =POWER(C48,2)/(2*C40) -> 2.368594917 | E41: Fz ges abs | F41: N | G41: =ABS(-C25+C12*9.81) -> 0 | I41: Verfahrzeitberechnung
A42: Kraft zur Verzögerung der Masse | B42: N | C42: =C12*C41 -> 0 | E42: Max aus E40,E41 | G42: =MAX(G40,G41) -> 0 | I42: Verfahrzeit berechnet ( t=Wurzel aus (2xsxm/F) | K42: =(SQRT(2*(C5/1000)*(C12+C8/2)/C9))*(2.7+C7*0.05) -> 0.02475633467
A43: Kraft zur Verzög. d. Masse incl Modul/2 | B43: N | C43: =C47*C41 -> 2.250165171 | E43: Fz zul | F43: N | G43: =2650+1060*C7 -> 2650 | I43: Mittlere Verfahrgeschwindigkeit berechnet | K43: =(C5/1000)/K42 -> 0.4039370179
I44: Endgeschwindigkeit berechnet | K44: =K43*'Allgemeine Werte'!E71 -> 0.7068897813
A45: Stoßdämpferberechnung | E45: Max. Zyklenzahl / Min.
A46: Anzahl Stoßdämpfer | C46: ='EM-LM-4-1'!O22 -> 1 | E46: Zyklen aus Verfahrzeit | G46: =60/(2*L50) -> 326.0869565 | I46: Endgeschwindigkeit (Eingabe) | K46: =C10 -> 2.02
A47: Gesamtmasse | B47: kg | C47: =C12+C8/2 -> 0.95 | I47: Mittlere Verfahrgeschwindigkeit (Eingabe) m/s | K47: =C10/'Allgemeine Werte'!E71 -> 1.154285714
A48: Aufprallgeschwindigkeit | B48: m/s | C48: =L54 -> 0.1902173913 | E48: Ezul / Stunde | F48: Nm | G48: ='Allgemeine Werte'!H38*C46*0.95 -> 26790 | I48: Verfahrzeit (Eingabe) | J48: s | K48: =(C5/1000)/K47 -> 0.008663366337 | L48: Verfahrzeit für Berechnung
A49: W1 | B49: Nm | C49: =C47*POWER(C48,2)*0.5 -> 0.01718676158 | E49: Ezul / Minute | F49: Nm | G49: =G48/60 -> 446.5 | L49: ( max )
A50: Hub Stoßdämpfer | B50: m | C50: ='Allgemeine Werte'!L38 -> 0.0114 | E50: Zyklen aus Ezul | G50: =G49/C53 -> 132.5402976 | I50: min. Verfahrzeit vor | J50: gemessen | K50: =0.05+(C5/25)*0.03 -> 0.062 | L50: =MAX(K48,K53,K42) -> 0.092
A51: Zylinderkraft | B51: N | C51: 294 | I51: Mittlere Verfahrgeschwindigkeit vor | K51: =(C5/1000)/K50 -> 0.1612903226
A52: W2 ( Antriebsenergie ) | B52: Nm | C52: =C51*C50 -> 3.3516 | E52: Max. Zyklen | G52: =MIN(G46,G50,G55) -> 120 | I52: Endgeschwindigkeit vor | K52: =K51*'Allgemeine Werte'!E71 -> 0.2822580645 | L52: Endgeschwindigkeit f. Ber.
A53: W1+W2 ( Energie / Hub ) | B53: Nm | C53: =C52+C49 -> 3.368786762 | I53: min. Verfahrzeit zurück | K53: =0.08+((C5/25)*0.03) -> 0.092 | L53: ( min )
A54: Ezul / Zyklus ( Hub ) | B54: Nm | C54: ='Allgemeine Werte'!G38*C50/'Allgemeine Werte'!K38*C46 -> 10.11130435 | E54: Stoßd.-kolbenrückstellzeit | G54: ='Allgemeine Werte'!E38 -> 0.5 | I54: Mittlere Verfahrgeschwindigkeit zurück | K54: =(C5/1000)/K53 -> 0.1086956522 | L54: =MIN(K46,K55,K44) -> 0.1902173913
A55: Auslastung / Zyklus | C55: =C53/C54 -> 0.3331703454 | E55: Max. Zyklen aus Rückstellzeit | G55: =60/G54 -> 120 | I55: Endgeschwindigkeit zurück | K55: =K54*'Allgemeine Werte'!E71 -> 0.1902173913

Sheet EM-Ber-LM100-5
A1: Linearmodul Typ | C1: LM 100
A3: Berechnung der Führungsbelastung
G4: Statisch auf Grund | H4: Statisch auf Grund
A5: Hub | B5: mm | C5: ='EM-LM-5'!K8 -> 10 | G5: Zusatzmasse m | H5: Zusatzmasse m | I5: Dynamisch auf Grund | J5: Statisch auf Grund | K5: Statisch auf Grund
A6: Zylinderkraft vor | B6: N | C6: 294 | G6: Modul ausgef. | H6: Modul eingef. | I6: Zusatzmasse m | J6: Zusatzkraft Modul eingef. | K6: Zusatzkraft Modul ausgef.
A7: Faktor | C7: =ROUNDDOWN((C5/50.1)+0.5,0) -> 0 | G7: I | H7: II | I7: III | J7: IV | K7: V
A8: Modulgewicht | B8: kg | C8: =1.9+(C7*0.7) -> 1.9 | E8: Moment Mx=M3 | F8: Nm | G8: =(C12*9.81)*((C37-C32+C34/2+C33)/1000) -> 0 | H8: =C12*9.81*((C37+C34/2+C33)/1000) -> 0 | I8: =C42*(C15/1000) -> 0 | J8: =(C21*C23/1000)-C25*((C27+C37+C34/2)/1000) -> 0 | K8: =(C21*C23/1000)-C25*((C27+C37-C32+C34/2)/1000) -> 0
A9: Zylinderkraft zurück | B9: N | C9: 226 | E9: Moment My=M1 | F9: Nm | G9: =C12*9.81*((C13)/1000) -> 0 | H9: =C12*9.81*((C13)/1000) -> 0 | I9: - | J9: =C17*(C19/1000)-C25*C26/1000 -> 0 | K9: =C17*(C19/1000)-C25*C26/1000 -> 0
A10: Verfahrgeschwindigkeit | B10: m/s | C10: ='EM-LM-5-1'!I58 -> 2.02 | E10: Moment Mz=M2 | F10: Nm | G10: - | H10: - | I10: =C42*(C13/1000) -> 0 | J10: =C21*C22/1000-C17*(C18+C37+C34/2)/1000 -> 0 | K10: =C21*C22/1000-C17*(C18+C37-C32+C34/2)/1000 -> 0
J11: ='EM-LM-5'!G51 -> FALSE
A12: Zusatzmasse | B12: kg | C12: ='EM-LM-5'!K14 -> 0 | E12: Mx Summe I + III | F12: Nm | G12: =G8+I8 -> 0
A13: Schwerpunktabstand x-Richt.(Mitte Rolle) | B13: mm | C13: ='EM-LM-5'!M14+44 -> 44 | E13: Absolutbetrag | G13: =ABS(G12) -> 0
A14: Schwerpunktabstand y-Richtung | B14: mm | C14: ='EM-LM-5'!O14 -> 0 | E14: Mx Summe II-III | G14: =H8-I8 -> 0
A15: Schwerpunktabstand z-Richtung | B15: mm | C15: ='EM-LM-5'!Q14 -> 0 | E15: Absolutbetrag | G15: =ABS(G14) -> 0
E16: I | F16: Nm | G16: =ABS(G8) -> 0
A17: Zusatzkraft Fx | B17: N | C17: ='EM-LM-5'!K18 -> 0 | E17: I oder I+III oder II-III | G17: =MAX(G16,G15,G13) -> 0
A18: Kraftangriffspunkt von Fx in y-Richtung | B18: mm | C18: ='EM-LM-5'!O18 -> 0 | E18: Mx Summe I+V oder II+IV | F18: Nm | G18: =IF(AND(J8=0,K8=0),MAX(G8,H8),IF(J11=TRUE,H8+J8,G8+K8)) -> 0
A19: Kraftangriffspunkt von Fx in z-Richtung | B19: mm | C19: ='EM-LM-5'!Q18 -> 0 | E19: Absolutbetrag | G19: =ABS(G18) -> 0
E20: Mx ges | F20: Nm | G20: =MAX(G17,G19) -> 0
A21: Zusatzkraft Fy | B21: N | C21: ='EM-LM-5'!K20 -> 0 | E21: Mx zul | F21: Nm | G21: =G34/2 -> 14.90625 | I21: Maximal-Werte der Momente und Kräfte nicht aus Katalog, sondern exakt berechnete Werte !!
A22: Kraftangrp. von Fy in x-Richt. (Mitte Rolle) | B22: mm | C22: ='EM-LM-5'!M20+44 -> 44
A23: Kraftangrp. von Fy in z-Richt. | B23: mm | C23: ='EM-LM-5'!Q20 -> 0 | E23: My Summe I+V ( = II+IV ) | F23: Nm | G23: =G9+K9 -> 0
E24: Absolutbetrag | G24: =ABS(G23) -> 0
A25: Zusatzkraft Fz | B25: N | C25: ='EM-LM-5'!K22 -> 0 | E25: My ges | F25: Nm | G25: =G24 -> 0
A26: Kraftangrp. von Fz in x-Richt. (Mitte Rolle) | B26: mm | C26: ='EM-LM-5'!M22+44 -> 44 | E26: My zul | F26: Nm | G26: =36+(14*C7) -> 36
A27: Kraftangriffspunkt von Fz in y-Richtung | B27: mm | C27: ='EM-LM-5'!O22 -> 0
E29: Mz III | F29: Nm | G29: =I10 -> 0
A30: Länge L (Stirnplatte zu 1. Rolle - HubN/2) | B30: mm | C30: 39.6 | E30: Absolutbetrag | G30: =ABS(G29) -> 0
A31: Nennhub/2 HubN/2 | B31: mm | C31: =(25+(C7*50))/2 -> 12.5 | E31: Mz IV/V | F31: Nm | G31: =IF(J11=TRUE,J10,K10) -> 0
A32: tatsächlicher gefahrener Hub/2 | B32: mm | C32: =C5/2 -> 5 | E32: Absolutbetrag | G32: =ABS(G31) -> 0
A33: Schwerpunktabstand in y-Richtung | B33: mm | C33: =C14 -> 0 | E33: Mz ges | F33: Nm | G33: =MAX(G30,G32) -> 0
A34: Wert K ( Abstand erste / letzte Rolle ) | B34: mm | C34: =56.25+(C7*25) -> 56.25 | E34: Mz zul | F34: Nm | G34: =C34/1000*530 -> 29.8125
A35: Anfangswert (Abst. Stirnpl./Deckplatte) | B35: mm | C35: 25
I36: Belastungsgleichung stat. | J36: =G19/G21+G25/G26+G32/G34+G38/G39+G42/G43 -> 0
A37: l1 bei eingefahrenem Hub | B37: mm | C37: =C30+C31-C35 -> 27.1 | E37: Fx ges | F37: N | G37: =C17 -> 0 | I37: Belastungsgleichung dyn. | J37: =G17/G21+G30/G34+G40/G43 -> 0
A38: l1 bei ausgefahrenem Hub | B38: mm | C38: =C30+C31+C32-C35 -> 32.1 | E38: Absolutwert | G38: =ABS(G37) -> 0 | I38: Belastungsgleichung | J38: =MAX(J36:J37) -> 0
E39: Fx zul | F39: N | G39: =G43 -> 2650
A40: Stoßdämpferhub s ( Hub bis a=0 ) | B40: m | C40: ='Allgemeine Werte'!M38 -> 0.007638 | E40: Gewichtskraft | F40: N | G40: =C12*9.81 -> 0
A41: Verzögerung a=vxv/2xs | B41: m/s2 | C41: =POWER(C48,2)/(2*C40) -> 2.368594917 | E41: Fz ges abs | F41: N | G41: =ABS(-C25+C12*9.81) -> 0 | I41: Verfahrzeitberechnung
A42: Kraft zur Verzögerung der Masse | B42: N | C42: =C12*C41 -> 0 | E42: Max aus E40,E41 | G42: =MAX(G40,G41) -> 0 | I42: Verfahrzeit berechnet ( t=Wurzel aus (2xsxm/F) | K42: =(SQRT(2*(C5/1000)*(C12+C8/2)/C9))*(2.7+C7*0.05) -> 0.02475633467
A43: Kraft zur Verzög. d. Masse incl Modul/2 | B43: N | C43: =C47*C41 -> 2.250165171 | E43: Fz zul | F43: N | G43: =2650+1060*C7 -> 2650 | I43: Mittlere Verfahrgeschwindigkeit berechnet | K43: =(C5/1000)/K42 -> 0.4039370179
I44: Endgeschwindigkeit berechnet | K44: =K43*'Allgemeine Werte'!E71 -> 0.7068897813
A45: Stoßdämpferberechnung | E45: Max. Zyklenzahl / Min.
A46: Anzahl Stoßdämpfer | C46: ='EM-LM-5-1'!O22 -> 1 | E46: Zyklen aus Verfahrzeit | G46: =60/(2*L50) -> 326.0869565 | I46: Endgeschwindigkeit (Eingabe) | K46: =C10 -> 2.02
A47: Gesamtmasse | B47: kg | C47: =C12+C8/2 -> 0.95 | I47: Mittlere Verfahrgeschwindigkeit (Eingabe) m/s | K47: =C10/'Allgemeine Werte'!E71 -> 1.154285714
A48: Aufprallgeschwindigkeit | B48: m/s | C48: =L54 -> 0.1902173913 | E48: Ezul / Stunde | F48: Nm | G48: ='Allgemeine Werte'!H38*C46*0.95 -> 26790 | I48: Verfahrzeit (Eingabe) | J48: s | K48: =(C5/1000)/K47 -> 0.008663366337 | L48: Verfahrzeit für Berechnung
A49: W1 | B49: Nm | C49: =C47*POWER(C48,2)*0.5 -> 0.01718676158 | E49: Ezul / Minute | F49: Nm | G49: =G48/60 -> 446.5 | L49: ( max )
A50: Hub Stoßdämpfer | B50: m | C50: ='Allgemeine Werte'!L38 -> 0.0114 | E50: Zyklen aus Ezul | G50: =G49/C53 -> 132.5402976 | I50: min. Verfahrzeit vor | J50: gemessen | K50: =0.05+(C5/25)*0.03 -> 0.062 | L50: =MAX(K48,K53,K42) -> 0.092
A51: Zylinderkraft | B51: N | C51: 294 | I51: Mittlere Verfahrgeschwindigkeit vor | K51: =(C5/1000)/K50 -> 0.1612903226
A52: W2 ( Antriebsenergie ) | B52: Nm | C52: =C51*C50 -> 3.3516 | E52: Max. Zyklen | G52: =MIN(G46,G50,G55) -> 120 | I52: Endgeschwindigkeit vor | K52: =K51*'Allgemeine Werte'!E71 -> 0.2822580645 | L52: Endgeschwindigkeit f. Ber.
A53: W1+W2 ( Energie / Hub ) | B53: Nm | C53: =C52+C49 -> 3.368786762 | I53: min. Verfahrzeit zurück | K53: =0.08+((C5/25)*0.03) -> 0.092 | L53: ( min )
A54: Ezul / Zyklus ( Hub ) | B54: Nm | C54: ='Allgemeine Werte'!G38*C50/'Allgemeine Werte'!K38*C46 -> 10.11130435 | E54: Stoßd.-kolbenrückstellzeit | G54: ='Allgemeine Werte'!E38 -> 0.5 | I54: Mittlere Verfahrgeschwindigkeit zurück | K54: =(C5/1000)/K53 -> 0.1086956522 | L54: =MIN(K46,K55,K44) -> 0.1902173913
A55: Auslastung / Zyklus | C55: =C53/C54 -> 0.3331703454 | E55: Max. Zyklen aus Rückstellzeit | G55: =60/G54 -> 120 | I55: Endgeschwindigkeit zurück | K55: =K54*'Allgemeine Werte'!E71 -> 0.1902173913

Sheet EM-Ber-LM100-6
A1: Linearmodul Typ | C1: LM 100
A3: Berechnung der Führungsbelastung
G4: Statisch auf Grund | H4: Statisch auf Grund
A5: Hub | B5: mm | C5: ='EM-LM-6'!K8 -> 10 | G5: Zusatzmasse m | H5: Zusatzmasse m | I5: Dynamisch auf Grund | J5: Statisch auf Grund | K5: Statisch auf Grund
A6: Zylinderkraft vor | B6: N | C6: 294 | G6: Modul ausgef. | H6: Modul eingef. | I6: Zusatzmasse m | J6: Zusatzkraft Modul eingef. | K6: Zusatzkraft Modul ausgef.
A7: Faktor | C7: =ROUNDDOWN((C5/50.1)+0.5,0) -> 0 | G7: I | H7: II | I7: III | J7: IV | K7: V
A8: Modulgewicht | B8: kg | C8: =1.9+(C7*0.7) -> 1.9 | E8: Moment Mx=M3 | F8: Nm | G8: =C12*9.81*((C15)/1000) -> 0 | H8: =C12*9.81*((C15)/1000) -> 0 | I8: =C42*(C15/1000) -> 0 | J8: =IF(K11=TRUE,-(C21*C23/1000)+C25*((C27+C37+C34/2)/1000),(C21*C23/1000)-C25*((C27+C37+C34/2)/1000)) -> 0 | K8: =IF(K11=TRUE,-(C21*C23/1000)+C25*((C27+C37-C32+C34/2)/1000),(C21*C23/1000)-C25*((C27+C37-C32+C34/2)/1000)) -> 0
A9: Zylinderkraft zurück | B9: N | C9: 226 | E9: Moment My=M1 | F9: Nm | G9: - | H9: - | I9: - | J9: =C17*(C19/1000)-C25*C26/1000 -> 0 | K9: =C17*(C19/1000)-C25*C26/1000 -> 0
A10: Verfahrgeschwindigkeit | B10: m/s | C10: ='EM-LM-6-1'!I58 -> 2.02 | E10: Moment Mz=M2 | F10: Nm | G10: =C12*9.81*((C13)/1000) -> 0 | H10: =C12*9.81*((C13)/1000) -> 0 | I10: =C42*(C13/1000) -> 0 | J10: =IF(K11=TRUE,-C21*C22/1000+C17*(C18+C37+C34/2)/1000,C21*C22/1000-C17*(C18+C37+C34/2)/1000) -> 0 | K10: =IF(K11=TRUE,-C21*C22/1000+C17*(C18+C37-C32+C34/2)/1000,C21*C22/1000-C17*(C18+C37-C32+C34/2)/1000) -> 0
J11: ='EM-LM-6'!G51 -> FALSE | K11: ='EM-LM-6'!G52 -> TRUE
A12: Zusatzmasse | B12: kg | C12: ='EM-LM-6'!K14 -> 0
A13: Schwerpunktabstand x-Richt.(Mitte Rolle) | B13: mm | C13: ='EM-LM-6'!M14+44 -> 44
A14: Schwerpunktabstand y-Richtung | B14: mm | C14: ='EM-LM-6'!O14 -> 0
A15: Schwerpunktabstand z-Richtung | B15: mm | C15: ='EM-LM-6'!Q14 -> 0
E16: Mx Summe I(II) + III | F16: Nm | G16: =G8+I8 -> 0
A17: Zusatzkraft Fx | B17: N | C17: ='EM-LM-6'!K18 -> 0 | E17: Absolutbetrag | G17: =ABS(G16) -> 0
A18: Kraftangriffspunkt von Fx in y-Richtung | B18: mm | C18: ='EM-LM-6'!O18 -> 0 | E18: Mx Summe I+V oder II+IV | F18: Nm | G18: =IF(J11=TRUE,H8+J8,G8+K8) -> 0
A19: Kraftangriffspunkt von Fx in z-Richtung | B19: mm | C19: ='EM-LM-6'!Q18 -> 0 | E19: Absolutbetrag | G19: =ABS(G18) -> 0
E20: Mx ges | F20: Nm | G20: =MAX(G17,G19) -> 0
A21: Zusatzkraft Fy | B21: N | C21: ='EM-LM-6'!K20 -> 0 | E21: Mx zul | F21: Nm | G21: =G34/2 -> 14.90625 | I21: Maximal-Werte der Momente und Kräfte nicht aus Katalog, sondern exakt berechnete Werte !!
A22: Kraftangrp. von Fy in x-Richt. (Mitte Rolle) | B22: mm | C22: ='EM-LM-6'!M20+44 -> 44
A23: Kraftangrp. von Fy in z-Richt. | B23: mm | C23: ='EM-LM-6'!Q20 -> 0 | E23: My IV = V | F23: Nm | G23: =J9 -> 0
E24: Absolutbetrag | G24: =ABS(G23) -> 0
A25: Zusatzkraft Fz | B25: N | C25: ='EM-LM-6'!K22 -> 0 | E25: My ges | F25: Nm | G25: =G24 -> 0
A26: Kraftangrp. von Fz in x-Richt. (Mitte Rolle) | B26: mm | C26: ='EM-LM-6'!M22+44 -> 44 | E26: My zul | F26: Nm | G26: =36+(14*C7) -> 36
A27: Kraftangriffspunkt von Fz in y-Richtung | B27: mm | C27: ='EM-LM-6'!O22 -> 0
E29: Mz Summe I(II)+III | F29: Nm | G29: =G10+I10 -> 0
A30: Länge L (Stirnplatte zu 1. Rolle - HubN/2) | B30: mm | C30: 39.6 | E30: Absolutbetrag | G30: =ABS(G29) -> 0
A31: Nennhub/2 HubN/2 | B31: mm | C31: =(25+(C7*50))/2 -> 12.5 | E31: Mz Summe I+V oder II+IV | F31: Nm | G31: =IF(J11=TRUE,H10+J10,G10+K10) -> 0
A32: tatsächlicher gefahrener Hub/2 | B32: mm | C32: =C5/2 -> 5 | E32: Absolutbetrag | G32: =ABS(G31) -> 0
A33: Schwerpunktabstand in y-Richtung | B33: mm | C33: =C14 -> 0 | E33: Mz ges | F33: Nm | G33: =MAX(G30,G32) -> 0
A34: Wert K ( Abstand erste / letzte Rolle ) | B34: mm | C34: =56.25+(C7*25) -> 56.25 | E34: Mz zul | F34: Nm | G34: =C34/1000*530 -> 29.8125
A35: Anfangswert (Abst. Stirnpl./Deckplatte) | B35: mm | C35: 25
I36: Belastungsgleichung stat. | J36: =G19/G21+G25/G26+G32/G34+G38/G39+G42/G43 -> 0
A37: l1 bei eingefahrenem Hub | B37: mm | C37: =C30+C31-C35 -> 27.1 | E37: Fx ges | F37: N | G37: =C17 -> 0 | I37: Belastungsgleichung dyn. | J37: =G17/G21+G30/G34 -> 0
A38: l1 bei ausgefahrenem Hub | B38: mm | C38: =C30+C31+C32-C35 -> 32.1 | E38: Absolutwert | G38: =ABS(G37) -> 0 | I38: Belastungsgleichung | J38: =MAX(J36:J37) -> 0
E39: Fx zul | F39: N | G39: =G43 -> 2650
A40: Stoßdämpferhub s ( Hub bis a=0 ) | B40: m | C40: ='Allgemeine Werte'!M38 -> 0.007638
A41: Verzögerung a=vxv/2xs | B41: m/s2 | C41: =POWER(C48,2)/(2*C40) -> 3.867242936 | E41: Fz ges | F41: N | G41: =-C25 -> 0 | I41: Verfahrzeitberechnung
A42: Kraft zur Verzögerung der Masse | B42: N | C42: =C12*C41 -> 0 | E42: Absolutwert | G42: =ABS(G41) -> 0 | I42: Verfahrzeit berechnet ( t=Wurzel aus (2xsxm/F) | K42: =(SQRT(2*(C5/1000)*(C12+C8/2)/(C6-(C12+C8/2)*9.81)))*(2.45+C7*0.05) -> 0.02001538853
A43: Kraft zur Verzög. d. Masse incl Modul/2 | B43: N | C43: =C47*C41 -> 3.673880789 | E43: Fz zul | F43: N | G43: =2650+1060*C7 -> 2650 | I43: Mittlere Verfahrgeschwindigkeit berechnet | K43: =(C5/1000)/K42 -> 0.4996155825
I44: Endgeschwindigkeit berechnet | K44: =K43*'Allgemeine Werte'!E71 -> 0.8743272694
A45: Stoßdämpferberechnung | E45: Max. Zyklenzahl / Min.
A46: Anzahl Stoßdämpfer | C46: ='EM-LM-6-1'!O22 -> 1 | E46: Zyklen aus Verfahrzeit | G46: =60/(2*L50) -> 416.6666667 | I46: Endgeschwindigkeit (Eingabe) | K46: =C10 -> 2.02
A47: Gesamtmasse | B47: kg | C47: =C12+C8/2 -> 0.95 | I47: Mittlere Verfahrgeschwindigkeit (Eingabe) m/s | K47: =C10/'Allgemeine Werte'!E71 -> 1.154285714
A48: Aufprallgeschwindigkeit | B48: m/s | C48: =L54 -> 0.2430555556 | E48: Ezul / Stunde | F48: Nm | G48: ='Allgemeine Werte'!H38*C46*0.95 -> 26790 | I48: Verfahrzeit (Eingabe) | J48: s | K48: =(C5/1000)/K47 -> 0.008663366337 | L48: Verfahrzeit für Berechnung
A49: W1 | B49: Nm | C49: =C47*POWER(C48,2)*0.5 -> 0.02806110147 | E49: Ezul / Minute | F49: Nm | G49: =G48/60 -> 446.5 | L49: ( max )
A50: Hub Stoßdämpfer | B50: m | C50: ='Allgemeine Werte'!L38 -> 0.0114 | E50: Zyklen aus Ezul | G50: =G49/C53 -> 136.4017338 | I50: min. Verfahrzeit ab | J50: gemessen | K50: =0.045+(C5/25)*0.025 -> 0.055 | L50: =MAX(K48,K53,K42) -> 0.072
A51: Zylinderkraft | B51: N | C51: 294 | I51: Mittlere Verfahrgeschwindigkeit ab | K51: =(C5/1000)/K50 -> 0.1818181818
A52: W2 ( Antriebsenergie ) | B52: Nm | C52: =MAX(C56,C57)*C50 -> 3.2453577 | E52: Max. Zyklen | G52: =MIN(G46,G50,G55) -> 120 | I52: Endgeschwindigkeit ab | K52: =K51*'Allgemeine Werte'!E71 -> 0.3181818182 | L52: Endgeschwindigkeit f. Ber.
A53: W1+W2 ( Energie / Hub ) | B53: Nm | C53: =C52+C49 -> 3.273418801 | I53: min. Verfahrzeit auf | K53: =0.06+((C5/25)*0.03) -> 0.072 | L53: ( min )
A54: Ezul / Zyklus ( Hub ) | B54: Nm | C54: ='Allgemeine Werte'!G38*C50/'Allgemeine Werte'!K38*C46 -> 10.11130435 | E54: Stoßd.-kolbenrückstellzeit | G54: ='Allgemeine Werte'!E38 -> 0.5 | I54: Mittlere Verfahrgeschwindigkeit auf | K54: =(C5/1000)/K53 -> 0.1388888889 | L54: =MIN(K46,K55,K44) -> 0.2430555556
A55: Auslastung / Zyklus | C55: =C53/C54 -> 0.3237385296 | E55: Max. Zyklen aus Rückstellzeit | G55: =60/G54 -> 120 | I55: Endgeschwindigkeit auf | K55: =K54*'Allgemeine Werte'!E71 -> 0.2430555556
A56: Antriebskraft nach oben | C56: =C6-C47*9.81 -> 284.6805
A57: Antriebskraft nach unten | C57: =C9+C47*9.81 -> 235.3195

Sheet EM-Ber-LM200-1
A1: Linearmodul Typ | C1: LM 200
A3: Berechnung der Führungsbelastung
G4: Statisch auf Grund | H4: Statisch auf Grund
A5: Hub | B5: mm | C5: ='EM-LM-1'!K8 -> 10 | G5: Zusatzmasse m | H5: Zusatzmasse m | I5: Dynamisch auf Grund | J5: Statisch auf Grund | K5: Statisch auf Grund
A6: Zylinderkraft | B6: N | C6: 482 | G6: Modul ausgef. | H6: Modul eingef. | I6: Zusatzmasse m | J6: Zusatzkraft Modul eingef. | K6: Zusatzkraft Modul ausgef.
A7: Faktor | C7: =ROUNDDOWN(((C5+25)/50.1)+0.5,0) -> 1 | G7: I | H7: II | I7: III | J7: IV | K7: V
A8: Modulgewicht | B8: kg | C8: =2.8+(C7*1.1) -> 3.9 | E8: Moment Mx=M2 | F8: Nm | G8: =(C12*9.81)*((C38+C34/2+C33)/1000) -> 0 | H8: =C12*9.81*((C37+C34/2+C33)/1000) -> 0 | I8: =C42*(C15/1000) -> 0 | J8: =(C21*C23/1000)-C25*((C27+C37+C34/2)/1000) -> 0 | K8: =(C21*C23/1000)-C25*((C27+C38+C34/2)/1000) -> 0
A9: Zylinderkraft zurück | B9: N | C9: 415 | E9: Moment My=M1 | F9: Nm | G9: =C12*9.81*(C13/1000) -> 0 | H9: =C12*9.81*(C13/1000) -> 0 | I9: - | J9: =C17*C19/1000-C25*(C26/1000) -> 0 | K9: =C17*C19/1000-C25*(C26/1000) -> 0
A10: Verfahrgeschwindigkeit | B10: m/s | C10: ='EM-LM-1-1'!I58 -> 2.02 | E10: Moment Mz=M3 | F10: Nm | G10: - | H10: - | I10: =C42*(C13/1000) -> 0 | J10: =C21*C22/1000-C17*(C18+C37+C34/2)/1000 -> 0 | K10: =C21*C22/1000-C17*(C18+C38+C34/2)/1000 -> 0
J11: ='EM-LM-1'!G51 -> TRUE
A12: Zusatzmasse | B12: kg | C12: ='EM-LM-1'!K14 -> 0 | E12: Mx Summe I + III | F12: Nm | G12: =G8+I8 -> 0
A13: Schwerpunktabstand x-Richtung | B13: mm | C13: ='EM-LM-1'!M14 -> 0 | E13: Absolutbetrag | G13: =ABS(G12) -> 0
A14: Schwerpunktabstand y-Richtung | B14: mm | C14: ='EM-LM-1'!O14 -> 0 | E14: Mx Summe II-III | G14: =H8-I8 -> 0
A15: Schwerpunktabstand z-Richt.(Mitte Rolle) | B15: mm | C15: ='EM-LM-1'!Q14+18.5 -> 18.5 | E15: Absolutbetrag | G15: =ABS(G14) -> 0
E16: I | F16: Nm | G16: =ABS(G8) -> 0
A17: Zusatzkraft Fx | B17: N | C17: ='EM-LM-1'!K18 -> 0 | E17: I oder I+III oder II-III | G17: =MAX(G16,G15,G13) -> 0
A18: Kraftangriffspunkt von Fx in y-Richtung | B18: mm | C18: ='EM-LM-1'!O18 -> 0 | E18: Mx Summe I+V oder II+IV | F18: Nm | G18: =IF(AND(J8=0,K8=0),MAX(G8,H8),IF(J11=TRUE,H8+J8,G8+K8)) -> 0
A19: Kraftangrp. von Fx in z-Richt.(Mitte Rolle) | B19: mm | C19: ='EM-LM-1'!Q18+18.5 -> 18.5 | E19: Absolutbetrag | G19: =ABS(G18) -> 0
E20: Mx ges | F20: Nm | G20: =MAX(G17,G19) -> 0
A21: Zusatzkraft Fy | B21: N | C21: ='EM-LM-1'!K20 -> 0 | E21: Mx zul | F21: Nm | G21: =C34/1000*1060 -> 63.07 | I21: Maximal-Werte der Momente und Kräfte nicht aus Katalog, sondern exakt berechnete Werte !!
A22: Kraftangriffspunkt von Fy in x-Richtung | B22: mm | C22: ='EM-LM-1'!M20 -> 0
A23: Kraftangrp. von Fy in z-Richt.(Mitte Rolle) | B23: mm | C23: ='EM-LM-1'!Q20+18.5 -> 18.5 | E23: My Summe I+V ( = II+IV ) | F23: Nm | G23: =G9+K9 -> 0
E24: Absolutbetrag | G24: =ABS(G23) -> 0
A25: Zusatzkraft Fz | B25: N | C25: ='EM-LM-1'!K22 -> 0 | E25: My ges | F25: Nm | G25: =G24 -> 0
A26: Kraftangriffspunkt von Fz in x-Richtung | B26: mm | C26: ='EM-LM-1'!M22 -> 0 | E26: My zul | F26: Nm | G26: =28+(22*C7) -> 50
A27: Kraftangriffspunkt von Fz in y-Richtung | B27: mm | C27: ='EM-LM-1'!O22 -> 0
E29: Mz III | F29: Nm | G29: =I10 -> 0
A30: Länge L (Stirnplatte zu 1. Rolle - HubN/2) | B30: mm | C30: 44 | E30: Absolutbetrag | G30: =ABS(G29) -> 0
A31: Nennhub/2 HubN/2 | B31: mm | C31: =(0+(C7*50))/2 -> 25 | E31: Mz IV/V | F31: Nm | G31: =IF(J11=TRUE,J10,K10) -> 0
A32: tatsächlicher gefahrener Hub/2 | B32: mm | C32: =C5/2 -> 5 | E32: Absolutbetrag | G32: =ABS(G31) -> 0
A33: Schwerpunktabstand in y-Richtung | B33: mm | C33: =C14 -> 0 | E33: Mz ges | F33: Nm | G33: =MAX(G30,G32) -> 0
A34: Wert K ( Abstand erste / letzte Rolle ) | B34: mm | C34: =34+(C7*25.5) -> 59.5 | E34: Mz zul | F34: Nm | G34: =G21/2 -> 31.535
I36: Belastungsgleichung stat. | J36: =G19/G21+G25/G26+G32/G34+G38/G39+G42/G43 -> 0
A37: l1 bei eingefahrenem Hub | B37: mm | C37: =C30+C31 -> 69 | E37: Fx ges | F37: N | G37: =C17 -> 0 | I37: Belastungsgleichung dyn. | J37: =G17/G21+G30/G34+G40/G43 -> 0
A38: l1 bei ausgefahrenem Hub | B38: mm | C38: =C30+C31+C32 -> 74 | E38: Absolutwert | G38: =ABS(G37) -> 0 | I38: Belastungsgleichung | J38: =MAX(J36:J37) -> 0
E39: Fx zul | F39: N | G39: =G43 -> 3710
A40: Stoßdämpferhub s ( Hub bis a=0 ) | B40: m | C40: ='Allgemeine Werte'!M41 -> 0.010586 | E40: Gewichtskraft | F40: N | G40: =C12*9.81 -> 0
A41: Verzögerung a=vxv/2xs | B41: m/s2 | C41: =POWER(C48,2)/(2*C40) -> 2.571530533 | E41: Fz ges abs | F41: N | G41: =ABS(-C25+C12*9.81) -> 0 | I41: Verfahrzeitberechnung
A42: Kraft zur Verzögerung der Masse | B42: N | C42: =C12*C41 -> 0 | E42: Max aus E40,E41 | G42: =MAX(G40,G41) -> 0 | I42: Verfahrzeit berechnet ( t=Wurzel aus (2xsxm/F) | K42: =(SQRT(2*(C5/1000)*(C12+C8/2)/C9))*(2.25+C7*0.05) -> 0.02229646901
A43: Kraft zur Verzög. d. Masse incl Modul/2 | B43: N | C43: =C47*C41 -> 5.014484539 | E43: Fz zul | F43: N | G43: =2120+1590*C7 -> 3710 | I43: Mittlere Verfahrgeschwindigkeit berechnet | K43: =(C5/1000)/K42 -> 0.4485015093
I44: Endgeschwindigkeit berechnet | K44: =K43*'Allgemeine Werte'!E71 -> 0.7848776412
A45: Stoßdämpferberechnung | E45: Max. Zyklenzahl / Min.
A46: Anzahl Stoßdämpfer | C46: ='EM-LM-1-1'!Q22 -> 1 | E46: Zyklen aus Verfahrzeit | G46: =60/(2*L50) -> 400 | I46: Endgeschwindigkeit (Eingabe) | K46: =C10 -> 2.02
A47: Gesamtmasse | B47: kg | C47: =C12+C8/2 -> 1.95 | I47: Mittlere Verfahrgeschwindigkeit (Eingabe) m/s | K47: =C10/'Allgemeine Werte'!E71 -> 1.154285714
A48: Aufprallgeschwindigkeit | B48: m/s | C48: =L54 -> 0.2333333333 | E48: Ezul / Stunde | F48: Nm | G48: ='Allgemeine Werte'!H41*C46*0.95 -> 32300 | I48: Verfahrzeit (Eingabe) | J48: s | K48: =(C5/1000)/K47 -> 0.008663366337 | L48: Verfahrzeit für Berechnung
A49: W1 | B49: Nm | C49: =C47*POWER(C48,2)*0.5 -> 0.05308333333 | E49: Ezul / Minute | F49: Nm | G49: =G48/60 -> 538.3333333 | L49: ( max )
A50: Hub Stoßdämpfer | B50: m | C50: ='Allgemeine Werte'!L41 -> 0.0158 | E50: Zyklen aus Ezul | G50: =G49/C53 -> 70.19892593 | I50: min. Verfahrzeit vor | J50: gemessen | K50: =0.06+(C5/25)*0.02 -> 0.068 | L50: =MAX(K48,K53,K42) -> 0.075
A51: Zylinderkraft | B51: N | C51: 482 | I51: Mittlere Verfahrgeschwindigkeit vor | K51: =(C5/1000)/K50 -> 0.1470588235
A52: W2 ( Antriebsenergie ) | B52: Nm | C52: =C51*C50 -> 7.6156 | E52: Max. Zyklen | G52: =MIN(G46,G50,G55) -> 70.19892593 | I52: Endgeschwindigkeit vor | K52: =K51*'Allgemeine Werte'!E71 -> 0.2573529412 | L52: Endgeschwindigkeit f. Ber.
A53: W1+W2 ( Energie / Hub ) | B53: Nm | C53: =C52+C49 -> 7.668683333 | I53: min. Verfahrzeit zurück | K53: =0.065+((C5/25)*0.025) -> 0.075 | L53: ( min )
A54: Ezul / Zyklus ( Hub ) | B54: Nm | C54: ='Allgemeine Werte'!G41*C50/'Allgemeine Werte'!K41*C46 -> 25.675 | E54: Stoßd.-kolbenrückstellzeit | G54: ='Allgemeine Werte'!E41 -> 0.75 | I54: Mittlere Verfahrgeschwindigkeit zurück | K54: =(C5/1000)/K53 -> 0.1333333333 | L54: =MIN(K46,K55,K44) -> 0.2333333333
A55: Auslastung / Zyklus | C55: =C53/C54 -> 0.2986828952 | E55: Max. Zyklen aus Rückstellzeit | G55: =60/G54 -> 80 | I55: Endgeschwindigkeit zurück | K55: =K54*'Allgemeine Werte'!E71 -> 0.2333333333

Sheet EM-Ber-LM200-2
A1: Linearmodul Typ | C1: LM 200
A3: Berechnung der Führungsbelastung
G4: Statisch auf Grund | H4: Statisch auf Grund
A5: Hub | B5: mm | C5: ='EM-LM-2'!K8 -> 10 | G5: Zusatzmasse m | H5: Zusatzmasse m | I5: Dynamisch auf Grund | J5: Statisch auf Grund | K5: Statisch auf Grund
A6: Zylinderkraft | B6: N | C6: 482 | G6: Modul ausgef. | H6: Modul eingef. | I6: Zusatzmasse m | J6: Zusatzkraft Modul eingef. | K6: Zusatzkraft Modul ausgef.
A7: Faktor | C7: =ROUNDDOWN(((C5+25)/50.1)+0.5,0) -> 1 | G7: I | H7: II | I7: III | J7: IV | K7: V
A8: Modulgewicht | B8: kg | C8: =2.8+(C7*1.1) -> 3.9 | E8: Moment Mx=M3 | F8: Nm | G8: =(C12*9.81)*((C38+C34/2+C33)/1000) -> 0 | H8: =C12*9.81*((C37+C34/2+C33)/1000) -> 0 | I8: =C42*(C15/1000) -> 0 | J8: =(C21*C23/1000)-C25*((C27+C37+C34/2)/1000) -> 0 | K8: =(C21*C23/1000)-C25*((C27+C38+C34/2)/1000) -> 0
A9: Zylinderkraft zurück | B9: N | C9: 415 | E9: Moment My=M1 | F9: Nm | G9: =C12*9.81*((C13)/1000) -> 0 | H9: =C12*9.81*((C13)/1000) -> 0 | I9: - | J9: =C17*(C19/1000)-C25*C26/1000 -> 0 | K9: =C17*(C19/1000)-C25*C26/1000 -> 0
A10: Verfahrgeschwindigkeit | B10: m/s | C10: ='EM-LM-2-1'!I58 -> 2.02 | E10: Moment Mz=M2 | F10: Nm | G10: - | H10: - | I10: =C42*(C13/1000) -> 0 | J10: =C21*C22/1000-C17*(C18+C37+C34/2)/1000 -> 0 | K10: =C21*C22/1000-C17*(C18+C38+C34/2)/1000 -> 0
J11: ='EM-LM-2'!G51 -> TRUE
A12: Zusatzmasse | B12: kg | C12: ='EM-LM-2'!K14 -> 0 | E12: Mx Summe I + III | F12: Nm | G12: =G8+I8 -> 0
A13: Schwerpunktabstand x-Richt.(Mitte Rolle) | B13: mm | C13: ='EM-LM-2'!M14+18.5 -> 18.5 | E13: Absolutbetrag | G13: =ABS(G12) -> 0
A14: Schwerpunktabstand y-Richtung | B14: mm | C14: ='EM-LM-2'!O14 -> 0 | E14: Mx Summe II-III | G14: =H8-I8 -> 0
A15: Schwerpunktabstand z-Richtung | B15: mm | C15: ='EM-LM-2'!Q14 -> 0 | E15: Absolutbetrag | G15: =ABS(G14) -> 0
E16: I | F16: Nm | G16: =ABS(G8) -> 0
A17: Zusatzkraft Fx | B17: N | C17: ='EM-LM-2'!K18 -> 0 | E17: I oder I+III oder II-III | G17: =MAX(G16,G15,G13) -> 0
A18: Kraftangriffspunkt von Fx in y-Richtung | B18: mm | C18: ='EM-LM-2'!O18 -> 0 | E18: Mx Summe I+V oder II+IV | F18: Nm | G18: =IF(AND(J8=0,K8=0),MAX(G8,H8),IF(J11=TRUE,H8+J8,G8+K8)) -> 0
A19: Kraftangriffspunkt von Fx in z-Richtung | B19: mm | C19: ='EM-LM-2'!Q18 -> 0 | E19: Absolutbetrag | G19: =ABS(G18) -> 0
E20: Mx ges | F20: Nm | G20: =MAX(G17,G19) -> 0
A21: Zusatzkraft Fy | B21: N | C21: ='EM-LM-2'!K20 -> 0 | E21: Mx zul | F21: Nm | G21: =G34/2 -> 31.535 | I21: Maximal-Werte der Momente und Kräfte nicht aus Katalog, sondern exakt berechnete Werte !!
A22: Kraftangrp. von Fy in x-Richt. (Mitte Rolle) | B22: mm | C22: ='EM-LM-2'!M20+18.5 -> 18.5
A23: Kraftangrp. von Fy in z-Richt. | B23: mm | C23: ='EM-LM-2'!Q20 -> 0 | E23: My Summe I+V ( = II+IV ) | F23: Nm | G23: =G9+K9 -> 0
E24: Absolutbetrag | G24: =ABS(G23) -> 0
A25: Zusatzkraft Fz | B25: N | C25: ='EM-LM-2'!K22 -> 0 | E25: My ges | F25: Nm | G25: =G24 -> 0
A26: Kraftangrp. von Fz in x-Richt. (Mitte Rolle) | B26: mm | C26: ='EM-LM-2'!M22+18.5 -> 18.5 | E26: My zul | F26: Nm | G26: =28+(22*C7) -> 50
A27: Kraftangriffspunkt von Fz in y-Richtung | B27: mm | C27: ='EM-LM-2'!O22 -> 0
E29: Mz III | F29: Nm | G29: =I10 -> 0
A30: Länge L (Stirnplatte zu 1. Rolle - HubN/2) | B30: mm | C30: 44 | E30: Absolutbetrag | G30: =ABS(G29) -> 0
A31: Nennhub/2 HubN/2 | B31: mm | C31: =(0+(C7*50))/2 -> 25 | E31: Mz IV/V | F31: Nm | G31: =IF(J11=TRUE,J10,K10) -> 0
A32: tatsächlicher gefahrener Hub/2 | B32: mm | C32: =C5/2 -> 5 | E32: Absolutbetrag | G32: =ABS(G31) -> 0
A33: Schwerpunktabstand in y-Richtung | B33: mm | C33: =C14 -> 0 | E33: Mz ges | F33: Nm | G33: =MAX(G30,G32) -> 0
A34: Wert K ( Abstand erste / letzte Rolle ) | B34: mm | C34: =34+(C7*25.5) -> 59.5 | E34: Mz zul | F34: Nm | G34: =C34/1000*1060 -> 63.07
I36: Belastungsgleichung stat. | J36: =G19/G21+G25/G26+G32/G34+G38/G39+G42/G43 -> 0
A37: l1 bei eingefahrenem Hub | B37: mm | C37: =C30+C31 -> 69 | E37: Fx ges | F37: N | G37: =C17 -> 0 | I37: Belastungsgleichung dyn. | J37: =G17/G21+G30/G34+G40/G43 -> 0
A38: l1 bei ausgefahrenem Hub | B38: mm | C38: =C30+C31+C32 -> 74 | E38: Absolutwert | G38: =ABS(G37) -> 0 | I38: Belastungsgleichung | J38: =MAX(J36:J37) -> 0
E39: Fx zul | F39: N | G39: =G43 -> 3710
A40: Stoßdämpferhub s ( Hub bis a=0 ) | B40: m | C40: ='Allgemeine Werte'!M41 -> 0.010586 | E40: Gewichtskraft | F40: N | G40: =C12*9.81 -> 0
A41: Verzögerung a=vxv/2xs | B41: m/s2 | C41: =POWER(C48,2)/(2*C40) -> 2.571530533 | E41: Fz ges abs | F41: N | G41: =ABS(-C25+C12*9.81) -> 0 | I41: Verfahrzeitberechnung
A42: Kraft zur Verzögerung der Masse | B42: N | C42: =C12*C41 -> 0 | E42: Max aus E40,E41 | G42: =MAX(G40,G41) -> 0 | I42: Verfahrzeit berechnet ( t=Wurzel aus (2xsxm/F) | K42: =(SQRT(2*(C5/1000)*(C12+C8/2)/C9))*(2.25+C7*0.05) -> 0.02229646901
A43: Kraft zur Verzög. d. Masse incl Modul/2 | B43: N | C43: =C47*C41 -> 5.014484539 | E43: Fz zul | F43: N | G43: =2120+1590*C7 -> 3710 | I43: Mittlere Verfahrgeschwindigkeit berechnet | K43: =(C5/1000)/K42 -> 0.4485015093
I44: Endgeschwindigkeit berechnet | K44: =K43*'Allgemeine Werte'!E71 -> 0.7848776412
A45: Stoßdämpferberechnung | E45: Max. Zyklenzahl / Min.
A46: Anzahl Stoßdämpfer | C46: ='EM-LM-2-1'!Q22 -> 1 | E46: Zyklen aus Verfahrzeit | G46: =60/(2*L50) -> 400 | I46: Endgeschwindigkeit (Eingabe) | K46: =C10 -> 2.02
A47: Gesamtmasse | B47: kg | C47: =C12+C8/2 -> 1.95 | I47: Mittlere Verfahrgeschwindigkeit (Eingabe) m/s | K47: =C10/'Allgemeine Werte'!E71 -> 1.154285714
A48: Aufprallgeschwindigkeit | B48: m/s | C48: =L54 -> 0.2333333333 | E48: Ezul / Stunde | F48: Nm | G48: ='Allgemeine Werte'!H41*C46*0.95 -> 32300 | I48: Verfahrzeit (Eingabe) | J48: s | K48: =(C5/1000)/K47 -> 0.008663366337 | L48: Verfahrzeit für Berechnung
A49: W1 | B49: Nm | C49: =C47*POWER(C48,2)*0.5 -> 0.05308333333 | E49: Ezul / Minute | F49: Nm | G49: =G48/60 -> 538.3333333 | L49: ( max )
A50: Hub Stoßdämpfer | B50: m | C50: ='Allgemeine Werte'!L41 -> 0.0158 | E50: Zyklen aus Ezul | G50: =G49/C53 -> 70.19892593 | I50: min. Verfahrzeit vor | J50: gemessen | K50: =0.06+(C5/25)*0.02 -> 0.068 | L50: =MAX(K48,K53,K42) -> 0.075
A51: Zylinderkraft | B51: N | C51: 482 | I51: Mittlere Verfahrgeschwindigkeit vor | K51: =(C5/1000)/K50 -> 0.1470588235
A52: W2 ( Antriebsenergie ) | B52: Nm | C52: =C51*C50 -> 7.6156 | E52: Max. Zyklen | G52: =MIN(G46,G50,G55) -> 70.19892593 | I52: Endgeschwindigkeit vor | K52: =K51*'Allgemeine Werte'!E71 -> 0.2573529412 | L52: Endgeschwindigkeit f. Ber.
A53: W1+W2 ( Energie / Hub ) | B53: Nm | C53: =C52+C49 -> 7.668683333 | I53: min. Verfahrzeit zurück | K53: =0.065+((C5/25)*0.025) -> 0.075 | L53: ( min )
A54: Ezul / Zyklus ( Hub ) | B54: Nm | C54: ='Allgemeine Werte'!G41*C50/'Allgemeine Werte'!K41*C46 -> 25.675 | E54: Stoßd.-kolbenrückstellzeit | G54: ='Allgemeine Werte'!E41 -> 0.75 | I54: Mittlere Verfahrgeschwindigkeit zurück | K54: =(C5/1000)/K53 -> 0.1333333333 | L54: =MIN(K46,K55,K44) -> 0.2333333333
A55: Auslastung / Zyklus | C55: =C53/C54 -> 0.2986828952 | E55: Max. Zyklen aus Rückstellzeit | G55: =60/G54 -> 80 | I55: Endgeschwindigkeit zurück | K55: =K54*'Allgemeine Werte'!E71 -> 0.2333333333

Sheet EM-Ber-LM200-3
A1: Linearmodul Typ | C1: LM 200
A3: Berechnung der Führungsbelastung
G4: Statisch auf Grund | H4: Statisch auf Grund
A5: Hub | B5: mm | C5: ='EM-LM-3'!K8 -> 10 | G5: Zusatzmasse m | H5: Zusatzmasse m | I5: Dynamisch auf Grund | J5: Statisch auf Grund | K5: Statisch auf Grund
A6: Zylinderkraft | B6: N | C6: 482 | G6: Modul ausgef. | H6: Modul eingef. | I6: Zusatzmasse m | J6: Zusatzkraft Modul eingef. | K6: Zusatzkraft Modul ausgef.
A7: Faktor | C7: =ROUNDDOWN(((C5+25)/50.1)+0.5,0) -> 1 | G7: I | H7: II | I7: III | J7: IV | K7: V
A8: Modulgewicht | B8: kg | C8: =2.8+(C7*1.1) -> 3.9 | E8: Moment Mx=M3 | F8: Nm | G8: =C12*9.81*((C15)/1000) -> 0 | H8: =C12*9.81*((C15)/1000) -> 0 | I8: =C42*(C15/1000) -> 0 | J8: =IF(K11=TRUE,-(C21*C23/1000)+C25*((C27+C37+C34/2)/1000),(C21*C23/1000)-C25*((C27+C37+C34/2)/1000)) -> 0 | K8: =IF(K11=TRUE,-(C21*C23/1000)+C25*((C27+C38+C34/2)/1000),(C21*C23/1000)-C25*((C27+C38+C34/2)/1000)) -> 0
A9: Zylinderkraft zurück | B9: N | C9: 415 | E9: Moment My=M1 | F9: Nm | G9: - | H9: - | I9: - | J9: =C17*(C19/1000)-C25*C26/1000 -> 0 | K9: =C17*(C19/1000)-C25*C26/1000 -> 0
A10: Verfahrgeschwindigkeit | B10: m/s | C10: ='EM-LM-3-1'!I58 -> 2.02 | E10: Moment Mz=M2 | F10: Nm | G10: =C12*9.81*((C13)/1000) -> 0 | H10: =C12*9.81*((C13)/1000) -> 0 | I10: =C42*(C13/1000) -> 0 | J10: =IF(K11=TRUE,-C21*C22/1000+C17*(C18+C37+C34/2)/1000,C21*C22/1000-C17*(C18+C37+C34/2)/1000) -> 0 | K10: =IF(K11=TRUE,-C21*C22/1000+C17*(C18+C38+C34/2)/1000,C21*C22/1000-C17*(C18+C38+C34/2)/1000) -> 0
J11: ='EM-LM-3'!G51 -> TRUE | K11: ='EM-LM-3'!G52 -> TRUE
A12: Zusatzmasse | B12: kg | C12: ='EM-LM-3'!K14 -> 0
A13: Schwerpunktabstand x-Richt.(Mitte Rolle) | B13: mm | C13: ='EM-LM-3'!M14+18.5 -> 18.5
A14: Schwerpunktabstand y-Richtung | B14: mm | C14: ='EM-LM-3'!O14 -> 0
A15: Schwerpunktabstand z-Richtung | B15: mm | C15: ='EM-LM-3'!Q14 -> 0
E16: Mx Summe I(II) + III | F16: Nm | G16: =G8+I8 -> 0
A17: Zusatzkraft Fx | B17: N | C17: ='EM-LM-3'!K18 -> 0 | E17: Absolutbetrag | G17: =ABS(G16) -> 0
A18: Kraftangriffspunkt von Fx in y-Richtung | B18: mm | C18: ='EM-LM-3'!O18 -> 0 | E18: Mx Summe I+V oder II+IV | F18: Nm | G18: =IF(J11=TRUE,H8+J8,G8+K8) -> 0
A19: Kraftangriffspunkt von Fx in z-Richtung | B19: mm | C19: ='EM-LM-3'!Q18 -> 0 | E19: Absolutbetrag | G19: =ABS(G18) -> 0
E20: Mx ges | F20: Nm | G20: =MAX(G17,G19) -> 0
A21: Zusatzkraft Fy | B21: N | C21: ='EM-LM-3'!K20 -> 0 | E21: Mx zul | F21: Nm | G21: =G34/2 -> 31.535 | I21: Maximal-Werte der Momente und Kräfte nicht aus Katalog, sondern exakt berechnete Werte !!
A22: Kraftangrp. von Fy in x-Richt. (Mitte Rolle) | B22: mm | C22: ='EM-LM-3'!M20+18.5 -> 18.5
A23: Kraftangrp. von Fy in z-Richt. | B23: mm | C23: ='EM-LM-3'!Q20 -> 0 | E23: My IV = V | F23: Nm | G23: =J9 -> 0
E24: Absolutbetrag | G24: =ABS(G23) -> 0
A25: Zusatzkraft Fz | B25: N | C25: ='EM-LM-3'!K22 -> 0 | E25: My ges | F25: Nm | G25: =G24 -> 0
A26: Kraftangrp. von Fz in x-Richt. (Mitte Rolle) | B26: mm | C26: ='EM-LM-3'!M22+18.5 -> 18.5 | E26: My zul | F26: Nm | G26: =28+(22*C7) -> 50
A27: Kraftangriffspunkt von Fz in y-Richtung | B27: mm | C27: ='EM-LM-3'!O22 -> 0
E29: Mz Summe I(II)+III | F29: Nm | G29: =G10+I10 -> 0
A30: Länge L (Stirnplatte zu 1. Rolle - HubN/2) | B30: mm | C30: 44 | E30: Absolutbetrag | G30: =ABS(G29) -> 0
A31: Nennhub/2 HubN/2 | B31: mm | C31: =(0+(C7*50))/2 -> 25 | E31: Mz Summe I+V oder II+IV | F31: Nm | G31: =IF(J11=TRUE,H10+J10,G10+K10) -> 0
A32: tatsächlicher gefahrener Hub/2 | B32: mm | C32: =C5/2 -> 5 | E32: Absolutbetrag | G32: =ABS(G31) -> 0
A33: Schwerpunktabstand in y-Richtung | B33: mm | C33: =C14 -> 0 | E33: Mz ges | F33: Nm | G33: =MAX(G30,G32) -> 0
A34: Wert K ( Abstand erste / letzte Rolle ) | B34: mm | C34: =34+(C7*25.5) -> 59.5 | E34: Mz zul | F34: Nm | G34: =C34/1000*1060 -> 63.07
I36: Belastungsgleichung stat. | J36: =G19/G21+G25/G26+G32/G34+G38/G39+G42/G43 -> 0
A37: l1 bei eingefahrenem Hub | B37: mm | C37: =C30+C31 -> 69 | E37: Fx ges | F37: N | G37: =C17 -> 0 | I37: Belastungsgleichung dyn. | J37: =G17/G21+G30/G34 -> 0
A38: l1 bei ausgefahrenem Hub | B38: mm | C38: =C30+C31+C32 -> 74 | E38: Absolutwert | G38: =ABS(G37) -> 0 | I38: Belastungsgleichung | J38: =MAX(J36:J37) -> 0
E39: Fx zul | F39: N | G39: =G43 -> 3710
A40: Stoßdämpferhub s ( Hub bis a=0 ) | B40: m | C40: ='Allgemeine Werte'!M41 -> 0.010586
A41: Verzögerung a=vxv/2xs | B41: m/s2 | C41: =POWER(C48,2)/(2*C40) -> 2.790289207 | E41: Fz ges | F41: N | G41: =-C25 -> 0 | I41: Verfahrzeitberechnung
A42: Kraft zur Verzögerung der Masse | B42: N | C42: =C12*C41 -> 0 | E42: Absolutwert | G42: =ABS(G41) -> 0 | I42: Verfahrzeit berechnet ( t=Wurzel aus (2xsxm/F) | K42: =(SQRT(2*(C5/1000)*(C12+C8/2)/(C6-(C12+C8/2)*9.81)))*(2+C7*0.1) -> 0.01927621878
A43: Kraft zur Verzög. d. Masse incl Modul/2 | B43: N | C43: =C47*C41 -> 5.441063953 | E43: Fz zul | F43: N | G43: =2120+1590*C7 -> 3710 | I43: Mittlere Verfahrgeschwindigkeit berechnet | K43: =(C5/1000)/K42 -> 0.5187739418
I44: Endgeschwindigkeit berechnet | K44: =K43*'Allgemeine Werte'!E71 -> 0.9078543982
A45: Stoßdämpferberechnung | E45: Max. Zyklenzahl / Min.
A46: Anzahl Stoßdämpfer | C46: ='EM-LM-3-1'!Q22 -> 1 | E46: Zyklen aus Verfahrzeit | G46: =60/(2*L50) -> 416.6666667 | I46: Endgeschwindigkeit (Eingabe) | K46: =C10 -> 2.02
A47: Gesamtmasse | B47: kg | C47: =C12+C8/2 -> 1.95 | I47: Mittlere Verfahrgeschwindigkeit (Eingabe) m/s | K47: =C10/'Allgemeine Werte'!E71 -> 1.154285714
A48: Aufprallgeschwindigkeit | B48: m/s | C48: =L54 -> 0.2430555556 | E48: Ezul / Stunde | F48: Nm | G48: ='Allgemeine Werte'!H41*C46*0.95 -> 32300 | I48: Verfahrzeit (Eingabe) | J48: s | K48: =(C5/1000)/K47 -> 0.008663366337 | L48: Verfahrzeit für Berechnung
A49: W1 | B49: Nm | C49: =C47*POWER(C48,2)*0.5 -> 0.05759910301 | E49: Ezul / Minute | F49: Nm | G49: =G48/60 -> 538.3333333 | L49: ( max )
A50: Hub Stoßdämpfer | B50: m | C50: ='Allgemeine Werte'!L41 -> 0.0158 | E50: Zyklen aus Ezul | G50: =G49/C53 -> 73.03442759 | I50: min. Verfahrzeit ab | J50: gemessen | K50: =0.05+(C5/25)*0.02 -> 0.058 | L50: =MAX(K48,K53,K42) -> 0.072
A51: Zylinderkraft | B51: N | C51: 482 | I51: Mittlere Verfahrgeschwindigkeit ab | K51: =(C5/1000)/K50 -> 0.1724137931
A52: W2 ( Antriebsenergie ) | B52: Nm | C52: =MAX(C56,C57)*C50 -> 7.3133539 | E52: Max. Zyklen | G52: =MIN(G46,G50,G55) -> 73.03442759 | I52: Endgeschwindigkeit ab | K52: =K51*'Allgemeine Werte'!E71 -> 0.3017241379 | L52: Endgeschwindigkeit f. Ber.
A53: W1+W2 ( Energie / Hub ) | B53: Nm | C53: =C52+C49 -> 7.370953003 | I53: min. Verfahrzeit auf | K53: =0.06+((C5/25)*0.03) -> 0.072 | L53: ( min )
A54: Ezul / Zyklus ( Hub ) | B54: Nm | C54: ='Allgemeine Werte'!G41*C50/'Allgemeine Werte'!K41*C46 -> 25.675 | E54: Stoßd.-kolbenrückstellzeit | G54: ='Allgemeine Werte'!E41 -> 0.75 | I54: Mittlere Verfahrgeschwindigkeit auf | K54: =(C5/1000)/K53 -> 0.1388888889 | L54: =MIN(K46,K55,K44) -> 0.2430555556
A55: Auslastung / Zyklus | C55: =C53/C54 -> 0.2870867771 | E55: Max. Zyklen aus Rückstellzeit | G55: =60/G54 -> 80 | I55: Endgeschwindigkeit auf | K55: =K54*'Allgemeine Werte'!E71 -> 0.2430555556
A56: Antriebskraft nach oben | C56: =C6-C47*9.81 -> 462.8705
A57: Antriebskraft nach unten | C57: =C9+C47*9.81 -> 434.1295

Sheet EM-Ber-LM200-4
A1: Linearmodul Typ | C1: LM 200
A3: Berechnung der Führungsbelastung
G4: Statisch auf Grund | H4: Statisch auf Grund
A5: Hub | B5: mm | C5: ='EM-LM-4'!K8 -> 10 | G5: Zusatzmasse m | H5: Zusatzmasse m | I5: Dynamisch auf Grund | J5: Statisch auf Grund | K5: Statisch auf Grund
A6: Zylinderkraft | B6: N | C6: 482 | G6: Modul ausgef. | H6: Modul eingef. | I6: Zusatzmasse m | J6: Zusatzkraft Modul eingef. | K6: Zusatzkraft Modul ausgef.
A7: Faktor | C7: =ROUNDDOWN(((C5+25)/50.1)+0.5,0) -> 1 | G7: I | H7: II | I7: III | J7: IV | K7: V
A8: Modulgewicht | B8: kg | C8: =2.8+(C7*1.1) -> 3.9 | E8: Moment Mx=M2 | F8: Nm | G8: =(C12*9.81)*((C37-C32+C34/2+C33)/1000) -> 0 | H8: =C12*9.81*((C37+C34/2+C33)/1000) -> 0 | I8: =C42*(C15/1000) -> 0 | J8: =(C21*C23/1000)-C25*((C27+C37+C34/2)/1000) -> 0 | K8: =(C21*C23/1000)-C25*((C27+C37-C32+C34/2)/1000) -> 0
A9: Zylinderkraft zurück | B9: N | C9: 415 | E9: Moment My=M1 | F9: Nm | G9: =C12*9.81*(C13/1000) -> 0 | H9: =C12*9.81*(C13/1000) -> 0 | I9: - | J9: =C17*C19/1000-C25*(C26/1000) -> 0 | K9: =C17*C19/1000-C25*(C26/1000) -> 0
A10: Verfahrgeschwindigkeit | B10: m/s | C10: ='EM-LM-4-1'!I58 -> 2.02 | E10: Moment Mz=M3 | F10: Nm | G10: - | H10: - | I10: =C42*(C13/1000) -> 0 | J10: =C21*C22/1000-C17*(C18+C37+C34/2)/1000 -> 0 | K10: =C21*C22/1000-C17*(C18+C37-C32+C34/2)/1000 -> 0
J11: ='EM-LM-4'!G51 -> FALSE
A12: Zusatzmasse | B12: kg | C12: ='EM-LM-4'!K14 -> 0 | E12: Mx Summe I + III | F12: Nm | G12: =G8+I8 -> 0
A13: Schwerpunktabstand x-Richtung | B13: mm | C13: ='EM-LM-4'!M14 -> 0 | E13: Absolutbetrag | G13: =ABS(G12) -> 0
A14: Schwerpunktabstand y-Richtung | B14: mm | C14: ='EM-LM-4'!O14 -> 0 | E14: Mx Summe II-III | G14: =H8-I8 -> 0
A15: Schwerpunktabstand z-Richt.(Mitte Rolle) | B15: mm | C15: ='EM-LM-4'!Q14+56.5 -> 56.5 | E15: Absolutbetrag | G15: =ABS(G14) -> 0
E16: I | F16: Nm | G16: =ABS(G8) -> 0
A17: Zusatzkraft Fx | B17: N | C17: ='EM-LM-4'!K18 -> 0 | E17: I oder I+III oder II-III | G17: =MAX(G16,G15,G13) -> 0
A18: Kraftangriffspunkt von Fx in y-Richtung | B18: mm | C18: ='EM-LM-4'!O18 -> 0 | E18: Mx Summe I+V oder II+IV | F18: Nm | G18: =IF(AND(J8=0,K8=0),MAX(G8,H8),IF(J11=TRUE,H8+J8,G8+K8)) -> 0
A19: Kraftangrp. von Fx in z-Richt.(Mitte Rolle) | B19: mm | C19: ='EM-LM-4'!Q18+56.5 -> 56.5 | E19: Absolutbetrag | G19: =ABS(G18) -> 0
E20: Mx ges | F20: Nm | G20: =MAX(G17,G19) -> 0
A21: Zusatzkraft Fy | B21: N | C21: ='EM-LM-4'!K20 -> 0 | E21: Mx zul | F21: Nm | G21: =C34/1000*1060 -> 63.07 | I21: Maximal-Werte der Momente und Kräfte nicht aus Katalog, sondern exakt berechnete Werte !!
A22: Kraftangriffspunkt von Fy in x-Richtung | B22: mm | C22: ='EM-LM-4'!M20 -> 0
A23: Kraftangrp. von Fy in z-Richt.(Mitte Rolle) | B23: mm | C23: ='EM-LM-4'!Q20+56.5 -> 56.5 | E23: My Summe I+V ( = II+IV ) | F23: Nm | G23: =G9+K9 -> 0
E24: Absolutbetrag | G24: =ABS(G23) -> 0
A25: Zusatzkraft Fz | B25: N | C25: ='EM-LM-4'!K22 -> 0 | E25: My ges | F25: Nm | G25: =G24 -> 0
A26: Kraftangriffspunkt von Fz in x-Richtung | B26: mm | C26: ='EM-LM-4'!M22 -> 0 | E26: My zul | F26: Nm | G26: =28+(22*C7) -> 50
A27: Kraftangriffspunkt von Fz in y-Richtung | B27: mm | C27: ='EM-LM-4'!O22 -> 0
E29: Mz III | F29: Nm | G29: =I10 -> 0
A30: Länge L (Stirnplatte zu 1. Rolle - HubN/2) | B30: mm | C30: 44 | E30: Absolutbetrag | G30: =ABS(G29) -> 0
A31: Nennhub/2 HubN/2 | B31: mm | C31: =(0+(C7*50))/2 -> 25 | E31: Mz IV/V | F31: Nm | G31: =IF(J11=TRUE,J10,K10) -> 0
A32: tatsächlicher gefahrener Hub/2 | B32: mm | C32: =C5/2 -> 5 | E32: Absolutbetrag | G32: =ABS(G31) -> 0
A33: Schwerpunktabstand in y-Richtung | B33: mm | C33: =C14 -> 0 | E33: Mz ges | F33: Nm | G33: =MAX(G30,G32) -> 0
A34: Wert K ( Abstand erste / letzte Rolle ) | B34: mm | C34: =34+(C7*25.5) -> 59.5 | E34: Mz zul | F34: Nm | G34: =G21/2 -> 31.535
A35: Anfangswert (Abst. Stirnpl./Deckplatte) | B35: mm | C35: 27
I36: Belastungsgleichung stat. | J36: =G19/G21+G25/G26+G32/G34+G38/G39+G42/G43 -> 0
A37: l1 bei eingefahrenem Hub | B37: mm | C37: =C30+C31-C35 -> 42 | E37: Fx ges | F37: N | G37: =C17 -> 0 | I37: Belastungsgleichung dyn. | J37: =G17/G21+G30/G34+G40/G43 -> 0
A38: l1 bei ausgefahrenem Hub | B38: mm | C38: =C30+C31+C32-C35 -> 47 | E38: Absolutwert | G38: =ABS(G37) -> 0 | I38: Belastungsgleichung | J38: =MAX(J36:J37) -> 0
E39: Fx zul | F39: N | G39: =G43 -> 3710
A40: Stoßdämpferhub s ( Hub bis a=0 ) | B40: m | C40: ='Allgemeine Werte'!M41 -> 0.010586 | E40: Gewichtskraft | F40: N | G40: =C12*9.81 -> 0
A41: Verzögerung a=vxv/2xs | B41: m/s2 | C41: =POWER(C48,2)/(2*C40) -> 2.571530533 | E41: Fz ges abs | F41: N | G41: =ABS(-C25+C12*9.81) -> 0 | I41: Verfahrzeitberechnung
A42: Kraft zur Verzögerung der Masse | B42: N | C42: =C12*C41 -> 0 | E42: Max aus E40,E41 | G42: =MAX(G40,G41) -> 0 | I42: Verfahrzeit berechnet ( t=Wurzel aus (2xsxm/F) | K42: =(SQRT(2*(C5/1000)*(C12+C8/2)/C9))*(2.25+C7*0.05) -> 0.02229646901
A43: Kraft zur Verzög. d. Masse incl Modul/2 | B43: N | C43: =C47*C41 -> 5.014484539 | E43: Fz zul | F43: N | G43: =2120+1590*C7 -> 3710 | I43: Mittlere Verfahrgeschwindigkeit berechnet | K43: =(C5/1000)/K42 -> 0.4485015093
I44: Endgeschwindigkeit berechnet | K44: =K43*'Allgemeine Werte'!E71 -> 0.7848776412
A45: Stoßdämpferberechnung | E45: Max. Zyklenzahl / Min.
A46: Anzahl Stoßdämpfer | C46: ='EM-LM-4-1'!Q22 -> 1 | E46: Zyklen aus Verfahrzeit | G46: =60/(2*L50) -> 400 | I46: Endgeschwindigkeit (Eingabe) | K46: =C10 -> 2.02
A47: Gesamtmasse | B47: kg | C47: =C12+C8/2 -> 1.95 | I47: Mittlere Verfahrgeschwindigkeit (Eingabe) m/s | K47: =C10/'Allgemeine Werte'!E71 -> 1.154285714
A48: Aufprallgeschwindigkeit | B48: m/s | C48: =L54 -> 0.2333333333 | E48: Ezul / Stunde | F48: Nm | G48: ='Allgemeine Werte'!H41*C46*0.95 -> 32300 | I48: Verfahrzeit (Eingabe) | J48: s | K48: =(C5/1000)/K47 -> 0.008663366337 | L48: Verfahrzeit für Berechnung
A49: W1 | B49: Nm | C49: =C47*POWER(C48,2)*0.5 -> 0.05308333333 | E49: Ezul / Minute | F49: Nm | G49: =G48/60 -> 538.3333333 | L49: ( max )
A50: Hub Stoßdämpfer | B50: m | C50: ='Allgemeine Werte'!L41 -> 0.0158 | E50: Zyklen aus Ezul | G50: =G49/C53 -> 70.19892593 | I50: min. Verfahrzeit vor | J50: gemessen | K50: =0.06+(C5/25)*0.02 -> 0.068 | L50: =MAX(K48,K53,K42) -> 0.075
A51: Zylinderkraft | B51: N | C51: 482 | I51: Mittlere Verfahrgeschwindigkeit vor | K51: =(C5/1000)/K50 -> 0.1470588235
A52: W2 ( Antriebsenergie ) | B52: Nm | C52: =C51*C50 -> 7.6156 | E52: Max. Zyklen | G52: =MIN(G46,G50,G55) -> 70.19892593 | I52: Endgeschwindigkeit vor | K52: =K51*'Allgemeine Werte'!E71 -> 0.2573529412 | L52: Endgeschwindigkeit f. Ber.
A53: W1+W2 ( Energie / Hub ) | B53: Nm | C53: =C52+C49 -> 7.668683333 | I53: min. Verfahrzeit zurück | K53: =0.065+((C5/25)*0.025) -> 0.075 | L53: ( min )
A54: Ezul / Zyklus ( Hub ) | B54: Nm | C54: ='Allgemeine Werte'!G41*C50/'Allgemeine Werte'!K41*C46 -> 25.675 | E54: Stoßd.-kolbenrückstellzeit | G54: ='Allgemeine Werte'!E41 -> 0.75 | I54: Mittlere Verfahrgeschwindigkeit zurück | K54: =(C5/1000)/K53 -> 0.1333333333 | L54: =MIN(K46,K55,K44) -> 0.2333333333
A55: Auslastung / Zyklus | C55: =C53/C54 -> 0.2986828952 | E55: Max. Zyklen aus Rückstellzeit | G55: =60/G54 -> 80 | I55: Endgeschwindigkeit zurück | K55: =K54*'Allgemeine Werte'!E71 -> 0.2333333333

Sheet EM-Ber-LM200-5
A1: Linearmodul Typ | C1: LM 200
A3: Berechnung der Führungsbelastung
G4: Statisch auf Grund | H4: Statisch auf Grund
A5: Hub | B5: mm | C5: ='EM-LM-5'!K8 -> 10 | G5: Zusatzmasse m | H5: Zusatzmasse m | I5: Dynamisch auf Grund | J5: Statisch auf Grund | K5: Statisch auf Grund
A6: Zylinderkraft | B6: N | C6: 482 | G6: Modul ausgef. | H6: Modul eingef. | I6: Zusatzmasse m | J6: Zusatzkraft Modul eingef. | K6: Zusatzkraft Modul ausgef.
A7: Faktor | C7: =ROUNDDOWN(((C5+25)/50.1)+0.5,0) -> 1 | G7: I | H7: II | I7: III | J7: IV | K7: V
A8: Modulgewicht | B8: kg | C8: =2.8+(C7*1.1) -> 3.9 | E8: Moment Mx=M3 | F8: Nm | G8: =(C12*9.81)*((C37-C32+C34/2+C33)/1000) -> 0 | H8: =C12*9.81*((C37+C34/2+C33)/1000) -> 0 | I8: =C42*(C15/1000) -> 0 | J8: =(C21*C23/1000)-C25*((C27+C37+C34/2)/1000) -> 0 | K8: =(C21*C23/1000)-C25*((C27+C37-C32+C34/2)/1000) -> 0
A9: Zylinderkraft zurück | B9: N | C9: 415 | E9: Moment My=M1 | F9: Nm | G9: =C12*9.81*((C13)/1000) -> 0 | H9: =C12*9.81*((C13)/1000) -> 0 | I9: - | J9: =C17*(C19/1000)-C25*C26/1000 -> 0 | K9: =C17*(C19/1000)-C25*C26/1000 -> 0
A10: Verfahrgeschwindigkeit | B10: m/s | C10: ='EM-LM-5-1'!I58 -> 2.02 | E10: Moment Mz=M2 | F10: Nm | G10: - | H10: - | I10: =C42*(C13/1000) -> 0 | J10: =C21*C22/1000-C17*(C18+C37+C34/2)/1000 -> 0 | K10: =C21*C22/1000-C17*(C18+C37-C32+C34/2)/1000 -> 0
J11: ='EM-LM-5'!G51 -> FALSE
A12: Zusatzmasse | B12: kg | C12: ='EM-LM-5'!K14 -> 0 | E12: Mx Summe I + III | F12: Nm | G12: =G8+I8 -> 0
A13: Schwerpunktabstand x-Richt.(Mitte Rolle) | B13: mm | C13: ='EM-LM-5'!M14+56.5 -> 56.5 | E13: Absolutbetrag | G13: =ABS(G12) -> 0
A14: Schwerpunktabstand y-Richtung | B14: mm | C14: ='EM-LM-5'!O14 -> 0 | E14: Mx Summe II-III | G14: =H8-I8 -> 0
A15: Schwerpunktabstand z-Richtung | B15: mm | C15: ='EM-LM-5'!Q14 -> 0 | E15: Absolutbetrag | G15: =ABS(G14) -> 0
E16: I | F16: Nm | G16: =ABS(G8) -> 0
A17: Zusatzkraft Fx | B17: N | C17: ='EM-LM-5'!K18 -> 0 | E17: I oder I+III oder II-III | G17: =MAX(G16,G15,G13) -> 0
A18: Kraftangriffspunkt von Fx in y-Richtung | B18: mm | C18: ='EM-LM-5'!O18 -> 0 | E18: Mx Summe I+V oder II+IV | F18: Nm | G18: =IF(AND(J8=0,K8=0),MAX(G8,H8),IF(J11=TRUE,H8+J8,G8+K8)) -> 0
A19: Kraftangriffspunkt von Fx in z-Richtung | B19: mm | C19: ='EM-LM-5'!Q18 -> 0 | E19: Absolutbetrag | G19: =ABS(G18) -> 0
E20: Mx ges | F20: Nm | G20: =MAX(G17,G19) -> 0
A21: Zusatzkraft Fy | B21: N | C21: ='EM-LM-5'!K20 -> 0 | E21: Mx zul | F21: Nm | G21: =G34/2 -> 31.535 | I21: Maximal-Werte der Momente und Kräfte nicht aus Katalog, sondern exakt berechnete Werte !!
A22: Kraftangrp. von Fy in x-Richt. (Mitte Rolle) | B22: mm | C22: ='EM-LM-5'!M20+56.5 -> 56.5
A23: Kraftangrp. von Fy in z-Richt. | B23: mm | C23: ='EM-LM-5'!Q20 -> 0 | E23: My Summe I+V ( = II+IV ) | F23: Nm | G23: =G9+K9 -> 0
E24: Absolutbetrag | G24: =ABS(G23) -> 0
A25: Zusatzkraft Fz | B25: N | C25: ='EM-LM-5'!K22 -> 0 | E25: My ges | F25: Nm | G25: =G24 -> 0
A26: Kraftangrp. von Fz in x-Richt. (Mitte Rolle) | B26: mm | C26: ='EM-LM-5'!M22+56.5 -> 56.5 | E26: My zul | F26: Nm | G26: =28+(22*C7) -> 50
A27: Kraftangriffspunkt von Fz in y-Richtung | B27: mm | C27: ='EM-LM-5'!O22 -> 0
E29: Mz III | F29: Nm | G29: =I10 -> 0
A30: Länge L (Stirnplatte zu 1. Rolle - HubN/2) | B30: mm | C30: 44 | E30: Absolutbetrag | G30: =ABS(G29) -> 0
A31: Nennhub/2 HubN/2 | B31: mm | C31: =(0+(C7*50))/2 -> 25 | E31: Mz IV/V | F31: Nm | G31: =IF(J11=TRUE,J10,K10) -> 0
A32: tatsächlicher gefahrener Hub/2 | B32: mm | C32: =C5/2 -> 5 | E32: Absolutbetrag | G32: =ABS(G31) -> 0
A33: Schwerpunktabstand in y-Richtung | B33: mm | C33: =C14 -> 0 | E33: Mz ges | F33: Nm | G33: =MAX(G30,G32) -> 0
A34: Wert K ( Abstand erste / letzte Rolle ) | B34: mm | C34: =34+(C7*25.5) -> 59.5 | E34: Mz zul | F34: Nm | G34: =C34/1000*1060 -> 63.07
A35: Anfangswert (Abst. Stirnpl./Deckplatte) | B35: mm | C35: 27
I36: Belastungsgleichung stat. | J36: =G19/G21+G25/G26+G32/G34+G38/G39+G42/G43 -> 0
A37: l1 bei eingefahrenem Hub | B37: mm | C37: =C30+C31-C35 -> 42 | E37: Fx ges | F37: N | G37: =C17 -> 0 | I37: Belastungsgleichung dyn. | J37: =G17/G21+G30/G34+G40/G43 -> 0
A38: l1 bei ausgefahrenem Hub | B38: mm | C38: =C30+C31+C32-C35 -> 47 | E38: Absolutwert | G38: =ABS(G37) -> 0 | I38: Belastungsgleichung | J38: =MAX(J36:J37) -> 0
E39: Fx zul | F39: N | G39: =G43 -> 3710
A40: Stoßdämpferhub s ( Hub bis a=0 ) | B40: m | C40: ='Allgemeine Werte'!M41 -> 0.010586 | E40: Gewichtskraft | F40: N | G40: =C12*9.81 -> 0
A41: Verzögerung a=vxv/2xs | B41: m/s2 | C41: =POWER(C48,2)/(2*C40) -> 2.571530533 | E41: Fz ges abs | F41: N | G41: =ABS(-C25+C12*9.81) -> 0 | I41: Verfahrzeitberechnung
A42: Kraft zur Verzögerung der Masse | B42: N | C42: =C12*C41 -> 0 | E42: Max aus E40,E41 | G42: =MAX(G40,G41) -> 0 | I42: Verfahrzeit berechnet ( t=Wurzel aus (2xsxm/F) | K42: =(SQRT(2*(C5/1000)*(C12+C8/2)/C9))*(2.25+C7*0.05) -> 0.02229646901
A43: Kraft zur Verzög. d. Masse incl Modul/2 | B43: N | C43: =C47*C41 -> 5.014484539 | E43: Fz zul | F43: N | G43: =2120+1590*C7 -> 3710 | I43: Mittlere Verfahrgeschwindigkeit berechnet | K43: =(C5/1000)/K42 -> 0.4485015093
I44: Endgeschwindigkeit berechnet | K44: =K43*'Allgemeine Werte'!E71 -> 0.7848776412
A45: Stoßdämpferberechnung | E45: Max. Zyklenzahl / Min.
A46: Anzahl Stoßdämpfer | C46: ='EM-LM-5-1'!Q22 -> 1 | E46: Zyklen aus Verfahrzeit | G46: =60/(2*L50) -> 400 | I46: Endgeschwindigkeit (Eingabe) | K46: =C10 -> 2.02
A47: Gesamtmasse | B47: kg | C47: =C12+C8/2 -> 1.95 | I47: Mittlere Verfahrgeschwindigkeit (Eingabe) m/s | K47: =C10/'Allgemeine Werte'!E71 -> 1.154285714
A48: Aufprallgeschwindigkeit | B48: m/s | C48: =L54 -> 0.2333333333 | E48: Ezul / Stunde | F48: Nm | G48: ='Allgemeine Werte'!H41*C46*0.95 -> 32300 | I48: Verfahrzeit (Eingabe) | J48: s | K48: =(C5/1000)/K47 -> 0.008663366337 | L48: Verfahrzeit für Berechnung
A49: W1 | B49: Nm | C49: =C47*POWER(C48,2)*0.5 -> 0.05308333333 | E49: Ezul / Minute | F49: Nm | G49: =G48/60 -> 538.3333333 | L49: ( max )
A50: Hub Stoßdämpfer | B50: m | C50: ='Allgemeine Werte'!L41 -> 0.0158 | E50: Zyklen aus Ezul | G50: =G49/C53 -> 70.19892593 | I50: min. Verfahrzeit vor | J50: gemessen | K50: =0.06+(C5/25)*0.02 -> 0.068 | L50: =MAX(K48,K53,K42) -> 0.075
A51: Zylinderkraft | B51: N | C51: 482 | I51: Mittlere Verfahrgeschwindigkeit vor | K51: =(C5/1000)/K50 -> 0.1470588235
A52: W2 ( Antriebsenergie ) | B52: Nm | C52: =C51*C50 -> 7.6156 | E52: Max. Zyklen | G52: =MIN(G46,G50,G55) -> 70.19892593 | I52: Endgeschwindigkeit vor | K52: =K51*'Allgemeine Werte'!E71 -> 0.2573529412 | L52: Endgeschwindigkeit f. Ber.
A53: W1+W2 ( Energie / Hub ) | B53: Nm | C53: =C52+C49 -> 7.668683333 | I53: min. Verfahrzeit zurück | K53: =0.065+((C5/25)*0.025) -> 0.075 | L53: ( min )
A54: Ezul / Zyklus ( Hub ) | B54: Nm | C54: ='Allgemeine Werte'!G41*C50/'Allgemeine Werte'!K41*C46 -> 25.675 | E54: Stoßd.-kolbenrückstellzeit | G54: ='Allgemeine Werte'!E41 -> 0.75 | I54: Mittlere Verfahrgeschwindigkeit zurück | K54: =(C5/1000)/K53 -> 0.1333333333 | L54: =MIN(K46,K55,K44) -> 0.2333333333
A55: Auslastung / Zyklus | C55: =C53/C54 -> 0.2986828952 | E55: Max. Zyklen aus Rückstellzeit | G55: =60/G54 -> 80 | I55: Endgeschwindigkeit zurück | K55: =K54*'Allgemeine Werte'!E71 -> 0.2333333333

Sheet EM-Ber-LM200-6
A1: Linearmodul Typ | C1: LM 200
A3: Berechnung der Führungsbelastung
G4: Statisch auf Grund | H4: Statisch auf Grund
A5: Hub | B5: mm | C5: ='EM-LM-6'!K8 -> 10 | G5: Zusatzmasse m | H5: Zusatzmasse m | I5: Dynamisch auf Grund | J5: Statisch auf Grund | K5: Statisch auf Grund
A6: Zylinderkraft | B6: N | C6: 482 | G6: Modul ausgef. | H6: Modul eingef. | I6: Zusatzmasse m | J6: Zusatzkraft Modul eingef. | K6: Zusatzkraft Modul ausgef.
A7: Faktor | C7: =ROUNDDOWN(((C5+25)/50.1)+0.5,0) -> 1 | G7: I | H7: II | I7: III | J7: IV | K7: V
A8: Modulgewicht | B8: kg | C8: =2.8+(C7*1.1) -> 3.9 | E8: Moment Mx=M3 | F8: Nm | G8: =C12*9.81*((C15)/1000) -> 0 | H8: =C12*9.81*((C15)/1000) -> 0 | I8: =C42*(C15/1000) -> 0 | J8: =IF(K11=TRUE,-(C21*C23/1000)+C25*((C27+C37+C34/2)/1000),(C21*C23/1000)-C25*((C27+C37+C34/2)/1000)) -> 0 | K8: =IF(K11=TRUE,-(C21*C23/1000)+C25*((C27+C37-C32+C34/2)/1000),(C21*C23/1000)-C25*((C27+C37-C32+C34/2)/1000)) -> 0
A9: Zylinderkraft zurück | B9: N | C9: 415 | E9: Moment My=M1 | F9: Nm | G9: - | H9: - | I9: - | J9: =C17*(C19/1000)-C25*C26/1000 -> 0 | K9: =C17*(C19/1000)-C25*C26/1000 -> 0
A10: Verfahrgeschwindigkeit | B10: m/s | C10: ='EM-LM-6-1'!I58 -> 2.02 | E10: Moment Mz=M2 | F10: Nm | G10: =C12*9.81*((C13)/1000) -> 0 | H10: =C12*9.81*((C13)/1000) -> 0 | I10: =C42*(C13/1000) -> 0 | J10: =IF(K11=TRUE,-C21*C22/1000+C17*(C18+C37+C34/2)/1000,C21*C22/1000-C17*(C18+C37+C34/2)/1000) -> 0 | K10: =IF(K11=TRUE,-C21*C22/1000+C17*(C18+C37-C32+C34/2)/1000,C21*C22/1000-C17*(C18+C37-C32+C34/2)/1000) -> 0
J11: ='EM-LM-6'!G51 -> FALSE | K11: ='EM-LM-6'!G52 -> TRUE
A12: Zusatzmasse | B12: kg | C12: ='EM-LM-6'!K14 -> 0
A13: Schwerpunktabstand x-Richt.(Mitte Rolle) | B13: mm | C13: ='EM-LM-6'!M14+56.5 -> 56.5
A14: Schwerpunktabstand y-Richtung | B14: mm | C14: ='EM-LM-6'!O14 -> 0
A15: Schwerpunktabstand z-Richtung | B15: mm | C15: ='EM-LM-6'!Q14 -> 0
E16: Mx Summe I(II) + III | F16: Nm | G16: =G8+I8 -> 0
A17: Zusatzkraft Fx | B17: N | C17: ='EM-LM-6'!K18 -> 0 | E17: Absolutbetrag | G17: =ABS(G16) -> 0
A18: Kraftangriffspunkt von Fx in y-Richtung | B18: mm | C18: ='EM-LM-6'!O18 -> 0 | E18: Mx Summe I+V oder II+IV | F18: Nm | G18: =IF(J11=TRUE,H8+J8,G8+K8) -> 0
A19: Kraftangriffspunkt von Fx in z-Richtung | B19: mm | C19: ='EM-LM-6'!Q18 -> 0 | E19: Absolutbetrag | G19: =ABS(G18) -> 0
E20: Mx ges | F20: Nm | G20: =MAX(G17,G19) -> 0
A21: Zusatzkraft Fy | B21: N | C21: ='EM-LM-6'!K20 -> 0 | E21: Mx zul | F21: Nm | G21: =G34/2 -> 31.535 | I21: Maximal-Werte der Momente und Kräfte nicht aus Katalog, sondern exakt berechnete Werte !!
A22: Kraftangrp. von Fy in x-Richt. (Mitte Rolle) | B22: mm | C22: ='EM-LM-6'!M20+56.5 -> 56.5
A23: Kraftangrp. von Fy in z-Richt. | B23: mm | C23: ='EM-LM-6'!Q20 -> 0 | E23: My IV = V | F23: Nm | G23: =J9 -> 0
E24: Absolutbetrag | G24: =ABS(G23) -> 0
A25: Zusatzkraft Fz | B25: N | C25: ='EM-LM-6'!K22 -> 0 | E25: My ges | F25: Nm | G25: =G24 -> 0
A26: Kraftangrp. von Fz in x-Richt. (Mitte Rolle) | B26: mm | C26: ='EM-LM-6'!M22+56.5 -> 56.5 | E26: My zul | F26: Nm | G26: =28+(22*C7) -> 50
A27: Kraftangriffspunkt von Fz in y-Richtung | B27: mm | C27: ='EM-LM-6'!O22 -> 0
E29: Mz Summe I(II)+III | F29: Nm | G29: =G10+I10 -> 0
A30: Länge L (Stirnplatte zu 1. Rolle - HubN/2) | B30: mm | C30: 44 | E30: Absolutbetrag | G30: =ABS(G29) -> 0
A31: Nennhub/2 HubN/2 | B31: mm | C31: =(0+(C7*50))/2 -> 25 | E31: Mz Summe I+V oder II+IV | F31: Nm | G31: =IF(J11=TRUE,H10+J10,G10+K10) -> 0
A32: tatsächlicher gefahrener Hub/2 | B32: mm | C32: =C5/2 -> 5 | E32: Absolutbetrag | G32: =ABS(G31) -> 0
A33: Schwerpunktabstand in y-Richtung | B33: mm | C33: =C14 -> 0 | E33: Mz ges | F33: Nm | G33: =MAX(G30,G32) -> 0
A34: Wert K ( Abstand erste / letzte Rolle ) | B34: mm | C34: =34+(C7*25.5) -> 59.5 | E34: Mz zul | F34: Nm | G34: =C34/1000*1060 -> 63.07
A35: Anfangswert (Abst. Stirnpl./Deckplatte) | B35: mm | C35: 27
I36: Belastungsgleichung stat. | J36: =G19/G21+G25/G26+G32/G34+G38/G39+G42/G43 -> 0
A37: l1 bei eingefahrenem Hub | B37: mm | C37: =C30+C31-C35 -> 42 | E37: Fx ges | F37: N | G37: =C17 -> 0 | I37: Belastungsgleichung dyn. | J37: =G17/G21+G30/G34 -> 0
A38: l1 bei ausgefahrenem Hub | B38: mm | C38: =C30+C31+C32-C35 -> 47 | E38: Absolutwert | G38: =ABS(G37) -> 0 | I38: Belastungsgleichung | J38: =MAX(J36:J37) -> 0
E39: Fx zul | F39: N | G39: =G43 -> 3710
A40: Stoßdämpferhub s ( Hub bis a=0 ) | B40: m | C40: ='Allgemeine Werte'!M41 -> 0.010586
A41: Verzögerung a=vxv/2xs | B41: m/s2 | C41: =POWER(C48,2)/(2*C40) -> 2.790289207 | E41: Fz ges | F41: N | G41: =-C25 -> 0 | I41: Verfahrzeitberechnung
A42: Kraft zur Verzögerung der Masse | B42: N | C42: =C12*C41 -> 0 | E42: Absolutwert | G42: =ABS(G41) -> 0 | I42: Verfahrzeit berechnet ( t=Wurzel aus (2xsxm/F) | K42: =(SQRT(2*(C5/1000)*(C12+C8/2)/(C6-(C12+C8/2)*9.81)))*(2+C7*0.1) -> 0.01927621878
A43: Kraft zur Verzög. d. Masse incl Modul/2 | B43: N | C43: =C47*C41 -> 5.441063953 | E43: Fz zul | F43: N | G43: =2120+1590*C7 -> 3710 | I43: Mittlere Verfahrgeschwindigkeit berechnet | K43: =(C5/1000)/K42 -> 0.5187739418
I44: Endgeschwindigkeit berechnet | K44: =K43*'Allgemeine Werte'!E71 -> 0.9078543982
A45: Stoßdämpferberechnung | E45: Max. Zyklenzahl / Min.
A46: Anzahl Stoßdämpfer | C46: ='EM-LM-6-1'!Q22 -> 1 | E46: Zyklen aus Verfahrzeit | G46: =60/(2*L50) -> 416.6666667 | I46: Endgeschwindigkeit (Eingabe) | K46: =C10 -> 2.02
A47: Gesamtmasse | B47: kg | C47: =C12+C8/2 -> 1.95 | I47: Mittlere Verfahrgeschwindigkeit (Eingabe) m/s | K47: =C10/'Allgemeine Werte'!E71 -> 1.154285714
A48: Aufprallgeschwindigkeit | B48: m/s | C48: =L54 -> 0.2430555556 | E48: Ezul / Stunde | F48: Nm | G48: ='Allgemeine Werte'!H41*C46*0.95 -> 32300 | I48: Verfahrzeit (Eingabe) | J48: s | K48: =(C5/1000)/K47 -> 0.008663366337 | L48: Verfahrzeit für Berechnung
A49: W1 | B49: Nm | C49: =C47*POWER(C48,2)*0.5 -> 0.05759910301 | E49: Ezul / Minute | F49: Nm | G49: =G48/60 -> 538.3333333 | L49: ( max )
A50: Hub Stoßdämpfer | B50: m | C50: ='Allgemeine Werte'!L41 -> 0.0158 | E50: Zyklen aus Ezul | G50: =G49/C53 -> 73.03442759 | I50: min. Verfahrzeit ab | J50: gemessen | K50: =0.05+(C5/25)*0.02 -> 0.058 | L50: =MAX(K48,K53,K42) -> 0.072
A51: Zylinderkraft | B51: N | C51: 482 | I51: Mittlere Verfahrgeschwindigkeit ab | K51: =(C5/1000)/K50 -> 0.1724137931
A52: W2 ( Antriebsenergie ) | B52: Nm | C52: =MAX(C56,C57)*C50 -> 7.3133539 | E52: Max. Zyklen | G52: =MIN(G46,G50,G55) -> 73.03442759 | I52: Endgeschwindigkeit ab | K52: =K51*'Allgemeine Werte'!E71 -> 0.3017241379 | L52: Endgeschwindigkeit f. Ber.
A53: W1+W2 ( Energie / Hub ) | B53: Nm | C53: =C52+C49 -> 7.370953003 | I53: min. Verfahrzeit auf | K53: =0.06+((C5/25)*0.03) -> 0.072 | L53: ( min )
A54: Ezul / Zyklus ( Hub ) | B54: Nm | C54: ='Allgemeine Werte'!G41*C50/'Allgemeine Werte'!K41*C46 -> 25.675 | E54: Stoßd.-kolbenrückstellzeit | G54: ='Allgemeine Werte'!E41 -> 0.75 | I54: Mittlere Verfahrgeschwindigkeit auf | K54: =(C5/1000)/K53 -> 0.1388888889 | L54: =MIN(K46,K55,K44) -> 0.2430555556
A55: Auslastung / Zyklus | C55: =C53/C54 -> 0.2870867771 | E55: Max. Zyklen aus Rückstellzeit | G55: =60/G54 -> 80 | I55: Endgeschwindigkeit auf | K55: =K54*'Allgemeine Werte'!E71 -> 0.2430555556
A56: Antriebskraft nach oben | C56: =C6-C47*9.81 -> 462.8705
A57: Antriebskraft nach unten | C57: =C9+C47*9.81 -> 434.1295

Sheet EM-Ber-LM300-1
A1: Linearmodul Typ | C1: LM 300
A3: Berechnung der Führungsbelastung
G4: Statisch auf Grund | H4: Statisch auf Grund
A5: Hub | B5: mm | C5: ='EM-LM-1'!K8 -> 10 | G5: Zusatzmasse m | H5: Zusatzmasse m | I5: Dynamisch auf Grund | J5: Statisch auf Grund | K5: Statisch auf Grund
A6: Zylinderkraft | B6: N | C6: 753 | G6: Modul ausgef. | H6: Modul eingef. | I6: Zusatzmasse m | J6: Zusatzkraft Modul eingef. | K6: Zusatzkraft Modul ausgef.
A7: Faktor | C7: =ROUNDDOWN(((C5+25)/50.1)+0.5,0) -> 1 | G7: I | H7: II | I7: III | J7: IV | K7: V
A8: Modulgewicht | B8: kg | C8: =3.5+(C7*1.35) -> 4.85 | E8: Moment Mx=M2 | F8: Nm | G8: =(C12*9.81)*((C38+C34/2+C33)/1000) -> 0 | H8: =C12*9.81*((C37+C34/2+C33)/1000) -> 0 | I8: =C42*(C15/1000) -> 0 | J8: =(C21*C23/1000)-C25*((C27+C37+C34/2)/1000) -> 0 | K8: =(C21*C23/1000)-C25*((C27+C38+C34/2)/1000) -> 0
A9: Zylinderkraft zurück | B9: N | C9: 633 | E9: Moment My=M1 | F9: Nm | G9: =C12*9.81*(C13/1000) -> 0 | H9: =C12*9.81*(C13/1000) -> 0 | I9: - | J9: =C17*C19/1000-C25*(C26/1000) -> 0 | K9: =C17*C19/1000-C25*(C26/1000) -> 0
A10: Verfahrgeschwindigkeit | B10: m/s | C10: ='EM-LM-1-1'!I58 -> 2.02 | E10: Moment Mz=M3 | F10: Nm | G10: - | H10: - | I10: =C42*(C13/1000) -> 0 | J10: =C21*C22/1000-C17*(C18+C37+C34/2)/1000 -> 0 | K10: =C21*C22/1000-C17*(C18+C38+C34/2)/1000 -> 0
J11: ='EM-LM-1'!G51 -> TRUE
A12: Zusatzmasse | B12: kg | C12: ='EM-LM-1'!K14 -> 0 | E12: Mx Summe I + III | F12: Nm | G12: =G8+I8 -> 0
A13: Schwerpunktabstand x-Richtung | B13: mm | C13: ='EM-LM-1'!M14 -> 0 | E13: Absolutbetrag | G13: =ABS(G12) -> 0
A14: Schwerpunktabstand y-Richtung | B14: mm | C14: ='EM-LM-1'!O14 -> 0 | E14: Mx Summe II-III | G14: =H8-I8 -> 0
A15: Schwerpunktabstand z-Richt.(Mitte Rolle) | B15: mm | C15: ='EM-LM-1'!Q14+20.5 -> 20.5 | E15: Absolutbetrag | G15: =ABS(G14) -> 0
E16: I | F16: Nm | G16: =ABS(G8) -> 0
A17: Zusatzkraft Fx | B17: N | C17: ='EM-LM-1'!K18 -> 0 | E17: I oder I+III oder II-III | G17: =MAX(G16,G15,G13) -> 0
A18: Kraftangriffspunkt von Fx in y-Richtung | B18: mm | C18: ='EM-LM-1'!O18 -> 0 | E18: Mx Summe I+V oder II+IV | F18: Nm | G18: =IF(AND(J8=0,K8=0),MAX(G8,H8),IF(J11=TRUE,H8+J8,G8+K8)) -> 0
A19: Kraftangrp. von Fx in z-Richt.(Mitte Rolle) | B19: mm | C19: ='EM-LM-1'!Q18+20.5 -> 20.5 | E19: Absolutbetrag | G19: =ABS(G18) -> 0
E20: Mx ges | F20: Nm | G20: =MAX(G17,G19) -> 0
A21: Zusatzkraft Fy | B21: N | C21: ='EM-LM-1'!K20 -> 0 | E21: Mx zul | F21: Nm | G21: =C34/1000*1060 -> 63.07 | I21: Maximal-Werte der Momente und Kräfte nicht aus Katalog, sondern exakt berechnete Werte !!
A22: Kraftangriffspunkt von Fy in x-Richtung | B22: mm | C22: ='EM-LM-1'!M20 -> 0
A23: Kraftangrp. von Fy in z-Richt.(Mitte Rolle) | B23: mm | C23: ='EM-LM-1'!Q20+20.5 -> 20.5 | E23: My Summe I+V ( = II+IV ) | F23: Nm | G23: =G9+K9 -> 0
E24: Absolutbetrag | G24: =ABS(G23) -> 0
A25: Zusatzkraft Fz | B25: N | C25: ='EM-LM-1'!K22 -> 0 | E25: My ges | F25: Nm | G25: =G24 -> 0
A26: Kraftangriffspunkt von Fz in x-Richtung | B26: mm | C26: ='EM-LM-1'!M22 -> 0 | E26: My zul | F26: Nm | G26: =48+(22*C7) -> 70
A27: Kraftangriffspunkt von Fz in y-Richtung | B27: mm | C27: ='EM-LM-1'!O22 -> 0
E29: Mz III | F29: Nm | G29: =I10 -> 0
A30: Länge L (Stirnplatte zu 1. Rolle - HubN/2) | B30: mm | C30: 44 | E30: Absolutbetrag | G30: =ABS(G29) -> 0
A31: Nennhub/2 HubN/2 | B31: mm | C31: =(0+(C7*50))/2 -> 25 | E31: Mz IV/V | F31: Nm | G31: =IF(J11=TRUE,J10,K10) -> 0
A32: tatsächlicher gefahrener Hub/2 | B32: mm | C32: =C5/2 -> 5 | E32: Absolutbetrag | G32: =ABS(G31) -> 0
A33: Schwerpunktabstand in y-Richtung | B33: mm | C33: =C14 -> 0 | E33: Mz ges | F33: Nm | G33: =MAX(G30,G32) -> 0
A34: Wert K ( Abstand erste / letzte Rolle ) | B34: mm | C34: =34+(C7*25.5) -> 59.5 | E34: Mz zul | F34: Nm | G34: =G21/2 -> 31.535
I36: Belastungsgleichung stat. | J36: =G19/G21+G25/G26+G32/G34+G38/G39+G42/G43 -> 0
A37: l1 bei eingefahrenem Hub | B37: mm | C37: =C30+C31 -> 69 | E37: Fx ges | F37: N | G37: =C17 -> 0 | I37: Belastungsgleichung dyn. | J37: =G17/G21+G30/G34+G40/G43 -> 0
A38: l1 bei ausgefahrenem Hub | B38: mm | C38: =C30+C31+C32 -> 74 | E38: Absolutwert | G38: =ABS(G37) -> 0 | I38: Belastungsgleichung | J38: =MAX(J36:J37) -> 0
E39: Fx zul | F39: N | G39: =G43 -> 3710
A40: Stoßdämpferhub s ( Hub bis a=0 ) | B40: m | C40: ='Allgemeine Werte'!M41 -> 0.010586 | E40: Gewichtskraft | F40: N | G40: =C12*9.81 -> 0
A41: Verzögerung a=vxv/2xs | B41: m/s2 | C41: =POWER(C48,2)/(2*C40) -> 3.531459777 | E41: Fz ges abs | F41: N | G41: =ABS(-C25+C12*9.81) -> 0 | I41: Verfahrzeitberechnung
A42: Kraft zur Verzögerung der Masse | B42: N | C42: =C12*C41 -> 0 | E42: Max aus E40,E41 | G42: =MAX(G40,G41) -> 0 | I42: Verfahrzeit berechnet ( t=Wurzel aus (2xsxm/F) | K42: =(SQRT(2*(C5/1000)*(C12+C8/2)/C9))*(2.6+C7*0.2) -> 0.02450908204
